Workbook

Sheet stats (hidden)
B1: \\wkfe0p2137.global.lubrizol.com\easytest$\EasyTest\Data\248\trn15q5mb
B2: =dataquery!B6 -> Stage6c | D2: =dataquery!B3 -> 4/10/2023 11 | F2: =MID(B2,6,1)*1 -> 6 | J2: done | K2: Run | L2: Stage | M2: filename | N2: date | O2: size
J3: x | K3: 1 | L3: 1 | M3: Trace_Test_0003.01.38.csv | N3: 2023-04-03T19:21:09 | O3: 1204016
B4: segment 1 | C4: 1 | D4: =MATCH(C4,dataquery!$B$11:$B$1810,0) -> 1 | E4: =AVERAGE(OFFSET(dataquery!G$10,$D4,0,300,1)) -> 0.4358667667 | J4: x | K4: 1 | L4: 2 | M4: Trace_Test_0005.01.38.csv | N4: 2023-04-03T21:21:09 | O4: 1193261 | BA4: =AVERAGE(OFFSET(dataquery!AZ$10,$D4+#REF!,0,1,1)) -> 
B5: segment 2 | C5: =C4+1800/6 -> 301 | D5: =MATCH(C5,dataquery!$B$11:$B$1810,0) -> 301 | E5: =AVERAGE(OFFSET(dataquery!G$10,$D5,0,300,1)) -> 0.4356728667 | J5: x | K5: 1 | L5: 3 | M5: Trace_Test_0007.01.38.csv | N5: 2023-04-03T23:21:09 | O5: 1204023 | BA5: =AVERAGE(OFFSET(dataquery!AZ$10,$D5+#REF!,0,1,1)) -> 
B6: segment 3 | C6: =C5+1800/6 -> 601 | D6: =MATCH(C6,dataquery!$B$11:$B$1810,0) -> 601 | E6: =AVERAGE(OFFSET(dataquery!G$10,$D6,0,300,1)) -> 0.4358286333 | J6: x | K6: 1 | L6: 4 | M6: Trace_Test_0009.01.38.csv | N6: 2023-04-04T01:21:09 | O6: 1174028 | BA6: =AVERAGE(OFFSET(dataquery!AZ$10,$D6+#REF!,0,1,1)) -> 
B7: segment 4 | C7: =C6+1800/6 -> 901 | D7: =MATCH(C7,dataquery!$B$11:$B$1810,0) -> 901 | E7: =AVERAGE(OFFSET(dataquery!G$10,$D7,0,300,1)) -> 0.4357961333 | J7: x | K7: 1 | L7: 5 | M7: Trace_Test_0011.01.38.csv | N7: 2023-04-04T03:21:09 | O7: 1166950 | BA7: =AVERAGE(OFFSET(dataquery!AZ$10,$D7+#REF!,0,1,1)) -> 
B8: segment 5 | C8: =C7+1800/6 -> 1201 | D8: =MATCH(C8,dataquery!$B$11:$B$1810,0) -> 1201 | E8: =AVERAGE(OFFSET(dataquery!G$10,$D8,0,300,1)) -> 0.4355803 | J8: x | K8: 1 | L8: 6 | M8: Trace_Test_0013.01.38.csv | N8: 2023-04-04T05:21:09 | O8: 1179341 | BA8: =AVERAGE(OFFSET(dataquery!AZ$10,$D8+#REF!,0,1,1)) -> 
B9: segment 6 | C9: =C8+1800/6 -> 1501 | D9: =MATCH(C9,dataquery!$B$11:$B$1810,0) -> 1501 | E9: =AVERAGE(OFFSET(dataquery!G$10,$D9,0,300,1)) -> 0.4360215 | J9: x | K9: =K3+1 -> 2 | L9: 1 | M9: Trace_Test_0016.33.17.csv | N9: 2023-04-04T08:58:20 | O9: 1205184 | BA9: =AVERAGE(OFFSET(dataquery!AZ$10,$D9+#REF!,0,1,1)) -> 
J10: x | K10: =K4+1 -> 2 | L10: 2 | M10: Trace_Test_0018.33.17.csv | N10: 2023-04-04T10:58:20 | O10: 1194530
E11: =AVERAGE(E4:E9) -> 0.4357943667 | F11: avg | J11: x | K11: 2 | L11: 3 | M11: Trace_Test_0020.33.17.csv | N11: 2023-04-04T12:58:20 | O11: 1204050 | BA11: =AVERAGE(BA4:BA9) -> 
E12: =STDEV(E4:E9)/E11 -> 0.0003534006571 | F12: CV | J12: x | K12: 2 | L12: 4 | M12: Trace_Test_0022.33.17.csv | N12: 2023-04-04T14:58:20 | O12: 1175880
E13: =STDEV(E4:E9) -> 0.0001540100155 | F13: stdev | J13: x | K13: 2 | L13: 5 | M13: Trace_Test_0024.33.17.csv | N13: 2023-04-04T16:58:20 | O13: 1168609
J14: x | K14: 2 | L14: 6 | M14: Trace_Test_0026.33.17.csv | N14: 2023-04-04T18:58:20 | O14: 1180225
B15: param | C15: index | D15: average | E15: max | F15: min | G15: description | J15: x | K15: 3 | L15: 1 | M15: Trace_Test_0030.04.58.csv | N15: 2023-04-04T22:40:03 | O15: 1204726
B16: =stage1!A4 -> SPEEDF | C16: =MATCH(B16,dataquery!$A$9:$EK$9,0) -> 88 | D16: =AVERAGE(OFFSET(dataquery!$A$11,0,stats!$C16-1,1800,1)) -> 694.8937222 | E16: =MAX(OFFSET(dataquery!$A$11,0,stats!$C16-1,1800,1)) -> 701.1 | F16: =MIN(OFFSET(dataquery!$A$11,0,stats!$C16-1,1800,1)) -> 687.8 | G16: =stage1!B4 -> Speed, r/min | J16: x | K16: 3 | L16: 2 | M16: Trace_Test_0032.04.58.csv | N16: 2023-04-05T00:40:03 | O16: 1195067
B17: =stage1!A5 -> LOAD | C17: =MATCH(B17,dataquery!$A$9:$EK$9,0) -> 15 | D17: =AVERAGE(OFFSET(dataquery!$A$11,0,stats!$C17-1,1800,1)) -> 40.00110917 | E17: =MAX(OFFSET(dataquery!$A$11,0,stats!$C17-1,1800,1)) -> 40.1689 | F17: =MIN(OFFSET(dataquery!$A$11,0,stats!$C17-1,1800,1)) -> 39.8043 | G17: =stage1!B5 -> Torque, N-m | J17: x | K17: 3 | L17: 3 | M17: Trace_Test_0034.04.58.csv | N17: 2023-04-05T02:40:03 | O17: 1205974
B18: =stage1!A6 -> TOLGAL | C18: =MATCH(B18,dataquery!$A$9:$EK$9,0) -> 75 | D18: =AVERAGE(OFFSET(dataquery!$A$11,0,stats!$C18-1,1800,1)) -> 113.9658278 | E18: =MAX(OFFSET(dataquery!$A$11,0,stats!$C18-1,1800,1)) -> 114.29 | F18: =MIN(OFFSET(dataquery!$A$11,0,stats!$C18-1,1800,1)) -> 113.61 | G18: =stage1!B6 -> Oil Gallery Temperature, °C | J18: x | K18: 3 | L18: 4 | M18: Trace_Test_0036.04.58.csv | N18: 2023-04-05T04:40:03 | O18: 1174128
B19: =stage1!A7 -> TCLEI | C19: =MATCH(B19,dataquery!$A$9:$EK$9,0) -> 50 | D19: =AVERAGE(OFFSET(dataquery!$A$11,0,stats!$C19-1,1800,1)) -> 108.0222111 | E19: =MAX(OFFSET(dataquery!$A$11,0,stats!$C19-1,1800,1)) -> 108.49 | F19: =MIN(OFFSET(dataquery!$A$11,0,stats!$C19-1,1800,1)) -> 107.51 | G19: =stage1!B7 -> Coolant Inlet Temperature, °C | J19: x | K19: 3 | L19: 5 | M19: Trace_Test_0038.04.58.csv | N19: 2023-04-05T06:40:03 | O19: 1168326
B20: =stage1!A8 -> TAIRIN | C20: =MATCH(B20,dataquery!$A$9:$EK$9,0) -> 46 | D20: =AVERAGE(OFFSET(dataquery!$A$11,0,stats!$C20-1,1800,1)) -> 29.00038333 | E20: =MAX(OFFSET(dataquery!$A$11,0,stats!$C20-1,1800,1)) -> 29.04 | F20: =MIN(OFFSET(dataquery!$A$11,0,stats!$C20-1,1800,1)) -> 28.96 | G20: =stage1!B8 -> Intake Air Temperature, °C | J20: x | K20: 3 | L20: 6 | M20: Trace_Test_0040.04.58.csv | N20: 2023-04-05T08:40:03 | O20: 1180786
B21: =stage1!A9 -> TFUELR | C21: =MATCH(B21,dataquery!$A$9:$EK$9,0) -> 64 | D21: =AVERAGE(OFFSET(dataquery!$A$11,0,stats!$C21-1,1800,1)) -> 22.04717222 | E21: =MAX(OFFSET(dataquery!$A$11,0,stats!$C21-1,1800,1)) -> 22.3 | F21: =MIN(OFFSET(dataquery!$A$11,0,stats!$C21-1,1800,1)) -> 21.89 | G21: =stage1!B9 -> Fuel to Fuel Rail Temperature, °C | J21: x | K21: 4 | L21: 1 | M21: Trace_Test_0043.36.38.csv | N21: 2023-04-05T12:16:57 | O21: 1205942
B22: =stage1!A10 -> TFUELS | C22: =MATCH(B22,dataquery!$A$9:$EK$9,0) -> 67 | D22: =AVERAGE(OFFSET(dataquery!$A$11,0,stats!$C22-1,1800,1)) -> 26.06136111 | E22: =MAX(OFFSET(dataquery!$A$11,0,stats!$C22-1,1800,1)) -> 26.21 | F22: =MIN(OFFSET(dataquery!$A$11,0,stats!$C22-1,1800,1)) -> 25.97 | G22: =stage1!B10 -> Fuel to Flowmeter Temp., °C | J22: x | K22: 4 | L22: 2 | M22: Trace_Test_0045.36.38.csv | N22: 2023-04-05T14:16:57 | O22: 1195031
B23: =stage1!A11 -> PEXHA | C23: =MATCH(B23,dataquery!$A$9:$EK$9,0) -> 28 | D23: =AVERAGE(OFFSET(dataquery!$A$11,0,stats!$C23-1,1800,1)) -> 104.0075778 | E23: =MAX(OFFSET(dataquery!$A$11,0,stats!$C23-1,1800,1)) -> 104.08 | F23: =MIN(OFFSET(dataquery!$A$11,0,stats!$C23-1,1800,1)) -> 103.95 | G23: =stage1!B11 -> Exhaust Back Pressure, kPa abs. | J23: x | K23: 4 | L23: 3 | M23: Trace_Test_0047.36.38.csv | N23: 2023-04-05T16:16:56 | O23: 1205925
B24: =stage1!A12 -> FFUEL | C24: =MATCH(B24,dataquery!$A$9:$EK$9,0) -> 12 | D24: =AVERAGE(OFFSET(dataquery!$A$11,0,stats!$C24-1,1800,1)) -> 1.268471278 | E24: =MAX(OFFSET(dataquery!$A$11,0,stats!$C24-1,1800,1)) -> 1.2731 | F24: =MIN(OFFSET(dataquery!$A$11,0,stats!$C24-1,1800,1)) -> 1.2638 | G24: =stage1!B12 -> Fuel Flow, kg/h | J24: x | K24: 4 | L24: 4 | M24: Trace_Test_0049.36.38.csv | N24: 2023-04-05T18:16:56 | O24: 1174734
B25: =stage1!A13 -> AFR | C25: =MATCH(B25,dataquery!$A$9:$EK$9,0) -> 4 | D25: =AVERAGE(OFFSET(dataquery!$A$11,0,stats!$C25-1,1800,1)) -> 14.50253333 | E25: =MAX(OFFSET(dataquery!$A$11,0,stats!$C25-1,1800,1)) -> 14.6 | F25: =MIN(OFFSET(dataquery!$A$11,0,stats!$C25-1,1800,1)) -> 14.4 | G25: =stage1!B13 -> Air/Fuel Ratio | J25: x | K25: 4 | L25: 5 | M25: Trace_Test_0051.36.38.csv | N25: 2023-04-05T20:16:56 | O25: 1167870
G26: =stage1!B14 -> Delta AFRA | J26: x | K26: 4 | L26: 6 | M26: Trace_Test_0053.36.38.csv | N26: 2023-04-05T22:16:56 | O26: 1181665
B27: =stage1!A15 -> BSFC | C27: =MATCH(B27,dataquery!$A$9:$EK$9,0) -> 7 | D27: =E11 -> 0.4357943667 | G27: =stage1!B15 -> BSFC, kg/Kw-h | J27: x | K27: 5 | L27: 1 | M27: Trace_Test_0057.08.12.csv | N27: 2023-04-06T02:04:19 | O27: 1204997
D28: =E13 -> 0.0001540100155 | G28: =stage1!B16 -> BSFC, Standard Deviation | J28: x | K28: 5 | L28: 2 | M28: Trace_Test_0059.08.12.csv | N28: 2023-04-06T04:04:19 | O28: 1193973
D29: =E12 -> 0.0003534006571 | G29: =stage1!B17 -> BSFC C.V., % | J29: x | K29: 5 | L29: 3 | M29: Trace_Test_0061.08.12.csv | N29: 2023-04-06T06:04:19 | O29: 1205589
J30: x | K30: 5 | L30: 4 | M30: Trace_Test_0063.08.12.csv | N30: 2023-04-06T08:04:19 | O30: 1177224
J31: x | K31: 5 | L31: 5 | M31: Trace_Test_0065.08.12.csv | N31: 2023-04-06T10:04:19 | O31: 1169852
B32: =stage1!A20 -> TOLSMP | C32: =MATCH(B32,dataquery!$A$9:$EK$9,0) -> 80 | D32: =AVERAGE(OFFSET(dataquery!$A$11,0,stats!$C32-1,1800,1)) -> 115.8025667 | E32: =MAX(OFFSET(dataquery!$A$11,0,stats!$C32-1,1800,1)) -> 116.41 | F32: =MIN(OFFSET(dataquery!$A$11,0,stats!$C32-1,1800,1)) -> 115.07 | G32: =stage1!B20 -> 1. Oil Circulation Temperature, °C | J32: x | K32: 5 | L32: 6 | M32: Trace_Test_0067.08.13.csv | N32: 2023-04-06T12:04:19 | O32: 1183864
B33: =stage1!A21 -> TCLEO | C33: =MATCH(B33,dataquery!$A$9:$EK$9,0) -> 52 | D33: =AVERAGE(OFFSET(dataquery!$A$11,0,stats!$C33-1,1800,1)) -> 109.8749278 | E33: =MAX(OFFSET(dataquery!$A$11,0,stats!$C33-1,1800,1)) -> 110.31 | F33: =MIN(OFFSET(dataquery!$A$11,0,stats!$C33-1,1800,1)) -> 109.4 | G33: =stage1!B21 -> 2. Coolant Out Temperature, °C | J33: x | K33: 6 | L33: 1 | M33: Trace_Test_0070.39.55.csv | N33: 2023-04-06T16:00:30 | O33: 1207317
B34: =stage1!A22 -> TLOADV | G34: =stage1!B22 -> 3. Load Cell Power Supply Temp., °C | J34: x | K34: 6 | L34: 2 | M34: Trace_Test_0072.39.55.csv | N34: 2023-04-06T18:00:30 | O34: 1196542
B35: =stage1!A23 -> TLOAD | C35: =MATCH(B35,dataquery!$A$9:$EK$9,0) -> 72 | D35: =AVERAGE(OFFSET(dataquery!$A$11,0,stats!$C35-1,1800,1)) -> 24.99058333 | E35: =MAX(OFFSET(dataquery!$A$11,0,stats!$C35-1,1800,1)) -> 25.09 | F35: =MIN(OFFSET(dataquery!$A$11,0,stats!$C35-1,1800,1)) -> 24.92 | G35: =stage1!B23 -> 4. Load Cell Temperature, °C | J35: x | K35: 6 | L35: 3 | M35: Trace_Test_0074.39.55.csv | N35: 2023-04-06T20:00:30 | O35: 1207457
G36: =stage1!B24 -> 5. Delta Load Cell Temperature, °C A | J36: x | K36: 6 | L36: 4 | M36: Trace_Test_0076.39.55.csv | N36: 2023-04-06T22:00:30 | O36: 1179304
B37: =stage1!A25 -> TOLHTR | C37: =MATCH(B37,dataquery!$A$9:$EK$9,0) -> 79 | D37: =AVERAGE(OFFSET(dataquery!$A$11,0,stats!$C37-1,1800,1)) -> 174.9944944 | E37: =MAX(OFFSET(dataquery!$A$11,0,stats!$C37-1,1800,1)) -> 176.73 | F37: =MIN(OFFSET(dataquery!$A$11,0,stats!$C37-1,1800,1)) -> 172.57 | G37: =stage1!B25 -> 6. Oil Heater Temperature, °C | J37: x | K37: 6 | L37: 5 | M37: Trace_Test_0078.39.55.csv | N37: 2023-04-07T00:00:30 | O37: 1170396
B38: =stage1!A26 -> PAIRIN | C38: =MATCH(B38,dataquery!$A$9:$EK$9,0) -> 20 | D38: =AVERAGE(OFFSET(dataquery!$A$11,0,stats!$C38-1,1800,1)) -> 0.04999777778 | E38: =MAX(OFFSET(dataquery!$A$11,0,stats!$C38-1,1800,1)) -> 0.0516 | F38: =MIN(OFFSET(dataquery!$A$11,0,stats!$C38-1,1800,1)) -> 0.0486 | G38: =stage1!B26 -> 7. Intake Air Pressure, kPa | J38: x | K38: 6 | L38: 6 | M38: Trace_Test_0080.39.55.csv | N38: 2023-04-07T02:00:30 | O38: 1186803
B39: =stage1!A27 -> PFUELS | C39: =MATCH(B39,dataquery!$A$9:$EK$9,0) -> 31 | D39: =AVERAGE(OFFSET(dataquery!$A$11,0,stats!$C39-1,1800,1)) -> 109.9974222 | E39: =MAX(OFFSET(dataquery!$A$11,0,stats!$C39-1,1800,1)) -> 110.31 | F39: =MIN(OFFSET(dataquery!$A$11,0,stats!$C39-1,1800,1)) -> 109.72 | G39: =stage1!B27 -> 8. Fuel to Flowmeter Pressure, kPa | J39: x | K39: 7 | L39: 1 | M39: Trace_Test_0084.11.35.csv | N39: 2023-04-07T05:37:19 | O39: 1207661
B40: =stage1!A28 -> PFUELR | C40: =MATCH(B40,dataquery!$A$9:$EK$9,0) -> 29 | D40: =AVERAGE(OFFSET(dataquery!$A$11,0,stats!$C40-1,1800,1)) -> 404.9996167 | E40: =MAX(OFFSET(dataquery!$A$11,0,stats!$C40-1,1800,1)) -> 405.29 | F40: =MIN(OFFSET(dataquery!$A$11,0,stats!$C40-1,1800,1)) -> 404.69 | G40: =stage1!B28 -> 9. Fuel to Fuel Rail Pressure, kPa | J40: x | K40: 7 | L40: 2 | M40: Trace_Test_0086.11.35.csv | N40: 2023-04-07T07:37:19 | O40: 1197001
B41: =stage1!A29 -> PINMAN | C41: =MATCH(B41,dataquery!$A$9:$EK$9,0) -> 33 | D41: =AVERAGE(OFFSET(dataquery!$A$11,0,stats!$C41-1,1800,1)) -> 40.82449889 | E41: =MAX(OFFSET(dataquery!$A$11,0,stats!$C41-1,1800,1)) -> 41.121 | F41: =MIN(OFFSET(dataquery!$A$11,0,stats!$C41-1,1800,1)) -> 40.572 | G41: =stage1!B29 -> 10. Intake Manifold Pressure, kPa abs. | J41: x | K41: 7 | L41: 3 | M41: Trace_Test_0088.11.35.csv | N41: 2023-04-07T09:37:19 | O41: 1207829
B42: =stage1!A30 -> POLGAL | C42: =MATCH(B42,dataquery!$A$9:$EK$9,0) -> 34 | D42: =AVERAGE(OFFSET(dataquery!$A$11,0,stats!$C42-1,1800,1)) -> 124.2734722 | E42: =MAX(OFFSET(dataquery!$A$11,0,stats!$C42-1,1800,1)) -> 125.64 | F42: =MIN(OFFSET(dataquery!$A$11,0,stats!$C42-1,1800,1)) -> 123.01 | G42: =stage1!B30 -> 11. Engine Oil Pressure, kPa | J42: x | K42: 7 | L42: 4 | M42: Trace_Test_0090.11.35.csv | N42: 2023-04-07T11:37:19 | O42: 1178745
B43: =stage1!A31 -> FCLEO | C43: =MATCH(B43,dataquery!$A$9:$EK$9,0) -> 10 | D43: =AVERAGE(OFFSET(dataquery!$A$11,0,stats!$C43-1,1800,1)) -> 80.00019444 | E43: =MAX(OFFSET(dataquery!$A$11,0,stats!$C43-1,1800,1)) -> 80.1 | F43: =MIN(OFFSET(dataquery!$A$11,0,stats!$C43-1,1800,1)) -> 79.87 | G43: =stage1!B31 -> 12. Coolant Flow, L/min | J43: x | K43: 7 | L43: 5 | M43: Trace_Test_0092.11.35.csv | N43: 2023-04-07T13:37:19 | O43: 1168754
B44: =stage1!A32 -> HUMID | C44: =MATCH(B44,dataquery!$A$9:$EK$9,0) -> 13 | D44: =AVERAGE(OFFSET(dataquery!$A$11,0,stats!$C44-1,1800,1)) -> 11.39060722 | E44: =MAX(OFFSET(dataquery!$A$11,0,stats!$C44-1,1800,1)) -> 11.701 | F44: =MIN(OFFSET(dataquery!$A$11,0,stats!$C44-1,1800,1)) -> 11.051 | G44: =stage1!B32 -> 13. Intake Air Humidity, g/kg | J44: x | K44: 7 | L44: 6 | M44: Trace_Test_0094.11.35.csv | N44: 2023-04-07T15:37:19 | O44: 1184037
B45: =stage1!A33 -> PCC | C45: =MATCH(B45,dataquery!$A$9:$EK$9,0) -> 23 | D45: =AVERAGE(OFFSET(dataquery!$A$11,0,stats!$C45-1,1800,1)) -> 0.2035111111 | E45: =MAX(OFFSET(dataquery!$A$11,0,stats!$C45-1,1800,1)) -> 0.259 | F45: =MIN(OFFSET(dataquery!$A$11,0,stats!$C45-1,1800,1)) -> 0.144 | G45: =stage1!B33 -> 14. Crankcase Pressure, kPa | J45: x | K45: 8 | L45: 1 | M45: Trace_Test_0097.43.13.csv | N45: 2023-04-07T19:14:28 | O45: 1206310
B46: =stage1!A34 -> PBAR | C46: =MATCH(B46,dataquery!$A$9:$EK$9,0) -> 22 | D46: =AVERAGE(OFFSET(dataquery!$A$11,0,stats!$C46-1,1800,1)) -> 100.7059006 | E46: =MAX(OFFSET(dataquery!$A$11,0,stats!$C46-1,1800,1)) -> 100.711 | F46: =MIN(OFFSET(dataquery!$A$11,0,stats!$C46-1,1800,1)) -> 100.7 | G46: =stage1!B34 -> 15. Barometric Pressure, kPa | J46: x | K46: 8 | L46: 2 | M46: Trace_Test_0099.43.13.csv | N46: 2023-04-07T21:14:28 | O46: 1196998
J47: x | K47: 8 | L47: 3 | M47: Trace_Test_0101.43.13.csv | N47: 2023-04-07T23:14:27 | O47: 1207776
B48: =stage1!A36 -> SPARK | C48: =MATCH(B48,dataquery!$A$9:$EK$9,0) -> 38 | D48: =AVERAGE(OFFSET(dataquery!$A$11,0,stats!$C48-1,1800,1)) -> 9.5 | E48: =MAX(OFFSET(dataquery!$A$11,0,stats!$C48-1,1800,1)) -> 9.5 | F48: =MIN(OFFSET(dataquery!$A$11,0,stats!$C48-1,1800,1)) -> 9.5 | G48: =stage1!B36 -> Spark Timing °BTDC | J48: x | K48: 8 | L48: 4 | M48: Trace_Test_0103.43.13.csv | N48: 2023-04-08T01:14:27 | O48: 1179630
B49: =stage1!A37 -> TAMB | C49: =MATCH(B49,dataquery!$A$9:$EK$9,0) -> 48 | D49: =AVERAGE(OFFSET(dataquery!$A$11,0,stats!$C49-1,1800,1)) -> 27.40139444 | E49: =MAX(OFFSET(dataquery!$A$11,0,stats!$C49-1,1800,1)) -> 27.58 | F49: =MIN(OFFSET(dataquery!$A$11,0,stats!$C49-1,1800,1)) -> 27.15 | G49: =stage1!B37 -> Cell Temperature, °C | J49: x | K49: 8 | L49: 5 | M49: Trace_Test_0105.43.13.csv | N49: 2023-04-08T03:14:27 | O49: 1169410
J50: x | K50: 8 | L50: 6 | M50: Trace_Test_0107.43.13.csv | N50: 2023-04-08T05:14:27 | O50: 1183823
J51: x | K51: 9 | L51: 1 | M51: Trace_Test_0111.14.52.csv | N51: 2023-04-08T08:52:10 | O51: 1207894
J52: x | K52: 9 | L52: 2 | M52: Trace_Test_0113.14.52.csv | N52: 2023-04-08T10:52:10 | O52: 1197051
B53: spec type | C53: stage name | D53: bsfc power | E53: bsfc weighting | J53: x | K53: 9 | L53: 3 | M53: Trace_Test_0115.14.52.csv | N53: 2023-04-08T12:52:10 | O53: 1207916
B54: stage | C54: Stage1c | D54: 21.99 | E54: 0.3 | J54: x | K54: 9 | L54: 4 | M54: Trace_Test_0117.14.52.csv | N54: 2023-04-08T14:52:10 | O54: 1179597
B55: stage | C55: Stage2c | D55: 21.99 | E55: 0.032 | J55: x | K55: 9 | L55: 5 | M55: Trace_Test_0119.14.52.csv | N55: 2023-04-08T16:52:10 | O55: 1169901
B56: stage | C56: Stage3c | D56: 16.49 | E56: 0.31 | J56: x | K56: 9 | L56: 6 | M56: Trace_Test_0121.14.52.csv | N56: 2023-04-08T18:52:10 | O56: 1184323
B57: stage | C57: Stage4c | D57: 1.46 | E57: 0.174 | J57: x | K57: 10 | L57: 1 | M57: Trace_Test_0124.47.01.csv | N57: 2023-04-08T22:29:28 | O57: 1208639
B58: stage | C58: Stage5c | D58: 1.46 | E58: 0.011 | J58: x | K58: 10 | L58: 2 | M58: Trace_Test_0126.47.01.csv | N58: 2023-04-09T00:29:28 | O58: 1195058
B59: stage | C59: Stage6c | D59: 2.91 | E59: 0.172 | J59: x | K59: 10 | L59: 3 | M59: Trace_Test_0128.47.01.csv | N59: 2023-04-09T02:29:27 | O59: 1207859
J60: x | K60: 10 | L60: 4 | M60: Trace_Test_0130.47.01.csv | N60: 2023-04-09T04:29:27 | O60: 1180528
J61: x | K61: 10 | L61: 5 | M61: Trace_Test_0132.47.01.csv | N61: 2023-04-09T06:29:27 | O61: 1170729
J62: x | K62: 10 | L62: 6 | M62: Trace_Test_0134.47.01.csv | N62: 2023-04-09T08:29:27 | O62: 1187050
J63: x | K63: 11 | L63: 1 | M63: Trace_Test_0138.18.41.csv | N63: 2023-04-09T12:06:46 | O63: 1206616
J64: x | K64: 11 | L64: 2 | M64: Trace_Test_0140.18.41.csv | N64: 2023-04-09T14:06:46 | O64: 1196190
J65: x | K65: 11 | L65: 3 | M65: Trace_Test_0142.18.41.csv | N65: 2023-04-09T16:06:46 | O65: 1206878
J66: x | K66: 11 | L66: 4 | M66: Trace_Test_0144.18.41.csv | N66: 2023-04-09T18:06:46 | O66: 1177224
J67: x | K67: 11 | L67: 5 | M67: Trace_Test_0146.18.41.csv | N67: 2023-04-09T20:06:46 | O67: 1169490
J68: x | K68: 11 | L68: 6 | M68: Trace_Test_0148.18.41.csv | N68: 2023-04-09T22:06:46 | O68: 1183950
J69: x | K69: 12 | L69: 1 | M69: Trace_Test_0151.50.29.csv | N69: 2023-04-10T01:43:38 | O69: 1206486
J70: x | K70: 12 | L70: 2 | M70: Trace_Test_0153.50.29.csv | N70: 2023-04-10T03:43:38 | O70: 1196776
J71: x | K71: 12 | L71: 3 | M71: Trace_Test_0155.50.29.csv | N71: 2023-04-10T05:43:38 | O71: 1207851
J72: x | K72: 12 | L72: 4 | M72: Trace_Test_0157.50.29.csv | N72: 2023-04-10T07:43:38 | O72: 1179373
J73: x | K73: 12 | L73: 5 | M73: Trace_Test_0159.50.29.csv | N73: 2023-04-10T09:43:38 | O73: 1170392
J74: x | K74: =K68+1 -> 12 | L74: 6 | M74: Trace_Test_0161.50.29.csv | N74: 2023-04-10T11:43:38 | O74: 1184051

Sheet summary
B1: Lab B runs
B2: 3rd candidate test, 923 engine hours at EOT
C3: Run 1 | D3: Run 2 | E3: Run 3 | F3: Run 4 | G3: Run 5 | H3: Run 6 | I3: Run 7 | J3: Run 8 | K3: Run 9 | L3: Run 10 | M3: Run 11 | N3: Run 12 | O3: Average | P3: Average | Q3: BL6 v BL5
B4: Stage | C4: BL6 | D4: BL5 | E4: BL5 | F4: BL6 | G4: BL6 | H4: BL5 | I4: BL5 | J4: BL6 | K4: BL6 | L4: BL5 | M4: BL5 | N4: BL6 | O4: BL5 | P4: BL6 | Q4: delta
B5: BSFC Stage 1 | C5: =_xlfn.LET(_xlpm.xxx,OFFSET(INDIRECT($R5&"!E15"),0,C$36),IF(_xlpm.xxx="","",_xlpm.xxx)) -> 0.2831594778 | D5: =_xlfn.LET(_xlpm.xxx,OFFSET(INDIRECT($R5&"!E15"),0,D$36),IF(_xlpm.xxx="","",_xlpm.xxx)) -> 0.28164265 | E5: =_xlfn.LET(_xlpm.xxx,OFFSET(INDIRECT($R5&"!E15"),0,E$36),IF(_xlpm.xxx="","",_xlpm.xxx)) -> 0.2812589056 | F5: =_xlfn.LET(_xlpm.xxx,OFFSET(INDIRECT($R5&"!E15"),0,F$36),IF(_xlpm.xxx="","",_xlpm.xxx)) -> 0.2815805778 | G5: =_xlfn.LET(_xlpm.xxx,OFFSET(INDIRECT($R5&"!E15"),0,G$36),IF(_xlpm.xxx="","",_xlpm.xxx)) -> 0.2814539556 | H5: =_xlfn.LET(_xlpm.xxx,OFFSET(INDIRECT($R5&"!E15"),0,H$36),IF(_xlpm.xxx="","",_xlpm.xxx)) -> 0.2811245444 | I5: =_xlfn.LET(_xlpm.xxx,OFFSET(INDIRECT($R5&"!E15"),0,I$36),IF(_xlpm.xxx="","",_xlpm.xxx)) -> 0.2813929222 | J5: =_xlfn.LET(_xlpm.xxx,OFFSET(INDIRECT($R5&"!E15"),0,J$36),IF(_xlpm.xxx="","",_xlpm.xxx)) -> 0.2814290278 | K5: =_xlfn.LET(_xlpm.xxx,OFFSET(INDIRECT($R5&"!E15"),0,K$36),IF(_xlpm.xxx="","",_xlpm.xxx)) -> 0.2815159778 | L5: =_xlfn.LET(_xlpm.xxx,OFFSET(INDIRECT($R5&"!E15"),0,L$36),IF(_xlpm.xxx="","",_xlpm.xxx)) -> 0.2811300167 | M5: =_xlfn.LET(_xlpm.xxx,OFFSET(INDIRECT($R5&"!E15"),0,M$36),IF(_xlpm.xxx="","",_xlpm.xxx)) -> 0.2808598222 | N5: =_xlfn.LET(_xlpm.xxx,OFFSET(INDIRECT($R5&"!E15"),0,N$36),IF(_xlpm.xxx="","",_xlpm.xxx)) -> 0.2807723778 | O5: =AVERAGEIF($C$4:$N$4,O$4,$C5:$N5) -> 0.2812348102 | P5: 0.2816518991 | Q5: =(P5-O5)/O5 -> 0.001483062814 | R5: stage1
B6: BSFC Stage 2 | C6: =_xlfn.LET(_xlpm.xxx,OFFSET(INDIRECT($R6&"!E15"),0,C$36),IF(_xlpm.xxx="","",_xlpm.xxx)) -> 0.2948620389 | D6: =_xlfn.LET(_xlpm.xxx,OFFSET(INDIRECT($R6&"!E15"),0,D$36),IF(_xlpm.xxx="","",_xlpm.xxx)) -> 0.2942042611 | E6: =_xlfn.LET(_xlpm.xxx,OFFSET(INDIRECT($R6&"!E15"),0,E$36),IF(_xlpm.xxx="","",_xlpm.xxx)) -> 0.2943175278 | F6: =_xlfn.LET(_xlpm.xxx,OFFSET(INDIRECT($R6&"!E15"),0,F$36),IF(_xlpm.xxx="","",_xlpm.xxx)) -> 0.2943597944 | G6: =_xlfn.LET(_xlpm.xxx,OFFSET(INDIRECT($R6&"!E15"),0,G$36),IF(_xlpm.xxx="","",_xlpm.xxx)) -> 0.2943933 | H6: =_xlfn.LET(_xlpm.xxx,OFFSET(INDIRECT($R6&"!E15"),0,H$36),IF(_xlpm.xxx="","",_xlpm.xxx)) -> 0.2941043 | I6: =_xlfn.LET(_xlpm.xxx,OFFSET(INDIRECT($R6&"!E15"),0,I$36),IF(_xlpm.xxx="","",_xlpm.xxx)) -> 0.2938377389 | J6: =_xlfn.LET(_xlpm.xxx,OFFSET(INDIRECT($R6&"!E15"),0,J$36),IF(_xlpm.xxx="","",_xlpm.xxx)) -> 0.2942418722 | K6: =_xlfn.LET(_xlpm.xxx,OFFSET(INDIRECT($R6&"!E15"),0,K$36),IF(_xlpm.xxx="","",_xlpm.xxx)) -> 0.2945092444 | L6: =_xlfn.LET(_xlpm.xxx,OFFSET(INDIRECT($R6&"!E15"),0,L$36),IF(_xlpm.xxx="","",_xlpm.xxx)) -> 0.2939147167 | M6: =_xlfn.LET(_xlpm.xxx,OFFSET(INDIRECT($R6&"!E15"),0,M$36),IF(_xlpm.xxx="","",_xlpm.xxx)) -> 0.2933381333 | N6: =_xlfn.LET(_xlpm.xxx,OFFSET(INDIRECT($R6&"!E15"),0,N$36),IF(_xlpm.xxx="","",_xlpm.xxx)) -> 0.2934910833 | O6: 0.2939527796 | P6: 0.2943095556 | Q6: 0.001213718497 | R6: stage2
B7: BSFC Stage 3 | C7: =_xlfn.LET(_xlpm.xxx,OFFSET(INDIRECT($R7&"!E15"),0,C$36),IF(_xlpm.xxx="","",_xlpm.xxx)) -> 0.2857178056 | D7: =_xlfn.LET(_xlpm.xxx,OFFSET(INDIRECT($R7&"!E15"),0,D$36),IF(_xlpm.xxx="","",_xlpm.xxx)) -> 0.2844796444 | E7: =_xlfn.LET(_xlpm.xxx,OFFSET(INDIRECT($R7&"!E15"),0,E$36),IF(_xlpm.xxx="","",_xlpm.xxx)) -> 0.283787 | F7: =_xlfn.LET(_xlpm.xxx,OFFSET(INDIRECT($R7&"!E15"),0,F$36),IF(_xlpm.xxx="","",_xlpm.xxx)) -> 0.2840787556 | G7: =_xlfn.LET(_xlpm.xxx,OFFSET(INDIRECT($R7&"!E15"),0,G$36),IF(_xlpm.xxx="","",_xlpm.xxx)) -> 0.2840976944 | H7: =_xlfn.LET(_xlpm.xxx,OFFSET(INDIRECT($R7&"!E15"),0,H$36),IF(_xlpm.xxx="","",_xlpm.xxx)) -> 0.2837890611 | I7: =_xlfn.LET(_xlpm.xxx,OFFSET(INDIRECT($R7&"!E15"),0,I$36),IF(_xlpm.xxx="","",_xlpm.xxx)) -> 0.28399935 | J7: =_xlfn.LET(_xlpm.xxx,OFFSET(INDIRECT($R7&"!E15"),0,J$36),IF(_xlpm.xxx="","",_xlpm.xxx)) -> 0.2837266 | K7: =_xlfn.LET(_xlpm.xxx,OFFSET(INDIRECT($R7&"!E15"),0,K$36),IF(_xlpm.xxx="","",_xlpm.xxx)) -> 0.2842023667 | L7: =_xlfn.LET(_xlpm.xxx,OFFSET(INDIRECT($R7&"!E15"),0,L$36),IF(_xlpm.xxx="","",_xlpm.xxx)) -> 0.2836817 | M7: =_xlfn.LET(_xlpm.xxx,OFFSET(INDIRECT($R7&"!E15"),0,M$36),IF(_xlpm.xxx="","",_xlpm.xxx)) -> 0.2835218889 | N7: =_xlfn.LET(_xlpm.xxx,OFFSET(INDIRECT($R7&"!E15"),0,N$36),IF(_xlpm.xxx="","",_xlpm.xxx)) -> 0.2837888889 | O7: 0.2838764407 | P7: 0.2842686852 | Q7: 0.001381743562 | R7: stage3
B8: BSFC Stage 4 | C8: =_xlfn.LET(_xlpm.xxx,OFFSET(INDIRECT($R8&"!E15"),0,C$36),IF(_xlpm.xxx="","",_xlpm.xxx)) -> 0.7194907222 | D8: =_xlfn.LET(_xlpm.xxx,OFFSET(INDIRECT($R8&"!E15"),0,D$36),IF(_xlpm.xxx="","",_xlpm.xxx)) -> 0.71174015 | E8: =_xlfn.LET(_xlpm.xxx,OFFSET(INDIRECT($R8&"!E15"),0,E$36),IF(_xlpm.xxx="","",_xlpm.xxx)) -> 0.7136505167 | F8: =_xlfn.LET(_xlpm.xxx,OFFSET(INDIRECT($R8&"!E15"),0,F$36),IF(_xlpm.xxx="","",_xlpm.xxx)) -> 0.7067770167 | G8: =_xlfn.LET(_xlpm.xxx,OFFSET(INDIRECT($R8&"!E15"),0,G$36),IF(_xlpm.xxx="","",_xlpm.xxx)) -> 0.7073367167 | H8: =_xlfn.LET(_xlpm.xxx,OFFSET(INDIRECT($R8&"!E15"),0,H$36),IF(_xlpm.xxx="","",_xlpm.xxx)) -> 0.7080433944 | I8: =_xlfn.LET(_xlpm.xxx,OFFSET(INDIRECT($R8&"!E15"),0,I$36),IF(_xlpm.xxx="","",_xlpm.xxx)) -> 0.7072750722 | J8: =_xlfn.LET(_xlpm.xxx,OFFSET(INDIRECT($R8&"!E15"),0,J$36),IF(_xlpm.xxx="","",_xlpm.xxx)) -> 0.7020415333 | K8: =_xlfn.LET(_xlpm.xxx,OFFSET(INDIRECT($R8&"!E15"),0,K$36),IF(_xlpm.xxx="","",_xlpm.xxx)) -> 0.70784935 | L8: =_xlfn.LET(_xlpm.xxx,OFFSET(INDIRECT($R8&"!E15"),0,L$36),IF(_xlpm.xxx="","",_xlpm.xxx)) -> 0.70358365 | M8: =_xlfn.LET(_xlpm.xxx,OFFSET(INDIRECT($R8&"!E15"),0,M$36),IF(_xlpm.xxx="","",_xlpm.xxx)) -> 0.6996262333 | N8: =_xlfn.LET(_xlpm.xxx,OFFSET(INDIRECT($R8&"!E15"),0,N$36),IF(_xlpm.xxx="","",_xlpm.xxx)) -> 0.7004211778 | O8: 0.7073198361 | P8: 0.7073194194 | Q8: -5.890781588e-07 | R8: stage4
B9: BSFC Stage 5 | C9: =_xlfn.LET(_xlpm.xxx,OFFSET(INDIRECT($R9&"!E15"),0,C$36),IF(_xlpm.xxx="","",_xlpm.xxx)) -> 0.8879728833 | D9: =_xlfn.LET(_xlpm.xxx,OFFSET(INDIRECT($R9&"!E15"),0,D$36),IF(_xlpm.xxx="","",_xlpm.xxx)) -> 0.8851348278 | E9: =_xlfn.LET(_xlpm.xxx,OFFSET(INDIRECT($R9&"!E15"),0,E$36),IF(_xlpm.xxx="","",_xlpm.xxx)) -> 0.88261 | F9: =_xlfn.LET(_xlpm.xxx,OFFSET(INDIRECT($R9&"!E15"),0,F$36),IF(_xlpm.xxx="","",_xlpm.xxx)) -> 0.8837046 | G9: =_xlfn.LET(_xlpm.xxx,OFFSET(INDIRECT($R9&"!E15"),0,G$36),IF(_xlpm.xxx="","",_xlpm.xxx)) -> 0.8852006778 | H9: =_xlfn.LET(_xlpm.xxx,OFFSET(INDIRECT($R9&"!E15"),0,H$36),IF(_xlpm.xxx="","",_xlpm.xxx)) -> 0.8804810389 | I9: =_xlfn.LET(_xlpm.xxx,OFFSET(INDIRECT($R9&"!E15"),0,I$36),IF(_xlpm.xxx="","",_xlpm.xxx)) -> 0.8794088889 | J9: =_xlfn.LET(_xlpm.xxx,OFFSET(INDIRECT($R9&"!E15"),0,J$36),IF(_xlpm.xxx="","",_xlpm.xxx)) -> 0.8804794 | K9: =_xlfn.LET(_xlpm.xxx,OFFSET(INDIRECT($R9&"!E15"),0,K$36),IF(_xlpm.xxx="","",_xlpm.xxx)) -> 0.8826272333 | L9: =_xlfn.LET(_xlpm.xxx,OFFSET(INDIRECT($R9&"!E15"),0,L$36),IF(_xlpm.xxx="","",_xlpm.xxx)) -> 0.8762994778 | M9: =_xlfn.LET(_xlpm.xxx,OFFSET(INDIRECT($R9&"!E15"),0,M$36),IF(_xlpm.xxx="","",_xlpm.xxx)) -> 0.8738734556 | N9: =_xlfn.LET(_xlpm.xxx,OFFSET(INDIRECT($R9&"!E15"),0,N$36),IF(_xlpm.xxx="","",_xlpm.xxx)) -> 0.8784650944 | O9: 0.8796346148 | P9: 0.8830749815 | Q9: 0.003911131518 | R9: stage5
B10: BSFC Stage 6 | C10: =_xlfn.LET(_xlpm.xxx,OFFSET(INDIRECT($R10&"!E15"),0,C$36),IF(_xlpm.xxx="","",_xlpm.xxx)) -> 0.4458020222 | D10: =_xlfn.LET(_xlpm.xxx,OFFSET(INDIRECT($R10&"!E15"),0,D$36),IF(_xlpm.xxx="","",_xlpm.xxx)) -> 0.4435138167 | E10: =_xlfn.LET(_xlpm.xxx,OFFSET(INDIRECT($R10&"!E15"),0,E$36),IF(_xlpm.xxx="","",_xlpm.xxx)) -> 0.4428754056 | F10: =_xlfn.LET(_xlpm.xxx,OFFSET(INDIRECT($R10&"!E15"),0,F$36),IF(_xlpm.xxx="","",_xlpm.xxx)) -> 0.4405715944 | G10: =_xlfn.LET(_xlpm.xxx,OFFSET(INDIRECT($R10&"!E15"),0,G$36),IF(_xlpm.xxx="","",_xlpm.xxx)) -> 0.4402413278 | H10: =_xlfn.LET(_xlpm.xxx,OFFSET(INDIRECT($R10&"!E15"),0,H$36),IF(_xlpm.xxx="","",_xlpm.xxx)) -> 0.4410811444 | I10: =_xlfn.LET(_xlpm.xxx,OFFSET(INDIRECT($R10&"!E15"),0,I$36),IF(_xlpm.xxx="","",_xlpm.xxx)) -> 0.4402364611 | J10: =_xlfn.LET(_xlpm.xxx,OFFSET(INDIRECT($R10&"!E15"),0,J$36),IF(_xlpm.xxx="","",_xlpm.xxx)) -> 0.4378362278 | K10: =_xlfn.LET(_xlpm.xxx,OFFSET(INDIRECT($R10&"!E15"),0,K$36),IF(_xlpm.xxx="","",_xlpm.xxx)) -> 0.43725525 | L10: =_xlfn.LET(_xlpm.xxx,OFFSET(INDIRECT($R10&"!E15"),0,L$36),IF(_xlpm.xxx="","",_xlpm.xxx)) -> 0.4379233056 | M10: =_xlfn.LET(_xlpm.xxx,OFFSET(INDIRECT($R10&"!E15"),0,M$36),IF(_xlpm.xxx="","",_xlpm.xxx)) -> 0.4377100722 | N10: =_xlfn.LET(_xlpm.xxx,OFFSET(INDIRECT($R10&"!E15"),0,N$36),IF(_xlpm.xxx="","",_xlpm.xxx)) -> 0.4357943667 | O10: 0.4405567009 | P10: 0.4395834648 | Q10: -0.002209105228 | R10: stage6
B12: BSFC CV Stage 1 | C12: =_xlfn.LET(_xlpm.yyy,OFFSET(INDIRECT($R12&"!E17"),0,C$36),IF(_xlpm.yyy="","",_xlpm.yyy)) -> 0.0001770078679 | D12: =_xlfn.LET(_xlpm.yyy,OFFSET(INDIRECT($R12&"!E17"),0,D$36),IF(_xlpm.yyy="","",_xlpm.yyy)) -> 0.0002589482366 | E12: =_xlfn.LET(_xlpm.yyy,OFFSET(INDIRECT($R12&"!E17"),0,E$36),IF(_xlpm.yyy="","",_xlpm.yyy)) -> 0.000164417554 | F12: =_xlfn.LET(_xlpm.yyy,OFFSET(INDIRECT($R12&"!E17"),0,F$36),IF(_xlpm.yyy="","",_xlpm.yyy)) -> 0.0001699495937 | G12: =_xlfn.LET(_xlpm.yyy,OFFSET(INDIRECT($R12&"!E17"),0,G$36),IF(_xlpm.yyy="","",_xlpm.yyy)) -> 0.0002299927318 | H12: =_xlfn.LET(_xlpm.yyy,OFFSET(INDIRECT($R12&"!E17"),0,H$36),IF(_xlpm.yyy="","",_xlpm.yyy)) -> 0.0004772570275 | I12: =_xlfn.LET(_xlpm.yyy,OFFSET(INDIRECT($R12&"!E17"),0,I$36),IF(_xlpm.yyy="","",_xlpm.yyy)) -> 0.0002206788264 | J12: =_xlfn.LET(_xlpm.yyy,OFFSET(INDIRECT($R12&"!E17"),0,J$36),IF(_xlpm.yyy="","",_xlpm.yyy)) -> 0.000193197451 | K12: =_xlfn.LET(_xlpm.yyy,OFFSET(INDIRECT($R12&"!E17"),0,K$36),IF(_xlpm.yyy="","",_xlpm.yyy)) -> 0.000154831079 | L12: =_xlfn.LET(_xlpm.yyy,OFFSET(INDIRECT($R12&"!E17"),0,L$36),IF(_xlpm.yyy="","",_xlpm.yyy)) -> 0.0003677336264 | M12: =_xlfn.LET(_xlpm.yyy,OFFSET(INDIRECT($R12&"!E17"),0,M$36),IF(_xlpm.yyy="","",_xlpm.yyy)) -> 0.0002144612872 | N12: =_xlfn.LET(_xlpm.yyy,OFFSET(INDIRECT($R12&"!E17"),0,N$36),IF(_xlpm.yyy="","",_xlpm.yyy)) -> 0.0003164267989 | O12: =AVERAGEIF($C$4:$N$4,O$4,$C12:$N12) -> 0.000283916093 | P12: 0.0002069009204 | R12: stage1
B13: BSFC CV Stage 2 | C13: =_xlfn.LET(_xlpm.yyy,OFFSET(INDIRECT($R13&"!E17"),0,C$36),IF(_xlpm.yyy="","",_xlpm.yyy)) -> 0.0005019245549 | D13: =_xlfn.LET(_xlpm.yyy,OFFSET(INDIRECT($R13&"!E17"),0,D$36),IF(_xlpm.yyy="","",_xlpm.yyy)) -> 0.0002237951766 | E13: =_xlfn.LET(_xlpm.yyy,OFFSET(INDIRECT($R13&"!E17"),0,E$36),IF(_xlpm.yyy="","",_xlpm.yyy)) -> 0.0004354517353 | F13: =_xlfn.LET(_xlpm.yyy,OFFSET(INDIRECT($R13&"!E17"),0,F$36),IF(_xlpm.yyy="","",_xlpm.yyy)) -> 0.0002836185795 | G13: =_xlfn.LET(_xlpm.yyy,OFFSET(INDIRECT($R13&"!E17"),0,G$36),IF(_xlpm.yyy="","",_xlpm.yyy)) -> 0.0002981710857 | H13: =_xlfn.LET(_xlpm.yyy,OFFSET(INDIRECT($R13&"!E17"),0,H$36),IF(_xlpm.yyy="","",_xlpm.yyy)) -> 0.0003218049207 | I13: =_xlfn.LET(_xlpm.yyy,OFFSET(INDIRECT($R13&"!E17"),0,I$36),IF(_xlpm.yyy="","",_xlpm.yyy)) -> 0.0006322690326 | J13: =_xlfn.LET(_xlpm.yyy,OFFSET(INDIRECT($R13&"!E17"),0,J$36),IF(_xlpm.yyy="","",_xlpm.yyy)) -> 0.00106514025 | K13: =_xlfn.LET(_xlpm.yyy,OFFSET(INDIRECT($R13&"!E17"),0,K$36),IF(_xlpm.yyy="","",_xlpm.yyy)) -> 0.0008068758611 | L13: =_xlfn.LET(_xlpm.yyy,OFFSET(INDIRECT($R13&"!E17"),0,L$36),IF(_xlpm.yyy="","",_xlpm.yyy)) -> 0.0004590791102 | M13: =_xlfn.LET(_xlpm.yyy,OFFSET(INDIRECT($R13&"!E17"),0,M$36),IF(_xlpm.yyy="","",_xlpm.yyy)) -> 0.0004223415996 | N13: =_xlfn.LET(_xlpm.yyy,OFFSET(INDIRECT($R13&"!E17"),0,N$36),IF(_xlpm.yyy="","",_xlpm.yyy)) -> 0.0007425409932 | O13: 0.0004157902625 | P13: 0.0006163785541 | R13: stage2
B14: BSFC CV Stage 3 | C14: =_xlfn.LET(_xlpm.yyy,OFFSET(INDIRECT($R14&"!E17"),0,C$36),IF(_xlpm.yyy="","",_xlpm.yyy)) -> 0.0001879337207 | D14: =_xlfn.LET(_xlpm.yyy,OFFSET(INDIRECT($R14&"!E17"),0,D$36),IF(_xlpm.yyy="","",_xlpm.yyy)) -> 0.0004536627312 | E14: =_xlfn.LET(_xlpm.yyy,OFFSET(INDIRECT($R14&"!E17"),0,E$36),IF(_xlpm.yyy="","",_xlpm.yyy)) -> 0.0002993882053 | F14: =_xlfn.LET(_xlpm.yyy,OFFSET(INDIRECT($R14&"!E17"),0,F$36),IF(_xlpm.yyy="","",_xlpm.yyy)) -> 0.0002308919184 | G14: =_xlfn.LET(_xlpm.yyy,OFFSET(INDIRECT($R14&"!E17"),0,G$36),IF(_xlpm.yyy="","",_xlpm.yyy)) -> 0.0001746249558 | H14: =_xlfn.LET(_xlpm.yyy,OFFSET(INDIRECT($R14&"!E17"),0,H$36),IF(_xlpm.yyy="","",_xlpm.yyy)) -> 0.0004600358497 | I14: =_xlfn.LET(_xlpm.yyy,OFFSET(INDIRECT($R14&"!E17"),0,I$36),IF(_xlpm.yyy="","",_xlpm.yyy)) -> 0.0001547134043 | J14: =_xlfn.LET(_xlpm.yyy,OFFSET(INDIRECT($R14&"!E17"),0,J$36),IF(_xlpm.yyy="","",_xlpm.yyy)) -> 0.0001920620869 | K14: =_xlfn.LET(_xlpm.yyy,OFFSET(INDIRECT($R14&"!E17"),0,K$36),IF(_xlpm.yyy="","",_xlpm.yyy)) -> 0.0001338719522 | L14: =_xlfn.LET(_xlpm.yyy,OFFSET(INDIRECT($R14&"!E17"),0,L$36),IF(_xlpm.yyy="","",_xlpm.yyy)) -> 0.000141967167 | M14: =_xlfn.LET(_xlpm.yyy,OFFSET(INDIRECT($R14&"!E17"),0,M$36),IF(_xlpm.yyy="","",_xlpm.yyy)) -> 0.00010306892 | N14: =_xlfn.LET(_xlpm.yyy,OFFSET(INDIRECT($R14&"!E17"),0,N$36),IF(_xlpm.yyy="","",_xlpm.yyy)) -> 0.0002013752 | O14: 0.0002688060463 | P14: 0.0001867933057 | R14: stage3
B15: BSFC CV Stage 4 | C15: =_xlfn.LET(_xlpm.yyy,OFFSET(INDIRECT($R15&"!E17"),0,C$36),IF(_xlpm.yyy="","",_xlpm.yyy)) -> 0.001223433437 | D15: =_xlfn.LET(_xlpm.yyy,OFFSET(INDIRECT($R15&"!E17"),0,D$36),IF(_xlpm.yyy="","",_xlpm.yyy)) -> 0.0007743551495 | E15: =_xlfn.LET(_xlpm.yyy,OFFSET(INDIRECT($R15&"!E17"),0,E$36),IF(_xlpm.yyy="","",_xlpm.yyy)) -> 0.00163458571 | F15: =_xlfn.LET(_xlpm.yyy,OFFSET(INDIRECT($R15&"!E17"),0,F$36),IF(_xlpm.yyy="","",_xlpm.yyy)) -> 0.001056284877 | G15: =_xlfn.LET(_xlpm.yyy,OFFSET(INDIRECT($R15&"!E17"),0,G$36),IF(_xlpm.yyy="","",_xlpm.yyy)) -> 0.0009640371999 | H15: =_xlfn.LET(_xlpm.yyy,OFFSET(INDIRECT($R15&"!E17"),0,H$36),IF(_xlpm.yyy="","",_xlpm.yyy)) -> 0.0007270670697 | I15: =_xlfn.LET(_xlpm.yyy,OFFSET(INDIRECT($R15&"!E17"),0,I$36),IF(_xlpm.yyy="","",_xlpm.yyy)) -> 0.001102158427 | J15: =_xlfn.LET(_xlpm.yyy,OFFSET(INDIRECT($R15&"!E17"),0,J$36),IF(_xlpm.yyy="","",_xlpm.yyy)) -> 0.000457212753 | K15: =_xlfn.LET(_xlpm.yyy,OFFSET(INDIRECT($R15&"!E17"),0,K$36),IF(_xlpm.yyy="","",_xlpm.yyy)) -> 0.002760653733 | L15: =_xlfn.LET(_xlpm.yyy,OFFSET(INDIRECT($R15&"!E17"),0,L$36),IF(_xlpm.yyy="","",_xlpm.yyy)) -> 0.0004369330472 | M15: =_xlfn.LET(_xlpm.yyy,OFFSET(INDIRECT($R15&"!E17"),0,M$36),IF(_xlpm.yyy="","",_xlpm.yyy)) -> 0.0009889816046 | N15: =_xlfn.LET(_xlpm.yyy,OFFSET(INDIRECT($R15&"!E17"),0,N$36),IF(_xlpm.yyy="","",_xlpm.yyy)) -> 0.001199416342 | O15: 0.0009440135014 | P15: 0.001276839724 | R15: stage4
B16: BSFC CV Stage 5 | C16: =_xlfn.LET(_xlpm.yyy,OFFSET(INDIRECT($R16&"!E17"),0,C$36),IF(_xlpm.yyy="","",_xlpm.yyy)) -> 0.001541404464 | D16: =_xlfn.LET(_xlpm.yyy,OFFSET(INDIRECT($R16&"!E17"),0,D$36),IF(_xlpm.yyy="","",_xlpm.yyy)) -> 0.001175278653 | E16: =_xlfn.LET(_xlpm.yyy,OFFSET(INDIRECT($R16&"!E17"),0,E$36),IF(_xlpm.yyy="","",_xlpm.yyy)) -> 0.001660069349 | F16: =_xlfn.LET(_xlpm.yyy,OFFSET(INDIRECT($R16&"!E17"),0,F$36),IF(_xlpm.yyy="","",_xlpm.yyy)) -> 0.0008455155343 | G16: =_xlfn.LET(_xlpm.yyy,OFFSET(INDIRECT($R16&"!E17"),0,G$36),IF(_xlpm.yyy="","",_xlpm.yyy)) -> 0.002068062395 | H16: =_xlfn.LET(_xlpm.yyy,OFFSET(INDIRECT($R16&"!E17"),0,H$36),IF(_xlpm.yyy="","",_xlpm.yyy)) -> 0.0006174996153 | I16: =_xlfn.LET(_xlpm.yyy,OFFSET(INDIRECT($R16&"!E17"),0,I$36),IF(_xlpm.yyy="","",_xlpm.yyy)) -> 0.0008987980015 | J16: =_xlfn.LET(_xlpm.yyy,OFFSET(INDIRECT($R16&"!E17"),0,J$36),IF(_xlpm.yyy="","",_xlpm.yyy)) -> 0.001086102135 | K16: =_xlfn.LET(_xlpm.yyy,OFFSET(INDIRECT($R16&"!E17"),0,K$36),IF(_xlpm.yyy="","",_xlpm.yyy)) -> 0.001351187409 | L16: =_xlfn.LET(_xlpm.yyy,OFFSET(INDIRECT($R16&"!E17"),0,L$36),IF(_xlpm.yyy="","",_xlpm.yyy)) -> 0.002067309097 | M16: =_xlfn.LET(_xlpm.yyy,OFFSET(INDIRECT($R16&"!E17"),0,M$36),IF(_xlpm.yyy="","",_xlpm.yyy)) -> 0.001151550862 | N16: =_xlfn.LET(_xlpm.yyy,OFFSET(INDIRECT($R16&"!E17"),0,N$36),IF(_xlpm.yyy="","",_xlpm.yyy)) -> 0.001022778638 | O16: 0.00126175093 | P16: 0.001319175096 | R16: stage5
B17: BSFC CV Stage 6 | C17: =_xlfn.LET(_xlpm.yyy,OFFSET(INDIRECT($R17&"!E17"),0,C$36),IF(_xlpm.yyy="","",_xlpm.yyy)) -> 0.001046496348 | D17: =_xlfn.LET(_xlpm.yyy,OFFSET(INDIRECT($R17&"!E17"),0,D$36),IF(_xlpm.yyy="","",_xlpm.yyy)) -> 0.00172680847 | E17: =_xlfn.LET(_xlpm.yyy,OFFSET(INDIRECT($R17&"!E17"),0,E$36),IF(_xlpm.yyy="","",_xlpm.yyy)) -> 0.001287230441 | F17: =_xlfn.LET(_xlpm.yyy,OFFSET(INDIRECT($R17&"!E17"),0,F$36),IF(_xlpm.yyy="","",_xlpm.yyy)) -> 0.001280013765 | G17: =_xlfn.LET(_xlpm.yyy,OFFSET(INDIRECT($R17&"!E17"),0,G$36),IF(_xlpm.yyy="","",_xlpm.yyy)) -> 0.001951598111 | H17: =_xlfn.LET(_xlpm.yyy,OFFSET(INDIRECT($R17&"!E17"),0,H$36),IF(_xlpm.yyy="","",_xlpm.yyy)) -> 0.001461894174 | I17: =_xlfn.LET(_xlpm.yyy,OFFSET(INDIRECT($R17&"!E17"),0,I$36),IF(_xlpm.yyy="","",_xlpm.yyy)) -> 0.001896031964 | J17: =_xlfn.LET(_xlpm.yyy,OFFSET(INDIRECT($R17&"!E17"),0,J$36),IF(_xlpm.yyy="","",_xlpm.yyy)) -> 0.001771607385 | K17: =_xlfn.LET(_xlpm.yyy,OFFSET(INDIRECT($R17&"!E17"),0,K$36),IF(_xlpm.yyy="","",_xlpm.yyy)) -> 0.001154500034 | L17: =_xlfn.LET(_xlpm.yyy,OFFSET(INDIRECT($R17&"!E17"),0,L$36),IF(_xlpm.yyy="","",_xlpm.yyy)) -> 0.001045985682 | M17: =_xlfn.LET(_xlpm.yyy,OFFSET(INDIRECT($R17&"!E17"),0,M$36),IF(_xlpm.yyy="","",_xlpm.yyy)) -> 0.002955038032 | N17: =_xlfn.LET(_xlpm.yyy,OFFSET(INDIRECT($R17&"!E17"),0,N$36),IF(_xlpm.yyy="","",_xlpm.yyy)) -> 0.0003534006571 | O17: 0.001728831461 | P17: 0.001259602717 | R17: stage6
B19: WFC stg 1 | C19: =IFERROR(stats!$D54*stats!$E54*0.5*summary!C5,"") -> 0.9340015374 | D19: =IFERROR(stats!$D54*stats!$E54*0.5*summary!D5,"") -> 0.928998281 | E19: =IFERROR(stats!$D54*stats!$E54*0.5*summary!E5,"") -> 0.9277325 | F19: =IFERROR(stats!$D54*stats!$E54*0.5*summary!F5,"") -> 0.9287935358 | G19: =IFERROR(stats!$D54*stats!$E54*0.5*summary!G5,"") -> 0.9283758724 | H19: =IFERROR(stats!$D54*stats!$E54*0.5*summary!H5,"") -> 0.9272893099 | I19: =IFERROR(stats!$D54*stats!$E54*0.5*summary!I5,"") -> 0.9281745539 | J19: =IFERROR(stats!$D54*stats!$E54*0.5*summary!J5,"") -> 0.9282936481 | K19: =IFERROR(stats!$D54*stats!$E54*0.5*summary!K5,"") -> 0.9285804527 | L19: =IFERROR(stats!$D54*stats!$E54*0.5*summary!L5,"") -> 0.92730736 | M19: =IFERROR(stats!$D54*stats!$E54*0.5*summary!M5,"") -> 0.9264161236 | N19: =IFERROR(stats!$D54*stats!$E54*0.5*summary!N5,"") -> 0.9261276881 | O19: =AVERAGEIF($C$4:$N$4,O$4,$C19:$N19) -> 0.9276530214 | P19: 0.9290287891
B20: WFC stg 2 | C20: =IFERROR(stats!$D55*stats!$E55*0.5*summary!C6,"") -> 0.1037442598 | D20: =IFERROR(stats!$D55*stats!$E55*0.5*summary!D6,"") -> 0.1035128272 | E20: =IFERROR(stats!$D55*stats!$E55*0.5*summary!E6,"") -> 0.103552679 | F20: =IFERROR(stats!$D55*stats!$E55*0.5*summary!F6,"") -> 0.1035675501 | G20: =IFERROR(stats!$D55*stats!$E55*0.5*summary!G6,"") -> 0.1035793387 | H20: =IFERROR(stats!$D55*stats!$E55*0.5*summary!H6,"") -> 0.1034776569 | I20: =IFERROR(stats!$D55*stats!$E55*0.5*summary!I6,"") -> 0.1033838701 | J20: =IFERROR(stats!$D55*stats!$E55*0.5*summary!J6,"") -> 0.1035260603 | K20: =IFERROR(stats!$D55*stats!$E55*0.5*summary!K6,"") -> 0.1036201326 | L20: =IFERROR(stats!$D55*stats!$E55*0.5*summary!L6,"") -> 0.1034109539 | M20: =IFERROR(stats!$D55*stats!$E55*0.5*summary!M6,"") -> 0.1032080888 | N20: =IFERROR(stats!$D55*stats!$E55*0.5*summary!N6,"") -> 0.1032619028 | O20: 0.103424346 | P20: 0.103549874
B21: WFC stg 3 | C21: =IFERROR(stats!$D56*stats!$E56*0.5*summary!C7,"") -> 0.7302804251 | D21: =IFERROR(stats!$D56*stats!$E56*0.5*summary!D7,"") -> 0.7271157472 | E21: =IFERROR(stats!$D56*stats!$E56*0.5*summary!E7,"") -> 0.7253453826 | F21: =IFERROR(stats!$D56*stats!$E56*0.5*summary!F7,"") -> 0.7260910953 | G21: =IFERROR(stats!$D56*stats!$E56*0.5*summary!G7,"") -> 0.7261395021 | H21: =IFERROR(stats!$D56*stats!$E56*0.5*summary!H7,"") -> 0.7253506507 | I21: =IFERROR(stats!$D56*stats!$E56*0.5*summary!I7,"") -> 0.7258881386 | J21: =IFERROR(stats!$D56*stats!$E56*0.5*summary!J7,"") -> 0.7251910033 | K21: =IFERROR(stats!$D56*stats!$E56*0.5*summary!K7,"") -> 0.7264070391 | L21: =IFERROR(stats!$D56*stats!$E56*0.5*summary!L7,"") -> 0.7250762411 | M21: =IFERROR(stats!$D56*stats!$E56*0.5*summary!M7,"") -> 0.7246677719 | N21: =IFERROR(stats!$D56*stats!$E56*0.5*summary!N7,"") -> 0.7253502106 | O21: 0.7255739887 | P21: 0.7265765459
B22: WFC stg 4 | C22: =IFERROR(stats!$D57*stats!$E57*0.5*summary!C8,"") -> 0.09138971154 | D22: =IFERROR(stats!$D57*stats!$E57*0.5*summary!D8,"") -> 0.09040523385 | E22: =IFERROR(stats!$D57*stats!$E57*0.5*summary!E8,"") -> 0.09064788863 | F22: =IFERROR(stats!$D57*stats!$E57*0.5*summary!F8,"") -> 0.08977481666 | G22: =IFERROR(stats!$D57*stats!$E57*0.5*summary!G8,"") -> 0.08984590975 | H22: =IFERROR(stats!$D57*stats!$E57*0.5*summary!H8,"") -> 0.08993567196 | I22: =IFERROR(stats!$D57*stats!$E57*0.5*summary!I8,"") -> 0.08983807967 | J22: =IFERROR(stats!$D57*stats!$E57*0.5*summary!J8,"") -> 0.08917331556 | K22: =IFERROR(stats!$D57*stats!$E57*0.5*summary!K8,"") -> 0.08991102444 | L22: =IFERROR(stats!$D57*stats!$E57*0.5*summary!L8,"") -> 0.08936919522 | M22: =IFERROR(stats!$D57*stats!$E57*0.5*summary!M8,"") -> 0.08886652416 | N22: =IFERROR(stats!$D57*stats!$E57*0.5*summary!N8,"") -> 0.088967498 | O22: 0.08984376558 | P22: 0.08984371266
B23: WFC stg 5 | C23: =IFERROR(stats!$D58*stats!$E58*0.5*summary!C9,"") -> 0.007130422253 | D23: =IFERROR(stats!$D58*stats!$E58*0.5*summary!D9,"") -> 0.007107632667 | E23: =IFERROR(stats!$D58*stats!$E58*0.5*summary!E9,"") -> 0.0070873583 | F23: =IFERROR(stats!$D58*stats!$E58*0.5*summary!F9,"") -> 0.007096147938 | G23: =IFERROR(stats!$D58*stats!$E58*0.5*summary!G9,"") -> 0.007108161443 | H23: =IFERROR(stats!$D58*stats!$E58*0.5*summary!H9,"") -> 0.007070262742 | I23: =IFERROR(stats!$D58*stats!$E58*0.5*summary!I9,"") -> 0.007061653378 | J23: =IFERROR(stats!$D58*stats!$E58*0.5*summary!J9,"") -> 0.007070249582 | K23: =IFERROR(stats!$D58*stats!$E58*0.5*summary!K9,"") -> 0.007087496684 | L23: =IFERROR(stats!$D58*stats!$E58*0.5*summary!L9,"") -> 0.007036684807 | M23: =IFERROR(stats!$D58*stats!$E58*0.5*summary!M9,"") -> 0.007017203848 | N23: =IFERROR(stats!$D58*stats!$E58*0.5*summary!N9,"") -> 0.007054074708 | O23: 0.007063465957 | P23: 0.007091092101
B24: WFC stg 6 | C24: =IFERROR(stats!$D59*stats!$E59*0.5*summary!C10,"") -> 0.1115664141 | D24: =IFERROR(stats!$D59*stats!$E59*0.5*summary!D10,"") -> 0.1109937678 | E24: =IFERROR(stats!$D59*stats!$E59*0.5*summary!E10,"") -> 0.110833999 | F24: =IFERROR(stats!$D59*stats!$E59*0.5*summary!F10,"") -> 0.1102574472 | G24: =IFERROR(stats!$D59*stats!$E59*0.5*summary!G10,"") -> 0.1101747947 | H24: =IFERROR(stats!$D59*stats!$E59*0.5*summary!H10,"") -> 0.1103849672 | I24: =IFERROR(stats!$D59*stats!$E59*0.5*summary!I10,"") -> 0.1101735768 | J24: =IFERROR(stats!$D59*stats!$E59*0.5*summary!J10,"") -> 0.1095728944 | K24: =IFERROR(stats!$D59*stats!$E59*0.5*summary!K10,"") -> 0.1094274989 | L24: =IFERROR(stats!$D59*stats!$E59*0.5*summary!L10,"") -> 0.1095946864 | M24: =IFERROR(stats!$D59*stats!$E59*0.5*summary!M10,"") -> 0.1095413227 | N24: =IFERROR(stats!$D59*stats!$E59*0.5*summary!N10,"") -> 0.1090618982 | O24: 0.11025372 | P24: 0.1100101579
B25: WFC total | C25: =IF(C24="","",SUM(C19:C24)) -> 1.97811277 | D25: 1.96813349 | E25: 1.965199808 | F25: 1.965580593 | G25: 1.965223579 | H25: 1.963508519 | I25: 1.964519872 | J25: 1.962827171 | K25: 1.965033644 | L25: 1.961795121 | M25: 1.959717035 | N25: 1.959823272 | O25: 1.963812308 | P25: 1.966100172
B27: unweighted FC stg1 | C27: =IFERROR(stats!$D54*0.5*summary!C5,"") -> 3.113338458 | D27: =IFERROR(stats!$D54*0.5*summary!D5,"") -> 3.096660937 | E27: =IFERROR(stats!$D54*0.5*summary!E5,"") -> 3.092441667 | F27: =IFERROR(stats!$D54*0.5*summary!F5,"") -> 3.095978453 | G27: =IFERROR(stats!$D54*0.5*summary!G5,"") -> 3.094586241 | H27: =IFERROR(stats!$D54*0.5*summary!H5,"") -> 3.090964366 | I27: =IFERROR(stats!$D54*0.5*summary!I5,"") -> 3.09391518 | J27: =IFERROR(stats!$D54*0.5*summary!J5,"") -> 3.09431216 | K27: =IFERROR(stats!$D54*0.5*summary!K5,"") -> 3.095268176 | L27: =IFERROR(stats!$D54*0.5*summary!L5,"") -> 3.091024533 | M27: =IFERROR(stats!$D54*0.5*summary!M5,"") -> 3.088053745 | N27: =IFERROR(stats!$D54*0.5*summary!N5,"") -> 3.087092294 | O27: =AVERAGEIF($C$4:$N$4,O$4,$C27:$N27) -> 3.092176738 | P27: 3.09676263
B28: unweighted FC stg2 | C28: =IFERROR(stats!$D55*0.5*summary!C6,"") -> 3.242008118 | D28: =IFERROR(stats!$D55*0.5*summary!D6,"") -> 3.234775851 | E28: =IFERROR(stats!$D55*0.5*summary!E6,"") -> 3.236021218 | F28: =IFERROR(stats!$D55*0.5*summary!F6,"") -> 3.23648594 | G28: =IFERROR(stats!$D55*0.5*summary!G6,"") -> 3.236854334 | H28: =IFERROR(stats!$D55*0.5*summary!H6,"") -> 3.233676779 | I28: =IFERROR(stats!$D55*0.5*summary!I6,"") -> 3.230745939 | J28: =IFERROR(stats!$D55*0.5*summary!J6,"") -> 3.235189385 | K28: =IFERROR(stats!$D55*0.5*summary!K6,"") -> 3.238129143 | L28: =IFERROR(stats!$D55*0.5*summary!L6,"") -> 3.23159231 | M28: =IFERROR(stats!$D55*0.5*summary!M6,"") -> 3.225252776 | N28: =IFERROR(stats!$D55*0.5*summary!N6,"") -> 3.226934461 | O28: 3.232010812 | P28: 3.235933563
B29: unweighted FC stg3 | C29: =IFERROR(stats!$D56*0.5*summary!C7,"") -> 2.355743307 | D29: =IFERROR(stats!$D56*0.5*summary!D7,"") -> 2.345534668 | E29: =IFERROR(stats!$D56*0.5*summary!E7,"") -> 2.339823815 | F29: =IFERROR(stats!$D56*0.5*summary!F7,"") -> 2.34222934 | G29: =IFERROR(stats!$D56*0.5*summary!G7,"") -> 2.342385491 | H29: =IFERROR(stats!$D56*0.5*summary!H7,"") -> 2.339840809 | I29: =IFERROR(stats!$D56*0.5*summary!I7,"") -> 2.341574641 | J29: =IFERROR(stats!$D56*0.5*summary!J7,"") -> 2.339325817 | K29: =IFERROR(stats!$D56*0.5*summary!K7,"") -> 2.343248513 | L29: =IFERROR(stats!$D56*0.5*summary!L7,"") -> 2.338955617 | M29: =IFERROR(stats!$D56*0.5*summary!M7,"") -> 2.337637974 | N29: =IFERROR(stats!$D56*0.5*summary!N7,"") -> 2.339839389 | O29: 2.340561254 | P29: 2.343795309
B30: unweighted FC stg4 | C30: =IFERROR(stats!$D57*0.5*summary!C8,"") -> 0.5252282272 | D30: =IFERROR(stats!$D57*0.5*summary!D8,"") -> 0.5195703095 | E30: =IFERROR(stats!$D57*0.5*summary!E8,"") -> 0.5209648772 | F30: =IFERROR(stats!$D57*0.5*summary!F8,"") -> 0.5159472222 | G30: =IFERROR(stats!$D57*0.5*summary!G8,"") -> 0.5163558032 | H30: =IFERROR(stats!$D57*0.5*summary!H8,"") -> 0.5168716779 | I30: =IFERROR(stats!$D57*0.5*summary!I8,"") -> 0.5163108027 | J30: =IFERROR(stats!$D57*0.5*summary!J8,"") -> 0.5124903193 | K30: =IFERROR(stats!$D57*0.5*summary!K8,"") -> 0.5167300255 | L30: =IFERROR(stats!$D57*0.5*summary!L8,"") -> 0.5136160645 | M30: =IFERROR(stats!$D57*0.5*summary!M8,"") -> 0.5107271503 | N30: =IFERROR(stats!$D57*0.5*summary!N8,"") -> 0.5113074598 | O30: 0.5163434804 | P30: 0.5163431762
B31: unweighted FC stg5 | C31: =IFERROR(stats!$D58*0.5*summary!C9,"") -> 0.6482202048 | D31: =IFERROR(stats!$D58*0.5*summary!D9,"") -> 0.6461484243 | E31: =IFERROR(stats!$D58*0.5*summary!E9,"") -> 0.6443053 | F31: =IFERROR(stats!$D58*0.5*summary!F9,"") -> 0.645104358 | G31: =IFERROR(stats!$D58*0.5*summary!G9,"") -> 0.6461964948 | H31: =IFERROR(stats!$D58*0.5*summary!H9,"") -> 0.6427511584 | I31: =IFERROR(stats!$D58*0.5*summary!I9,"") -> 0.6419684889 | J31: =IFERROR(stats!$D58*0.5*summary!J9,"") -> 0.642749962 | K31: =IFERROR(stats!$D58*0.5*summary!K9,"") -> 0.6443178803 | L31: =IFERROR(stats!$D58*0.5*summary!L9,"") -> 0.6396986188 | M31: =IFERROR(stats!$D58*0.5*summary!M9,"") -> 0.6379276226 | N31: =IFERROR(stats!$D58*0.5*summary!N9,"") -> 0.6412795189 | O31: 0.6421332688 | P31: 0.6446447365
B32: unweighted FC stg6 | C32: =IFERROR(stats!$D59*0.5*summary!C10,"") -> 0.6486419423 | D32: =IFERROR(stats!$D59*0.5*summary!D10,"") -> 0.6453126032 | E32: =IFERROR(stats!$D59*0.5*summary!E10,"") -> 0.6443837151 | F32: =IFERROR(stats!$D59*0.5*summary!F10,"") -> 0.6410316699 | G32: =IFERROR(stats!$D59*0.5*summary!G10,"") -> 0.6405511319 | H32: =IFERROR(stats!$D59*0.5*summary!H10,"") -> 0.6417730652 | I32: =IFERROR(stats!$D59*0.5*summary!I10,"") -> 0.6405440509 | J32: =IFERROR(stats!$D59*0.5*summary!J10,"") -> 0.6370517114 | K32: =IFERROR(stats!$D59*0.5*summary!K10,"") -> 0.6362063887 | L32: =IFERROR(stats!$D59*0.5*summary!L10,"") -> 0.6371784096 | M32: =IFERROR(stats!$D59*0.5*summary!M10,"") -> 0.6368681551 | N32: =IFERROR(stats!$D59*0.5*summary!N10,"") -> 0.6340808035 | O32: 0.6410099998 | P32: 0.6395939413
B33: total | C33: =IF(C32="","",SUM(C27:C32)) -> 10.53318026 | D33: 10.48800279 | E33: 10.47794059 | F33: 10.47677698 | G33: 10.4769295 | H33: 10.46587786 | I33: 10.4650591 | J33: 10.46111936 | K33: 10.47390013 | L33: 10.45206555 | M33: 10.43646742 | N33: 10.44053393 | O33: 10.46423555 | P33: 10.47707336 | Q33: =(P33-O33)/O33 -> 0.001226826745
C36: 0 | D36: 1 | E36: 2 | F36: 3 | G36: 4 | H36: 5 | I36: 6 | J36: 7 | K36: 8 | L36: 9 | M36: 10 | N36: 11 | O36: 12 | P36: 13

Sheet analysis
B1: Run 1 | C1: Run 2 | D1: Run 3 | E1: Run 4 | F1: Run 5 | G1: Run 6 | H1: Run 7 | I1: Run 8 | J1: Run 9 | K1: Run 10 | L1: Run 11 | M1: Run 12
B2: BL6 | C2: BL5 | D2: BL5 | E2: BL6 | F2: BL6 | G2: BL5 | H2: BL5 | I2: BL6 | J2: BL6 | K2: BL5 | L2: BL5 | M2: BL6
A3: stage1 | B3: =(summary!C5-summary!$P5)/summary!$P5 -> 0.005352631062 | C3: =(summary!D5-summary!$P5)/summary!$P5 -> -3.283867109e-05 | D3: =(summary!E5-summary!$P5)/summary!$P5 -> -0.001395316417 | E3: =(summary!F5-summary!$P5)/summary!$P5 -> -0.0002532249792 | F3: =(summary!G5-summary!$P5)/summary!$P5 -> -0.000702794901 | G3: =(summary!H5-summary!$P5)/summary!$P5 -> -0.001872363124 | H3: =(summary!I5-summary!$P5)/summary!$P5 -> -0.0009194926528 | I3: =(summary!J5-summary!$P5)/summary!$P5 -> -0.0007913005275 | J3: =(summary!K5-summary!$P5)/summary!$P5 -> -0.0004825861169 | K3: =(summary!L5-summary!$P5)/summary!$P5 -> -0.001852934097 | L3: =(summary!M5-summary!$P5)/summary!$P5 -> -0.002812254611 | M3: =(summary!N5-summary!$P5)/summary!$P5 -> -0.003122724538
A4: stage2 | B4: =(summary!C6-summary!$P6)/summary!$P6 -> 0.001877218469 | C4: =(summary!D6-summary!$P6)/summary!$P6 -> -0.0003577676717 | D4: =(summary!E6-summary!$P6)/summary!$P6 -> 2.708788101e-05 | E4: =(summary!F6-summary!$P6)/summary!$P6 -> 0.0001707008418 | F4: =(summary!G6-summary!$P6)/summary!$P6 -> 0.0002845454484 | G4: =(summary!H6-summary!$P6)/summary!$P6 -> -0.0006974138341 | H4: =(summary!I6-summary!$P6)/summary!$P6 -> -0.001603130642 | I4: =(summary!J6-summary!$P6)/summary!$P6 -> -0.0002299732783 | J4: =(summary!K6-summary!$P6)/summary!$P6 -> 0.0006784995088 | K4: =(summary!L6-summary!$P6)/summary!$P6 -> -0.001341576858 | L4: =(summary!M6-summary!$P6)/summary!$P6 -> -0.003300681897 | M4: =(summary!N6-summary!$P6)/summary!$P6 -> -0.00278099099
A5: stage3 | B5: =(summary!C7-summary!$P7)/summary!$P7 -> 0.005097713698 | C5: =(summary!D7-summary!$P7)/summary!$P7 -> 0.0007421121997 | D5: =(summary!E7-summary!$P7)/summary!$P7 -> -0.001694471499 | E5: =(summary!F7-summary!$P7)/summary!$P7 -> -0.0006681341967 | F5: =(summary!G7-summary!$P7)/summary!$P7 -> -0.0006015109988 | G5: =(summary!H7-summary!$P7)/summary!$P7 -> -0.001687220925 | H5: =(summary!I7-summary!$P7)/summary!$P7 -> -0.0009474669537 | I5: =(summary!J7-summary!$P7)/summary!$P7 -> -0.001906946538 | J5: =(summary!K7-summary!$P7)/summary!$P7 -> -0.0002332951956 | K5: =(summary!L7-summary!$P7)/summary!$P7 -> -0.002064895698 | L5: =(summary!M7-summary!$P7)/summary!$P7 -> -0.002627079011 | M5: =(summary!N7-summary!$P7)/summary!$P7 -> -0.001687826768
A6: stage4 | B6: =(summary!C8-summary!$P8)/summary!$P8 -> 0.01720764685 | C6: =(summary!D8-summary!$P8)/summary!$P8 -> 0.00624997764 | D6: =(summary!E8-summary!$P8)/summary!$P8 -> 0.008950831899 | E6: =(summary!F8-summary!$P8)/summary!$P8 -> -0.0007668427628 | F6: =(summary!G8-summary!$P8)/summary!$P8 -> 2.445461237e-05 | G6: =(summary!H8-summary!$P8)/summary!$P8 -> 0.001023547467 | H6: =(summary!I8-summary!$P8)/summary!$P8 -> -6.269758896e-05 | I6: =(summary!J8-summary!$P8)/summary!$P8 -> -0.007461814233 | J6: =(summary!K8-summary!$P8)/summary!$P8 -> 0.0007492096795 | K6: =(summary!L8-summary!$P8)/summary!$P8 -> -0.005281587557 | L6: =(summary!M8-summary!$P8)/summary!$P8 -> -0.01087653739 | M6: =(summary!N8-summary!$P8)/summary!$P8 -> -0.009752654143
A7: stage5 | B7: =(summary!C9-summary!$P9)/summary!$P9 -> 0.005546416731 | C7: =(summary!D9-summary!$P9)/summary!$P9 -> 0.002332583687 | D7: =(summary!E9-summary!$P9)/summary!$P9 -> -0.0005265481315 | E7: =(summary!F9-summary!$P9)/summary!$P9 -> 0.0007129842105 | F7: =(summary!G9-summary!$P9)/summary!$P9 -> 0.002407152666 | G7: =(summary!H9-summary!$P9)/summary!$P9 -> -0.002937397896 | H7: =(summary!I9-summary!$P9)/summary!$P9 -> -0.004151507708 | I7: =(summary!J9-summary!$P9)/summary!$P9 -> -0.002939253785 | J7: =(summary!K9-summary!$P9)/summary!$P9 -> -0.0005070329899 | K7: =(summary!L9-summary!$P9)/summary!$P9 -> -0.007672625593 | L7: =(summary!M9-summary!$P9)/summary!$P9 -> -0.01041986934 | M7: =(summary!N9-summary!$P9)/summary!$P9 -> -0.005220266833
A8: stage6 | B8: =(summary!C10-summary!$P10)/summary!$P10 -> 0.01414647707 | C8: =(summary!D10-summary!$P10)/summary!$P10 -> 0.008941082107 | D8: =(summary!E10-summary!$P10)/summary!$P10 -> 0.007488772905 | E8: =(summary!F10-summary!$P10)/summary!$P10 -> 0.002247877158 | F8: =(summary!G10-summary!$P10)/summary!$P10 -> 0.001496559847 | G8: =(summary!H10-summary!$P10)/summary!$P10 -> 0.003407042688 | H8: =(summary!I10-summary!$P10)/summary!$P10 -> 0.001485488761 | I8: =(summary!J10-summary!$P10)/summary!$P10 -> -0.003974756052 | J8: =(summary!K10-summary!$P10)/summary!$P10 -> -0.005296411265 | K8: =(summary!L10-summary!$P10)/summary!$P10 -> -0.003776664484 | L8: =(summary!M10-summary!$P10)/summary!$P10 -> -0.004261744907 | M8: =(summary!N10-summary!$P10)/summary!$P10 -> -0.008619746764
A9: Total | B9: =summary!C25 -> 1.97811277 | C9: =summary!D25 -> 1.96813349 | D9: =summary!E25 -> 1.965199808 | E9: =summary!F25 -> 1.965580593 | F9: =summary!G25 -> 1.965223579 | G9: =summary!H25 -> 1.963508519 | H9: =summary!I25 -> 1.964519872 | I9: =summary!J25 -> 1.962827171 | J9: =summary!K25 -> 1.965033644 | K9: =summary!L25 -> 1.961795121 | L9: =summary!M25 -> 1.959717035 | M9: =summary!N25 -> 1.959823272
A10: average | B10: =B9 -> 1.97811277 | C10: =AVERAGE(C9:D9) -> 1.966666649 | E10: =AVERAGE(E9:F9) -> 1.965402086 | G10: =AVERAGE(G9:H9) -> 1.964014196 | I10: =AVERAGE(I9:J9) -> 1.963930408 | K10: =AVERAGE(K9:L9) -> 1.960756078 | M10: =M9 -> 1.959823272
L23: =_xlfn.SINGLE(INDEX(LINEST($L$34:$L$40,LN($K$34:$K$40)),1)) -> -0.006487475559
L24: =INDEX(LINEST($L$34:$L$40,LN($K$34:$K$40)),1,2) -> 1.975972814
E32: avg kg | F32: avg kg | G32: delta
E33: BL5 | F33: BL6 | G33: grams | H33: diff | J33: phase | K33: "hours" | L33: kg | M33: kg-curve | N33: delta
D34: Total fuel consumed (kg) | E34: =summary!O33 -> 10.46423555 | F34: =summary!P33 -> 10.47707336 | G34: =(F34-E34)*1000 -> 12.83780404 | H34: =(F34-E34)/E34 -> 0.001226826745 | J34: BL6 | K34: 1 | L34: =B10 -> 1.97811277 | M34: =$L$23*LN(K34)+$L$24 -> 1.975972814 | N34: =(L34-M34)/M34 -> 0.001082988777
D35: Total WEIGHTED fuel consumed (kg) | E35: =summary!O25 -> 1.963812308 | F35: =summary!P25 -> 1.966100172 | G35: =(F35-E35)*1000 -> 2.28786408 | H35: =(F35-E35)/E35 -> 0.00116501158 | J35: BL5 | K35: 2.5 | L35: =C10 -> 1.966666649 | M35: 1.9700284 | N35: -0.001706448216
J36: BL6 | K36: 4.5 | L36: =E10 -> 1.965402086 | M36: 1.966215148 | N36: -0.0004135165202
J37: BL5 | K37: 6.5 | L37: =G10 -> 1.964014196 | M37: 1.963829543 | N37: 9.40269969e-05
J38: BL6 | K38: 8.5 | L38: =I10 -> 1.963930408 | M38: 1.962089187 | N38: 0.0009383981681
J39: BL5 | K39: 10.5 | L39: =K10 -> 1.960756078 | M39: 1.960718324 | N39: 1.925516157e-05
J40: BL6 | K40: 12 | L40: =M10 -> 1.959823272 | M40: 1.959852043 | N40: -1.467984668e-05
J46: hrs | K46: kg
J47: =365-170 -> 195 | K47: 2.035118
J48: 195 | K48: 2.017603
J49: =365-170 -> 195 | K49: 2.012593
J50: 365 | K50: 1.985148
J51: 365 | K51: 1.990218
J52: 365 | K52: 1.984968
J53: 561 | K53: 1.97333
J54: 561 | K54: 1.982635
J55: 561 | K55: 1.973806
J56: 757 | K56: 1.970551
J57: 757 | K57: =summary!C25 -> 1.97811277
J58: 923.25 | K58: =summary!N25 -> 1.959823272

Sheet dataquery (hidden)
A1: Stand | B1: 248
A2: RunID | B2: trn15q5mb
A3: Date | B3: 4/10/2023 11 | C3: 13 | D3: 39 AM
A4: Samples per seconds | B4: 1
A5: Clocks 1-16 (hours) | B5: 161.8415 | C5: 13.29671 | D5: 0 | E5: 0 | F5: 0 | G5: 0 | H5: 0 | I5: 0 | J5: 0 | K5: 0 | L5: 0 | M5: 0 | N5: 0 | O5: 0 | P5: 0 | Q5: 165.2704
A6: Condition Set | B6: Stage6c
A7: ASTMName | E7: AFRL | F7: AFR | G7: BSFC | J7: MCF | L7: FFLO | M7: INAH | R7: NOXR | S7: NOXL | T7: INAP | V7: PBAR | W7: CCV | AB7: EXBP | AC7: FPFR | AE7: FPMM | AG7: INTV | AH7: OGP | AT7: INAT | AU7: tairin | AV7: TAMB | AX7: CINT | AZ7: COT | BB7: TDYNO | BL7: FTFR | BM7: TFuelFast | BO7: FTMM | BT7: LCT | BU7: LCEVT | BW7: OGT | CA7: HEAT | CB7: SMPT | CI7: LD | CJ7: RPM
A8: Digits | D8: 2 | E8: 3 | F8: 3 | G8: 5 | H8: 4 | I8: 2 | J8: 2 | K8: 3 | L8: 4 | M8: 3 | N8: 2 | O8: 4 | P8: 2 | Q8: 3 | R8: 3 | S8: 3 | T8: 4 | U8: 3 | V8: 3 | W8: 3 | X8: 3 | Y8: 2 | Z8: 3 | AA8: 3 | AB8: 2 | AC8: 2 | AD8: 3 | AE8: 2 | AF8: 3 | AG8: 3 | AH8: 2 | AI8: 2 | AJ8: 3 | AK8: 2 | AL8: 3 | AM8: 1 | AN8: 1 | AO8: 1 | AP8: 1 | AQ8: 1 | AR8: 1 | AS8: 1 | AT8: 2 | AU8: 3 | AV8: 2 | AW8: 3 | AX8: 2 | AY8: 3 | AZ8: 2 | BA8: 2 | BB8: 2 | BC8: 2 | BD8: 2 | BE8: 2 | BF8: 2 | BG8: 2 | BH8: 2 | BI8: 2 | BJ8: 2 | BK8: 2 | BL8: 2 | BM8: 2 | BN8: 3 | BO8: 2 | BP8: 3 | BQ8: 2 | BR8: 3 | BS8: 2 | BT8: 2 | BU8: 2 | BV8: 3 | BW8: 2 | BX8: 3 | BY8: 3 | BZ8: 2 | CA8: 2 | CB8: 2 | CC8: 2 | CD8: 2 | CE8: 2 | CF8: 2 | CG8: 2 | CH8: 2 | CI8: 4 | CJ8: 1 | CK8: 1 | CL8: 3 | CM8: 2 | CN8: 2 | CO8: 2 | CP8: 2 | CQ8: 2
A9: Name | D9: AFR | E9: AFRL | F9: AFRR | G9: BSFC | H9: Dyno_ct | I9: FBBY | J9: FCLEO | K9: FCLEO_ct | L9: FFUEL | M9: HUMID | N9: IAT_CAN | O9: LOAD | P9: LOAD_sp | Q9: MAF | R9: NOXL | S9: NOXR | T9: PAIRIN | U9: PAIRIN_ct | V9: PBAR | W9: PCC | X9: PCC_ct | Y9: PCLEO | Z9: PCLEO_ct | AA9: PEXH_ct | AB9: PEXHa | AC9: PFUELR | AD9: PFUELR_ct | AE9: PFUELS | AF9: PFUELS_ct | AG9: PINMAN | AH9: POLGAL | AI9: POLPMP | AJ9: POWER | AK9: PVAC_Hg | AL9: SPARK | AM9: SPEED_DYNO | AN9: SPEED_rpm | AO9: SPEED_sp | AP9: SectionCount | AQ9: SpeedCAN | AR9: SpeedDelta | AS9: StageCount | AT9: TAIRIN | AU9: TAIRIN_ct | AV9: TAMB | AW9: TBath_ct | AX9: TCLEI | AY9: TCLEI_ct | AZ9: TCLEO | BA9: TCLHEW | BB9: TDYNO | BC9: TDynwt | BD9: TEXH3 | BE9: TEXH4 | BF9: TEXH5 | BG9: TEXH6 | BH9: TEXHL | BI9: TEXHR | BJ9: TFLRES | BK9: TFLRTN | BL9: TFUELR | BM9: TFUELR_FAST | BN9: TFUELR_ct | BO9: TFUELS | BP9: TFUELS_ct | BQ9: TGLYCOL | BR9: THROT_ct | BS9: TINTANK | BT9: TLOAD | BU9: TLOADV | BV9: TOL2WAY_ct | BW9: TOLGAL | BX9: TOLGAL_ct.htr | BY9: TOLGAL_ct.valvs | BZ9: TOLHTO | CA9: TOLHTR | CB9: TOLSMP | CC9: TOLTO | CD9: TPWHEI | CE9: TPWTR | CF9: TPWTS | CG9: TRKRCVRL | CH9: TRKRCVRR | CI9: loadf | CJ9: speedf | CK9: stepper | CL9: tfuelr_rate | CM9: xTAmbBox | CN9: xTAmbCell | CO9: xTcjc#14 | CP9: xTcjc#5 | CQ9: xTcjc#8
A10: Units | G10: Kg/kWh | H10: Volts | I10: L/M | J10: L/M | K10: Volts | L10: Kg/hr | M10: g/kg | N10: deg C | O10: Nm | P10: Nm | Q10: g/s | T10: kPa | U10: Volts | V10: kPa | W10: kPa | X10: Volts | Y10: kPa | Z10: Volts | AA10: Volts | AB10: kPaa | AC10: kPa | AD10: Volts | AE10: kPa | AF10: Volts | AG10: kPaa | AH10: kPa | AI10: kPa | AJ10: kW | AK10: Hg | AL10: deg | AM10: rpm | AN10: rpm | AO10: rpm | AP10: Counts | AQ10: rpm | AR10: rpm | AS10: Counts | AT10: Deg-C | AU10: Volts | AV10: Deg-C | AW10: Volts | AX10: Deg-C | AY10: Volts | AZ10: Deg-C | BA10: Deg-C | BB10: Deg-C | BC10: Deg-C | BD10: Deg-C | BE10: Deg-C | BF10: Deg-C | BG10: Deg-C | BH10: Deg-C | BI10: Deg-C | BJ10: Deg-C | BK10: Deg-C | BL10: Deg-C | BM10: Deg-C | BN10: Volts | BO10: Deg-C | BP10: Volts | BQ10: Deg-C | BR10: Volts | BS10: Deg-C | BT10: Deg-C | BU10: Deg-C | BV10: Volts | BW10: Deg-C | BX10: Volts | BY10: Volts | BZ10: Deg-C | CA10: Deg-C | CB10: Deg-C | CC10: Deg-C | CD10: Deg-C | CE10: Deg-C | CF10: Deg-C | CG10: Deg-C | CH10: Deg-C | CI10: Nm | CJ10: rpm | CL10: Deg-C | CM10: Deg-C | CN10: Deg-C | CO10: Deg-C | CP10: Deg-C | CQ10: Deg-C
A11: Log | B11: 1 | D11: 14.52 | E11: 14.495 | F11: 14.423 | G11: 0.43515 | H11: 3.0478 | I11: 0.74 | J11: 80.04 | K11: 4.148 | L11: 1.2685 | M11: 11.588 | N11: 30 | O11: 39.9936 | P11: 40 | Q11: 5.337 | R11: 356.296 | S11: 373.828 | T11: 0.0499 | U11: 8.269 | V11: 100.708 | W11: 0.184 | X11: 10 | Y11: 107.05 | Z11: 6.428 | AA11: 9.238 | AB11: 104.03 | AC11: 404.96 | AD11: 1.538 | AE11: 109.93 | AF11: 1.367 | AG11: 40.684 | AH11: 124.59 | AI11: 255.28 | AJ11: 2.89 | AK11: 17.82 | AL11: 9.5 | AM11: 689.9 | AN11: 695.5 | AO11: 695 | AP11: 0 | AQ11: 696.4 | AR11: 0.5 | AS11: 72 | AT11: 29 | AU11: 3.199 | AV11: 27.41 | AW11: 3.813 | AX11: 107.6 | AY11: 8.49 | AZ11: 109.46 | BA11: 1e+20 | BB11: 27.59 | BC11: 19.89 | BD11: 28.35 | BE11: 28.36 | BF11: 28.33 | BG11: 28.51 | BH11: 28.3 | BI11: 28.7 | BJ11: 40.45 | BK11: 12.83 | BL11: 21.91 | BM11: 0 | BN11: 2.506 | BO11: 26.09 | BP11: 9.338 | BQ11: -9.18 | BR11: 0.93 | BS11: 37.99 | BT11: 24.96 | BU11: 0 | BV11: 0 | BW11: 113.82 | BX11: 8.29 | BY11: 8.626 | BZ11: 117.8 | CA11: 175.31 | CB11: 115.73 | CC11: 25.5 | CD11: 1e+20 | CE11: 0 | CF11: 0 | CG11: 1e+20 | CH11: 1e+20 | CI11: 40.0296 | CJ11: 695.5 | CK11: 134 | CL11: -1.402 | CM11: 0 | CN11: 0 | CO11: 0 | CP11: 0 | CQ11: 0
A12: Log | B12: 2 | D12: 14.51 | E12: 14.436 | F12: 14.472 | G12: 0.43643 | H12: 3.048 | I12: 0.74 | J12: 80.03 | K12: 4.148 | L12: 1.2684 | M12: 11.579 | N12: 30 | O12: 39.953 | P12: 40 | Q12: 5.328 | R12: 354.478 | S12: 351.878 | T12: 0.0498 | U12: 8.268 | V12: 100.707 | W12: 0.201 | X12: 10 | Y12: 107.02 | Z12: 6.431 | AA12: 9.238 | AB12: 104.03 | AC12: 404.97 | AD12: 1.541 | AE12: 109.91 | AF12: 1.368 | AG12: 40.811 | AH12: 124.31 | AI12: 255.61 | AJ12: 2.926 | AK12: 17.76 | AL12: 9.5 | AM12: 699.5 | AN12: 694.2 | AO12: 695 | AP12: 0 | AQ12: 694.5 | AR12: 0.1 | AS12: 72 | AT12: 29 | AU12: 3.2 | AV12: 27.41 | AW12: 3.809 | AX12: 107.59 | AY12: 8.498 | AZ12: 109.47 | BA12: 1e+20 | BB12: 27.59 | BC12: 19.89 | BD12: 28.35 | BE12: 28.37 | BF12: 28.33 | BG12: 28.52 | BH12: 28.31 | BI12: 28.71 | BJ12: 40.45 | BK12: 12.84 | BL12: 21.91 | BM12: 0 | BN12: 2.504 | BO12: 26.09 | BP12: 9.338 | BQ12: -9.18 | BR12: 0.93 | BS12: 38 | BT12: 24.95 | BU12: 0 | BV12: 0 | BW12: 113.82 | BX12: 8.265 | BY12: 8.629 | BZ12: 117.79 | CA12: 175.71 | CB12: 115.82 | CC12: 25.5 | CD12: 1e+20 | CE12: 0 | CF12: 0 | CG12: 1e+20 | CH12: 1e+20 | CI12: 39.9799 | CJ12: 694.3 | CK12: 134 | CL12: -1.17 | CM12: 0 | CN12: 0 | CO12: 0 | CP12: 0 | CQ12: 0
A13: Log | B13: 3 | D13: 14.49 | E13: 14.351 | F13: 14.421 | G13: 0.43549 | H13: 3.0479 | I13: 0.74 | J13: 80.02 | K13: 4.148 | L13: 1.2684 | M13: 11.573 | N13: 30 | O13: 39.9879 | P13: 40 | Q13: 5.322 | R13: 343.495 | S13: 350.914 | T13: 0.0497 | U13: 8.266 | V13: 100.708 | W13: 0.192 | X13: 10 | Y13: 107 | Z13: 6.433 | AA13: 9.238 | AB13: 104.03 | AC13: 404.94 | AD13: 1.545 | AE13: 110.03 | AF13: 1.368 | AG13: 40.761 | AH13: 124.42 | AI13: 255.56 | AJ13: 2.899 | AK13: 17.82 | AL13: 9.5 | AM13: 692.3 | AN13: 695.5 | AO13: 695 | AP13: 0 | AQ13: 692.4 | AR13: 0.6 | AS13: 72 | AT13: 29 | AU13: 3.203 | AV13: 27.41 | AW13: 3.812 | AX13: 107.59 | AY13: 8.494 | AZ13: 109.47 | BA13: 1e+20 | BB13: 27.6 | BC13: 19.89 | BD13: 28.35 | BE13: 28.37 | BF13: 28.34 | BG13: 28.52 | BH13: 28.31 | BI13: 28.71 | BJ13: 40.45 | BK13: 12.84 | BL13: 21.9 | BM13: 0 | BN13: 2.502 | BO13: 26.1 | BP13: 9.337 | BQ13: -9.18 | BR13: 0.93 | BS13: 37.99 | BT13: 24.96 | BU13: 0 | BV13: 0 | BW13: 113.81 | BX13: 8.274 | BY13: 8.634 | BZ13: 117.78 | CA13: 175.55 | CB13: 115.82 | CC13: 25.5 | CD13: 1e+20 | CE13: 0 | CF13: 0 | CG13: 1e+20 | CH13: 1e+20 | CI13: 39.9908 | CJ13: 695.5 | CK13: 134 | CL13: -1.17 | CM13: 0 | CN13: 0 | CO13: 0 | CP13: 0 | CQ13: 0
A14: Log | B14: 4 | D14: 14.44 | E14: 14.514 | F14: 14.525 | G14: 0.44003 | H14: 3.0484 | I14: 0.74 | J14: 80.03 | K14: 4.148 | L14: 1.2685 | M14: 11.571 | N14: 30 | O14: 39.8639 | P14: 40 | Q14: 5.317 | R14: 328.289 | S14: 338.274 | T14: 0.0498 | U14: 8.265 | V14: 100.708 | W14: 0.191 | X14: 10 | Y14: 107.01 | Z14: 6.433 | AA14: 9.238 | AB14: 104 | AC14: 404.98 | AD14: 1.546 | AE14: 110.18 | AF14: 1.365 | AG14: 40.916 | AH14: 124 | AI14: 255.24 | AJ14: 2.888 | AK14: 17.69 | AL14: 9.5 | AM14: 691.7 | AN14: 690 | AO14: 695 | AP14: 0 | AQ14: 687.3 | AR14: 0.8 | AS14: 72 | AT14: 29.01 | AU14: 3.193 | AV14: 27.42 | AW14: 3.806 | AX14: 107.6 | AY14: 8.49 | AZ14: 109.47 | BA14: 1e+20 | BB14: 27.61 | BC14: 19.9 | BD14: 28.35 | BE14: 28.37 | BF14: 28.34 | BG14: 28.51 | BH14: 28.3 | BI14: 28.71 | BJ14: 40.45 | BK14: 12.84 | BL14: 21.91 | BM14: 0 | BN14: 2.505 | BO14: 26.11 | BP14: 9.333 | BQ14: -9.17 | BR14: 0.931 | BS14: 38 | BT14: 24.96 | BU14: 0 | BV14: 0 | BW14: 113.8 | BX14: 8.278 | BY14: 8.638 | BZ14: 117.8 | CA14: 175.46 | CB14: 115.67 | CC14: 25.5 | CD14: 1e+20 | CE14: 0 | CF14: 0 | CG14: 1e+20 | CH14: 1e+20 | CI14: 39.9228 | CJ14: 689.9 | CK14: 134 | CL14: -1.17 | CM14: 0 | CN14: 0 | CO14: 0 | CP14: 0 | CQ14: 0
A15: Log | B15: 5 | D15: 14.51 | E15: 14.532 | F15: 14.481 | G15: 0.43545 | H15: 3.0481 | I15: 0.74 | J15: 80.03 | K15: 4.148 | L15: 1.2685 | M15: 11.557 | N15: 30 | O15: 40.0252 | P15: 40 | Q15: 5.264 | R15: 344.414 | S15: 374.845 | T15: 0.0498 | U15: 8.264 | V15: 100.708 | W15: 0.202 | X15: 10 | Y15: 107.03 | Z15: 6.43 | AA15: 9.238 | AB15: 104.05 | AC15: 405.06 | AD15: 1.54 | AE15: 110.03 | AF15: 1.365 | AG15: 40.902 | AH15: 123.91 | AI15: 255.15 | AJ15: 2.951 | AK15: 17.81 | AL15: 9.5 | AM15: 704.1 | AN15: 696 | AO15: 695 | AP15: 0 | AQ15: 693 | AR15: 1.3 | AS15: 72 | AT15: 29.01 | AU15: 3.195 | AV15: 27.42 | AW15: 3.812 | AX15: 107.6 | AY15: 8.492 | AZ15: 109.47 | BA15: 1e+20 | BB15: 27.6 | BC15: 19.9 | BD15: 28.35 | BE15: 28.36 | BF15: 28.34 | BG15: 28.5 | BH15: 28.31 | BI15: 28.7 | BJ15: 40.45 | BK15: 12.83 | BL15: 21.91 | BM15: 0 | BN15: 2.503 | BO15: 26.1 | BP15: 9.336 | BQ15: -9.18 | BR15: 0.93 | BS15: 37.99 | BT15: 24.95 | BU15: 0 | BV15: 0 | BW15: 113.8 | BX15: 8.292 | BY15: 8.64 | BZ15: 117.81 | CA15: 175.24 | CB15: 115.63 | CC15: 25.5 | CD15: 1e+20 | CE15: 0 | CF15: 0 | CG15: 1e+20 | CH15: 1e+20 | CI15: 39.9442 | CJ15: 696.1 | CK15: 134 | CL15: -1.17 | CM15: 0 | CN15: 0 | CO15: 0 | CP15: 0 | CQ15: 0
A16: Log | B16: 6 | D16: 14.53 | E16: 14.447 | F16: 14.494 | G16: 0.43532 | H16: 3.048 | I16: 0.74 | J16: 80.02 | K16: 4.148 | L16: 1.2685 | M16: 11.539 | N16: 30 | O16: 40.0002 | P16: 40 | Q16: 5.273 | R16: 366.877 | S16: 380.115 | T16: 0.0498 | U16: 8.263 | V16: 100.707 | W16: 0.158 | X16: 9.999 | Y16: 107.02 | Z16: 6.431 | AA16: 9.237 | AB16: 104.02 | AC16: 405.04 | AD16: 1.537 | AE16: 110.12 | AF16: 1.364 | AG16: 40.704 | AH16: 124.44 | AI16: 254.96 | AJ16: 2.89 | AK16: 17.81 | AL16: 9.5 | AM16: 690 | AN16: 695.5 | AO16: 695 | AP16: 0 | AQ16: 695.4 | AR16: 1.3 | AS16: 72 | AT16: 29.01 | AU16: 3.192 | AV16: 27.42 | AW16: 3.802 | AX16: 107.6 | AY16: 8.491 | AZ16: 109.48 | BA16: 1e+20 | BB16: 27.61 | BC16: 19.9 | BD16: 28.35 | BE16: 28.36 | BF16: 28.33 | BG16: 28.51 | BH16: 28.31 | BI16: 28.7 | BJ16: 40.46 | BK16: 12.83 | BL16: 21.91 | BM16: 0 | BN16: 2.507 | BO16: 26.1 | BP16: 9.337 | BQ16: -9.19 | BR16: 0.93 | BS16: 38 | BT16: 24.95 | BU16: 0 | BV16: 0 | BW16: 113.81 | BX16: 8.277 | BY16: 8.64 | BZ16: 117.81 | CA16: 175.47 | CB16: 115.58 | CC16: 25.5 | CD16: 1e+20 | CE16: 0 | CF16: 0 | CG16: 1e+20 | CH16: 1e+20 | CI16: 40.0121 | CJ16: 695.5 | CK16: 134 | CL16: -1.17 | CM16: 0 | CN16: 0 | CO16: 0 | CP16: 0 | CQ16: 0
A17: Log | B17: 7 | D17: 14.51 | E17: 14.498 | F17: 14.479 | G17: 0.43548 | H17: 3.0481 | I17: 0.74 | J17: 80.02 | K17: 4.148 | L17: 1.2685 | M17: 11.533 | N17: 30 | O17: 40.0046 | P17: 40 | Q17: 5.272 | R17: 347.705 | S17: 375.319 | T17: 0.0496 | U17: 8.261 | V17: 100.707 | W17: 0.153 | X17: 10 | Y17: 107 | Z17: 6.433 | AA17: 9.237 | AB17: 104.04 | AC17: 404.98 | AD17: 1.537 | AE17: 109.93 | AF17: 1.364 | AG17: 40.799 | AH17: 124.25 | AI17: 255.26 | AJ17: 2.936 | AK17: 17.8 | AL17: 9.5 | AM17: 700.8 | AN17: 695.6 | AO17: 695 | AP17: 0 | AQ17: 694 | AR17: 1.2 | AS17: 72 | AT17: 29 | AU17: 3.202 | AV17: 27.43 | AW17: 3.804 | AX17: 107.6 | AY17: 8.491 | AZ17: 109.47 | BA17: 1e+20 | BB17: 27.61 | BC17: 19.9 | BD17: 28.34 | BE17: 28.36 | BF17: 28.33 | BG17: 28.51 | BH17: 28.3 | BI17: 28.69 | BJ17: 40.45 | BK17: 12.84 | BL17: 21.92 | BM17: 0 | BN17: 2.51 | BO17: 26.09 | BP17: 9.338 | BQ17: -9.19 | BR17: 0.93 | BS17: 38 | BT17: 24.95 | BU17: 0 | BV17: 0 | BW17: 113.8 | BX17: 8.259 | BY17: 8.645 | BZ17: 117.81 | CA17: 175.76 | CB17: 115.64 | CC17: 25.5 | CD17: 1e+20 | CE17: 0 | CF17: 0 | CG17: 1e+20 | CH17: 1e+20 | CI17: 39.9886 | CJ17: 695.5 | CK17: 134 | CL17: -1.17 | CM17: 0 | CN17: 0 | CO17: 0 | CP17: 0 | CQ17: 0
A18: Log | B18: 8 | D18: 14.52 | E18: 14.41 | F18: 14.403 | G18: 0.43297 | H18: 3.0478 | I18: 0.74 | J18: 80.03 | K18: 4.148 | L18: 1.2685 | M18: 11.514 | N18: 30 | O18: 40.0761 | P18: 40 | Q18: 5.239 | R18: 353.3 | S18: 365.368 | T18: 0.0499 | U18: 8.26 | V18: 100.708 | W18: 0.172 | X18: 10 | Y18: 106.98 | Z18: 6.435 | AA18: 9.237 | AB18: 104.05 | AC18: 404.93 | AD18: 1.543 | AE18: 109.87 | AF18: 1.365 | AG18: 40.676 | AH18: 124.58 | AI18: 255.32 | AJ18: 2.942 | AK18: 17.87 | AL18: 9.5 | AM18: 701 | AN18: 698.6 | AO18: 695 | AP18: 0 | AQ18: 697.5 | AR18: 1.3 | AS18: 72 | AT18: 29 | AU18: 3.201 | AV18: 27.42 | AW18: 3.819 | AX18: 107.6 | AY18: 8.496 | AZ18: 109.47 | BA18: 1e+20 | BB18: 27.61 | BC18: 19.9 | BD18: 28.33 | BE18: 28.35 | BF18: 28.32 | BG18: 28.51 | BH18: 28.29 | BI18: 28.68 | BJ18: 40.46 | BK18: 12.84 | BL18: 21.91 | BM18: 0 | BN18: 2.505 | BO18: 26.09 | BP18: 9.337 | BQ18: -9.18 | BR18: 0.93 | BS18: 37.98 | BT18: 24.94 | BU18: 0 | BV18: 0 | BW18: 113.79 | BX18: 8.281 | BY18: 8.65 | BZ18: 117.82 | CA18: 175.38 | CB18: 115.68 | CC18: 25.49 | CD18: 1e+20 | CE18: 0 | CF18: 0 | CG18: 1e+20 | CH18: 1e+20 | CI18: 40.0311 | CJ18: 698.6 | CK18: 133.9 | CL18: -1.17 | CM18: 0 | CN18: 0 | CO18: 0 | CP18: 0 | CQ18: 0
A19: Log | B19: 9 | D19: 14.46 | E19: 14.459 | F19: 14.513 | G19: 0.43601 | H19: 3.0481 | I19: 0.74 | J19: 80.03 | K19: 4.148 | L19: 1.2685 | M19: 11.502 | N19: 30 | O19: 39.958 | P19: 40 | Q19: 5.28 | R19: 342.908 | S19: 359.161 | T19: 0.0503 | U19: 8.262 | V19: 100.708 | W19: 0.178 | X19: 10 | Y19: 107 | Z19: 6.433 | AA19: 9.237 | AB19: 104.01 | AC19: 404.97 | AD19: 1.547 | AE19: 110.01 | AF19: 1.366 | AG19: 40.686 | AH19: 124.67 | AI19: 255.01 | AJ19: 2.881 | AK19: 17.78 | AL19: 9.5 | AM19: 688.5 | AN19: 694.4 | AO19: 695 | AP19: 0 | AQ19: 695.2 | AR19: 1 | AS19: 72 | AT19: 29 | AU19: 3.196 | AV19: 27.42 | AW19: 3.813 | AX19: 107.6 | AY19: 8.494 | AZ19: 109.47 | BA19: 1e+20 | BB19: 27.62 | BC19: 19.9 | BD19: 28.32 | BE19: 28.35 | BF19: 28.31 | BG19: 28.5 | BH19: 28.28 | BI19: 28.67 | BJ19: 40.46 | BK19: 12.84 | BL19: 21.91 | BM19: 0 | BN19: 2.504 | BO19: 26.1 | BP19: 9.336 | BQ19: -9.18 | BR19: 0.93 | BS19: 37.99 | BT19: 24.95 | BU19: 0 | BV19: 0 | BW19: 113.78 | BX19: 8.306 | BY19: 8.654 | BZ19: 117.81 | CA19: 174.96 | CB19: 115.53 | CC19: 25.5 | CD19: 1e+20 | CE19: 0 | CF19: 0 | CG19: 1e+20 | CH19: 1e+20 | CI19: 40.022 | CJ19: 694.4 | CK19: 134 | CL19: -1.17 | CM19: 0 | CN19: 0 | CO19: 0 | CP19: 0 | CQ19: 0
A20: Log | B20: 10 | D20: 14.5 | E20: 14.589 | F20: 14.482 | G20: 0.43626 | H20: 3.0481 | I20: 0.74 | J20: 80.02 | K20: 4.148 | L20: 1.2685 | M20: 11.499 | N20: 30 | O20: 39.9854 | P20: 40 | Q20: 5.301 | R20: 342.199 | S20: 389.865 | T20: 0.0505 | U20: 8.264 | V20: 100.707 | W20: 0.192 | X20: 10 | Y20: 107.02 | Z20: 6.431 | AA20: 9.237 | AB20: 104.04 | AC20: 405 | AD20: 1.549 | AE20: 109.93 | AF20: 1.366 | AG20: 40.833 | AH20: 124.24 | AI20: 255.54 | AJ20: 2.93 | AK20: 17.8 | AL20: 9.5 | AM20: 699.7 | AN20: 694.9 | AO20: 695 | AP20: 0 | AQ20: 692.5 | AR20: 0.9 | AS20: 72 | AT20: 29 | AU20: 3.201 | AV20: 27.39 | AW20: 3.812 | AX20: 107.6 | AY20: 8.496 | AZ20: 109.47 | BA20: 1e+20 | BB20: 27.6 | BC20: 19.9 | BD20: 28.32 | BE20: 28.34 | BF20: 28.3 | BG20: 28.49 | BH20: 28.28 | BI20: 28.66 | BJ20: 40.46 | BK20: 12.83 | BL20: 21.9 | BM20: 0 | BN20: 2.5 | BO20: 26.09 | BP20: 9.338 | BQ20: -9.18 | BR20: 0.93 | BS20: 37.99 | BT20: 24.95 | BU20: 0 | BV20: 0 | BW20: 113.78 | BX20: 8.32 | BY20: 8.658 | BZ20: 117.79 | CA20: 174.74 | CB20: 115.22 | CC20: 25.5 | CD20: 1e+20 | CE20: 0 | CF20: 0 | CG20: 1e+20 | CH20: 1e+20 | CI20: 39.9656 | CJ20: 694.8 | CK20: 134 | CL20: -1.17 | CM20: 0 | CN20: 0 | CO20: 0 | CP20: 0 | CQ20: 0
A21: Log | B21: 11 | D21: 14.55 | E21: 14.404 | F21: 14.317 | G21: 0.43356 | H21: 3.0478 | I21: 0.74 | J21: 80.02 | K21: 4.148 | L21: 1.2685 | M21: 11.484 | N21: 30 | O21: 40.064 | P21: 40 | Q21: 5.326 | R21: 361.726 | S21: 381.845 | T21: 0.0501 | U21: 8.265 | V21: 100.708 | W21: 0.191 | X21: 10 | Y21: 107.02 | Z21: 6.431 | AA21: 9.237 | AB21: 104.07 | AC21: 405.11 | AD21: 1.542 | AE21: 109.94 | AF21: 1.367 | AG21: 40.69 | AH21: 124.54 | AI21: 255.8 | AJ21: 2.924 | AK21: 17.87 | AL21: 9.5 | AM21: 697 | AN21: 697.9 | AO21: 695 | AP21: 0 | AQ21: 698.2 | AR21: 1 | AS21: 72 | AT21: 29 | AU21: 3.198 | AV21: 27.38 | AW21: 3.81 | AX21: 107.6 | AY21: 8.494 | AZ21: 109.47 | BA21: 1e+20 | BB21: 27.6 | BC21: 19.89 | BD21: 28.32 | BE21: 28.34 | BF21: 28.3 | BG21: 28.5 | BH21: 28.27 | BI21: 28.67 | BJ21: 40.45 | BK21: 12.83 | BL21: 21.9 | BM21: 0 | BN21: 2.499 | BO21: 26.09 | BP21: 9.339 | BQ21: -9.19 | BR21: 0.93 | BS21: 38 | BT21: 24.95 | BU21: 0 | BV21: 0 | BW21: 113.78 | BX21: 8.336 | BY21: 8.659 | BZ21: 117.78 | CA21: 174.47 | CB21: 115.35 | CC21: 25.5 | CD21: 1e+20 | CE21: 0 | CF21: 0 | CG21: 1e+20 | CH21: 1e+20 | CI21: 40.0199 | CJ21: 697.9 | CK21: 133.9 | CL21: -1.17 | CM21: 0 | CN21: 0 | CO21: 0 | CP21: 0 | CQ21: 0
A22: Log | B22: 12 | D22: 14.45 | E22: 14.512 | F22: 14.446 | G22: 0.4397 | H22: 3.0485 | I22: 0.74 | J22: 80.01 | K22: 4.148 | L22: 1.2685 | M22: 11.488 | N22: 30 | O22: 39.8453 | P22: 40 | Q22: 5.318 | R22: 341.415 | S22: 346.865 | T22: 0.0504 | U22: 8.267 | V22: 100.707 | W22: 0.189 | X22: 10 | Y22: 107 | Z22: 6.433 | AA22: 9.236 | AB22: 103.99 | AC22: 405.16 | AD22: 1.53 | AE22: 110.18 | AF22: 1.365 | AG22: 40.785 | AH22: 124.29 | AI22: 255.4 | AJ22: 2.836 | AK22: 17.7 | AL22: 9.5 | AM22: 679.6 | AN22: 689.8 | AO22: 695 | AP22: 0 | AQ22: 692.4 | AR22: 0.4 | AS22: 72 | AT22: 29 | AU22: 3.202 | AV22: 27.38 | AW22: 3.813 | AX22: 107.62 | AY22: 8.483 | AZ22: 109.47 | BA22: 1e+20 | BB22: 27.61 | BC22: 19.9 | BD22: 28.33 | BE22: 28.35 | BF22: 28.3 | BG22: 28.5 | BH22: 28.27 | BI22: 28.67 | BJ22: 40.45 | BK22: 12.84 | BL22: 21.91 | BM22: 0 | BN22: 2.502 | BO22: 26.1 | BP22: 9.336 | BQ22: -9.18 | BR22: 0.931 | BS22: 37.99 | BT22: 24.94 | BU22: 0 | BV22: 0 | BW22: 113.79 | BX22: 8.32 | BY22: 8.658 | BZ22: 117.8 | CA22: 174.75 | CB22: 115.57 | CC22: 25.5 | CD22: 1e+20 | CE22: 0 | CF22: 0 | CG22: 1e+20 | CH22: 1e+20 | CI22: 39.9777 | CJ22: 689.8 | CK22: 134 | CL22: -1.17 | CM22: 0 | CN22: 0 | CO22: 0 | CP22: 0 | CQ22: 0
A23: Log | B23: 13 | D23: 14.5 | E23: 14.657 | F23: 14.58 | G23: 0.43973 | H23: 3.0486 | I23: 0.74 | J23: 80.01 | K23: 4.147 | L23: 1.2685 | M23: 11.47 | N23: 30 | O23: 39.9022 | P23: 40 | Q23: 5.235 | R23: 357.118 | S23: 357.849 | T23: 0.0506 | U23: 8.269 | V23: 100.707 | W23: 0.171 | X23: 10 | Y23: 106.98 | Z23: 6.435 | AA23: 9.236 | AB23: 104.04 | AC23: 405.07 | AD23: 1.52 | AE23: 110.04 | AF23: 1.364 | AG23: 41.058 | AH23: 123.34 | AI23: 255.56 | AJ23: 2.92 | AK23: 17.73 | AL23: 9.5 | AM23: 698.7 | AN23: 690.9 | AO23: 695 | AP23: 0 | AQ23: 689.6 | AR23: 0.2 | AS23: 72 | AT23: 29 | AU23: 3.2 | AV23: 27.38 | AW23: 3.803 | AX23: 107.61 | AY23: 8.489 | AZ23: 109.47 | BA23: 1e+20 | BB23: 27.62 | BC23: 19.89 | BD23: 28.34 | BE23: 28.35 | BF23: 28.3 | BG23: 28.5 | BH23: 28.28 | BI23: 28.68 | BJ23: 40.45 | BK23: 12.84 | BL23: 21.9 | BM23: 0 | BN23: 2.5 | BO23: 26.09 | BP23: 9.337 | BQ23: -9.17 | BR23: 0.931 | BS23: 38 | BT23: 24.95 | BU23: 0 | BV23: 0 | BW23: 113.8 | BX23: 8.294 | BY23: 8.659 | BZ23: 117.8 | CA23: 175.18 | CB23: 115.44 | CC23: 25.5 | CD23: 1e+20 | CE23: 0 | CF23: 0 | CG23: 1e+20 | CH23: 1e+20 | CI23: 39.8869 | CJ23: 690.8 | CK23: 134 | CL23: -1.17 | CM23: 0 | CN23: 0 | CO23: 0 | CP23: 0 | CQ23: 0
A24: Log | B24: 14 | D24: 14.6 | E24: 14.497 | F24: 14.459 | G24: 0.43422 | H24: 3.0481 | I24: 0.74 | J24: 80 | K24: 4.148 | L24: 1.2685 | M24: 11.471 | N24: 30 | O24: 40.0678 | P24: 40 | Q24: 5.282 | R24: 386.335 | S24: 392.897 | T24: 0.0508 | U24: 8.273 | V24: 100.707 | W24: 0.184 | X24: 10 | Y24: 106.98 | Z24: 6.435 | AA24: 9.236 | AB24: 104.08 | AC24: 404.97 | AD24: 1.521 | AE24: 109.9 | AF24: 1.365 | AG24: 40.833 | AH24: 123.75 | AI24: 255.24 | AJ24: 2.944 | AK24: 17.86 | AL24: 9.5 | AM24: 701.6 | AN24: 697.7 | AO24: 695 | AP24: 0 | AQ24: 696.2 | AR24: 0.4 | AS24: 72 | AT24: 29 | AU24: 3.203 | AV24: 27.37 | AW24: 3.812 | AX24: 107.61 | AY24: 8.489 | AZ24: 109.47 | BA24: 1e+20 | BB24: 27.66 | BC24: 19.88 | BD24: 28.34 | BE24: 28.35 | BF24: 28.31 | BG24: 28.51 | BH24: 28.29 | BI24: 28.68 | BJ24: 40.45 | BK24: 12.84 | BL24: 21.9 | BM24: 0 | BN24: 2.501 | BO24: 26.09 | BP24: 9.339 | BQ24: -9.17 | BR24: 0.93 | BS24: 37.99 | BT24: 24.94 | BU24: 0 | BV24: 0 | BW24: 113.8 | BX24: 8.303 | BY24: 8.66 | BZ24: 117.78 | CA24: 175.04 | CB24: 115.18 | CC24: 25.49 | CD24: 1e+20 | CE24: 0 | CF24: 0 | CG24: 1e+20 | CH24: 1e+20 | CI24: 39.9664 | CJ24: 697.6 | CK24: 134 | CL24: -1.17 | CM24: 0 | CN24: 0 | CO24: 0 | CP24: 0 | CQ24: 0
A25: Log | B25: 15 | D25: 14.52 | E25: 14.454 | F25: 14.524 | G25: 0.43517 | H25: 3.0482 | I25: 0.74 | J25: 79.99 | K25: 4.148 | L25: 1.2685 | M25: 11.473 | N25: 30 | O25: 40.0074 | P25: 40 | Q25: 5.305 | R25: 366.784 | S25: 369.253 | T25: 0.0506 | U25: 8.275 | V25: 100.708 | W25: 0.192 | X25: 10 | Y25: 107 | Z25: 6.433 | AA25: 9.236 | AB25: 104.02 | AC25: 404.94 | AD25: 1.527 | AE25: 110.03 | AF25: 1.365 | AG25: 40.685 | AH25: 124.29 | AI25: 255.1 | AJ25: 2.891 | AK25: 17.81 | AL25: 9.5 | AM25: 690.1 | AN25: 695.6 | AO25: 695 | AP25: 0 | AQ25: 696.3 | AR25: 0.4 | AS25: 72 | AT25: 29 | AU25: 3.203 | AV25: 27.37 | AW25: 3.815 | AX25: 107.62 | AY25: 8.488 | AZ25: 109.47 | BA25: 1e+20 | BB25: 27.64 | BC25: 19.88 | BD25: 28.33 | BE25: 28.36 | BF25: 28.31 | BG25: 28.49 | BH25: 28.28 | BI25: 28.68 | BJ25: 40.45 | BK25: 12.83 | BL25: 21.92 | BM25: 0 | BN25: 2.507 | BO25: 26.1 | BP25: 9.336 | BQ25: -9.18 | BR25: 0.93 | BS25: 37.99 | BT25: 24.94 | BU25: 0 | BV25: 0 | BW25: 113.8 | BX25: 8.323 | BY25: 8.663 | BZ25: 117.78 | CA25: 174.71 | CB25: 115.3 | CC25: 25.5 | CD25: 1e+20 | CE25: 0 | CF25: 0 | CG25: 1e+20 | CH25: 1e+20 | CI25: 40.0242 | CJ25: 695.5 | CK25: 134 | CL25: -1.17 | CM25: 0 | CN25: 0 | CO25: 0 | CP25: 0 | CQ25: 0
A26: Log | B26: 16 | D26: 14.51 | E26: 14.505 | F26: 14.46 | G26: 0.43428 | H26: 3.0481 | I26: 0.74 | J26: 79.98 | K26: 4.148 | L26: 1.2685 | M26: 11.466 | N26: 30 | O26: 40.0435 | P26: 40 | Q26: 5.302 | R26: 351.553 | S26: 386.418 | T26: 0.0502 | U26: 8.276 | V26: 100.708 | W26: 0.187 | X26: 10 | Y26: 107.01 | Z26: 6.432 | AA26: 9.236 | AB26: 104.03 | AC26: 404.97 | AD26: 1.53 | AE26: 109.94 | AF26: 1.365 | AG26: 40.739 | AH26: 124.27 | AI26: 255.72 | AJ26: 2.934 | AK26: 17.82 | AL26: 9.5 | AM26: 699.7 | AN26: 696.8 | AO26: 695 | AP26: 0 | AQ26: 696.7 | AR26: 0.3 | AS26: 72 | AT26: 29 | AU26: 3.204 | AV26: 27.38 | AW26: 3.808 | AX26: 107.62 | AY26: 8.489 | AZ26: 109.47 | BA26: 1e+20 | BB26: 27.64 | BC26: 19.89 | BD26: 28.31 | BE26: 28.35 | BF26: 28.31 | BG26: 28.49 | BH26: 28.28 | BI26: 28.67 | BJ26: 40.45 | BK26: 12.82 | BL26: 21.91 | BM26: 0 | BN26: 2.505 | BO26: 26.1 | BP26: 9.335 | BQ26: -9.19 | BR26: 0.93 | BS26: 38 | BT26: 24.95 | BU26: 0 | BV26: 0 | BW26: 113.8 | BX26: 8.37 | BY26: 8.665 | BZ26: 117.77 | CA26: 173.93 | CB26: 115.5 | CC26: 25.5 | CD26: 1e+20 | CE26: 0 | CF26: 0 | CG26: 1e+20 | CH26: 1e+20 | CI26: 40.0205 | CJ26: 696.8 | CK26: 134 | CL26: -1.17 | CM26: 0 | CN26: 0 | CO26: 0 | CP26: 0 | CQ26: 0
A27: Log | B27: 17 | D27: 14.52 | E27: 14.477 | F27: 14.512 | G27: 0.43674 | H27: 3.0483 | I27: 0.74 | J27: 79.98 | K27: 4.148 | L27: 1.2685 | M27: 11.452 | N27: 30 | O27: 39.9539 | P27: 40 | Q27: 5.312 | R27: 358.549 | S27: 375.618 | T27: 0.0503 | U27: 8.277 | V27: 100.708 | W27: 0.181 | X27: 10 | Y27: 107 | Z27: 6.433 | AA27: 9.236 | AB27: 104 | AC27: 405 | AD27: 1.531 | AE27: 109.99 | AF27: 1.366 | AG27: 40.743 | AH27: 124.32 | AI27: 255.21 | AJ27: 2.883 | AK27: 17.77 | AL27: 9.5 | AM27: 689.1 | AN27: 693.5 | AO27: 695 | AP27: 0 | AQ27: 693.8 | AR27: 0.1 | AS27: 72 | AT27: 28.99 | AU27: 3.205 | AV27: 27.4 | AW27: 3.808 | AX27: 107.62 | AY27: 8.489 | AZ27: 109.47 | BA27: 1e+20 | BB27: 27.65 | BC27: 19.89 | BD27: 28.31 | BE27: 28.35 | BF27: 28.31 | BG27: 28.5 | BH27: 28.29 | BI27: 28.66 | BJ27: 40.45 | BK27: 12.83 | BL27: 21.91 | BM27: 0 | BN27: 2.503 | BO27: 26.1 | BP27: 9.335 | BQ27: -9.18 | BR27: 0.931 | BS27: 38 | BT27: 24.95 | BU27: 0 | BV27: 0 | BW27: 113.81 | BX27: 8.368 | BY27: 8.664 | BZ27: 117.78 | CA27: 173.99 | CB27: 115.64 | CC27: 25.5 | CD27: 1e+20 | CE27: 0 | CF27: 0 | CG27: 1e+20 | CH27: 1e+20 | CI27: 40.0064 | CJ27: 693.5 | CK27: 134 | CL27: 0.096 | CM27: 0 | CN27: 0 | CO27: 0 | CP27: 0 | CQ27: 0
A28: Log | B28: 18 | D28: 14.52 | E28: 14.452 | F28: 14.44 | G28: 0.43396 | H28: 3.048 | I28: 0.74 | J28: 79.98 | K28: 4.148 | L28: 1.2685 | M28: 11.459 | N28: 30 | O28: 40.0749 | P28: 40 | Q28: 5.252 | R28: 346.855 | S28: 389.066 | T28: 0.0504 | U28: 8.279 | V28: 100.708 | W28: 0.187 | X28: 10 | Y28: 107.01 | Z28: 6.432 | AA28: 9.235 | AB28: 104.05 | AC28: 405 | AD28: 1.53 | AE28: 109.88 | AF28: 1.367 | AG28: 40.766 | AH28: 124.22 | AI28: 254.97 | AJ28: 2.95 | AK28: 17.85 | AL28: 9.5 | AM28: 703 | AN28: 697.4 | AO28: 695 | AP28: 0 | AQ28: 695.6 | AR28: 0.4 | AS28: 72 | AT28: 29 | AU28: 3.203 | AV28: 27.4 | AW28: 3.809 | AX28: 107.61 | AY28: 8.498 | AZ28: 109.48 | BA28: 1e+20 | BB28: 27.64 | BC28: 19.9 | BD28: 28.32 | BE28: 28.35 | BF28: 28.31 | BG28: 28.51 | BH28: 28.28 | BI28: 28.67 | BJ28: 40.45 | BK28: 12.84 | BL28: 21.9 | BM28: 0 | BN28: 2.501 | BO28: 26.09 | BP28: 9.337 | BQ28: -9.18 | BR28: 0.93 | BS28: 38 | BT28: 24.95 | BU28: 0 | BV28: 0 | BW28: 113.81 | BX28: 8.333 | BY28: 8.664 | BZ28: 117.78 | CA28: 174.58 | CB28: 115.71 | CC28: 25.5 | CD28: 1e+20 | CE28: 0 | CF28: 0 | CG28: 1e+20 | CH28: 1e+20 | CI28: 40.0103 | CJ28: 697.4 | CK28: 133.9 | CL28: 0.096 | CM28: 0 | CN28: 0 | CO28: 0 | CP28: 0 | CQ28: 0
A29: Log | B29: 19 | D29: 14.49 | E29: 14.427 | F29: 14.401 | G29: 0.43382 | H29: 3.0479 | I29: 0.74 | J29: 79.98 | K29: 4.148 | L29: 1.2684 | M29: 11.461 | N29: 30 | O29: 40.0466 | P29: 40 | Q29: 5.344 | R29: 335.032 | S29: 378.903 | T29: 0.0501 | U29: 8.28 | V29: 100.708 | W29: 0.159 | X29: 10 | Y29: 107.05 | Z29: 6.428 | AA29: 9.235 | AB29: 104.03 | AC29: 405 | AD29: 1.53 | AE29: 109.96 | AF29: 1.368 | AG29: 40.63 | AH29: 124.6 | AI29: 255.08 | AJ29: 2.892 | AK29: 17.83 | AL29: 9.5 | AM29: 689.7 | AN29: 697 | AO29: 695 | AP29: 0 | AQ29: 698.3 | AR29: 0.5 | AS29: 72 | AT29: 28.99 | AU29: 3.207 | AV29: 27.4 | AW29: 3.8 | AX29: 107.6 | AY29: 8.503 | AZ29: 109.48 | BA29: 1e+20 | BB29: 27.66 | BC29: 19.9 | BD29: 28.3 | BE29: 28.35 | BF29: 28.31 | BG29: 28.51 | BH29: 28.27 | BI29: 28.65 | BJ29: 40.45 | BK29: 12.84 | BL29: 21.9 | BM29: 0 | BN29: 2.5 | BO29: 26.09 | BP29: 9.339 | BQ29: -9.18 | BR29: 0.93 | BS29: 38.01 | BT29: 24.94 | BU29: 0 | BV29: 0 | BW29: 113.81 | BX29: 8.294 | BY29: 8.669 | BZ29: 117.78 | CA29: 175.24 | CB29: 115.8 | CC29: 25.5 | CD29: 1e+20 | CE29: 0 | CF29: 0 | CG29: 1e+20 | CH29: 1e+20 | CI29: 40.0612 | CJ29: 697 | CK29: 134 | CL29: 0.096 | CM29: 0 | CN29: 0 | CO29: 0 | CP29: 0 | CQ29: 0
A30: Log | B30: 20 | D30: 14.47 | E30: 14.501 | F30: 14.528 | G30: 0.43625 | H30: 3.0481 | I30: 0.74 | J30: 79.98 | K30: 4.148 | L30: 1.2685 | M30: 11.467 | N30: 30 | O30: 39.9852 | P30: 40 | Q30: 5.305 | R30: 338.292 | S30: 359.227 | T30: 0.0497 | U30: 8.278 | V30: 100.708 | W30: 0.193 | X30: 10 | Y30: 107.05 | Z30: 6.428 | AA30: 9.235 | AB30: 104.02 | AC30: 404.96 | AD30: 1.531 | AE30: 110.01 | AF30: 1.368 | AG30: 40.776 | AH30: 124.3 | AI30: 254.87 | AJ30: 2.908 | AK30: 17.76 | AL30: 9.5 | AM30: 694.5 | AN30: 694.1 | AO30: 695 | AP30: 0 | AQ30: 694.5 | AR30: 0.1 | AS30: 72 | AT30: 28.99 | AU30: 3.211 | AV30: 27.39 | AW30: 3.8 | AX30: 107.61 | AY30: 8.497 | AZ30: 109.47 | BA30: 1e+20 | BB30: 27.64 | BC30: 19.89 | BD30: 28.3 | BE30: 28.35 | BF30: 28.31 | BG30: 28.5 | BH30: 28.26 | BI30: 28.65 | BJ30: 40.45 | BK30: 12.85 | BL30: 21.9 | BM30: 0 | BN30: 2.499 | BO30: 26.08 | BP30: 9.34 | BQ30: -9.17 | BR30: 0.93 | BS30: 38.01 | BT30: 24.94 | BU30: 0 | BV30: 0 | BW30: 113.79 | BX30: 8.285 | BY30: 8.675 | BZ30: 117.78 | CA30: 175.37 | CB30: 115.7 | CC30: 25.5 | CD30: 1e+20 | CE30: 0 | CF30: 0 | CG30: 1e+20 | CH30: 1e+20 | CI30: 40.0147 | CJ30: 694.1 | CK30: 134 | CL30: 0.096 | CM30: 0 | CN30: 0 | CO30: 0 | CP30: 0 | CQ30: 0
A31: Log | B31: 21 | D31: 14.53 | E31: 14.414 | F31: 14.453 | G31: 0.43396 | H31: 3.0478 | I31: 0.74 | J31: 79.98 | K31: 4.148 | L31: 1.2685 | M31: 11.47 | N31: 30 | O31: 40.07 | P31: 40 | Q31: 5.332 | R31: 366.557 | S31: 384.885 | T31: 0.0493 | U31: 8.275 | V31: 100.707 | W31: 0.168 | X31: 10 | Y31: 107.02 | Z31: 6.431 | AA31: 9.235 | AB31: 104.04 | AC31: 405.03 | AD31: 1.529 | AE31: 109.83 | AF31: 1.369 | AG31: 40.775 | AH31: 124.23 | AI31: 255.15 | AJ31: 2.955 | AK31: 17.84 | AL31: 9.5 | AM31: 704.2 | AN31: 697.3 | AO31: 695 | AP31: 0 | AQ31: 694.3 | AR31: 0.4 | AS31: 72 | AT31: 28.99 | AU31: 3.212 | AV31: 27.38 | AW31: 3.815 | AX31: 107.62 | AY31: 8.49 | AZ31: 109.48 | BA31: 1e+20 | BB31: 27.62 | BC31: 19.89 | BD31: 28.29 | BE31: 28.35 | BF31: 28.3 | BG31: 28.5 | BH31: 28.26 | BI31: 28.64 | BJ31: 40.44 | BK31: 12.83 | BL31: 21.89 | BM31: 0 | BN31: 2.497 | BO31: 26.08 | BP31: 9.339 | BQ31: -9.18 | BR31: 0.93 | BS31: 37.99 | BT31: 24.95 | BU31: 0 | BV31: 0 | BW31: 113.79 | BX31: 8.273 | BY31: 8.679 | BZ31: 117.78 | CA31: 175.57 | CB31: 115.46 | CC31: 25.49 | CD31: 1e+20 | CE31: 0 | CF31: 0 | CG31: 1e+20 | CH31: 1e+20 | CI31: 40.0179 | CJ31: 697.3 | CK31: 133.9 | CL31: 0.096 | CM31: 0 | CN31: 0 | CO31: 0 | CP31: 0 | CQ31: 0
A32: Log | B32: 22 | D32: 14.49 | E32: 14.372 | F32: 14.337 | G32: 0.43214 | H32: 3.0476 | I32: 0.74 | J32: 79.98 | K32: 4.148 | L32: 1.2685 | M32: 11.48 | N32: 30 | O32: 40.0983 | P32: 40 | Q32: 5.314 | R32: 360.091 | S32: 372.87 | T32: 0.0492 | U32: 8.271 | V32: 100.707 | W32: 0.186 | X32: 10 | Y32: 106.99 | Z32: 6.433 | AA32: 9.235 | AB32: 104.05 | AC32: 405.05 | AD32: 1.526 | AE32: 109.96 | AF32: 1.371 | AG32: 40.582 | AH32: 124.76 | AI32: 255.16 | AJ32: 2.909 | AK32: 17.87 | AL32: 9.5 | AM32: 692.7 | AN32: 699.1 | AO32: 695 | AP32: 0 | AQ32: 698.8 | AR32: 0.7 | AS32: 72 | AT32: 28.99 | AU32: 3.215 | AV32: 27.37 | AW32: 3.815 | AX32: 107.62 | AY32: 8.494 | AZ32: 109.47 | BA32: 1e+20 | BB32: 27.62 | BC32: 19.88 | BD32: 28.3 | BE32: 28.35 | BF32: 28.3 | BG32: 28.5 | BH32: 28.25 | BI32: 28.65 | BJ32: 40.44 | BK32: 12.84 | BL32: 21.89 | BM32: 0 | BN32: 2.496 | BO32: 26.08 | BP32: 9.339 | BQ32: -9.19 | BR32: 0.93 | BS32: 37.99 | BT32: 24.95 | BU32: 0 | BV32: 0 | BW32: 113.78 | BX32: 8.274 | BY32: 8.683 | BZ32: 117.78 | CA32: 175.55 | CB32: 115.38 | CC32: 25.49 | CD32: 1e+20 | CE32: 0 | CF32: 0 | CG32: 1e+20 | CH32: 1e+20 | CI32: 40.0887 | CJ32: 699.1 | CK32: 133.9 | CL32: 0.096 | CM32: 0 | CN32: 0 | CO32: 0 | CP32: 0 | CQ32: 0
A33: Log | B33: 23 | D33: 14.43 | E33: 14.521 | F33: 14.476 | G33: 0.43703 | H33: 3.048 | I33: 0.74 | J33: 79.98 | K33: 4.148 | L33: 1.2685 | M33: 11.479 | N33: 30 | O33: 39.9426 | P33: 40 | Q33: 5.305 | R33: 341.601 | S33: 350.463 | T33: 0.0497 | U33: 8.27 | V33: 100.708 | W33: 0.177 | X33: 10 | Y33: 106.98 | Z33: 6.434 | AA33: 9.235 | AB33: 104.01 | AC33: 404.97 | AD33: 1.528 | AE33: 110.01 | AF33: 1.37 | AG33: 40.744 | AH33: 124.47 | AI33: 255.62 | AJ33: 2.881 | AK33: 17.75 | AL33: 9.5 | AM33: 688.7 | AN33: 692.9 | AO33: 695 | AP33: 0 | AQ33: 693 | AR33: 0.5 | AS33: 72 | AT33: 28.99 | AU33: 3.213 | AV33: 27.36 | AW33: 3.809 | AX33: 107.61 | AY33: 8.499 | AZ33: 109.47 | BA33: 1e+20 | BB33: 27.59 | BC33: 19.89 | BD33: 28.3 | BE33: 28.34 | BF33: 28.3 | BG33: 28.49 | BH33: 28.26 | BI33: 28.65 | BJ33: 40.45 | BK33: 12.84 | BL33: 21.89 | BM33: 0 | BN33: 2.497 | BO33: 26.08 | BP33: 9.34 | BQ33: -9.18 | BR33: 0.93 | BS33: 38 | BT33: 24.95 | BU33: 0 | BV33: 0 | BW33: 113.79 | BX33: 8.286 | BY33: 8.684 | BZ33: 117.79 | CA33: 175.33 | CB33: 115.49 | CC33: 25.49 | CD33: 1e+20 | CE33: 0 | CF33: 0 | CG33: 1e+20 | CH33: 1e+20 | CI33: 40.0273 | CJ33: 692.9 | CK33: 133.9 | CL33: 0.096 | CM33: 0 | CN33: 0 | CO33: 0 | CP33: 0 | CQ33: 0
A34: Log | B34: 24 | D34: 14.5 | E34: 14.537 | F34: 14.51 | G34: 0.43655 | H34: 3.048 | I34: 0.74 | J34: 79.98 | K34: 4.148 | L34: 1.2685 | M34: 11.481 | N34: 30 | O34: 39.9861 | P34: 40 | Q34: 5.276 | R34: 358.878 | S34: 374.917 | T34: 0.0498 | U34: 8.269 | V34: 100.708 | W34: 0.166 | X34: 10 | Y34: 106.99 | Z34: 6.434 | AA34: 9.235 | AB34: 104.03 | AC34: 404.98 | AD34: 1.531 | AE34: 109.93 | AF34: 1.371 | AG34: 40.879 | AH34: 123.97 | AI34: 255.55 | AJ34: 2.932 | AK34: 17.78 | AL34: 9.5 | AM34: 700.1 | AN34: 694.2 | AO34: 695 | AP34: 0 | AQ34: 692.8 | AR34: 0.5 | AS34: 72 | AT34: 28.99 | AU34: 3.212 | AV34: 27.35 | AW34: 3.8 | AX34: 107.63 | AY34: 8.49 | AZ34: 109.48 | BA34: 1e+20 | BB34: 27.64 | BC34: 19.89 | BD34: 28.3 | BE34: 28.33 | BF34: 28.3 | BG34: 28.49 | BH34: 28.25 | BI34: 28.64 | BJ34: 40.45 | BK34: 12.85 | BL34: 21.9 | BM34: 0 | BN34: 2.498 | BO34: 26.08 | BP34: 9.34 | BQ34: -9.18 | BR34: 0.93 | BS34: 38.01 | BT34: 24.95 | BU34: 0 | BV34: 0 | BW34: 113.79 | BX34: 8.305 | BY34: 8.684 | BZ34: 117.79 | CA34: 175.02 | CB34: 115.53 | CC34: 25.5 | CD34: 1e+20 | CE34: 0 | CF34: 0 | CG34: 1e+20 | CH34: 1e+20 | CI34: 39.9746 | CJ34: 694.2 | CK34: 133.9 | CL34: 0.096 | CM34: 0 | CN34: 0 | CO34: 0 | CP34: 0 | CQ34: 0
A35: Log | B35: 25 | D35: 14.53 | E35: 14.37 | F35: 14.395 | G35: 0.4332 | H35: 3.0476 | I35: 0.74 | J35: 79.97 | K35: 4.148 | L35: 1.2707 | M35: 11.493 | N35: 30 | O35: 40.0959 | P35: 40 | Q35: 5.325 | R35: 369.884 | S35: 375.817 | T35: 0.0504 | U35: 8.271 | V35: 100.707 | W35: 0.182 | X35: 10 | Y35: 107 | Z35: 6.433 | AA35: 9.234 | AB35: 104.07 | AC35: 405.08 | AD35: 1.527 | AE35: 109.88 | AF35: 1.373 | AG35: 40.71 | AH35: 124.33 | AI35: 255.39 | AJ35: 2.945 | AK35: 17.87 | AL35: 9.5 | AM35: 701.3 | AN35: 698.8 | AO35: 695 | AP35: 0 | AQ35: 697.4 | AR35: 0.8 | AS35: 72 | AT35: 28.99 | AU35: 3.214 | AV35: 27.34 | AW35: 3.806 | AX35: 107.63 | AY35: 8.484 | AZ35: 109.48 | BA35: 1e+20 | BB35: 27.62 | BC35: 19.89 | BD35: 28.29 | BE35: 28.32 | BF35: 28.28 | BG35: 28.47 | BH35: 28.24 | BI35: 28.63 | BJ35: 40.45 | BK35: 12.84 | BL35: 21.9 | BM35: 0 | BN35: 2.499 | BO35: 26.08 | BP35: 9.34 | BQ35: -9.19 | BR35: 0.93 | BS35: 38 | BT35: 24.95 | BU35: 0 | BV35: 0 | BW35: 113.79 | BX35: 8.309 | BY35: 8.687 | BZ35: 117.77 | CA35: 174.95 | CB35: 115.6 | CC35: 25.5 | CD35: 1e+20 | CE35: 0 | CF35: 0 | CG35: 1e+20 | CH35: 1e+20 | CI35: 40.0373 | CJ35: 698.8 | CK35: 133.9 | CL35: 0.096 | CM35: 0 | CN35: 0 | CO35: 0 | CP35: 0 | CQ35: 0
A36: Log | B36: 26 | D36: 14.45 | E36: 14.356 | F36: 14.455 | G36: 0.4366 | H36: 3.0478 | I36: 0.74 | J36: 79.96 | K36: 4.149 | L36: 1.2708 | M36: 11.497 | N36: 30 | O36: 39.9745 | P36: 40 | Q36: 5.291 | R36: 351.65 | S36: 349.254 | T36: 0.0499 | U36: 8.27 | V36: 100.708 | W36: 0.183 | X36: 10 | Y36: 106.99 | Z36: 6.433 | AA36: 9.234 | AB36: 104.01 | AC36: 405.06 | AD36: 1.52 | AE36: 110.11 | AF36: 1.372 | AG36: 40.676 | AH36: 124.51 | AI36: 255.45 | AJ36: 2.876 | AK36: 17.79 | AL36: 9.5 | AM36: 687.1 | AN36: 694.5 | AO36: 695 | AP36: 0 | AQ36: 694.6 | AR36: 0.7 | AS36: 72 | AT36: 28.99 | AU36: 3.213 | AV36: 27.34 | AW36: 3.814 | AX36: 107.64 | AY36: 8.481 | AZ36: 109.49 | BA36: 1e+20 | BB36: 27.63 | BC36: 19.89 | BD36: 28.29 | BE36: 28.32 | BF36: 28.27 | BG36: 28.47 | BH36: 28.23 | BI36: 28.64 | BJ36: 40.45 | BK36: 12.82 | BL36: 21.9 | BM36: 0 | BN36: 2.498 | BO36: 26.09 | BP36: 9.339 | BQ36: -9.18 | BR36: 0.93 | BS36: 37.99 | BT36: 24.96 | BU36: 0 | BV36: 0 | BW36: 113.79 | BX36: 8.27 | BY36: 8.69 | BZ36: 117.76 | CA36: 175.6 | CB36: 115.7 | CC36: 25.5 | CD36: 1e+20 | CE36: 0 | CF36: 0 | CG36: 1e+20 | CH36: 1e+20 | CI36: 40.034 | CJ36: 694.3 | CK36: 133.9 | CL36: 0.096 | CM36: 0 | CN36: 0 | CO36: 0 | CP36: 0 | CQ36: 0
A37: Log | B37: 27 | D37: 14.46 | E37: 14.595 | F37: 14.584 | G37: 0.44005 | H37: 3.0482 | I37: 0.74 | J37: 79.95 | K37: 4.149 | L37: 1.2708 | M37: 11.491 | N37: 30 | O37: 39.8979 | P37: 40 | Q37: 5.283 | R37: 340.224 | S37: 359.498 | T37: 0.0498 | U37: 8.269 | V37: 100.708 | W37: 0.184 | X37: 10 | Y37: 106.98 | Z37: 6.435 | AA37: 9.234 | AB37: 104.02 | AC37: 404.99 | AD37: 1.519 | AE37: 110.05 | AF37: 1.37 | AG37: 40.937 | AH37: 123.82 | AI37: 255.49 | AJ37: 2.898 | AK37: 17.71 | AL37: 9.5 | AM37: 693.7 | AN37: 690.8 | AO37: 695 | AP37: 0 | AQ37: 690 | AR37: 0.5 | AS37: 72 | AT37: 28.99 | AU37: 3.215 | AV37: 27.34 | AW37: 3.815 | AX37: 107.64 | AY37: 8.481 | AZ37: 109.49 | BA37: 1e+20 | BB37: 27.64 | BC37: 19.89 | BD37: 28.29 | BE37: 28.31 | BF37: 28.27 | BG37: 28.48 | BH37: 28.23 | BI37: 28.63 | BJ37: 40.45 | BK37: 12.83 | BL37: 21.9 | BM37: 0 | BN37: 2.497 | BO37: 26.09 | BP37: 9.338 | BQ37: -9.19 | BR37: 0.93 | BS37: 37.99 | BT37: 24.95 | BU37: 0 | BV37: 0 | BW37: 113.78 | BX37: 8.244 | BY37: 8.694 | BZ37: 117.77 | CA37: 176.01 | CB37: 115.75 | CC37: 25.5 | CD37: 1e+20 | CE37: 0 | CF37: 0 | CG37: 1e+20 | CH37: 1e+20 | CI37: 39.9385 | CJ37: 690.7 | CK37: 134 | CL37: 0.096 | CM37: 0 | CN37: 0 | CO37: 0 | CP37: 0 | CQ37: 0
A38: Log | B38: 28 | D38: 14.58 | E38: 14.511 | F38: 14.469 | G38: 0.4352 | H38: 3.0478 | I38: 0.74 | J38: 79.95 | K38: 4.149 | L38: 1.2708 | M38: 11.49 | N38: 30 | O38: 40.0701 | P38: 40 | Q38: 5.31 | R38: 370.443 | S38: 401.889 | T38: 0.0499 | U38: 8.268 | V38: 100.707 | W38: 0.166 | X38: 10 | Y38: 106.97 | Z38: 6.436 | AA38: 9.234 | AB38: 104.07 | AC38: 405.1 | AD38: 1.514 | AE38: 109.86 | AF38: 1.372 | AG38: 40.842 | AH38: 123.9 | AI38: 255.41 | AJ38: 2.945 | AK38: 17.84 | AL38: 9.5 | AM38: 701.9 | AN38: 697 | AO38: 695 | AP38: 0 | AQ38: 694.4 | AR38: 0.8 | AS38: 72 | AT38: 28.98 | AU38: 3.217 | AV38: 27.33 | AW38: 3.806 | AX38: 107.65 | AY38: 8.478 | AZ38: 109.5 | BA38: 1e+20 | BB38: 27.63 | BC38: 19.9 | BD38: 28.29 | BE38: 28.31 | BF38: 28.27 | BG38: 28.48 | BH38: 28.23 | BI38: 28.64 | BJ38: 40.46 | BK38: 12.84 | BL38: 21.9 | BM38: 0 | BN38: 2.499 | BO38: 26.09 | BP38: 9.337 | BQ38: -9.19 | BR38: 0.93 | BS38: 38 | BT38: 24.95 | BU38: 0 | BV38: 0 | BW38: 113.78 | BX38: 8.266 | BY38: 8.697 | BZ38: 117.77 | CA38: 175.63 | CB38: 115.77 | CC38: 25.51 | CD38: 1e+20 | CE38: 0 | CF38: 0 | CG38: 1e+20 | CH38: 1e+20 | CI38: 39.9846 | CJ38: 697 | CK38: 133.9 | CL38: 0.096 | CM38: 0 | CN38: 0 | CO38: 0 | CP38: 0 | CQ38: 0
A39: Log | B39: 29 | D39: 14.54 | E39: 14.418 | F39: 14.452 | G39: 0.43417 | H39: 3.0476 | I39: 0.74 | J39: 79.95 | K39: 4.149 | L39: 1.2708 | M39: 11.487 | N39: 30 | O39: 40.0731 | P39: 40 | Q39: 5.308 | R39: 365.889 | S39: 376.376 | T39: 0.0499 | U39: 8.268 | V39: 100.707 | W39: 0.194 | X39: 10 | Y39: 106.97 | Z39: 6.436 | AA39: 9.233 | AB39: 104.05 | AC39: 405.13 | AD39: 1.503 | AE39: 109.97 | AF39: 1.373 | AG39: 40.653 | AH39: 124.43 | AI39: 255.78 | AJ39: 2.924 | AK39: 17.86 | AL39: 9.5 | AM39: 696.8 | AN39: 697.7 | AO39: 695 | AP39: 0 | AQ39: 697.6 | AR39: 0.9 | AS39: 72 | AT39: 28.98 | AU39: 3.22 | AV39: 27.33 | AW39: 3.805 | AX39: 107.65 | AY39: 8.475 | AZ39: 109.5 | BA39: 1e+20 | BB39: 27.65 | BC39: 19.9 | BD39: 28.28 | BE39: 28.31 | BF39: 28.26 | BG39: 28.47 | BH39: 28.23 | BI39: 28.63 | BJ39: 40.45 | BK39: 12.83 | BL39: 21.91 | BM39: 0 | BN39: 2.501 | BO39: 26.1 | BP39: 9.336 | BQ39: -9.18 | BR39: 0.93 | BS39: 38 | BT39: 24.95 | BU39: 0 | BV39: 0 | BW39: 113.78 | BX39: 8.311 | BY39: 8.7 | BZ39: 117.76 | CA39: 174.87 | CB39: 115.59 | CC39: 25.51 | CD39: 1e+20 | CE39: 0 | CF39: 0 | CG39: 1e+20 | CH39: 1e+20 | CI39: 40.0475 | CJ39: 697.7 | CK39: 133.9 | CL39: 0.096 | CM39: 0 | CN39: 0 | CO39: 0 | CP39: 0 | CQ39: 0
A40: Log | B40: 30 | D40: 14.49 | E40: 14.501 | F40: 14.452 | G40: 0.43629 | H40: 3.0478 | I40: 0.74 | J40: 79.95 | K40: 4.149 | L40: 1.2708 | M40: 11.488 | N40: 30 | O40: 40.0064 | P40: 40 | Q40: 5.293 | R40: 338.78 | S40: 362.978 | T40: 0.05 | U40: 8.268 | V40: 100.707 | W40: 0.185 | X40: 10 | Y40: 106.98 | Z40: 6.435 | AA40: 9.233 | AB40: 104.03 | AC40: 405.08 | AD40: 1.496 | AE40: 109.93 | AF40: 1.373 | AG40: 40.77 | AH40: 124.32 | AI40: 255.64 | AJ40: 2.936 | AK40: 17.78 | AL40: 9.5 | AM40: 700.9 | AN40: 695.1 | AO40: 695 | AP40: 0 | AQ40: 693.5 | AR40: 0.8 | AS40: 72 | AT40: 28.98 | AU40: 3.221 | AV40: 27.33 | AW40: 3.815 | AX40: 107.65 | AY40: 8.475 | AZ40: 109.5 | BA40: 1e+20 | BB40: 27.61 | BC40: 19.9 | BD40: 28.28 | BE40: 28.31 | BF40: 28.26 | BG40: 28.46 | BH40: 28.22 | BI40: 28.62 | BJ40: 40.45 | BK40: 12.82 | BL40: 21.9 | BM40: 0 | BN40: 2.499 | BO40: 26.1 | BP40: 9.335 | BQ40: -9.19 | BR40: 0.93 | BS40: 37.99 | BT40: 24.95 | BU40: 0 | BV40: 0 | BW40: 113.77 | BX40: 8.327 | BY40: 8.706 | BZ40: 117.75 | CA40: 174.61 | CB40: 115.52 | CC40: 25.5 | CD40: 1e+20 | CE40: 0 | CF40: 0 | CG40: 1e+20 | CH40: 1e+20 | CI40: 40.0143 | CJ40: 695.2 | CK40: 133.9 | CL40: 0.096 | CM40: 0 | CN40: 0 | CO40: 0 | CP40: 0 | CQ40: 0
A41: Log | B41: 31 | D41: 14.51 | E41: 14.419 | F41: 14.407 | G41: 0.43426 | H41: 3.0475 | I41: 0.74 | J41: 79.96 | K41: 4.149 | L41: 1.2708 | M41: 11.471 | N41: 30 | O41: 40.0687 | P41: 40 | Q41: 5.35 | R41: 353.287 | S41: 357.704 | T41: 0.05 | U41: 8.268 | V41: 100.707 | W41: 0.2 | X41: 10 | Y41: 106.96 | Z41: 6.438 | AA41: 9.233 | AB41: 104.05 | AC41: 405.05 | AD41: 1.49 | AE41: 109.94 | AF41: 1.374 | AG41: 40.704 | AH41: 124.49 | AI41: 255.18 | AJ41: 2.93 | AK41: 17.84 | AL41: 9.5 | AM41: 698.2 | AN41: 697.7 | AO41: 695 | AP41: 0 | AQ41: 695.5 | AR41: 1.1 | AS41: 72 | AT41: 28.98 | AU41: 3.219 | AV41: 27.32 | AW41: 3.816 | AX41: 107.64 | AY41: 8.481 | AZ41: 109.5 | BA41: 1e+20 | BB41: 27.61 | BC41: 19.9 | BD41: 28.29 | BE41: 28.31 | BF41: 28.27 | BG41: 28.47 | BH41: 28.23 | BI41: 28.62 | BJ41: 40.45 | BK41: 12.81 | BL41: 21.9 | BM41: 0 | BN41: 2.497 | BO41: 26.09 | BP41: 9.338 | BQ41: -9.19 | BR41: 0.93 | BS41: 37.99 | BT41: 24.96 | BU41: 0 | BV41: 0 | BW41: 113.76 | BX41: 8.308 | BY41: 8.712 | BZ41: 117.73 | CA41: 174.94 | CB41: 115.3 | CC41: 25.5 | CD41: 1e+20 | CE41: 0 | CF41: 0 | CG41: 1e+20 | CH41: 1e+20 | CI41: 40.0431 | CJ41: 697.7 | CK41: 133.9 | CL41: 0.096 | CM41: 0 | CN41: 0 | CO41: 0 | CP41: 0 | CQ41: 0
A42: Log | B42: 32 | D42: 14.46 | E42: 14.484 | F42: 14.481 | G42: 0.43642 | H42: 3.0477 | I42: 0.74 | J42: 79.96 | K42: 4.149 | L42: 1.2708 | M42: 11.462 | N42: 30 | O42: 39.9894 | P42: 40 | Q42: 5.342 | R42: 342.461 | S42: 354.664 | T42: 0.05 | U42: 8.268 | V42: 100.708 | W42: 0.191 | X42: 10 | Y42: 106.95 | Z42: 6.439 | AA42: 9.233 | AB42: 104.01 | AC42: 404.91 | AD42: 1.495 | AE42: 110.01 | AF42: 1.374 | AG42: 40.707 | AH42: 124.52 | AI42: 255.49 | AJ42: 2.893 | AK42: 17.79 | AL42: 9.5 | AM42: 690.9 | AN42: 694.8 | AO42: 695 | AP42: 0 | AQ42: 694.7 | AR42: 1 | AS42: 72 | AT42: 28.98 | AU42: 3.224 | AV42: 27.32 | AW42: 3.798 | AX42: 107.64 | AY42: 8.486 | AZ42: 109.5 | BA42: 1e+20 | BB42: 27.62 | BC42: 19.89 | BD42: 28.3 | BE42: 28.32 | BF42: 28.28 | BG42: 28.48 | BH42: 28.24 | BI42: 28.63 | BJ42: 40.45 | BK42: 12.83 | BL42: 21.9 | BM42: 0 | BN42: 2.497 | BO42: 26.08 | BP42: 9.339 | BQ42: -9.2 | BR42: 0.93 | BS42: 38.01 | BT42: 24.95 | BU42: 0 | BV42: 0 | BW42: 113.75 | BX42: 8.334 | BY42: 8.716 | BZ42: 117.73 | CA42: 174.51 | CB42: 115.2 | CC42: 25.5 | CD42: 1e+20 | CE42: 0 | CF42: 0 | CG42: 1e+20 | CH42: 1e+20 | CI42: 40.0337 | CJ42: 694.7 | CK42: 133.9 | CL42: -1.177 | CM42: 0 | CN42: 0 | CO42: 0 | CP42: 0 | CQ42: 0
A43: Log | B43: 33 | D43: 14.5 | E43: 14.489 | F43: 14.402 | G43: 0.43439 | H43: 3.0475 | I43: 0.74 | J43: 79.97 | K43: 4.15 | L43: 1.2708 | M43: 11.449 | N43: 30 | O43: 40.0696 | P43: 40 | Q43: 5.336 | R43: 346.837 | S43: 389.106 | T43: 0.0505 | U43: 8.269 | V43: 100.707 | W43: 0.188 | X43: 10 | Y43: 107.01 | Z43: 6.433 | AA43: 9.233 | AB43: 104.05 | AC43: 404.86 | AD43: 1.506 | AE43: 109.88 | AF43: 1.375 | AG43: 40.737 | AH43: 124.35 | AI43: 255.68 | AJ43: 2.949 | AK43: 17.85 | AL43: 9.5 | AM43: 702.8 | AN43: 697.8 | AO43: 695 | AP43: 0 | AQ43: 695.3 | AR43: 1.1 | AS43: 72 | AT43: 28.98 | AU43: 3.226 | AV43: 27.32 | AW43: 3.807 | AX43: 107.64 | AY43: 8.484 | AZ43: 109.5 | BA43: 1e+20 | BB43: 27.61 | BC43: 19.89 | BD43: 28.29 | BE43: 28.32 | BF43: 28.28 | BG43: 28.49 | BH43: 28.24 | BI43: 28.63 | BJ43: 40.44 | BK43: 12.84 | BL43: 21.9 | BM43: 0 | BN43: 2.499 | BO43: 26.09 | BP43: 9.339 | BQ43: -9.19 | BR43: 0.93 | BS43: 38 | BT43: 24.95 | BU43: 0 | BV43: 0 | BW43: 113.76 | BX43: 8.358 | BY43: 8.716 | BZ43: 117.73 | CA43: 174.11 | CB43: 115.38 | CC43: 25.5 | CD43: 1e+20 | CE43: 0 | CF43: 0 | CG43: 1e+20 | CH43: 1e+20 | CI43: 40.0252 | CJ43: 697.8 | CK43: 133.9 | CL43: -1.177 | CM43: 0 | CN43: 0 | CO43: 0 | CP43: 0 | CQ43: 0
A44: Log | B44: 34 | D44: 14.49 | E44: 14.438 | F44: 14.361 | G44: 0.43293 | H44: 3.0472 | I44: 0.74 | J44: 79.98 | K44: 4.15 | L44: 1.2708 | M44: 11.449 | N44: 30 | O44: 40.0959 | P44: 40 | Q44: 5.332 | R44: 353.47 | S44: 374.808 | T44: 0.0501 | U44: 8.27 | V44: 100.707 | W44: 0.195 | X44: 10 | Y44: 107.1 | Z44: 6.423 | AA44: 9.233 | AB44: 104.05 | AC44: 404.92 | AD44: 1.515 | AE44: 110.02 | AF44: 1.375 | AG44: 40.585 | AH44: 124.81 | AI44: 255.36 | AJ44: 2.919 | AK44: 17.87 | AL44: 9.5 | AM44: 695.1 | AN44: 699.3 | AO44: 695 | AP44: 0 | AQ44: 698.9 | AR44: 1.1 | AS44: 72 | AT44: 28.98 | AU44: 3.226 | AV44: 27.31 | AW44: 3.805 | AX44: 107.65 | AY44: 8.479 | AZ44: 109.5 | BA44: 1e+20 | BB44: 27.63 | BC44: 19.89 | BD44: 28.29 | BE44: 28.31 | BF44: 28.29 | BG44: 28.49 | BH44: 28.23 | BI44: 28.63 | BJ44: 40.44 | BK44: 12.83 | BL44: 21.91 | BM44: 0 | BN44: 2.501 | BO44: 26.09 | BP44: 9.338 | BQ44: -9.18 | BR44: 0.929 | BS44: 38 | BT44: 24.95 | BU44: 0 | BV44: 0 | BW44: 113.77 | BX44: 8.335 | BY44: 8.717 | BZ44: 117.74 | CA44: 174.52 | CB44: 115.56 | CC44: 25.5 | CD44: 1e+20 | CE44: 0 | CF44: 0 | CG44: 1e+20 | CH44: 1e+20 | CI44: 40.0791 | CJ44: 699.2 | CK44: 133.8 | CL44: -1.177 | CM44: 0 | CN44: 0 | CO44: 0 | CP44: 0 | CQ44: 0
A45: Log | B45: 35 | D45: 14.45 | E45: 14.548 | F45: 14.518 | G45: 0.43791 | H45: 3.0477 | I45: 0.74 | J45: 79.98 | K45: 4.15 | L45: 1.2708 | M45: 11.443 | N45: 30 | O45: 39.9358 | P45: 40 | Q45: 5.307 | R45: 346.662 | S45: 359.912 | T45: 0.0495 | U45: 8.268 | V45: 100.706 | W45: 0.196 | X45: 10 | Y45: 107.14 | Z45: 6.419 | AA45: 9.233 | AB45: 104 | AC45: 405.01 | AD45: 1.515 | AE45: 110.06 | AF45: 1.374 | AG45: 40.745 | AH45: 124.51 | AI45: 255.55 | AJ45: 2.892 | AK45: 17.74 | AL45: 9.5 | AM45: 691.5 | AN45: 693 | AO45: 695 | AP45: 0 | AQ45: 694.4 | AR45: 0.7 | AS45: 72 | AT45: 28.98 | AU45: 3.226 | AV45: 27.31 | AW45: 3.818 | AX45: 107.65 | AY45: 8.479 | AZ45: 109.5 | BA45: 1e+20 | BB45: 27.59 | BC45: 19.89 | BD45: 28.28 | BE45: 28.3 | BF45: 28.28 | BG45: 28.46 | BH45: 28.23 | BI45: 28.62 | BJ45: 40.44 | BK45: 12.83 | BL45: 21.91 | BM45: 0 | BN45: 2.5 | BO45: 26.09 | BP45: 9.338 | BQ45: -9.19 | BR45: 0.93 | BS45: 37.99 | BT45: 24.95 | BU45: 0 | BV45: 0 | BW45: 113.77 | BX45: 8.307 | BY45: 8.717 | BZ45: 117.75 | CA45: 174.99 | CB45: 115.54 | CC45: 25.5 | CD45: 1e+20 | CE45: 0 | CF45: 0 | CG45: 1e+20 | CH45: 1e+20 | CI45: 40.0154 | CJ45: 693 | CK45: 133.9 | CL45: -1.177 | CM45: 0 | CN45: 0 | CO45: 0 | CP45: 0 | CQ45: 0
A46: Log | B46: 36 | D46: 14.52 | E46: 14.455 | F46: 14.442 | G46: 0.43553 | H46: 3.0475 | I46: 0.74 | J46: 79.99 | K46: 4.15 | L46: 1.2708 | M46: 11.435 | N46: 30 | O46: 40.0308 | P46: 40 | Q46: 5.289 | R46: 365.348 | S46: 378.409 | T46: 0.0499 | U46: 8.267 | V46: 100.707 | W46: 0.185 | X46: 10 | Y46: 107.11 | Z46: 6.421 | AA46: 9.232 | AB46: 104.04 | AC46: 404.96 | AD46: 1.518 | AE46: 109.96 | AF46: 1.375 | AG46: 40.79 | AH46: 124.32 | AI46: 255.33 | AJ46: 2.939 | AK46: 17.83 | AL46: 9.5 | AM46: 701 | AN46: 696.5 | AO46: 695 | AP46: 0 | AQ46: 696.1 | AR46: 0.6 | AS46: 72 | AT46: 28.98 | AU46: 3.227 | AV46: 27.31 | AW46: 3.809 | AX46: 107.65 | AY46: 8.479 | AZ46: 109.5 | BA46: 1e+20 | BB46: 27.59 | BC46: 19.89 | BD46: 28.27 | BE46: 28.3 | BF46: 28.28 | BG46: 28.46 | BH46: 28.22 | BI46: 28.63 | BJ46: 40.44 | BK46: 12.82 | BL46: 21.91 | BM46: 0 | BN46: 2.5 | BO46: 26.08 | BP46: 9.339 | BQ46: -9.2 | BR46: 0.93 | BS46: 38 | BT46: 24.95 | BU46: 0 | BV46: 0 | BW46: 113.77 | BX46: 8.294 | BY46: 8.719 | BZ46: 117.76 | CA46: 175.21 | CB46: 115.39 | CC46: 25.49 | CD46: 1e+20 | CE46: 0 | CF46: 0 | CG46: 1e+20 | CH46: 1e+20 | CI46: 39.9981 | CJ46: 696.5 | CK46: 133.9 | CL46: -1.177 | CM46: 0 | CN46: 0 | CO46: 0 | CP46: 0 | CQ46: 0
A47: Log | B47: 37 | D47: 14.48 | E47: 14.452 | F47: 14.521 | G47: 0.43492 | H47: 3.0474 | I47: 0.74 | J47: 80 | K47: 4.15 | L47: 1.2708 | M47: 11.411 | N47: 30 | O47: 40.03 | P47: 40 | Q47: 5.254 | R47: 362.302 | S47: 362.134 | T47: 0.05 | U47: 8.267 | V47: 100.707 | W47: 0.191 | X47: 10 | Y47: 107.07 | Z47: 6.425 | AA47: 9.232 | AB47: 104.03 | AC47: 404.94 | AD47: 1.525 | AE47: 110.11 | AF47: 1.374 | AG47: 40.665 | AH47: 124.62 | AI47: 255.6 | AJ47: 2.906 | AK47: 17.84 | AL47: 9.5 | AM47: 693.1 | AN47: 696.9 | AO47: 695 | AP47: 0 | AQ47: 698.1 | AR47: 0.4 | AS47: 72 | AT47: 28.97 | AU47: 3.228 | AV47: 27.3 | AW47: 3.813 | AX47: 107.66 | AY47: 8.478 | AZ47: 109.51 | BA47: 1e+20 | BB47: 27.59 | BC47: 19.89 | BD47: 28.28 | BE47: 28.3 | BF47: 28.27 | BG47: 28.47 | BH47: 28.21 | BI47: 28.62 | BJ47: 40.44 | BK47: 12.82 | BL47: 21.91 | BM47: 0 | BN47: 2.501 | BO47: 26.09 | BP47: 9.338 | BQ47: -9.21 | BR47: 0.93 | BS47: 37.99 | BT47: 24.95 | BU47: 0 | BV47: 0 | BW47: 113.77 | BX47: 8.296 | BY47: 8.722 | BZ47: 117.75 | CA47: 175.16 | CB47: 115.37 | CC47: 25.5 | CD47: 1e+20 | CE47: 0 | CF47: 0 | CG47: 1e+20 | CH47: 1e+20 | CI47: 40.0329 | CJ47: 696.9 | CK47: 133.9 | CL47: -1.177 | CM47: 0 | CN47: 0 | CO47: 0 | CP47: 0 | CQ47: 0
A48: Log | B48: 38 | D48: 14.5 | E48: 14.567 | F48: 14.553 | G48: 0.43609 | H48: 3.0475 | I48: 0.74 | J48: 80.01 | K48: 4.149 | L48: 1.2708 | M48: 11.404 | N48: 30 | O48: 40.0095 | P48: 40 | Q48: 5.331 | R48: 365.48 | S48: 381.236 | T48: 0.0498 | U48: 8.266 | V48: 100.707 | W48: 0.19 | X48: 10 | Y48: 107.03 | Z48: 6.429 | AA48: 9.232 | AB48: 104.02 | AC48: 404.99 | AD48: 1.527 | AE48: 110.04 | AF48: 1.373 | AG48: 40.747 | AH48: 124.49 | AI48: 255.47 | AJ48: 2.932 | AK48: 17.79 | AL48: 9.5 | AM48: 699.7 | AN48: 695.6 | AO48: 695 | AP48: 0 | AQ48: 696.2 | AR48: 0.1 | AS48: 72 | AT48: 28.98 | AU48: 3.228 | AV48: 27.3 | AW48: 3.804 | AX48: 107.66 | AY48: 8.479 | AZ48: 109.51 | BA48: 1e+20 | BB48: 27.58 | BC48: 19.89 | BD48: 28.28 | BE48: 28.3 | BF48: 28.27 | BG48: 28.47 | BH48: 28.22 | BI48: 28.62 | BJ48: 40.44 | BK48: 12.82 | BL48: 21.91 | BM48: 0 | BN48: 2.501 | BO48: 26.09 | BP48: 9.338 | BQ48: -9.2 | BR48: 0.929 | BS48: 38 | BT48: 24.95 | BU48: 0 | BV48: 0 | BW48: 113.77 | BX48: 8.297 | BY48: 8.725 | BZ48: 117.74 | CA48: 175.14 | CB48: 115.4 | CC48: 25.5 | CD48: 1e+20 | CE48: 0 | CF48: 0 | CG48: 1e+20 | CH48: 1e+20 | CI48: 40.0087 | CJ48: 695.6 | CK48: 133.8 | CL48: -1.177 | CM48: 0 | CN48: 0 | CO48: 0 | CP48: 0 | CQ48: 0
A49: Log | B49: 39 | D49: 14.55 | E49: 14.405 | F49: 14.31 | G49: 0.43405 | H49: 3.0472 | I49: 0.74 | J49: 80.01 | K49: 4.149 | L49: 1.2708 | M49: 11.401 | N49: 30 | O49: 40.0615 | P49: 40 | Q49: 5.308 | R49: 365.483 | S49: 386.426 | T49: 0.05 | U49: 8.267 | V49: 100.708 | W49: 0.199 | X49: 10 | Y49: 107.01 | Z49: 6.431 | AA49: 9.232 | AB49: 104.05 | AC49: 405.03 | AD49: 1.526 | AE49: 110.01 | AF49: 1.374 | AG49: 40.645 | AH49: 124.79 | AI49: 255.33 | AJ49: 2.914 | AK49: 17.86 | AL49: 9.5 | AM49: 694.6 | AN49: 698 | AO49: 695 | AP49: 0 | AQ49: 699.2 | AR49: 0 | AS49: 72 | AT49: 28.98 | AU49: 3.224 | AV49: 27.28 | AW49: 3.804 | AX49: 107.66 | AY49: 8.48 | AZ49: 109.51 | BA49: 1e+20 | BB49: 27.58 | BC49: 19.89 | BD49: 28.27 | BE49: 28.3 | BF49: 28.27 | BG49: 28.48 | BH49: 28.22 | BI49: 28.61 | BJ49: 40.44 | BK49: 12.83 | BL49: 21.91 | BM49: 0 | BN49: 2.502 | BO49: 26.09 | BP49: 9.338 | BQ49: -9.19 | BR49: 0.929 | BS49: 38 | BT49: 24.95 | BU49: 0 | BV49: 0 | BW49: 113.76 | BX49: 8.285 | BY49: 8.73 | BZ49: 117.74 | CA49: 175.34 | CB49: 115.44 | CC49: 25.5 | CD49: 1e+20 | CE49: 0 | CF49: 0 | CG49: 1e+20 | CH49: 1e+20 | CI49: 40.0467 | CJ49: 698 | CK49: 133.8 | CL49: -1.177 | CM49: 0 | CN49: 0 | CO49: 0 | CP49: 0 | CQ49: 0
A50: Log | B50: 40 | D50: 14.43 | E50: 14.537 | F50: 14.444 | G50: 0.43858 | H50: 3.0477 | I50: 0.74 | J50: 80.01 | K50: 4.149 | L50: 1.2708 | M50: 11.398 | N50: 30 | O50: 39.9074 | P50: 40 | Q50: 5.33 | R50: 340.209 | S50: 358.09 | T50: 0.0506 | U50: 8.269 | V50: 100.707 | W50: 0.186 | X50: 10 | Y50: 107.01 | Z50: 6.431 | AA50: 9.232 | AB50: 104.01 | AC50: 405.1 | AD50: 1.52 | AE50: 110.1 | AF50: 1.373 | AG50: 40.764 | AH50: 124.53 | AI50: 256.22 | AJ50: 2.889 | AK50: 17.74 | AL50: 9.5 | AM50: 691.2 | AN50: 692.3 | AO50: 695 | AP50: 0 | AQ50: 693.9 | AR50: -0.5 | AS50: 72 | AT50: 28.98 | AU50: 3.226 | AV50: 27.27 | AW50: 3.799 | AX50: 107.66 | AY50: 8.48 | AZ50: 109.51 | BA50: 1e+20 | BB50: 27.55 | BC50: 19.89 | BD50: 28.28 | BE50: 28.3 | BF50: 28.27 | BG50: 28.47 | BH50: 28.22 | BI50: 28.62 | BJ50: 40.44 | BK50: 12.83 | BL50: 21.91 | BM50: 0 | BN50: 2.503 | BO50: 26.09 | BP50: 9.338 | BQ50: -9.19 | BR50: 0.93 | BS50: 38.01 | BT50: 24.95 | BU50: 0 | BV50: 0 | BW50: 113.75 | BX50: 8.271 | BY50: 8.735 | BZ50: 117.74 | CA50: 175.56 | CB50: 115.46 | CC50: 25.5 | CD50: 1e+20 | CE50: 0 | CF50: 0 | CG50: 1e+20 | CH50: 1e+20 | CI50: 39.989 | CJ50: 692.3 | CK50: 133.9 | CL50: -1.177 | CM50: 0 | CN50: 0 | CO50: 0 | CP50: 0 | CQ50: 0
A51: Log | B51: 41 | D51: 14.49 | E51: 14.52 | F51: 14.541 | G51: 0.43687 | H51: 3.0475 | I51: 0.74 | J51: 80.01 | K51: 4.149 | L51: 1.2708 | M51: 11.398 | N51: 30 | O51: 39.997 | P51: 40 | Q51: 5.3 | R51: 367.946 | S51: 374.016 | T51: 0.0505 | U51: 8.272 | V51: 100.707 | W51: 0.194 | X51: 10 | Y51: 107.03 | Z51: 6.429 | AA51: 9.232 | AB51: 104.04 | AC51: 405.08 | AD51: 1.514 | AE51: 109.97 | AF51: 1.372 | AG51: 40.837 | AH51: 124.24 | AI51: 255.78 | AJ51: 2.93 | AK51: 17.8 | AL51: 9.5 | AM51: 699.5 | AN51: 695 | AO51: 695 | AP51: 0 | AQ51: 693.4 | AR51: -0.2 | AS51: 72 | AT51: 28.98 | AU51: 3.228 | AV51: 27.26 | AW51: 3.805 | AX51: 107.67 | AY51: 8.473 | AZ51: 109.51 | BA51: 1e+20 | BB51: 27.56 | BC51: 19.89 | BD51: 28.28 | BE51: 28.31 | BF51: 28.27 | BG51: 28.47 | BH51: 28.22 | BI51: 28.62 | BJ51: 40.44 | BK51: 12.82 | BL51: 21.92 | BM51: 0 | BN51: 2.504 | BO51: 26.09 | BP51: 9.338 | BQ51: -9.2 | BR51: 0.929 | BS51: 38 | BT51: 24.95 | BU51: 0 | BV51: 0 | BW51: 113.75 | BX51: 8.26 | BY51: 8.738 | BZ51: 117.74 | CA51: 175.73 | CB51: 115.4 | CC51: 25.5 | CD51: 1e+20 | CE51: 0 | CF51: 0 | CG51: 1e+20 | CH51: 1e+20 | CI51: 39.968 | CJ51: 695 | CK51: 133.8 | CL51: -1.177 | CM51: 0 | CN51: 0 | CO51: 0 | CP51: 0 | CQ51: 0
A52: Log | B52: 42 | D52: 14.52 | E52: 14.398 | F52: 14.394 | G52: 0.4335 | H52: 3.0471 | I52: 0.74 | J52: 80.01 | K52: 4.149 | L52: 1.2708 | M52: 11.399 | N52: 30 | O52: 40.0921 | P52: 40 | Q52: 5.317 | R52: 371.482 | S52: 376.36 | T52: 0.0505 | U52: 8.274 | V52: 100.707 | W52: 0.185 | X52: 10 | Y52: 107.04 | Z52: 6.428 | AA52: 9.231 | AB52: 104.06 | AC52: 405.04 | AD52: 1.51 | AE52: 109.96 | AF52: 1.373 | AG52: 40.65 | AH52: 124.74 | AI52: 255.35 | AJ52: 2.932 | AK52: 17.88 | AL52: 9.5 | AM52: 698.4 | AN52: 698.9 | AO52: 695 | AP52: 0 | AQ52: 698.3 | AR52: 0.1 | AS52: 72 | AT52: 28.98 | AU52: 3.227 | AV52: 27.26 | AW52: 3.823 | AX52: 107.67 | AY52: 8.469 | AZ52: 109.51 | BA52: 1e+20 | BB52: 27.57 | BC52: 19.89 | BD52: 28.28 | BE52: 28.31 | BF52: 28.27 | BG52: 28.48 | BH52: 28.22 | BI52: 28.63 | BJ52: 40.44 | BK52: 12.81 | BL52: 21.92 | BM52: 0 | BN52: 2.504 | BO52: 26.08 | BP52: 9.339 | BQ52: -9.21 | BR52: 0.929 | BS52: 37.98 | BT52: 24.95 | BU52: 0 | BV52: 0 | BW52: 113.75 | BX52: 8.266 | BY52: 8.741 | BZ52: 117.74 | CA52: 175.62 | CB52: 115.41 | CC52: 25.5 | CD52: 1e+20 | CE52: 0 | CF52: 0 | CG52: 1e+20 | CH52: 1e+20 | CI52: 40.0408 | CJ52: 698.9 | CK52: 133.8 | CL52: -1.177 | CM52: 0 | CN52: 0 | CO52: 0 | CP52: 0 | CQ52: 0
A53: Log | B53: 43 | D53: 14.44 | E53: 14.515 | F53: 14.462 | G53: 0.43752 | H53: 3.0475 | I53: 0.74 | J53: 80.01 | K53: 4.149 | L53: 1.2707 | M53: 11.404 | N53: 30 | O53: 39.9488 | P53: 40 | Q53: 5.295 | R53: 341.392 | S53: 353.506 | T53: 0.05 | U53: 8.274 | V53: 100.707 | W53: 0.17 | X53: 9.999 | Y53: 107.02 | Z53: 6.429 | AA53: 9.231 | AB53: 104 | AC53: 404.96 | AD53: 1.511 | AE53: 110.06 | AF53: 1.373 | AG53: 40.711 | AH53: 124.7 | AI53: 255.75 | AJ53: 2.89 | AK53: 17.75 | AL53: 9.5 | AM53: 690.9 | AN53: 693.4 | AO53: 695 | AP53: 0 | AQ53: 695.5 | AR53: -0.2 | AS53: 72 | AT53: 28.97 | AU53: 3.231 | AV53: 27.25 | AW53: 3.806 | AX53: 107.67 | AY53: 8.469 | AZ53: 109.52 | BA53: 1e+20 | BB53: 27.57 | BC53: 19.89 | BD53: 28.29 | BE53: 28.32 | BF53: 28.28 | BG53: 28.48 | BH53: 28.24 | BI53: 28.64 | BJ53: 40.44 | BK53: 12.83 | BL53: 21.92 | BM53: 0 | BN53: 2.504 | BO53: 26.08 | BP53: 9.339 | BQ53: -9.21 | BR53: 0.929 | BS53: 38 | BT53: 24.95 | BU53: 0 | BV53: 0 | BW53: 113.74 | BX53: 8.292 | BY53: 8.746 | BZ53: 117.73 | CA53: 175.18 | CB53: 115.49 | CC53: 25.5 | CD53: 1e+20 | CE53: 0 | CF53: 0 | CG53: 1e+20 | CH53: 1e+20 | CI53: 40.0163 | CJ53: 693.5 | CK53: 133.8 | CL53: -1.177 | CM53: 0 | CN53: 0 | CO53: 0 | CP53: 0 | CQ53: 0
A54: Log | B54: 44 | D54: 14.5 | E54: 14.439 | F54: 14.495 | G54: 0.4352 | H54: 3.0473 | I54: 0.74 | J54: 80.02 | K54: 4.149 | L54: 1.2707 | M54: 11.408 | N54: 30 | O54: 40.032 | P54: 40 | Q54: 5.312 | R54: 346.65 | S54: 369.393 | T54: 0.0499 | U54: 8.274 | V54: 100.707 | W54: 0.187 | X54: 10 | Y54: 107.03 | Z54: 6.429 | AA54: 9.231 | AB54: 104.05 | AC54: 404.99 | AD54: 1.513 | AE54: 109.99 | AF54: 1.373 | AG54: 40.767 | AH54: 124.51 | AI54: 255.38 | AJ54: 2.94 | AK54: 17.83 | AL54: 9.5 | AM54: 701.3 | AN54: 697 | AO54: 695 | AP54: 0 | AQ54: 695 | AR54: -0.1 | AS54: 72 | AT54: 28.97 | AU54: 3.236 | AV54: 27.25 | AW54: 3.806 | AX54: 107.67 | AY54: 8.469 | AZ54: 109.52 | BA54: 1e+20 | BB54: 27.58 | BC54: 19.89 | BD54: 28.29 | BE54: 28.32 | BF54: 28.28 | BG54: 28.48 | BH54: 28.24 | BI54: 28.64 | BJ54: 40.44 | BK54: 12.83 | BL54: 21.92 | BM54: 0 | BN54: 2.503 | BO54: 26.08 | BP54: 9.34 | BQ54: -9.2 | BR54: 0.929 | BS54: 38 | BT54: 24.95 | BU54: 0 | BV54: 0 | BW54: 113.74 | BX54: 8.309 | BY54: 8.751 | BZ54: 117.74 | CA54: 174.89 | CB54: 115.59 | CC54: 25.5 | CD54: 1e+20 | CE54: 0 | CF54: 0 | CG54: 1e+20 | CH54: 1e+20 | CI54: 40.0022 | CJ54: 697 | CK54: 133.8 | CL54: -1.177 | CM54: 0 | CN54: 0 | CO54: 0 | CP54: 0 | CQ54: 0
A55: Log | B55: 45 | D55: 14.51 | E55: 14.499 | F55: 14.374 | G55: 0.43388 | H55: 3.0471 | I55: 0.74 | J55: 80.03 | K55: 4.149 | L55: 1.2708 | M55: 11.408 | N55: 30 | O55: 40.0644 | P55: 40 | Q55: 5.327 | R55: 348.984 | S55: 391.832 | T55: 0.0493 | U55: 8.27 | V55: 100.706 | W55: 0.174 | X55: 10 | Y55: 107.02 | Z55: 6.43 | AA55: 9.231 | AB55: 104.04 | AC55: 405.02 | AD55: 1.511 | AE55: 110.01 | AF55: 1.373 | AG55: 40.637 | AH55: 124.88 | AI55: 255.34 | AJ55: 2.928 | AK55: 17.85 | AL55: 9.5 | AM55: 697.9 | AN55: 698.4 | AO55: 695 | AP55: 0 | AQ55: 696.1 | AR55: 0.4 | AS55: 72 | AT55: 28.97 | AU55: 3.236 | AV55: 27.26 | AW55: 3.795 | AX55: 107.67 | AY55: 8.472 | AZ55: 109.53 | BA55: 1e+20 | BB55: 27.55 | BC55: 19.89 | BD55: 28.28 | BE55: 28.31 | BF55: 28.28 | BG55: 28.47 | BH55: 28.24 | BI55: 28.64 | BJ55: 40.44 | BK55: 12.83 | BL55: 21.92 | BM55: 0 | BN55: 2.504 | BO55: 26.09 | BP55: 9.337 | BQ55: -9.2 | BR55: 0.929 | BS55: 38.01 | BT55: 24.95 | BU55: 0 | BV55: 0 | BW55: 113.73 | BX55: 8.302 | BY55: 8.755 | BZ55: 117.76 | CA55: 175.02 | CB55: 115.67 | CC55: 25.5 | CD55: 1e+20 | CE55: 0 | CF55: 0 | CG55: 1e+20 | CH55: 1e+20 | CI55: 40.0435 | CJ55: 698.3 | CK55: 133.8 | CL55: -1.177 | CM55: 0 | CN55: 0 | CO55: 0 | CP55: 0 | CQ55: 0
A56: Log | B56: 46 | D56: 14.5 | E56: 14.465 | F56: 14.457 | G56: 0.43453 | H56: 3.0471 | I56: 0.74 | J56: 80.03 | K56: 4.149 | L56: 1.2708 | M56: 11.417 | N56: 30 | O56: 40.0334 | P56: 40 | Q56: 5.342 | R56: 365.308 | S56: 364.072 | T56: 0.0493 | U56: 8.267 | V56: 100.706 | W56: 0.189 | X56: 10 | Y56: 107.02 | Z56: 6.43 | AA56: 9.231 | AB56: 104.02 | AC56: 405.06 | AD56: 1.509 | AE56: 110.02 | AF56: 1.372 | AG56: 40.635 | AH56: 124.99 | AI56: 255.64 | AJ56: 2.918 | AK56: 17.84 | AL56: 9.5 | AM56: 695.9 | AN56: 697.5 | AO56: 695 | AP56: 0 | AQ56: 694.9 | AR56: 0.8 | AS56: 72 | AT56: 28.97 | AU56: 3.234 | AV56: 27.27 | AW56: 3.82 | AX56: 107.67 | AY56: 8.473 | AZ56: 109.53 | BA56: 1e+20 | BB56: 27.54 | BC56: 19.89 | BD56: 28.28 | BE56: 28.31 | BF56: 28.27 | BG56: 28.47 | BH56: 28.24 | BI56: 28.64 | BJ56: 40.44 | BK56: 12.82 | BL56: 21.92 | BM56: 0 | BN56: 2.503 | BO56: 26.1 | BP56: 9.336 | BQ56: -9.2 | BR56: 0.929 | BS56: 37.98 | BT56: 24.95 | BU56: 0 | BV56: 0 | BW56: 113.73 | BX56: 8.288 | BY56: 8.76 | BZ56: 117.76 | CA56: 175.26 | CB56: 115.64 | CC56: 25.5 | CD56: 1e+20 | CE56: 0 | CF56: 0 | CG56: 1e+20 | CH56: 1e+20 | CI56: 40.0414 | CJ56: 697.4 | CK56: 133.8 | CL56: -1.177 | CM56: 0 | CN56: 0 | CO56: 0 | CP56: 0 | CQ56: 0
A57: Log | B57: 47 | D57: 14.5 | E57: 14.399 | F57: 14.454 | G57: 0.43541 | H57: 3.0472 | I57: 0.74 | J57: 80.03 | K57: 4.149 | L57: 1.2708 | M57: 11.417 | N57: 30 | O57: 40.0047 | P57: 40 | Q57: 5.346 | R57: 359.248 | S57: 374.291 | T57: 0.0494 | U57: 8.265 | V57: 100.706 | W57: 0.181 | X57: 10 | Y57: 107.03 | Z57: 6.429 | AA57: 9.231 | AB57: 104.02 | AC57: 404.99 | AD57: 1.508 | AE57: 110.02 | AF57: 1.372 | AG57: 40.664 | AH57: 124.95 | AI57: 255.67 | AJ57: 2.909 | AK57: 17.82 | AL57: 9.5 | AM57: 694.3 | AN57: 696.4 | AO57: 695 | AP57: 0 | AQ57: 695.4 | AR57: 1 | AS57: 72 | AT57: 28.97 | AU57: 3.233 | AV57: 27.27 | AW57: 3.807 | AX57: 107.68 | AY57: 8.469 | AZ57: 109.53 | BA57: 1e+20 | BB57: 27.54 | BC57: 19.89 | BD57: 28.28 | BE57: 28.31 | BF57: 28.28 | BG57: 28.47 | BH57: 28.23 | BI57: 28.64 | BJ57: 40.44 | BK57: 12.82 | BL57: 21.91 | BM57: 0 | BN57: 2.501 | BO57: 26.09 | BP57: 9.337 | BQ57: -9.21 | BR57: 0.929 | BS57: 38 | BT57: 24.95 | BU57: 0 | BV57: 0 | BW57: 113.73 | BX57: 8.28 | BY57: 8.762 | BZ57: 117.74 | CA57: 175.38 | CB57: 115.52 | CC57: 25.5 | CD57: 1e+20 | CE57: 0 | CF57: 0 | CG57: 1e+20 | CH57: 1e+20 | CI57: 40.0271 | CJ57: 696.4 | CK57: 133.8 | CL57: 1.288 | CM57: 0 | CN57: 0 | CO57: 0 | CP57: 0 | CQ57: 0
A58: Log | B58: 48 | D58: 14.5 | E58: 14.465 | F58: 14.465 | G58: 0.43763 | H58: 3.0474 | I58: 0.74 | J58: 80.04 | K58: 4.149 | L58: 1.2707 | M58: 11.41 | N58: 30 | O58: 39.9446 | P58: 40 | Q58: 5.304 | R58: 339.824 | S58: 351.855 | T58: 0.0496 | U58: 8.264 | V58: 100.706 | W58: 0.184 | X58: 10 | Y58: 107.04 | Z58: 6.428 | AA58: 9.231 | AB58: 104 | AC58: 405.02 | AD58: 1.507 | AE58: 110.05 | AF58: 1.372 | AG58: 40.739 | AH58: 124.71 | AI58: 255.75 | AJ58: 2.878 | AK58: 17.77 | AL58: 9.5 | AM58: 688.1 | AN58: 693.7 | AO58: 695 | AP58: 0 | AQ58: 694.7 | AR58: 0.7 | AS58: 72 | AT58: 28.96 | AU58: 3.243 | AV58: 27.27 | AW58: 3.807 | AX58: 107.69 | AY58: 8.464 | AZ58: 109.53 | BA58: 1e+20 | BB58: 27.54 | BC58: 19.89 | BD58: 28.28 | BE58: 28.32 | BF58: 28.27 | BG58: 28.48 | BH58: 28.22 | BI58: 28.64 | BJ58: 40.44 | BK58: 12.82 | BL58: 21.91 | BM58: 0 | BN58: 2.5 | BO58: 26.09 | BP58: 9.338 | BQ58: -9.21 | BR58: 0.929 | BS58: 38 | BT58: 24.94 | BU58: 0 | BV58: 0 | BW58: 113.74 | BX58: 8.269 | BY58: 8.762 | BZ58: 117.73 | CA58: 175.56 | CB58: 115.5 | CC58: 25.5 | CD58: 1e+20 | CE58: 0 | CF58: 0 | CG58: 1e+20 | CH58: 1e+20 | CI58: 39.9926 | CJ58: 693.6 | CK58: 133.8 | CL58: 1.288 | CM58: 0 | CN58: 0 | CO58: 0 | CP58: 0 | CQ58: 0
A59: Log | B59: 49 | D59: 14.51 | E59: 14.439 | F59: 14.537 | G59: 0.43621 | H59: 3.0473 | I59: 0.74 | J59: 80.04 | K59: 4.149 | L59: 1.2707 | M59: 11.409 | N59: 30 | O59: 40.0141 | P59: 40 | Q59: 5.332 | R59: 366.595 | S59: 347.709 | T59: 0.0496 | U59: 8.262 | V59: 100.706 | W59: 0.167 | X59: 10 | Y59: 107.04 | Z59: 6.427 | AA59: 9.231 | AB59: 104.04 | AC59: 404.95 | AD59: 1.508 | AE59: 109.97 | AF59: 1.371 | AG59: 40.824 | AH59: 124.36 | AI59: 255.52 | AJ59: 2.949 | AK59: 17.82 | AL59: 9.5 | AM59: 703.7 | AN59: 695.9 | AO59: 695 | AP59: 0 | AQ59: 694.1 | AR59: 0.7 | AS59: 72 | AT59: 28.96 | AU59: 3.243 | AV59: 27.28 | AW59: 3.81 | AX59: 107.69 | AY59: 8.458 | AZ59: 109.54 | BA59: 1e+20 | BB59: 27.55 | BC59: 19.88 | BD59: 28.28 | BE59: 28.32 | BF59: 28.28 | BG59: 28.48 | BH59: 28.22 | BI59: 28.64 | BJ59: 40.44 | BK59: 12.82 | BL59: 21.9 | BM59: 0 | BN59: 2.498 | BO59: 26.09 | BP59: 9.337 | BQ59: -9.19 | BR59: 0.929 | BS59: 38 | BT59: 24.94 | BU59: 0 | BV59: 0 | BW59: 113.75 | BX59: 8.257 | BY59: 8.761 | BZ59: 117.73 | CA59: 175.73 | CB59: 115.52 | CC59: 25.5 | CD59: 1e+20 | CE59: 0 | CF59: 0 | CG59: 1e+20 | CH59: 1e+20 | CI59: 39.9646 | CJ59: 696 | CK59: 133.8 | CL59: 1.288 | CM59: 0 | CN59: 0 | CO59: 0 | CP59: 0 | CQ59: 0
A60: Log | B60: 50 | D60: 14.52 | E60: 14.349 | F60: 14.382 | G60: 0.43338 | H60: 3.047 | I60: 0.74 | J60: 80.04 | K60: 4.148 | L60: 1.2708 | M60: 11.408 | N60: 30 | O60: 40.0612 | P60: 40 | Q60: 5.327 | R60: 363.743 | S60: 367.716 | T60: 0.0501 | U60: 8.262 | V60: 100.706 | W60: 0.17 | X60: 10 | Y60: 107.04 | Z60: 6.427 | AA60: 9.23 | AB60: 104.06 | AC60: 404.97 | AD60: 1.511 | AE60: 109.98 | AF60: 1.372 | AG60: 40.601 | AH60: 124.97 | AI60: 255.17 | AJ60: 2.915 | AK60: 17.89 | AL60: 9.5 | AM60: 694.9 | AN60: 699 | AO60: 695 | AP60: 0 | AQ60: 699.4 | AR60: 0.7 | AS60: 72 | AT60: 28.97 | AU60: 3.24 | AV60: 27.28 | AW60: 3.81 | AX60: 107.7 | AY60: 8.451 | AZ60: 109.54 | BA60: 1e+20 | BB60: 27.52 | BC60: 19.89 | BD60: 28.28 | BE60: 28.31 | BF60: 28.27 | BG60: 28.47 | BH60: 28.23 | BI60: 28.64 | BJ60: 40.44 | BK60: 12.82 | BL60: 21.91 | BM60: 0 | BN60: 2.5 | BO60: 26.1 | BP60: 9.336 | BQ60: -9.19 | BR60: 0.929 | BS60: 38 | BT60: 24.94 | BU60: 0 | BV60: 0 | BW60: 113.75 | BX60: 8.268 | BY60: 8.762 | BZ60: 117.73 | CA60: 175.54 | CB60: 115.49 | CC60: 25.5 | CD60: 1e+20 | CE60: 0 | CF60: 0 | CG60: 1e+20 | CH60: 1e+20 | CI60: 40.0381 | CJ60: 699.1 | CK60: 133.7 | CL60: 1.288 | CM60: 0 | CN60: 0 | CO60: 0 | CP60: 0 | CQ60: 0
A61: Log | B61: 51 | D61: 14.44 | E61: 14.489 | F61: 14.506 | G61: 0.43877 | H61: 3.0476 | I61: 0.74 | J61: 80.03 | K61: 4.148 | L61: 1.2708 | M61: 11.402 | N61: 30 | O61: 39.9042 | P61: 40 | Q61: 5.37 | R61: 337.381 | S61: 352.403 | T61: 0.0504 | U61: 8.265 | V61: 100.707 | W61: 0.18 | X61: 10 | Y61: 107.02 | Z61: 6.429 | AA61: 9.23 | AB61: 104.01 | AC61: 404.95 | AD61: 1.515 | AE61: 110 | AF61: 1.371 | AG61: 40.796 | AH61: 124.71 | AI61: 255.73 | AJ61: 2.9 | AK61: 17.73 | AL61: 9.5 | AM61: 693.9 | AN61: 692.3 | AO61: 695 | AP61: 0 | AQ61: 692 | AR61: 0.4 | AS61: 72 | AT61: 28.97 | AU61: 3.241 | AV61: 27.27 | AW61: 3.797 | AX61: 107.7 | AY61: 8.456 | AZ61: 109.54 | BA61: 1e+20 | BB61: 27.52 | BC61: 19.89 | BD61: 28.29 | BE61: 28.31 | BF61: 28.28 | BG61: 28.47 | BH61: 28.24 | BI61: 28.64 | BJ61: 40.45 | BK61: 12.82 | BL61: 21.92 | BM61: 0 | BN61: 2.503 | BO61: 26.09 | BP61: 9.336 | BQ61: -9.2 | BR61: 0.929 | BS61: 38.01 | BT61: 24.94 | BU61: 0 | BV61: 0 | BW61: 113.76 | BX61: 8.3 | BY61: 8.763 | BZ61: 117.72 | CA61: 175.01 | CB61: 115.48 | CC61: 25.5 | CD61: 1e+20 | CE61: 0 | CF61: 0 | CG61: 1e+20 | CH61: 1e+20 | CI61: 39.9681 | CJ61: 692.4 | CK61: 133.8 | CL61: 1.288 | CM61: 0 | CN61: 0 | CO61: 0 | CP61: 0 | CQ61: 0
A62: Log | B62: 52 | D62: 14.51 | E62: 14.432 | F62: 14.413 | G62: 0.43509 | H62: 3.0472 | I62: 0.74 | J62: 80.02 | K62: 4.148 | L62: 1.2708 | M62: 11.394 | N62: 30 | O62: 40.0336 | P62: 40 | Q62: 5.292 | R62: 357.701 | S62: 367.757 | T62: 0.0507 | U62: 8.268 | V62: 100.707 | W62: 0.196 | X62: 10 | Y62: 107.01 | Z62: 6.43 | AA62: 9.23 | AB62: 104.06 | AC62: 404.97 | AD62: 1.52 | AE62: 109.96 | AF62: 1.372 | AG62: 40.758 | AH62: 124.74 | AI62: 255.36 | AJ62: 2.919 | AK62: 17.84 | AL62: 9.5 | AM62: 696.2 | AN62: 697.2 | AO62: 695 | AP62: 0 | AQ62: 696.4 | AR62: 0.7 | AS62: 72 | AT62: 28.96 | AU62: 3.244 | AV62: 27.27 | AW62: 3.804 | AX62: 107.69 | AY62: 8.462 | AZ62: 109.55 | BA62: 1e+20 | BB62: 27.55 | BC62: 19.89 | BD62: 28.29 | BE62: 28.32 | BF62: 28.28 | BG62: 28.48 | BH62: 28.23 | BI62: 28.65 | BJ62: 40.45 | BK62: 12.82 | BL62: 21.92 | BM62: 0 | BN62: 2.504 | BO62: 26.09 | BP62: 9.338 | BQ62: -9.21 | BR62: 0.929 | BS62: 38 | BT62: 24.94 | BU62: 0 | BV62: 0 | BW62: 113.77 | BX62: 8.302 | BY62: 8.763 | BZ62: 117.73 | CA62: 174.98 | CB62: 115.5 | CC62: 25.51 | CD62: 1e+20 | CE62: 0 | CF62: 0 | CG62: 1e+20 | CH62: 1e+20 | CI62: 39.9977 | CJ62: 697.2 | CK62: 133.7 | CL62: 1.288 | CM62: 0 | CN62: 0 | CO62: 0 | CP62: 0 | CQ62: 0
A63: Log | B63: 53 | D63: 14.47 | E63: 14.485 | F63: 14.511 | G63: 0.4364 | H63: 3.0473 | I63: 0.74 | J63: 80.01 | K63: 4.148 | L63: 1.273 | M63: 11.383 | N63: 30 | O63: 39.9936 | P63: 40 | Q63: 5.322 | R63: 342.976 | S63: 351.883 | T63: 0.0509 | U63: 8.272 | V63: 100.706 | W63: 0.176 | X63: 10 | Y63: 107.01 | Z63: 6.43 | AA63: 9.23 | AB63: 104.02 | AC63: 404.93 | AD63: 1.526 | AE63: 109.94 | AF63: 1.373 | AG63: 40.762 | AH63: 124.65 | AI63: 255.38 | AJ63: 2.927 | AK63: 17.79 | AL63: 9.5 | AM63: 698.9 | AN63: 695.8 | AO63: 695 | AP63: 0 | AQ63: 694.9 | AR63: 0.5 | AS63: 72 | AT63: 28.96 | AU63: 3.248 | AV63: 27.26 | AW63: 3.806 | AX63: 107.68 | AY63: 8.47 | AZ63: 109.54 | BA63: 1e+20 | BB63: 27.55 | BC63: 19.89 | BD63: 28.28 | BE63: 28.31 | BF63: 28.28 | BG63: 28.48 | BH63: 28.24 | BI63: 28.65 | BJ63: 40.44 | BK63: 12.82 | BL63: 21.92 | BM63: 0 | BN63: 2.504 | BO63: 26.07 | BP63: 9.342 | BQ63: -9.2 | BR63: 0.929 | BS63: 38 | BT63: 24.93 | BU63: 0 | BV63: 0 | BW63: 113.76 | BX63: 8.293 | BY63: 8.767 | BZ63: 117.73 | CA63: 175.12 | CB63: 115.59 | CC63: 25.5 | CD63: 1e+20 | CE63: 0 | CF63: 0 | CG63: 1e+20 | CH63: 1e+20 | CI63: 39.9892 | CJ63: 695.7 | CK63: 133.7 | CL63: 1.288 | CM63: 0 | CN63: 0 | CO63: 0 | CP63: 0 | CQ63: 0
A64: Log | B64: 54 | D64: 14.51 | E64: 14.428 | F64: 14.398 | G64: 0.43508 | H64: 3.0471 | I64: 0.74 | J64: 80.01 | K64: 4.148 | L64: 1.273 | M64: 11.376 | N64: 30 | O64: 40.0398 | P64: 40 | Q64: 5.346 | R64: 355.135 | S64: 365.786 | T64: 0.0502 | U64: 8.272 | V64: 100.707 | W64: 0.186 | X64: 10 | Y64: 107.01 | Z64: 6.43 | AA64: 9.23 | AB64: 104.05 | AC64: 404.95 | AD64: 1.531 | AE64: 109.93 | AF64: 1.374 | AG64: 40.671 | AH64: 124.82 | AI64: 255.57 | AJ64: 2.919 | AK64: 17.85 | AL64: 9.5 | AM64: 696.2 | AN64: 697.8 | AO64: 695 | AP64: 0 | AQ64: 695.6 | AR64: 0.8 | AS64: 72 | AT64: 28.96 | AU64: 3.244 | AV64: 27.26 | AW64: 3.802 | AX64: 107.69 | AY64: 8.468 | AZ64: 109.55 | BA64: 1e+20 | BB64: 27.56 | BC64: 19.89 | BD64: 28.29 | BE64: 28.32 | BF64: 28.29 | BG64: 28.49 | BH64: 28.24 | BI64: 28.65 | BJ64: 40.44 | BK64: 12.83 | BL64: 21.92 | BM64: 0 | BN64: 2.504 | BO64: 26.06 | BP64: 9.343 | BQ64: -9.19 | BR64: 0.929 | BS64: 38.01 | BT64: 24.93 | BU64: 0 | BV64: 0 | BW64: 113.77 | BX64: 8.32 | BY64: 8.769 | BZ64: 117.73 | CA64: 174.67 | CB64: 115.63 | CC64: 25.51 | CD64: 1e+20 | CE64: 0 | CF64: 0 | CG64: 1e+20 | CH64: 1e+20 | CI64: 40.0216 | CJ64: 697.8 | CK64: 133.7 | CL64: 1.288 | CM64: 0 | CN64: 0 | CO64: 0 | CP64: 0 | CQ64: 0
A65: Log | B65: 55 | D65: 14.46 | E65: 14.53 | F65: 14.494 | G65: 0.4395 | H65: 3.0476 | I65: 0.74 | J65: 80.01 | K65: 4.148 | L65: 1.2731 | M65: 11.37 | N65: 30 | O65: 39.8945 | P65: 40 | Q65: 5.339 | R65: 331.116 | S65: 344.788 | T65: 0.0503 | U65: 8.274 | V65: 100.706 | W65: 0.186 | X65: 10 | Y65: 106.98 | Z65: 6.433 | AA65: 9.23 | AB65: 104 | AC65: 404.99 | AD65: 1.534 | AE65: 110.03 | AF65: 1.374 | AG65: 40.758 | AH65: 124.62 | AI65: 255.44 | AJ65: 2.876 | AK65: 17.74 | AL65: 9.5 | AM65: 688.4 | AN65: 692.2 | AO65: 695 | AP65: 0 | AQ65: 692.4 | AR65: 0.8 | AS65: 72 | AT65: 28.97 | AU65: 3.24 | AV65: 27.26 | AW65: 3.8 | AX65: 107.69 | AY65: 8.463 | AZ65: 109.54 | BA65: 1e+20 | BB65: 27.54 | BC65: 19.89 | BD65: 28.29 | BE65: 28.32 | BF65: 28.29 | BG65: 28.48 | BH65: 28.24 | BI65: 28.65 | BJ65: 40.44 | BK65: 12.83 | BL65: 21.93 | BM65: 0 | BN65: 2.506 | BO65: 26.07 | BP65: 9.342 | BQ65: -9.18 | BR65: 0.929 | BS65: 38.01 | BT65: 24.94 | BU65: 0 | BV65: 0 | BW65: 113.76 | BX65: 8.314 | BY65: 8.775 | BZ65: 117.72 | CA65: 174.78 | CB65: 115.63 | CC65: 25.51 | CD65: 1e+20 | CE65: 0 | CF65: 0 | CG65: 1e+20 | CH65: 1e+20 | CI65: 39.9768 | CJ65: 692.2 | CK65: 133.8 | CL65: 1.288 | CM65: 0 | CN65: 0 | CO65: 0 | CP65: 0 | CQ65: 0
A66: Log | B66: 56 | D66: 14.51 | E66: 14.557 | F66: 14.538 | G66: 0.4378 | H66: 3.0475 | I66: 0.74 | J66: 80.01 | K66: 4.148 | L66: 1.2731 | M66: 11.373 | N66: 30 | O66: 39.9762 | P66: 40 | Q66: 5.303 | R66: 345.138 | S66: 363.392 | T66: 0.0501 | U66: 8.274 | V66: 100.707 | W66: 0.17 | X66: 10 | Y66: 106.95 | Z66: 6.436 | AA66: 9.23 | AB66: 104.03 | AC66: 405.05 | AD66: 1.531 | AE66: 109.91 | AF66: 1.375 | AG66: 40.86 | AH66: 124.27 | AI66: 255.67 | AJ66: 2.929 | AK66: 17.79 | AL66: 9.5 | AM66: 699.6 | AN66: 695 | AO66: 695 | AP66: 0 | AQ66: 692.3 | AR66: 1 | AS66: 72 | AT66: 28.97 | AU66: 3.242 | AV66: 27.25 | AW66: 3.806 | AX66: 107.69 | AY66: 8.465 | AZ66: 109.54 | BA66: 1e+20 | BB66: 27.53 | BC66: 19.89 | BD66: 28.29 | BE66: 28.31 | BF66: 28.28 | BG66: 28.48 | BH66: 28.24 | BI66: 28.64 | BJ66: 40.44 | BK66: 12.82 | BL66: 21.92 | BM66: 0 | BN66: 2.503 | BO66: 26.07 | BP66: 9.342 | BQ66: -9.19 | BR66: 0.929 | BS66: 38 | BT66: 24.94 | BU66: 0 | BV66: 0 | BW66: 113.73 | BX66: 8.304 | BY66: 8.784 | BZ66: 117.71 | CA66: 174.95 | CB66: 115.58 | CC66: 25.5 | CD66: 1e+20 | CE66: 0 | CF66: 0 | CG66: 1e+20 | CH66: 1e+20 | CI66: 39.9486 | CJ66: 695 | CK66: 133.7 | CL66: 1.288 | CM66: 0 | CN66: 0 | CO66: 0 | CP66: 0 | CQ66: 0
A67: Log | B67: 57 | D67: 14.55 | E67: 14.525 | F67: 14.441 | G67: 0.43523 | H67: 3.0473 | I67: 0.74 | J67: 79.99 | K67: 4.148 | L67: 1.2708 | M67: 11.373 | N67: 30 | O67: 40.0347 | P67: 40 | Q67: 5.294 | R67: 364.415 | S67: 402.236 | T67: 0.0502 | U67: 8.275 | V67: 100.706 | W67: 0.188 | X67: 10 | Y67: 106.92 | Z67: 6.44 | AA67: 9.229 | AB67: 104.05 | AC67: 404.96 | AD67: 1.533 | AE67: 109.92 | AF67: 1.376 | AG67: 40.69 | AH67: 124.65 | AI67: 255.33 | AJ67: 2.924 | AK67: 17.85 | AL67: 9.5 | AM67: 697.5 | AN67: 697.7 | AO67: 695 | AP67: 0 | AQ67: 696.9 | AR67: 1.1 | AS67: 72 | AT67: 28.97 | AU67: 3.244 | AV67: 27.25 | AW67: 3.81 | AX67: 107.7 | AY67: 8.459 | AZ67: 109.55 | BA67: 1e+20 | BB67: 27.55 | BC67: 19.89 | BD67: 28.28 | BE67: 28.31 | BF67: 28.28 | BG67: 28.48 | BH67: 28.24 | BI67: 28.64 | BJ67: 40.44 | BK67: 12.82 | BL67: 21.93 | BM67: 0 | BN67: 2.507 | BO67: 26.07 | BP67: 9.342 | BQ67: -9.2 | BR67: 0.929 | BS67: 38 | BT67: 24.94 | BU67: 0 | BV67: 0 | BW67: 113.73 | BX67: 8.297 | BY67: 8.789 | BZ67: 117.72 | CA67: 175.07 | CB67: 115.67 | CC67: 25.51 | CD67: 1e+20 | CE67: 0 | CF67: 0 | CG67: 1e+20 | CH67: 1e+20 | CI67: 40.0031 | CJ67: 697.7 | CK67: 133.7 | CL67: 1.288 | CM67: 0 | CN67: 0 | CO67: 0 | CP67: 0 | CQ67: 0
A68: Log | B68: 58 | D68: 14.53 | E68: 14.472 | F68: 14.422 | G68: 0.4361 | H68: 3.0473 | I68: 0.74 | J68: 79.98 | K68: 4.148 | L68: 1.2708 | M68: 11.374 | N68: 30 | O68: 40.0002 | P68: 40 | Q68: 5.279 | R68: 370.982 | S68: 368.988 | T68: 0.05 | U68: 8.275 | V68: 100.706 | W68: 0.19 | X68: 10 | Y68: 106.91 | Z68: 6.441 | AA68: 9.229 | AB68: 104.02 | AC68: 404.97 | AD68: 1.537 | AE68: 109.92 | AF68: 1.377 | AG68: 40.688 | AH68: 124.78 | AI68: 255.28 | AJ68: 2.904 | AK68: 17.8 | AL68: 9.5 | AM68: 693.4 | AN68: 695.9 | AO68: 695 | AP68: 0 | AQ68: 696.2 | AR68: 0.9 | AS68: 72 | AT68: 28.96 | AU68: 3.248 | AV68: 27.25 | AW68: 3.809 | AX68: 107.71 | AY68: 8.455 | AZ68: 109.55 | BA68: 1e+20 | BB68: 27.55 | BC68: 19.9 | BD68: 28.28 | BE68: 28.31 | BF68: 28.28 | BG68: 28.48 | BH68: 28.24 | BI68: 28.64 | BJ68: 40.44 | BK68: 12.82 | BL68: 21.93 | BM68: 0 | BN68: 2.508 | BO68: 26.07 | BP68: 9.341 | BQ68: -9.2 | BR68: 0.929 | BS68: 38 | BT68: 24.94 | BU68: 0 | BV68: 0 | BW68: 113.73 | BX68: 8.298 | BY68: 8.79 | BZ68: 117.72 | CA68: 175.05 | CB68: 115.75 | CC68: 25.51 | CD68: 1e+20 | CE68: 0 | CF68: 0 | CG68: 1e+20 | CH68: 1e+20 | CI68: 40.0079 | CJ68: 695.9 | CK68: 133.7 | CL68: 1.288 | CM68: 0 | CN68: 0 | CO68: 0 | CP68: 0 | CQ68: 0
A69: Log | B69: 59 | D69: 14.5 | E69: 14.426 | F69: 14.461 | G69: 0.43663 | H69: 3.0474 | I69: 0.74 | J69: 79.97 | K69: 4.149 | L69: 1.2708 | M69: 11.382 | N69: 30 | O69: 39.9786 | P69: 40 | Q69: 5.306 | R69: 352.052 | S69: 355.024 | T69: 0.0498 | U69: 8.275 | V69: 100.706 | W69: 0.201 | X69: 10 | Y69: 106.94 | Z69: 6.438 | AA69: 9.229 | AB69: 104.02 | AC69: 404.95 | AD69: 1.54 | AE69: 109.97 | AF69: 1.377 | AG69: 40.784 | AH69: 124.58 | AI69: 255.46 | AJ69: 2.924 | AK69: 17.78 | AL69: 9.5 | AM69: 698.5 | AN69: 695.2 | AO69: 695 | AP69: 0 | AQ69: 693.1 | AR69: 0.9 | AS69: 72 | AT69: 28.97 | AU69: 3.245 | AV69: 27.24 | AW69: 3.812 | AX69: 107.71 | AY69: 8.456 | AZ69: 109.55 | BA69: 1e+20 | BB69: 27.55 | BC69: 19.89 | BD69: 28.28 | BE69: 28.31 | BF69: 28.28 | BG69: 28.47 | BH69: 28.24 | BI69: 28.64 | BJ69: 40.44 | BK69: 12.83 | BL69: 21.92 | BM69: 0 | BN69: 2.505 | BO69: 26.07 | BP69: 9.34 | BQ69: -9.19 | BR69: 0.929 | BS69: 37.99 | BT69: 24.94 | BU69: 0 | BV69: 0 | BW69: 113.74 | BX69: 8.305 | BY69: 8.791 | BZ69: 117.73 | CA69: 174.93 | CB69: 115.77 | CC69: 25.5 | CD69: 1e+20 | CE69: 0 | CF69: 0 | CG69: 1e+20 | CH69: 1e+20 | CI69: 39.9837 | CJ69: 695.2 | CK69: 133.7 | CL69: 1.288 | CM69: 0 | CN69: 0 | CO69: 0 | CP69: 0 | CQ69: 0
A70: Log | B70: 60 | D70: 14.5 | E70: 14.512 | F70: 14.402 | G70: 0.43587 | H70: 3.0474 | I70: 0.74 | J70: 79.96 | K70: 4.149 | L70: 1.2708 | M70: 11.395 | N70: 30 | O70: 39.9942 | P70: 40 | Q70: 5.297 | R70: 339.449 | S70: 358.449 | T70: 0.0495 | U70: 8.272 | V70: 100.706 | W70: 0.192 | X70: 10 | Y70: 106.96 | Z70: 6.436 | AA70: 9.229 | AB70: 104.02 | AC70: 404.99 | AD70: 1.542 | AE70: 109.95 | AF70: 1.378 | AG70: 40.734 | AH70: 124.64 | AI70: 255.21 | AJ70: 2.909 | AK70: 17.81 | AL70: 9.5 | AM70: 694.6 | AN70: 696 | AO70: 695 | AP70: 0 | AQ70: 696 | AR70: 1 | AS70: 72 | AT70: 28.96 | AU70: 3.247 | AV70: 27.23 | AW70: 3.811 | AX70: 107.71 | AY70: 8.454 | AZ70: 109.55 | BA70: 1e+20 | BB70: 27.54 | BC70: 19.89 | BD70: 28.28 | BE70: 28.31 | BF70: 28.28 | BG70: 28.47 | BH70: 28.23 | BI70: 28.64 | BJ70: 40.44 | BK70: 12.82 | BL70: 21.93 | BM70: 0 | BN70: 2.507 | BO70: 26.07 | BP70: 9.34 | BQ70: -9.19 | BR70: 0.929 | BS70: 37.99 | BT70: 24.94 | BU70: 0 | BV70: 0 | BW70: 113.76 | BX70: 8.297 | BY70: 8.788 | BZ70: 117.74 | CA70: 175.07 | CB70: 115.75 | CC70: 25.51 | CD70: 1e+20 | CE70: 0 | CF70: 0 | CG70: 1e+20 | CH70: 1e+20 | CI70: 39.9987 | CJ70: 696.1 | CK70: 133.7 | CL70: 1.288 | CM70: 0 | CN70: 0 | CO70: 0 | CP70: 0 | CQ70: 0
A71: Log | B71: 61 | D71: 14.51 | E71: 14.52 | F71: 14.579 | G71: 0.43853 | H71: 3.0477 | I71: 0.74 | J71: 79.96 | K71: 4.149 | L71: 1.2708 | M71: 11.403 | N71: 30 | O71: 39.9171 | P71: 40 | Q71: 5.31 | R71: 359.726 | S71: 341.921 | T71: 0.0497 | U71: 8.27 | V71: 100.706 | W71: 0.198 | X71: 10 | Y71: 106.98 | Z71: 6.434 | AA71: 9.229 | AB71: 104.01 | AC71: 405.01 | AD71: 1.541 | AE71: 109.93 | AF71: 1.378 | AG71: 40.853 | AH71: 124.34 | AI71: 255.39 | AJ71: 2.916 | AK71: 17.73 | AL71: 9.5 | AM71: 697.6 | AN71: 693 | AO71: 695 | AP71: 0 | AQ71: 692.7 | AR71: 0.6 | AS71: 72 | AT71: 28.96 | AU71: 3.247 | AV71: 27.23 | AW71: 3.809 | AX71: 107.71 | AY71: 8.457 | AZ71: 109.56 | BA71: 1e+20 | BB71: 27.52 | BC71: 19.89 | BD71: 28.27 | BE71: 28.31 | BF71: 28.28 | BG71: 28.46 | BH71: 28.22 | BI71: 28.64 | BJ71: 40.43 | BK71: 12.81 | BL71: 21.92 | BM71: 0 | BN71: 2.505 | BO71: 26.08 | BP71: 9.339 | BQ71: -9.19 | BR71: 0.929 | BS71: 38 | BT71: 24.94 | BU71: 0 | BV71: 0 | BW71: 113.77 | BX71: 8.285 | BY71: 8.788 | BZ71: 117.72 | CA71: 175.26 | CB71: 115.8 | CC71: 25.51 | CD71: 1e+20 | CE71: 0 | CF71: 0 | CG71: 1e+20 | CH71: 1e+20 | CI71: 39.9422 | CJ71: 693 | CK71: 133.7 | CL71: 1.288 | CM71: 0 | CN71: 0 | CO71: 0 | CP71: 0 | CQ71: 0
A72: Log | B72: 62 | D72: 14.54 | E72: 14.355 | F72: 14.493 | G72: 0.43438 | H72: 3.0473 | I72: 0.74 | J72: 79.97 | K72: 4.149 | L72: 1.2708 | M72: 11.407 | N72: 30 | O72: 40.0539 | P72: 40 | Q72: 5.318 | R72: 372.6 | S72: 379.8 | T72: 0.0501 | U72: 8.271 | V72: 100.706 | W72: 0.174 | X72: 9.999 | Y72: 107.02 | Z72: 6.43 | AA72: 9.229 | AB72: 104.07 | AC72: 405.15 | AD72: 1.533 | AE72: 109.81 | AF72: 1.38 | AG72: 40.734 | AH72: 124.58 | AI72: 255.61 | AJ72: 2.931 | AK72: 17.87 | AL72: 9.5 | AM72: 698.7 | AN72: 698.3 | AO72: 695 | AP72: 0 | AQ72: 697.9 | AR72: 0.7 | AS72: 72 | AT72: 28.96 | AU72: 3.253 | AV72: 27.22 | AW72: 3.81 | AX72: 107.71 | AY72: 8.454 | AZ72: 109.56 | BA72: 1e+20 | BB72: 27.56 | BC72: 19.9 | BD72: 28.28 | BE72: 28.31 | BF72: 28.28 | BG72: 28.47 | BH72: 28.23 | BI72: 28.64 | BJ72: 40.43 | BK72: 12.81 | BL72: 21.93 | BM72: 0 | BN72: 2.507 | BO72: 26.09 | BP72: 9.336 | BQ72: -9.19 | BR72: 0.928 | BS72: 38 | BT72: 24.95 | BU72: 0 | BV72: 0 | BW72: 113.76 | BX72: 8.283 | BY72: 8.793 | BZ72: 117.72 | CA72: 175.28 | CB72: 115.73 | CC72: 25.51 | CD72: 1e+20 | CE72: 0 | CF72: 0 | CG72: 1e+20 | CH72: 1e+20 | CI72: 39.9919 | CJ72: 698.3 | CK72: 133.7 | CL72: 0.907 | CM72: 0 | CN72: 0 | CO72: 0 | CP72: 0 | CQ72: 0
A73: Log | B73: 63 | D73: 14.48 | E73: 14.469 | F73: 14.498 | G73: 0.43768 | H73: 3.0477 | I73: 0.74 | J73: 79.96 | K73: 4.149 | L73: 1.2708 | M73: 11.41 | N73: 30 | O73: 39.9372 | P73: 40 | Q73: 5.272 | R73: 345.013 | S73: 369.201 | T73: 0.0497 | U73: 8.269 | V73: 100.707 | W73: 0.193 | X73: 10 | Y73: 107.05 | Z73: 6.427 | AA73: 9.229 | AB73: 104.01 | AC73: 405.13 | AD73: 1.522 | AE73: 109.98 | AF73: 1.381 | AG73: 40.763 | AH73: 124.66 | AI73: 255.41 | AJ73: 2.898 | AK73: 17.75 | AL73: 9.5 | AM73: 692.8 | AN73: 693.7 | AO73: 695 | AP73: 0 | AQ73: 694.9 | AR73: 0.3 | AS73: 72 | AT73: 28.97 | AU73: 3.246 | AV73: 27.22 | AW73: 3.804 | AX73: 107.72 | AY73: 8.451 | AZ73: 109.56 | BA73: 1e+20 | BB73: 27.59 | BC73: 19.89 | BD73: 28.29 | BE73: 28.31 | BF73: 28.28 | BG73: 28.47 | BH73: 28.24 | BI73: 28.64 | BJ73: 40.44 | BK73: 12.81 | BL73: 21.93 | BM73: 0 | BN73: 2.506 | BO73: 26.09 | BP73: 9.338 | BQ73: -9.19 | BR73: 0.929 | BS73: 38 | BT73: 24.94 | BU73: 0 | BV73: 0 | BW73: 113.75 | BX73: 8.287 | BY73: 8.799 | BZ73: 117.72 | CA73: 175.21 | CB73: 115.71 | CC73: 25.5 | CD73: 1e+20 | CE73: 0 | CF73: 0 | CG73: 1e+20 | CH73: 1e+20 | CI73: 39.9843 | CJ73: 693.7 | CK73: 133.7 | CL73: 0.907 | CM73: 0 | CN73: 0 | CO73: 0 | CP73: 0 | CQ73: 0
A74: Log | B74: 64 | D74: 14.51 | E74: 14.431 | F74: 14.461 | G74: 0.43503 | H74: 3.0474 | I74: 0.74 | J74: 79.97 | K74: 4.149 | L74: 1.2708 | M74: 11.427 | N74: 30 | O74: 40.0434 | P74: 40 | Q74: 5.31 | R74: 349.865 | S74: 390.288 | T74: 0.0497 | U74: 8.268 | V74: 100.706 | W74: 0.15 | X74: 10 | Y74: 107.05 | Z74: 6.427 | AA74: 9.228 | AB74: 104.05 | AC74: 404.92 | AD74: 1.526 | AE74: 109.87 | AF74: 1.382 | AG74: 40.78 | AH74: 124.6 | AI74: 255.41 | AJ74: 2.936 | AK74: 17.84 | AL74: 9.5 | AM74: 700.1 | AN74: 697.3 | AO74: 695 | AP74: 0 | AQ74: 695.2 | AR74: 0.5 | AS74: 72 | AT74: 28.96 | AU74: 3.248 | AV74: 27.21 | AW74: 3.807 | AX74: 107.72 | AY74: 8.448 | AZ74: 109.56 | BA74: 1e+20 | BB74: 27.61 | BC74: 19.89 | BD74: 28.29 | BE74: 28.31 | BF74: 28.28 | BG74: 28.48 | BH74: 28.23 | BI74: 28.64 | BJ74: 40.44 | BK74: 12.81 | BL74: 21.92 | BM74: 0 | BN74: 2.504 | BO74: 26.08 | BP74: 9.339 | BQ74: -9.19 | BR74: 0.928 | BS74: 38 | BT74: 24.95 | BU74: 0 | BV74: 0 | BW74: 113.74 | BX74: 8.275 | BY74: 8.805 | BZ74: 117.72 | CA74: 175.41 | CB74: 115.66 | CC74: 25.51 | CD74: 1e+20 | CE74: 0 | CF74: 0 | CG74: 1e+20 | CH74: 1e+20 | CI74: 39.9952 | CJ74: 697.3 | CK74: 133.7 | CL74: 0.907 | CM74: 0 | CN74: 0 | CO74: 0 | CP74: 0 | CQ74: 0
A75: Log | B75: 65 | D75: 14.5 | E75: 14.462 | F75: 14.471 | G75: 0.43702 | H75: 3.0476 | I75: 0.74 | J75: 79.99 | K75: 4.149 | L75: 1.2708 | M75: 11.429 | N75: 30 | O75: 39.9665 | P75: 40 | Q75: 5.304 | R75: 341.819 | S75: 378.702 | T75: 0.0495 | U75: 8.266 | V75: 100.706 | W75: 0.17 | X75: 10 | Y75: 107.02 | Z75: 6.429 | AA75: 9.228 | AB75: 104.01 | AC75: 404.87 | AD75: 1.537 | AE75: 109.94 | AF75: 1.383 | AG75: 40.693 | AH75: 124.78 | AI75: 255.62 | AJ75: 2.863 | AK75: 17.81 | AL75: 9.5 | AM75: 684.2 | AN75: 694.3 | AO75: 695 | AP75: 0 | AQ75: 695 | AR75: 0.5 | AS75: 72 | AT75: 28.97 | AU75: 3.247 | AV75: 27.21 | AW75: 3.807 | AX75: 107.73 | AY75: 8.445 | AZ75: 109.57 | BA75: 1e+20 | BB75: 27.6 | BC75: 19.89 | BD75: 28.28 | BE75: 28.31 | BF75: 28.28 | BG75: 28.47 | BH75: 28.23 | BI75: 28.64 | BJ75: 40.44 | BK75: 12.81 | BL75: 21.93 | BM75: 0 | BN75: 2.507 | BO75: 26.08 | BP75: 9.338 | BQ75: -9.19 | BR75: 0.929 | BS75: 38 | BT75: 24.94 | BU75: 0 | BV75: 0 | BW75: 113.74 | BX75: 8.249 | BY75: 8.807 | BZ75: 117.73 | CA75: 175.83 | CB75: 115.64 | CC75: 25.51 | CD75: 1e+20 | CE75: 0 | CF75: 0 | CG75: 1e+20 | CH75: 1e+20 | CI75: 40.0118 | CJ75: 694.2 | CK75: 133.7 | CL75: 0.907 | CM75: 0 | CN75: 0 | CO75: 0 | CP75: 0 | CQ75: 0
A76: Log | B76: 66 | D76: 14.5 | E76: 14.53 | F76: 14.485 | G76: 0.43658 | H76: 3.0475 | I76: 0.74 | J76: 80 | K76: 4.149 | L76: 1.2708 | M76: 11.435 | N76: 30 | O76: 40.0034 | P76: 40 | Q76: 5.343 | R76: 343.36 | S76: 369.515 | T76: 0.05 | U76: 8.266 | V76: 100.706 | W76: 0.185 | X76: 10 | Y76: 106.98 | Z76: 6.434 | AA76: 9.228 | AB76: 104.03 | AC76: 404.97 | AD76: 1.542 | AE76: 109.9 | AF76: 1.384 | AG76: 40.829 | AH76: 124.43 | AI76: 255.29 | AJ76: 2.942 | AK76: 17.81 | AL76: 9.5 | AM76: 702.2 | AN76: 695.3 | AO76: 695 | AP76: 0 | AQ76: 694.1 | AR76: 0.5 | AS76: 72 | AT76: 28.97 | AU76: 3.24 | AV76: 27.21 | AW76: 3.809 | AX76: 107.74 | AY76: 8.438 | AZ76: 109.57 | BA76: 1e+20 | BB76: 27.57 | BC76: 19.89 | BD76: 28.28 | BE76: 28.31 | BF76: 28.28 | BG76: 28.46 | BH76: 28.23 | BI76: 28.63 | BJ76: 40.44 | BK76: 12.82 | BL76: 21.93 | BM76: 0 | BN76: 2.506 | BO76: 26.09 | BP76: 9.338 | BQ76: -9.18 | BR76: 0.928 | BS76: 38 | BT76: 24.95 | BU76: 0 | BV76: 0 | BW76: 113.74 | BX76: 8.227 | BY76: 8.809 | BZ76: 117.72 | CA76: 176.18 | CB76: 115.62 | CC76: 25.51 | CD76: 1e+20 | CE76: 0 | CF76: 0 | CG76: 1e+20 | CH76: 1e+20 | CI76: 39.9735 | CJ76: 695.3 | CK76: 133.7 | CL76: 0.907 | CM76: 0 | CN76: 0 | CO76: 0 | CP76: 0 | CQ76: 0
A77: Log | B77: 67 | D77: 14.53 | E77: 14.399 | F77: 14.481 | G77: 0.43514 | H77: 3.0474 | I77: 0.74 | J77: 80 | K77: 4.149 | L77: 1.2708 | M77: 11.448 | N77: 30 | O77: 40.0353 | P77: 40 | Q77: 5.315 | R77: 372.917 | S77: 360.761 | T77: 0.0504 | U77: 8.267 | V77: 100.706 | W77: 0.171 | X77: 10 | Y77: 106.97 | Z77: 6.435 | AA77: 9.228 | AB77: 104.03 | AC77: 405.08 | AD77: 1.538 | AE77: 109.92 | AF77: 1.386 | AG77: 40.719 | AH77: 124.67 | AI77: 255.92 | AJ77: 2.924 | AK77: 17.82 | AL77: 9.5 | AM77: 697.5 | AN77: 696.9 | AO77: 695 | AP77: 0 | AQ77: 697 | AR77: 0.4 | AS77: 72 | AT77: 28.97 | AU77: 3.242 | AV77: 27.2 | AW77: 3.806 | AX77: 107.73 | AY77: 8.44 | AZ77: 109.57 | BA77: 1e+20 | BB77: 27.61 | BC77: 19.89 | BD77: 28.29 | BE77: 28.31 | BF77: 28.28 | BG77: 28.47 | BH77: 28.24 | BI77: 28.64 | BJ77: 40.44 | BK77: 12.81 | BL77: 21.92 | BM77: 0 | BN77: 2.503 | BO77: 26.08 | BP77: 9.339 | BQ77: -9.19 | BR77: 0.928 | BS77: 38 | BT77: 24.94 | BU77: 0 | BV77: 0 | BW77: 113.74 | BX77: 8.211 | BY77: 8.812 | BZ77: 117.71 | CA77: 176.43 | CB77: 115.67 | CC77: 25.51 | CD77: 1e+20 | CE77: 0 | CF77: 0 | CG77: 1e+20 | CH77: 1e+20 | CI77: 40.0142 | CJ77: 696.8 | CK77: 133.7 | CL77: 0.907 | CM77: 0 | CN77: 0 | CO77: 0 | CP77: 0 | CQ77: 0
A78: Log | B78: 68 | D78: 14.48 | E78: 14.452 | F78: 14.457 | G78: 0.43669 | H78: 3.0476 | I78: 0.74 | J78: 79.99 | K78: 4.149 | L78: 1.2708 | M78: 11.441 | N78: 30 | O78: 39.9679 | P78: 40 | Q78: 5.301 | R78: 353.526 | S78: 367.018 | T78: 0.0501 | U78: 8.268 | V78: 100.706 | W78: 0.182 | X78: 10 | Y78: 106.99 | Z78: 6.433 | AA78: 9.228 | AB78: 104.01 | AC78: 405.11 | AD78: 1.529 | AE78: 109.93 | AF78: 1.387 | AG78: 40.71 | AH78: 124.72 | AI78: 255.31 | AJ78: 2.885 | AK78: 17.8 | AL78: 9.5 | AM78: 689.4 | AN78: 694.6 | AO78: 695 | AP78: 0 | AQ78: 696.4 | AR78: 0.3 | AS78: 72 | AT78: 28.96 | AU78: 3.249 | AV78: 27.19 | AW78: 3.801 | AX78: 107.73 | AY78: 8.441 | AZ78: 109.57 | BA78: 1e+20 | BB78: 27.63 | BC78: 19.89 | BD78: 28.3 | BE78: 28.32 | BF78: 28.29 | BG78: 28.48 | BH78: 28.24 | BI78: 28.64 | BJ78: 40.44 | BK78: 12.82 | BL78: 21.91 | BM78: 0 | BN78: 2.499 | BO78: 26.08 | BP78: 9.338 | BQ78: -9.19 | BR78: 0.929 | BS78: 38.01 | BT78: 24.94 | BU78: 0 | BV78: 0 | BW78: 113.74 | BX78: 8.196 | BY78: 8.816 | BZ78: 117.69 | CA78: 176.65 | CB78: 115.62 | CC78: 25.51 | CD78: 1e+20 | CE78: 0 | CF78: 0 | CG78: 1e+20 | CH78: 1e+20 | CI78: 40.0104 | CJ78: 694.7 | CK78: 133.7 | CL78: 0.907 | CM78: 0 | CN78: 0 | CO78: 0 | CP78: 0 | CQ78: 0
A79: Log | B79: 69 | D79: 14.49 | E79: 14.486 | F79: 14.446 | G79: 0.43791 | H79: 3.0477 | I79: 0.74 | J79: 79.99 | K79: 4.149 | L79: 1.2708 | M79: 11.449 | N79: 30 | O79: 39.9447 | P79: 40 | Q79: 5.288 | R79: 342.539 | S79: 355.085 | T79: 0.05 | U79: 8.268 | V79: 100.706 | W79: 0.184 | X79: 10 | Y79: 106.99 | Z79: 6.433 | AA79: 9.228 | AB79: 104.02 | AC79: 405.08 | AD79: 1.522 | AE79: 109.92 | AF79: 1.388 | AG79: 40.838 | AH79: 124.34 | AI79: 255.57 | AJ79: 2.914 | AK79: 17.76 | AL79: 9.5 | AM79: 696.6 | AN79: 693.5 | AO79: 695 | AP79: 0 | AQ79: 692.8 | AR79: 0.1 | AS79: 72 | AT79: 28.96 | AU79: 3.25 | AV79: 27.18 | AW79: 3.801 | AX79: 107.73 | AY79: 8.444 | AZ79: 109.57 | BA79: 1e+20 | BB79: 27.63 | BC79: 19.89 | BD79: 28.29 | BE79: 28.32 | BF79: 28.29 | BG79: 28.47 | BH79: 28.24 | BI79: 28.64 | BJ79: 40.43 | BK79: 12.82 | BL79: 21.92 | BM79: 0 | BN79: 2.501 | BO79: 26.09 | BP79: 9.337 | BQ79: -9.18 | BR79: 0.929 | BS79: 38.01 | BT79: 24.94 | BU79: 0 | BV79: 0 | BW79: 113.73 | BX79: 8.192 | BY79: 8.82 | BZ79: 117.69 | CA79: 176.69 | CB79: 115.68 | CC79: 25.51 | CD79: 1e+20 | CE79: 0 | CF79: 0 | CG79: 1e+20 | CH79: 1e+20 | CI79: 39.9664 | CJ79: 693.5 | CK79: 133.7 | CL79: 0.907 | CM79: 0 | CN79: 0 | CO79: 0 | CP79: 0 | CQ79: 0
A80: Log | B80: 70 | D80: 14.5 | E80: 14.496 | F80: 14.55 | G80: 0.43732 | H80: 3.0477 | I80: 0.74 | J80: 79.99 | K80: 4.149 | L80: 1.2708 | M80: 11.454 | N80: 30 | O80: 39.9742 | P80: 40 | Q80: 5.273 | R80: 347.434 | S80: 358.567 | T80: 0.0502 | U80: 8.269 | V80: 100.706 | W80: 0.185 | X80: 10 | Y80: 106.99 | Z80: 6.433 | AA80: 9.228 | AB80: 104.02 | AC80: 405 | AD80: 1.521 | AE80: 109.92 | AF80: 1.388 | AG80: 40.825 | AH80: 124.26 | AI80: 255.67 | AJ80: 2.909 | AK80: 17.78 | AL80: 9.5 | AM80: 695 | AN80: 694.2 | AO80: 695 | AP80: 0 | AQ80: 693.3 | AR80: 0.3 | AS80: 72 | AT80: 28.96 | AU80: 3.256 | AV80: 27.18 | AW80: 3.81 | AX80: 107.73 | AY80: 8.442 | AZ80: 109.58 | BA80: 1e+20 | BB80: 27.61 | BC80: 19.89 | BD80: 28.29 | BE80: 28.32 | BF80: 28.29 | BG80: 28.47 | BH80: 28.23 | BI80: 28.64 | BJ80: 40.43 | BK80: 12.82 | BL80: 21.91 | BM80: 0 | BN80: 2.501 | BO80: 26.08 | BP80: 9.339 | BQ80: -9.17 | BR80: 0.929 | BS80: 37.99 | BT80: 24.94 | BU80: 0 | BV80: 0 | BW80: 113.74 | BX80: 8.201 | BY80: 8.821 | BZ80: 117.7 | CA80: 176.5 | CB80: 115.67 | CC80: 25.5 | CD80: 1e+20 | CE80: 0 | CF80: 0 | CG80: 1e+20 | CH80: 1e+20 | CI80: 39.9714 | CJ80: 694.2 | CK80: 133.7 | CL80: 0.907 | CM80: 0 | CN80: 0 | CO80: 0 | CP80: 0 | CQ80: 0
A81: Log | B81: 71 | D81: 14.53 | E81: 14.531 | F81: 14.42 | G81: 0.43611 | H81: 3.0476 | I81: 0.74 | J81: 80 | K81: 4.149 | L81: 1.2708 | M81: 11.47 | N81: 30 | O81: 40.001 | P81: 40 | Q81: 5.3 | R81: 350.09 | S81: 381.445 | T81: 0.0502 | U81: 8.269 | V81: 100.705 | W81: 0.176 | X81: 10 | Y81: 106.99 | Z81: 6.433 | AA81: 9.228 | AB81: 104.02 | AC81: 405.04 | AD81: 1.52 | AE81: 109.87 | AF81: 1.39 | AG81: 40.799 | AH81: 124.28 | AI81: 255.13 | AJ81: 2.927 | AK81: 17.81 | AL81: 9.5 | AM81: 698.8 | AN81: 695.7 | AO81: 695 | AP81: 0 | AQ81: 694.4 | AR81: 0.5 | AS81: 72 | AT81: 28.97 | AU81: 3.249 | AV81: 27.18 | AW81: 3.812 | AX81: 107.74 | AY81: 8.44 | AZ81: 109.58 | BA81: 1e+20 | BB81: 27.56 | BC81: 19.89 | BD81: 28.29 | BE81: 28.32 | BF81: 28.29 | BG81: 28.46 | BH81: 28.24 | BI81: 28.64 | BJ81: 40.44 | BK81: 12.82 | BL81: 21.91 | BM81: 0 | BN81: 2.5 | BO81: 26.09 | BP81: 9.338 | BQ81: -9.17 | BR81: 0.928 | BS81: 37.99 | BT81: 24.94 | BU81: 0 | BV81: 0 | BW81: 113.75 | BX81: 8.237 | BY81: 8.821 | BZ81: 117.71 | CA81: 175.88 | CB81: 115.57 | CC81: 25.51 | CD81: 1e+20 | CE81: 0 | CF81: 0 | CG81: 1e+20 | CH81: 1e+20 | CI81: 39.9813 | CJ81: 695.8 | CK81: 133.7 | CL81: 0.907 | CM81: 0 | CN81: 0 | CO81: 0 | CP81: 0 | CQ81: 0
A82: Log | B82: 72 | D82: 14.52 | E82: 14.388 | F82: 14.515 | G82: 0.43759 | H82: 3.0478 | I82: 0.74 | J82: 80 | K82: 4.149 | L82: 1.2708 | M82: 11.481 | N82: 30 | O82: 39.9405 | P82: 40 | Q82: 5.286 | R82: 355.504 | S82: 353.956 | T82: 0.0504 | U82: 8.271 | V82: 100.705 | W82: 0.178 | X82: 10 | Y82: 106.99 | Z82: 6.433 | AA82: 9.227 | AB82: 104.01 | AC82: 404.98 | AD82: 1.522 | AE82: 109.95 | AF82: 1.391 | AG82: 40.794 | AH82: 124.35 | AI82: 255.16 | AJ82: 2.895 | AK82: 17.76 | AL82: 9.5 | AM82: 692.1 | AN82: 693.7 | AO82: 695 | AP82: 0 | AQ82: 694.8 | AR82: 0.3 | AS82: 72 | AT82: 28.97 | AU82: 3.247 | AV82: 27.18 | AW82: 3.808 | AX82: 107.75 | AY82: 8.433 | AZ82: 109.58 | BA82: 1e+20 | BB82: 27.59 | BC82: 19.9 | BD82: 28.3 | BE82: 28.32 | BF82: 28.3 | BG82: 28.47 | BH82: 28.24 | BI82: 28.64 | BJ82: 40.44 | BK82: 12.81 | BL82: 21.92 | BM82: 0 | BN82: 2.504 | BO82: 26.08 | BP82: 9.339 | BQ82: -9.18 | BR82: 0.929 | BS82: 38 | BT82: 24.94 | BU82: 0 | BV82: 0 | BW82: 113.75 | BX82: 8.267 | BY82: 8.824 | BZ82: 117.73 | CA82: 175.37 | CB82: 115.48 | CC82: 25.51 | CD82: 1e+20 | CE82: 0 | CF82: 0 | CG82: 1e+20 | CH82: 1e+20 | CI82: 39.9827 | CJ82: 693.7 | CK82: 133.7 | CL82: 0.907 | CM82: 0 | CN82: 0 | CO82: 0 | CP82: 0 | CQ82: 0
A83: Log | B83: 73 | D83: 14.49 | E83: 14.458 | F83: 14.522 | G83: 0.43569 | H83: 3.0476 | I83: 0.74 | J83: 80.01 | K83: 4.149 | L83: 1.2708 | M83: 11.496 | N83: 30 | O83: 40.0254 | P83: 40 | Q83: 5.315 | R83: 350.496 | S83: 359.737 | T83: 0.0502 | U83: 8.272 | V83: 100.706 | W83: 0.192 | X83: 10 | Y83: 107 | Z83: 6.432 | AA83: 9.227 | AB83: 104.04 | AC83: 405.02 | AD83: 1.521 | AE83: 109.89 | AF83: 1.392 | AG83: 40.789 | AH83: 124.26 | AI83: 254.93 | AJ83: 2.941 | AK83: 17.82 | AL83: 9.5 | AM83: 701.7 | AN83: 696.3 | AO83: 695 | AP83: 0 | AQ83: 695.8 | AR83: 0.3 | AS83: 72 | AT83: 28.97 | AU83: 3.244 | AV83: 27.18 | AW83: 3.805 | AX83: 107.75 | AY83: 8.432 | AZ83: 109.59 | BA83: 1e+20 | BB83: 27.6 | BC83: 19.9 | BD83: 28.3 | BE83: 28.32 | BF83: 28.3 | BG83: 28.49 | BH83: 28.24 | BI83: 28.65 | BJ83: 40.44 | BK83: 12.81 | BL83: 21.92 | BM83: 0 | BN83: 2.504 | BO83: 26.08 | BP83: 9.339 | BQ83: -9.19 | BR83: 0.928 | BS83: 38 | BT83: 24.94 | BU83: 0 | BV83: 0 | BW83: 113.75 | BX83: 8.28 | BY83: 8.825 | BZ83: 117.72 | CA83: 175.16 | CB83: 115.51 | CC83: 25.51 | CD83: 1e+20 | CE83: 0 | CF83: 0 | CG83: 1e+20 | CH83: 1e+20 | CI83: 39.988 | CJ83: 696.4 | CK83: 133.7 | CL83: 0.907 | CM83: 0 | CN83: 0 | CO83: 0 | CP83: 0 | CQ83: 0
A84: Log | B84: 74 | D84: 14.52 | E84: 14.431 | F84: 14.407 | G84: 0.43534 | H84: 3.0475 | I84: 0.74 | J84: 80.01 | K84: 4.149 | L84: 1.2708 | M84: 11.512 | N84: 30 | O84: 40.0169 | P84: 40 | Q84: 5.342 | R84: 352.142 | S84: 379.011 | T84: 0.05 | U84: 8.272 | V84: 100.706 | W84: 0.149 | X84: 9.999 | Y84: 107.02 | Z84: 6.43 | AA84: 9.227 | AB84: 104.04 | AC84: 404.97 | AD84: 1.524 | AE84: 109.92 | AF84: 1.393 | AG84: 40.687 | AH84: 124.54 | AI84: 254.9 | AJ84: 2.903 | AK84: 17.84 | AL84: 9.5 | AM84: 692.8 | AN84: 696.4 | AO84: 695 | AP84: 0 | AQ84: 697.4 | AR84: 0.2 | AS84: 72 | AT84: 28.97 | AU84: 3.247 | AV84: 27.18 | AW84: 3.805 | AX84: 107.74 | AY84: 8.44 | AZ84: 109.59 | BA84: 1e+20 | BB84: 27.6 | BC84: 19.89 | BD84: 28.31 | BE84: 28.32 | BF84: 28.3 | BG84: 28.49 | BH84: 28.25 | BI84: 28.65 | BJ84: 40.43 | BK84: 12.81 | BL84: 21.91 | BM84: 0 | BN84: 2.5 | BO84: 26.08 | BP84: 9.338 | BQ84: -9.18 | BR84: 0.928 | BS84: 38 | BT84: 24.94 | BU84: 0 | BV84: 0 | BW84: 113.75 | BX84: 8.32 | BY84: 8.829 | BZ84: 117.71 | CA84: 174.5 | CB84: 115.64 | CC84: 25.51 | CD84: 1e+20 | CE84: 0 | CF84: 0 | CG84: 1e+20 | CH84: 1e+20 | CI84: 40.0205 | CJ84: 696.5 | CK84: 133.7 | CL84: 0.907 | CM84: 0 | CN84: 0 | CO84: 0 | CP84: 0 | CQ84: 0
A85: Log | B85: 75 | D85: 14.47 | E85: 14.562 | F85: 14.556 | G85: 0.43925 | H85: 3.048 | I85: 0.74 | J85: 80.02 | K85: 4.149 | L85: 1.2708 | M85: 11.52 | N85: 30 | O85: 39.8948 | P85: 40 | Q85: 5.361 | R85: 334.728 | S85: 357.662 | T85: 0.0497 | U85: 8.271 | V85: 100.706 | W85: 0.157 | X85: 10 | Y85: 107.05 | Z85: 6.427 | AA85: 9.227 | AB85: 104.01 | AC85: 404.96 | AD85: 1.527 | AE85: 109.99 | AF85: 1.393 | AG85: 40.837 | AH85: 124.12 | AI85: 255.54 | AJ85: 2.887 | AK85: 17.72 | AL85: 9.5 | AM85: 691.1 | AN85: 691.8 | AO85: 695 | AP85: 0 | AQ85: 693.8 | AR85: -0.2 | AS85: 72 | AT85: 28.96 | AU85: 3.253 | AV85: 27.16 | AW85: 3.815 | AX85: 107.74 | AY85: 8.44 | AZ85: 109.59 | BA85: 1e+20 | BB85: 27.58 | BC85: 19.89 | BD85: 28.32 | BE85: 28.33 | BF85: 28.3 | BG85: 28.49 | BH85: 28.25 | BI85: 28.65 | BJ85: 40.43 | BK85: 12.82 | BL85: 21.91 | BM85: 0 | BN85: 2.497 | BO85: 26.08 | BP85: 9.339 | BQ85: -9.17 | BR85: 0.929 | BS85: 37.99 | BT85: 24.94 | BU85: 0 | BV85: 0 | BW85: 113.74 | BX85: 8.343 | BY85: 8.834 | BZ85: 117.71 | CA85: 174.12 | CB85: 115.7 | CC85: 25.5 | CD85: 1e+20 | CE85: 0 | CF85: 0 | CG85: 1e+20 | CH85: 1e+20 | CI85: 39.9576 | CJ85: 691.7 | CK85: 133.7 | CL85: 0.907 | CM85: 0 | CN85: 0 | CO85: 0 | CP85: 0 | CQ85: 0
A86: Log | B86: 76 | D86: 14.56 | E86: 14.501 | F86: 14.505 | G86: 0.43519 | H86: 3.0476 | I86: 0.74 | J86: 80.05 | K86: 4.149 | L86: 1.2708 | M86: 11.538 | N86: 30 | O86: 40.0425 | P86: 40 | Q86: 5.349 | R86: 371.115 | S86: 390.882 | T86: 0.0497 | U86: 8.27 | V86: 100.706 | W86: 0.166 | X86: 10 | Y86: 107.03 | Z86: 6.429 | AA86: 9.227 | AB86: 104.06 | AC86: 405 | AD86: 1.527 | AE86: 109.9 | AF86: 1.394 | AG86: 40.791 | AH86: 124.1 | AI86: 255.67 | AJ86: 2.93 | AK86: 17.85 | AL86: 9.5 | AM86: 698.6 | AN86: 697.2 | AO86: 695 | AP86: 0 | AQ86: 696.9 | AR86: -0.1 | AS86: 72 | AT86: 28.97 | AU86: 3.249 | AV86: 27.15 | AW86: 3.808 | AX86: 107.75 | AY86: 8.433 | AZ86: 109.59 | BA86: 1e+20 | BB86: 27.53 | BC86: 19.89 | BD86: 28.32 | BE86: 28.32 | BF86: 28.3 | BG86: 28.48 | BH86: 28.25 | BI86: 28.65 | BJ86: 40.43 | BK86: 12.81 | BL86: 21.91 | BM86: 0 | BN86: 2.497 | BO86: 26.08 | BP86: 9.34 | BQ86: -9.17 | BR86: 0.928 | BS86: 38 | BT86: 24.93 | BU86: 0 | BV86: 0 | BW86: 113.74 | BX86: 8.322 | BY86: 8.836 | BZ86: 117.72 | CA86: 174.49 | CB86: 115.69 | CC86: 25.5 | CD86: 1e+20 | CE86: 0 | CF86: 0 | CG86: 1e+20 | CH86: 1e+20 | CI86: 39.9849 | CJ86: 697.2 | CK86: 133.7 | CL86: 0.907 | CM86: 0 | CN86: 0 | CO86: 0 | CP86: 0 | CQ86: 0
A87: Log | B87: 77 | D87: 14.54 | E87: 14.506 | F87: 14.519 | G87: 0.43676 | H87: 3.0477 | I87: 0.74 | J87: 80.07 | K87: 4.149 | L87: 1.2708 | M87: 11.556 | N87: 30 | O87: 39.9836 | P87: 40 | Q87: 5.338 | R87: 361.19 | S87: 381.489 | T87: 0.0497 | U87: 8.268 | V87: 100.707 | W87: 0.18 | X87: 10 | Y87: 106.98 | Z87: 6.434 | AA87: 9.227 | AB87: 104.01 | AC87: 404.93 | AD87: 1.533 | AE87: 109.95 | AF87: 1.395 | AG87: 40.717 | AH87: 124.27 | AI87: 255.53 | AJ87: 2.888 | AK87: 17.8 | AL87: 9.5 | AM87: 689.8 | AN87: 694.7 | AO87: 695 | AP87: 0 | AQ87: 695.1 | AR87: -0.2 | AS87: 72 | AT87: 28.97 | AU87: 3.249 | AV87: 27.15 | AW87: 3.808 | AX87: 107.75 | AY87: 8.433 | AZ87: 109.59 | BA87: 1e+20 | BB87: 27.57 | BC87: 19.89 | BD87: 28.32 | BE87: 28.32 | BF87: 28.3 | BG87: 28.49 | BH87: 28.26 | BI87: 28.66 | BJ87: 40.43 | BK87: 12.81 | BL87: 21.91 | BM87: 0 | BN87: 2.498 | BO87: 26.08 | BP87: 9.34 | BQ87: -9.17 | BR87: 0.929 | BS87: 38 | BT87: 24.94 | BU87: 0 | BV87: 0 | BW87: 113.74 | BX87: 8.305 | BY87: 8.84 | BZ87: 117.72 | CA87: 174.78 | CB87: 115.64 | CC87: 25.5 | CD87: 1e+20 | CE87: 0 | CF87: 0 | CG87: 1e+20 | CH87: 1e+20 | CI87: 40.0045 | CJ87: 694.6 | CK87: 133.7 | CL87: -1.335 | CM87: 0 | CN87: 0 | CO87: 0 | CP87: 0 | CQ87: 0
A88: Log | B88: 78 | D88: 14.54 | E88: 14.568 | F88: 14.52 | G88: 0.43644 | H88: 3.0477 | I88: 0.74 | J88: 80.08 | K88: 4.148 | L88: 1.2708 | M88: 11.578 | N88: 30 | O88: 40.016 | P88: 40 | Q88: 5.317 | R88: 372.425 | S88: 388.337 | T88: 0.05 | U88: 8.268 | V88: 100.705 | W88: 0.175 | X88: 10 | Y88: 106.92 | Z88: 6.44 | AA88: 9.227 | AB88: 104.03 | AC88: 404.95 | AD88: 1.537 | AE88: 109.92 | AF88: 1.395 | AG88: 40.825 | AH88: 124.06 | AI88: 255.37 | AJ88: 2.945 | AK88: 17.79 | AL88: 9.5 | AM88: 702.8 | AN88: 695.4 | AO88: 695 | AP88: 0 | AQ88: 694.2 | AR88: -0.1 | AS88: 72 | AT88: 28.97 | AU88: 3.246 | AV88: 27.15 | AW88: 3.814 | AX88: 107.75 | AY88: 8.438 | AZ88: 109.59 | BA88: 1e+20 | BB88: 27.59 | BC88: 19.88 | BD88: 28.32 | BE88: 28.32 | BF88: 28.29 | BG88: 28.49 | BH88: 28.25 | BI88: 28.66 | BJ88: 40.43 | BK88: 12.81 | BL88: 21.91 | BM88: 0 | BN88: 2.498 | BO88: 26.08 | BP88: 9.34 | BQ88: -9.19 | BR88: 0.928 | BS88: 37.99 | BT88: 24.93 | BU88: 0 | BV88: 0 | BW88: 113.73 | BX88: 8.297 | BY88: 8.845 | BZ88: 117.71 | CA88: 174.91 | CB88: 115.62 | CC88: 25.51 | CD88: 1e+20 | CE88: 0 | CF88: 0 | CG88: 1e+20 | CH88: 1e+20 | CI88: 39.9833 | CJ88: 695.4 | CK88: 133.7 | CL88: -1.335 | CM88: 0 | CN88: 0 | CO88: 0 | CP88: 0 | CQ88: 0
A89: Log | B89: 79 | D89: 14.56 | E89: 14.383 | F89: 14.371 | G89: 0.43451 | H89: 3.0475 | I89: 0.74 | J89: 80.09 | K89: 4.148 | L89: 1.2708 | M89: 11.585 | N89: 30 | O89: 40.0464 | P89: 40 | Q89: 5.317 | R89: 383.947 | S89: 388.046 | T89: 0.0504 | U89: 8.27 | V89: 100.706 | W89: 0.2 | X89: 10 | Y89: 106.88 | Z89: 6.444 | AA89: 9.226 | AB89: 104.05 | AC89: 405.01 | AD89: 1.537 | AE89: 109.89 | AF89: 1.397 | AG89: 40.665 | AH89: 124.48 | AI89: 255.14 | AJ89: 2.905 | AK89: 17.85 | AL89: 9.5 | AM89: 692.7 | AN89: 697.5 | AO89: 695 | AP89: 0 | AQ89: 696.6 | AR89: 0.2 | AS89: 72 | AT89: 28.98 | AU89: 3.242 | AV89: 27.16 | AW89: 3.813 | AX89: 107.75 | AY89: 8.436 | AZ89: 109.6 | BA89: 1e+20 | BB89: 27.59 | BC89: 19.89 | BD89: 28.33 | BE89: 28.32 | BF89: 28.29 | BG89: 28.49 | BH89: 28.26 | BI89: 28.66 | BJ89: 40.44 | BK89: 12.81 | BL89: 21.91 | BM89: 0 | BN89: 2.498 | BO89: 26.07 | BP89: 9.34 | BQ89: -9.18 | BR89: 0.928 | BS89: 37.99 | BT89: 24.94 | BU89: 0 | BV89: 0 | BW89: 113.72 | BX89: 8.297 | BY89: 8.851 | BZ89: 117.71 | CA89: 174.91 | CB89: 115.6 | CC89: 25.51 | CD89: 1e+20 | CE89: 0 | CF89: 0 | CG89: 1e+20 | CH89: 1e+20 | CI89: 40.038 | CJ89: 697.4 | CK89: 133.7 | CL89: -1.335 | CM89: 0 | CN89: 0 | CO89: 0 | CP89: 0 | CQ89: 0
A90: Log | B90: 80 | D90: 14.46 | E90: 14.485 | F90: 14.482 | G90: 0.43726 | H90: 3.0478 | I90: 0.74 | J90: 80.09 | K90: 4.148 | L90: 1.2707 | M90: 11.611 | N90: 30 | O90: 39.9569 | P90: 40 | Q90: 5.29 | R90: 353.453 | S90: 351.943 | T90: 0.05 | U90: 8.27 | V90: 100.705 | W90: 0.194 | X90: 10 | Y90: 106.88 | Z90: 6.445 | AA90: 9.226 | AB90: 104.02 | AC90: 405.05 | AD90: 1.533 | AE90: 109.95 | AF90: 1.398 | AG90: 40.769 | AH90: 124.37 | AI90: 255.14 | AJ90: 2.897 | AK90: 17.77 | AL90: 9.5 | AM90: 692.3 | AN90: 694 | AO90: 695 | AP90: 0 | AQ90: 693.6 | AR90: 0.3 | AS90: 72 | AT90: 28.98 | AU90: 3.236 | AV90: 27.17 | AW90: 3.802 | AX90: 107.76 | AY90: 8.427 | AZ90: 109.6 | BA90: 1e+20 | BB90: 27.59 | BC90: 19.9 | BD90: 28.33 | BE90: 28.32 | BF90: 28.29 | BG90: 28.5 | BH90: 28.26 | BI90: 28.66 | BJ90: 40.44 | BK90: 12.81 | BL90: 21.92 | BM90: 0 | BN90: 2.501 | BO90: 26.08 | BP90: 9.34 | BQ90: -9.17 | BR90: 0.928 | BS90: 38.01 | BT90: 24.94 | BU90: 0 | BV90: 0 | BW90: 113.72 | BX90: 8.285 | BY90: 8.856 | BZ90: 117.7 | CA90: 175.12 | CB90: 115.61 | CC90: 25.52 | CD90: 1e+20 | CE90: 0 | CF90: 0 | CG90: 1e+20 | CH90: 1e+20 | CI90: 39.9999 | CJ90: 694 | CK90: 133.7 | CL90: -1.335 | CM90: 0 | CN90: 0 | CO90: 0 | CP90: 0 | CQ90: 0
A91: Log | B91: 81 | D91: 14.5 | E91: 14.522 | F91: 14.422 | G91: 0.43598 | H91: 3.0476 | I91: 0.74 | J91: 80.09 | K91: 4.147 | L91: 1.2708 | M91: 11.627 | N91: 30 | O91: 40.0197 | P91: 40 | Q91: 5.263 | R91: 361.729 | S91: 357.963 | T91: 0.05 | U91: 8.271 | V91: 100.706 | W91: 0.2 | X91: 10 | Y91: 106.9 | Z91: 6.442 | AA91: 9.226 | AB91: 104.03 | AC91: 405.09 | AD91: 1.527 | AE91: 109.94 | AF91: 1.399 | AG91: 40.793 | AH91: 124.27 | AI91: 255.56 | AJ91: 2.931 | AK91: 17.81 | AL91: 9.5 | AM91: 699.5 | AN91: 695.9 | AO91: 695 | AP91: 0 | AQ91: 695.3 | AR91: 0.4 | AS91: 72 | AT91: 28.98 | AU91: 3.235 | AV91: 27.17 | AW91: 3.803 | AX91: 107.77 | AY91: 8.423 | AZ91: 109.6 | BA91: 1e+20 | BB91: 27.54 | BC91: 19.9 | BD91: 28.32 | BE91: 28.32 | BF91: 28.28 | BG91: 28.48 | BH91: 28.25 | BI91: 28.65 | BJ91: 40.44 | BK91: 12.82 | BL91: 21.91 | BM91: 0 | BN91: 2.499 | BO91: 26.07 | BP91: 9.34 | BQ91: -9.17 | BR91: 0.928 | BS91: 38 | BT91: 24.95 | BU91: 0 | BV91: 0 | BW91: 113.71 | BX91: 8.274 | BY91: 8.86 | BZ91: 117.71 | CA91: 175.29 | CB91: 115.59 | CC91: 25.52 | CD91: 1e+20 | CE91: 0 | CF91: 0 | CG91: 1e+20 | CH91: 1e+20 | CI91: 39.9923 | CJ91: 695.9 | CK91: 133.7 | CL91: -1.335 | CM91: 0 | CN91: 0 | CO91: 0 | CP91: 0 | CQ91: 0
A92: Log | B92: 82 | D92: 14.5 | E92: 14.378 | F92: 14.466 | G92: 0.43301 | H92: 3.0474 | I92: 0.74 | J92: 80.08 | K92: 4.147 | L92: 1.2685 | M92: 11.643 | N92: 30 | O92: 40.084 | P92: 40 | Q92: 5.298 | R92: 374.112 | S92: 365.857 | T92: 0.05 | U92: 8.271 | V92: 100.705 | W92: 0.158 | X92: 9.998 | Y92: 106.94 | Z92: 6.439 | AA92: 9.226 | AB92: 104.06 | AC92: 405.09 | AD92: 1.519 | AE92: 109.88 | AF92: 1.4 | AG92: 40.663 | AH92: 124.65 | AI92: 255.46 | AJ92: 2.938 | AK92: 17.86 | AL92: 9.5 | AM92: 699.8 | AN92: 698.9 | AO92: 695 | AP92: 0 | AQ92: 698.2 | AR92: 0.5 | AS92: 72 | AT92: 28.98 | AU92: 3.237 | AV92: 27.18 | AW92: 3.8 | AX92: 107.77 | AY92: 8.424 | AZ92: 109.61 | BA92: 1e+20 | BB92: 27.57 | BC92: 19.9 | BD92: 28.32 | BE92: 28.31 | BF92: 28.27 | BG92: 28.49 | BH92: 28.25 | BI92: 28.65 | BJ92: 40.44 | BK92: 12.81 | BL92: 21.91 | BM92: 0 | BN92: 2.498 | BO92: 26.07 | BP92: 9.34 | BQ92: -9.16 | BR92: 0.928 | BS92: 38.01 | BT92: 24.95 | BU92: 0 | BV92: 0 | BW92: 113.71 | BX92: 8.279 | BY92: 8.863 | BZ92: 117.72 | CA92: 175.21 | CB92: 115.58 | CC92: 25.51 | CD92: 1e+20 | CE92: 0 | CF92: 0 | CG92: 1e+20 | CH92: 1e+20 | CI92: 40.0421 | CJ92: 699 | CK92: 133.6 | CL92: -1.335 | CM92: 0 | CN92: 0 | CO92: 0 | CP92: 0 | CQ92: 0
A93: Log | B93: 83 | D93: 14.47 | E93: 14.437 | F93: 14.4 | G93: 0.43481 | H93: 3.0475 | I93: 0.74 | J93: 80.07 | K93: 4.147 | L93: 1.2685 | M93: 11.667 | N93: 30 | O93: 40.0128 | P93: 40 | Q93: 5.337 | R93: 360.024 | S93: 356.749 | T93: 0.0501 | U93: 8.271 | V93: 100.705 | W93: 0.168 | X93: 10 | Y93: 106.98 | Z93: 6.435 | AA93: 9.226 | AB93: 104.01 | AC93: 404.97 | AD93: 1.518 | AE93: 109.95 | AF93: 1.401 | AG93: 40.648 | AH93: 124.79 | AI93: 255.5 | AJ93: 2.896 | AK93: 17.82 | AL93: 9.5 | AM93: 691.1 | AN93: 696.2 | AO93: 695 | AP93: 0 | AQ93: 697.4 | AR93: 0.3 | AS93: 72 | AT93: 28.98 | AU93: 3.24 | AV93: 27.2 | AW93: 3.813 | AX93: 107.77 | AY93: 8.423 | AZ93: 109.61 | BA93: 1e+20 | BB93: 27.59 | BC93: 19.89 | BD93: 28.31 | BE93: 28.31 | BF93: 28.26 | BG93: 28.5 | BH93: 28.25 | BI93: 28.65 | BJ93: 40.44 | BK93: 12.81 | BL93: 21.91 | BM93: 0 | BN93: 2.497 | BO93: 26.07 | BP93: 9.34 | BQ93: -9.17 | BR93: 0.928 | BS93: 37.99 | BT93: 24.95 | BU93: 0 | BV93: 0 | BW93: 113.7 | BX93: 8.272 | BY93: 8.868 | BZ93: 117.72 | CA93: 175.31 | CB93: 115.49 | CC93: 25.51 | CD93: 1e+20 | CE93: 0 | CF93: 0 | CG93: 1e+20 | CH93: 1e+20 | CI93: 40.0486 | CJ93: 696 | CK93: 133.7 | CL93: -1.335 | CM93: 0 | CN93: 0 | CO93: 0 | CP93: 0 | CQ93: 0
A94: Log | B94: 84 | D94: 14.47 | E94: 14.466 | F94: 14.428 | G94: 0.43778 | H94: 3.0477 | I94: 0.74 | J94: 80.06 | K94: 4.147 | L94: 1.2708 | M94: 11.674 | N94: 30 | O94: 39.9495 | P94: 40 | Q94: 5.316 | R94: 351.33 | S94: 350.873 | T94: 0.0503 | U94: 8.272 | V94: 100.705 | W94: 0.18 | X94: 10 | Y94: 107.04 | Z94: 6.429 | AA94: 9.226 | AB94: 104.02 | AC94: 404.91 | AD94: 1.524 | AE94: 109.88 | AF94: 1.402 | AG94: 40.789 | AH94: 124.4 | AI94: 255.15 | AJ94: 2.892 | AK94: 17.75 | AL94: 9.5 | AM94: 691.3 | AN94: 693.1 | AO94: 695 | AP94: 0 | AQ94: 693.1 | AR94: 0.2 | AS94: 72 | AT94: 28.98 | AU94: 3.237 | AV94: 27.22 | AW94: 3.805 | AX94: 107.77 | AY94: 8.419 | AZ94: 109.61 | BA94: 1e+20 | BB94: 27.6 | BC94: 19.89 | BD94: 28.31 | BE94: 28.31 | BF94: 28.27 | BG94: 28.49 | BH94: 28.25 | BI94: 28.65 | BJ94: 40.44 | BK94: 12.82 | BL94: 21.9 | BM94: 0 | BN94: 2.495 | BO94: 26.07 | BP94: 9.341 | BQ94: -9.17 | BR94: 0.928 | BS94: 38 | BT94: 24.94 | BU94: 0 | BV94: 0 | BW94: 113.7 | BX94: 8.252 | BY94: 8.874 | BZ94: 117.7 | CA94: 175.64 | CB94: 115.51 | CC94: 25.51 | CD94: 1e+20 | CE94: 0 | CF94: 0 | CG94: 1e+20 | CH94: 1e+20 | CI94: 39.9944 | CJ94: 693 | CK94: 133.7 | CL94: -1.335 | CM94: 0 | CN94: 0 | CO94: 0 | CP94: 0 | CQ94: 0
A95: Log | B95: 85 | D95: 14.48 | E95: 14.475 | F95: 14.519 | G95: 0.43813 | H95: 3.0478 | I95: 0.74 | J95: 80.05 | K95: 4.146 | L95: 1.2708 | M95: 11.697 | N95: 30 | O95: 39.9543 | P95: 40 | Q95: 5.317 | R95: 340.605 | S95: 347.402 | T95: 0.0504 | U95: 8.274 | V95: 100.705 | W95: 0.185 | X95: 10 | Y95: 107.06 | Z95: 6.427 | AA95: 9.226 | AB95: 104.02 | AC95: 404.93 | AD95: 1.531 | AE95: 109.98 | AF95: 1.403 | AG95: 40.865 | AH95: 124.02 | AI95: 255.12 | AJ95: 2.902 | AK95: 17.76 | AL95: 9.5 | AM95: 693.5 | AN95: 692.9 | AO95: 695 | AP95: 0 | AQ95: 691.6 | AR95: 0.3 | AS95: 72 | AT95: 28.98 | AU95: 3.238 | AV95: 27.23 | AW95: 3.8 | AX95: 107.78 | AY95: 8.416 | AZ95: 109.61 | BA95: 1e+20 | BB95: 27.59 | BC95: 19.89 | BD95: 28.3 | BE95: 28.3 | BF95: 28.26 | BG95: 28.49 | BH95: 28.25 | BI95: 28.65 | BJ95: 40.44 | BK95: 12.82 | BL95: 21.9 | BM95: 0 | BN95: 2.494 | BO95: 26.07 | BP95: 9.341 | BQ95: -9.16 | BR95: 0.928 | BS95: 38.01 | BT95: 24.93 | BU95: 0 | BV95: 0 | BW95: 113.7 | BX95: 8.242 | BY95: 8.877 | BZ95: 117.69 | CA95: 175.79 | CB95: 115.62 | CC95: 25.51 | CD95: 1e+20 | CE95: 0 | CF95: 0 | CG95: 1e+20 | CH95: 1e+20 | CI95: 39.9654 | CJ95: 693 | CK95: 133.7 | CL95: -1.335 | CM95: 0 | CN95: 0 | CO95: 0 | CP95: 0 | CQ95: 0
A96: Log | B96: 86 | D96: 14.51 | E96: 14.513 | F96: 14.51 | G96: 0.43639 | H96: 3.0476 | I96: 0.74 | J96: 80.04 | K96: 4.146 | L96: 1.2707 | M96: 11.696 | N96: 30 | O96: 40.0236 | P96: 40 | Q96: 5.283 | R96: 352.987 | S96: 372.933 | T96: 0.0499 | U96: 8.273 | V96: 100.706 | W96: 0.18 | X96: 10 | Y96: 107.06 | Z96: 6.427 | AA96: 9.225 | AB96: 104.03 | AC96: 404.87 | AD96: 1.539 | AE96: 109.9 | AF96: 1.404 | AG96: 40.847 | AH96: 123.97 | AI96: 255.34 | AJ96: 2.93 | AK96: 17.81 | AL96: 9.5 | AM96: 699 | AN96: 695.4 | AO96: 695 | AP96: 0 | AQ96: 693.5 | AR96: 0.6 | AS96: 72 | AT96: 28.98 | AU96: 3.238 | AV96: 27.24 | AW96: 3.807 | AX96: 107.77 | AY96: 8.421 | AZ96: 109.62 | BA96: 1e+20 | BB96: 27.54 | BC96: 19.89 | BD96: 28.29 | BE96: 28.3 | BF96: 28.26 | BG96: 28.48 | BH96: 28.24 | BI96: 28.64 | BJ96: 40.44 | BK96: 12.82 | BL96: 21.9 | BM96: 0 | BN96: 2.494 | BO96: 26.08 | BP96: 9.339 | BQ96: -9.17 | BR96: 0.928 | BS96: 38 | BT96: 24.94 | BU96: 0 | BV96: 0 | BW96: 113.69 | BX96: 8.258 | BY96: 8.881 | BZ96: 117.69 | CA96: 175.52 | CB96: 115.63 | CC96: 25.51 | CD96: 1e+20 | CE96: 0 | CF96: 0 | CG96: 1e+20 | CH96: 1e+20 | CI96: 39.9796 | CJ96: 695.3 | CK96: 133.7 | CL96: -1.335 | CM96: 0 | CN96: 0 | CO96: 0 | CP96: 0 | CQ96: 0
A97: Log | B97: 87 | D97: 14.53 | E97: 14.439 | F97: 14.489 | G97: 0.43544 | H97: 3.0475 | I97: 0.74 | J97: 80.02 | K97: 4.146 | L97: 1.2708 | M97: 11.701 | N97: 30 | O97: 40.0297 | P97: 40 | Q97: 5.261 | R97: 372.394 | S97: 370.893 | T97: 0.0498 | U97: 8.273 | V97: 100.705 | W97: 0.19 | X97: 10 | Y97: 107.08 | Z97: 6.425 | AA97: 9.225 | AB97: 104.02 | AC97: 404.96 | AD97: 1.542 | AE97: 109.95 | AF97: 1.405 | AG97: 40.721 | AH97: 124.33 | AI97: 255 | AJ97: 2.911 | AK97: 17.82 | AL97: 9.5 | AM97: 694.3 | AN97: 696.1 | AO97: 695 | AP97: 0 | AQ97: 695.6 | AR97: 0.7 | AS97: 72 | AT97: 28.98 | AU97: 3.235 | AV97: 27.25 | AW97: 3.802 | AX97: 107.77 | AY97: 8.424 | AZ97: 109.62 | BA97: 1e+20 | BB97: 27.56 | BC97: 19.89 | BD97: 28.3 | BE97: 28.31 | BF97: 28.26 | BG97: 28.48 | BH97: 28.24 | BI97: 28.64 | BJ97: 40.44 | BK97: 12.81 | BL97: 21.91 | BM97: 0 | BN97: 2.497 | BO97: 26.09 | BP97: 9.337 | BQ97: -9.16 | BR97: 0.928 | BS97: 38.01 | BT97: 24.94 | BU97: 0 | BV97: 0 | BW97: 113.7 | BX97: 8.279 | BY97: 8.883 | BZ97: 117.71 | CA97: 175.16 | CB97: 115.63 | CC97: 25.51 | CD97: 1e+20 | CE97: 0 | CF97: 0 | CG97: 1e+20 | CH97: 1e+20 | CI97: 40.0248 | CJ97: 696.2 | CK97: 133.7 | CL97: -1.335 | CM97: 0 | CN97: 0 | CO97: 0 | CP97: 0 | CQ97: 0
A98: Log | B98: 88 | D98: 14.51 | E98: 14.53 | F98: 14.473 | G98: 0.43695 | H98: 3.0476 | I98: 0.74 | J98: 80.02 | K98: 4.146 | L98: 1.2708 | M98: 11.697 | N98: 30 | O98: 39.9825 | P98: 40 | Q98: 5.254 | R98: 352.841 | S98: 374.142 | T98: 0.0499 | U98: 8.272 | V98: 100.705 | W98: 0.192 | X98: 10 | Y98: 107.08 | Z98: 6.425 | AA98: 9.225 | AB98: 104.02 | AC98: 405 | AD98: 1.543 | AE98: 109.98 | AF98: 1.405 | AG98: 40.793 | AH98: 124.19 | AI98: 255.2 | AJ98: 2.913 | AK98: 17.78 | AL98: 9.5 | AM98: 695.6 | AN98: 694.4 | AO98: 695 | AP98: 0 | AQ98: 693.7 | AR98: 0.6 | AS98: 72 | AT98: 28.99 | AU98: 3.231 | AV98: 27.25 | AW98: 3.817 | AX98: 107.77 | AY98: 8.424 | AZ98: 109.63 | BA98: 1e+20 | BB98: 27.57 | BC98: 19.89 | BD98: 28.3 | BE98: 28.3 | BF98: 28.27 | BG98: 28.48 | BH98: 28.24 | BI98: 28.63 | BJ98: 40.44 | BK98: 12.81 | BL98: 21.91 | BM98: 0 | BN98: 2.497 | BO98: 26.09 | BP98: 9.336 | BQ98: -9.17 | BR98: 0.928 | BS98: 37.99 | BT98: 24.94 | BU98: 0 | BV98: 0 | BW98: 113.71 | BX98: 8.288 | BY98: 8.883 | BZ98: 117.71 | CA98: 175.01 | CB98: 115.57 | CC98: 25.51 | CD98: 1e+20 | CE98: 0 | CF98: 0 | CG98: 1e+20 | CH98: 1e+20 | CI98: 39.9973 | CJ98: 694.4 | CK98: 133.7 | CL98: -1.335 | CM98: 0 | CN98: 0 | CO98: 0 | CP98: 0 | CQ98: 0
A99: Log | B99: 89 | D99: 14.53 | E99: 14.478 | F99: 14.399 | G99: 0.43548 | H99: 3.0475 | I99: 0.74 | J99: 80.01 | K99: 4.146 | L99: 1.2708 | M99: 11.697 | N99: 30 | O99: 40.0256 | P99: 40 | Q99: 5.263 | R99: 375.225 | S99: 363.686 | T99: 0.0499 | U99: 8.272 | V99: 100.705 | W99: 0.195 | X99: 10 | Y99: 107.08 | Z99: 6.424 | AA99: 9.225 | AB99: 104.03 | AC99: 405.04 | AD99: 1.539 | AE99: 109.97 | AF99: 1.405 | AG99: 40.773 | AH99: 124.27 | AI99: 255.58 | AJ99: 2.929 | AK99: 17.82 | AL99: 9.5 | AM99: 698.8 | AN99: 696.4 | AO99: 695 | AP99: 0 | AQ99: 694.8 | AR99: 0.8 | AS99: 72 | AT99: 28.99 | AU99: 3.233 | AV99: 27.26 | AW99: 3.812 | AX99: 107.77 | AY99: 8.423 | AZ99: 109.62 | BA99: 1e+20 | BB99: 27.57 | BC99: 19.89 | BD99: 28.29 | BE99: 28.3 | BF99: 28.27 | BG99: 28.48 | BH99: 28.24 | BI99: 28.63 | BJ99: 40.44 | BK99: 12.81 | BL99: 21.9 | BM99: 0 | BN99: 2.493 | BO99: 26.08 | BP99: 9.338 | BQ99: -9.17 | BR99: 0.928 | BS99: 37.99 | BT99: 24.94 | BU99: 0 | BV99: 0 | BW99: 113.73 | BX99: 8.284 | BY99: 8.881 | BZ99: 117.71 | CA99: 175.08 | CB99: 115.47 | CC99: 25.51 | CD99: 1e+20 | CE99: 0 | CF99: 0 | CG99: 1e+20 | CH99: 1e+20 | CI99: 40.0043 | CJ99: 696.4 | CK99: 133.6 | CL99: -1.335 | CM99: 0 | CN99: 0 | CO99: 0 | CP99: 0 | CQ99: 0
A100: Log | B100: 90 | D100: 14.49 | E100: 14.44 | F100: 14.448 | G100: 0.43638 | H100: 3.0476 | I100: 0.74 | J100: 80.01 | K100: 4.146 | L100: 1.2708 | M100: 11.69 | N100: 30 | O100: 39.984 | P100: 40 | Q100: 5.274 | R100: 368.259 | S100: 350.673 | T100: 0.0499 | U100: 8.271 | V100: 100.705 | W100: 0.199 | X100: 10 | Y100: 107.06 | Z100: 6.426 | AA100: 9.225 | AB100: 104.01 | AC100: 405.02 | AD100: 1.537 | AE100: 109.98 | AF100: 1.406 | AG100: 40.708 | AH100: 124.44 | AI100: 255.65 | AJ100: 2.889 | AK100: 17.8 | AL100: 9.5 | AM100: 689.9 | AN100: 695 | AO100: 695 | AP100: 0 | AQ100: 695.3 | AR100: 0.8 | AS100: 72 | AT100: 28.98 | AU100: 3.238 | AV100: 27.27 | AW100: 3.795 | AX100: 107.78 | AY100: 8.42 | AZ100: 109.62 | BA100: 1e+20 | BB100: 27.58 | BC100: 19.9 | BD100: 28.3 | BE100: 28.31 | BF100: 28.28 | BG100: 28.49 | BH100: 28.24 | BI100: 28.64 | BJ100: 40.44 | BK100: 12.81 | BL100: 21.9 | BM100: 0 | BN100: 2.494 | BO100: 26.08 | BP100: 9.337 | BQ100: -9.17 | BR100: 0.928 | BS100: 38.01 | BT100: 24.94 | BU100: 0 | BV100: 0 | BW100: 113.74 | BX100: 8.27 | BY100: 8.88 | BZ100: 117.72 | CA100: 175.31 | CB100: 115.46 | CC100: 25.51 | CD100: 1e+20 | CE100: 0 | CF100: 0 | CG100: 1e+20 | CH100: 1e+20 | CI100: 40.0152 | CJ100: 695.1 | CK100: 133.7 | CL100: -1.335 | CM100: 0 | CN100: 0 | CO100: 0 | CP100: 0 | CQ100: 0
A101: Log | B101: 91 | D101: 14.49 | E101: 14.515 | F101: 14.377 | G101: 0.43599 | H101: 3.0476 | I101: 0.74 | J101: 80 | K101: 4.146 | L101: 1.2685 | M101: 11.69 | N101: 30 | O101: 40.0072 | P101: 40 | Q101: 5.302 | R101: 346.331 | S101: 332.821 | T101: 0.0497 | U101: 8.27 | V101: 100.705 | W101: 0.195 | X101: 10 | Y101: 107.03 | Z101: 6.429 | AA101: 9.225 | AB101: 104.02 | AC101: 405.03 | AD101: 1.534 | AE101: 109.92 | AF101: 1.406 | AG101: 40.794 | AH101: 124.26 | AI101: 255.22 | AJ101: 2.931 | AK101: 17.8 | AL101: 9.5 | AM101: 699.6 | AN101: 695.6 | AO101: 695 | AP101: 0 | AQ101: 695.3 | AR101: 0.6 | AS101: 72 | AT101: 28.98 | AU101: 3.237 | AV101: 27.28 | AW101: 3.804 | AX101: 107.78 | AY101: 8.418 | AZ101: 109.62 | BA101: 1e+20 | BB101: 27.53 | BC101: 19.89 | BD101: 28.3 | BE101: 28.32 | BF101: 28.29 | BG101: 28.48 | BH101: 28.25 | BI101: 28.64 | BJ101: 40.43 | BK101: 12.82 | BL101: 21.9 | BM101: 0 | BN101: 2.493 | BO101: 26.09 | BP101: 9.336 | BQ101: -9.16 | BR101: 0.928 | BS101: 38 | BT101: 24.95 | BU101: 0 | BV101: 0 | BW101: 113.73 | BX101: 8.26 | BY101: 8.886 | BZ101: 117.7 | CA101: 175.46 | CB101: 115.53 | CC101: 25.51 | CD101: 1e+20 | CE101: 0 | CF101: 0 | CG101: 1e+20 | CH101: 1e+20 | CI101: 39.9905 | CJ101: 695.7 | CK101: 133.6 | CL101: -1.335 | CM101: 0 | CN101: 0 | CO101: 0 | CP101: 0 | CQ101: 0
A102: Log | B102: 92 | D102: 14.49 | E102: 14.463 | F102: 14.489 | G102: 0.43512 | H102: 3.0475 | I102: 0.74 | J102: 79.99 | K102: 4.146 | L102: 1.2685 | M102: 11.671 | N102: 30 | O102: 40.0107 | P102: 40 | Q102: 5.293 | R102: 368.714 | S102: 334.919 | T102: 0.0502 | U102: 8.27 | V102: 100.705 | W102: 0.173 | X102: 9.998 | Y102: 106.96 | Z102: 6.435 | AA102: 9.225 | AB102: 104.03 | AC102: 405.05 | AD102: 1.531 | AE102: 110.05 | AF102: 1.406 | AG102: 40.693 | AH102: 124.51 | AI102: 255.16 | AJ102: 2.899 | AK102: 17.83 | AL102: 9.5 | AM102: 691.9 | AN102: 696.2 | AO102: 695 | AP102: 0 | AQ102: 698.1 | AR102: 0.4 | AS102: 72 | AT102: 28.99 | AU102: 3.233 | AV102: 27.27 | AW102: 3.806 | AX102: 107.78 | AY102: 8.416 | AZ102: 109.63 | BA102: 1e+20 | BB102: 27.55 | BC102: 19.89 | BD102: 28.3 | BE102: 28.32 | BF102: 28.29 | BG102: 28.49 | BH102: 28.25 | BI102: 28.64 | BJ102: 40.43 | BK102: 12.81 | BL102: 21.9 | BM102: 0 | BN102: 2.492 | BO102: 26.09 | BP102: 9.336 | BQ102: -9.16 | BR102: 0.928 | BS102: 38 | BT102: 24.95 | BU102: 0 | BV102: 0 | BW102: 113.71 | BX102: 8.257 | BY102: 8.893 | BZ102: 117.68 | CA102: 175.5 | CB102: 115.55 | CC102: 25.51 | CD102: 1e+20 | CE102: 0 | CF102: 0 | CG102: 1e+20 | CH102: 1e+20 | CI102: 40.0171 | CJ102: 696 | CK102: 133.6 | CL102: -0.612 | CM102: 0 | CN102: 0 | CO102: 0 | CP102: 0 | CQ102: 0
A103: Log | B103: 93 | D103: 14.51 | E103: 14.496 | F103: 14.537 | G103: 0.43571 | H103: 3.0476 | I103: 0.74 | J103: 79.98 | K103: 4.147 | L103: 1.2685 | M103: 11.647 | N103: 30 | O103: 39.9978 | P103: 40 | Q103: 5.306 | R103: 367.241 | S103: 361.087 | T103: 0.05 | U103: 8.271 | V103: 100.704 | W103: 0.191 | X103: 10 | Y103: 106.89 | Z103: 6.443 | AA103: 9.225 | AB103: 104.03 | AC103: 404.95 | AD103: 1.533 | AE103: 109.94 | AF103: 1.407 | AG103: 40.766 | AH103: 124.32 | AI103: 255.42 | AJ103: 2.918 | AK103: 17.8 | AL103: 9.5 | AM103: 696.8 | AN103: 695.3 | AO103: 695 | AP103: 0 | AQ103: 694.5 | AR103: 0.2 | AS103: 72 | AT103: 28.99 | AU103: 3.229 | AV103: 27.27 | AW103: 3.81 | AX103: 107.79 | AY103: 8.415 | AZ103: 109.63 | BA103: 1e+20 | BB103: 27.57 | BC103: 19.89 | BD103: 28.29 | BE103: 28.32 | BF103: 28.28 | BG103: 28.49 | BH103: 28.25 | BI103: 28.64 | BJ103: 40.43 | BK103: 12.8 | BL103: 21.9 | BM103: 0 | BN103: 2.491 | BO103: 26.08 | BP103: 9.338 | BQ103: -9.17 | BR103: 0.928 | BS103: 38 | BT103: 24.95 | BU103: 0 | BV103: 0 | BW103: 113.7 | BX103: 8.26 | BY103: 8.9 | BZ103: 117.68 | CA103: 175.45 | CB103: 115.58 | CC103: 25.51 | CD103: 1e+20 | CE103: 0 | CF103: 0 | CG103: 1e+20 | CH103: 1e+20 | CI103: 39.9937 | CJ103: 695.3 | CK103: 133.6 | CL103: -0.612 | CM103: 0 | CN103: 0 | CO103: 0 | CP103: 0 | CQ103: 0
A104: Log | B104: 94 | D104: 14.53 | E104: 14.39 | F104: 14.376 | G104: 0.4335 | H104: 3.0473 | I104: 0.74 | J104: 79.98 | K104: 4.147 | L104: 1.2685 | M104: 11.63 | N104: 30 | O104: 40.0571 | P104: 40 | Q104: 5.289 | R104: 365.745 | S104: 373.867 | T104: 0.0497 | U104: 8.269 | V104: 100.705 | W104: 0.17 | X104: 10 | Y104: 106.86 | Z104: 6.446 | AA104: 9.224 | AB104: 104.05 | AC104: 404.97 | AD104: 1.534 | AE104: 109.93 | AF104: 1.408 | AG104: 40.676 | AH104: 124.5 | AI104: 255.25 | AJ104: 2.915 | AK104: 17.86 | AL104: 9.5 | AM104: 694.8 | AN104: 697.9 | AO104: 695 | AP104: 0 | AQ104: 697.8 | AR104: 0.3 | AS104: 72 | AT104: 28.99 | AU104: 3.227 | AV104: 27.27 | AW104: 3.808 | AX104: 107.79 | AY104: 8.415 | AZ104: 109.64 | BA104: 1e+20 | BB104: 27.57 | BC104: 19.89 | BD104: 28.3 | BE104: 28.32 | BF104: 28.29 | BG104: 28.49 | BH104: 28.25 | BI104: 28.65 | BJ104: 40.43 | BK104: 12.81 | BL104: 21.9 | BM104: 0 | BN104: 2.491 | BO104: 26.07 | BP104: 9.34 | BQ104: -9.17 | BR104: 0.928 | BS104: 38 | BT104: 24.95 | BU104: 0 | BV104: 0 | BW104: 113.69 | BX104: 8.282 | BY104: 8.906 | BZ104: 117.69 | CA104: 175.07 | CB104: 115.63 | CC104: 25.51 | CD104: 1e+20 | CE104: 0 | CF104: 0 | CG104: 1e+20 | CH104: 1e+20 | CI104: 40.0316 | CJ104: 697.9 | CK104: 133.6 | CL104: -0.612 | CM104: 0 | CN104: 0 | CO104: 0 | CP104: 0 | CQ104: 0
A105: Log | B105: 95 | D105: 14.45 | E105: 14.503 | F105: 14.49 | G105: 0.4383 | H105: 3.0478 | I105: 0.74 | J105: 79.98 | K105: 4.147 | L105: 1.2685 | M105: 11.62 | N105: 30 | O105: 39.8984 | P105: 40 | Q105: 5.326 | R105: 336.818 | S105: 353.959 | T105: 0.0497 | U105: 8.268 | V105: 100.705 | W105: 0.189 | X105: 10 | Y105: 106.88 | Z105: 6.445 | AA105: 9.224 | AB105: 104.01 | AC105: 405.02 | AD105: 1.533 | AE105: 109.99 | AF105: 1.408 | AG105: 40.786 | AH105: 124.31 | AI105: 255.22 | AJ105: 2.88 | AK105: 17.73 | AL105: 9.5 | AM105: 689.2 | AN105: 691.8 | AO105: 695 | AP105: 0 | AQ105: 692.8 | AR105: 0.1 | AS105: 72 | AT105: 28.99 | AU105: 3.227 | AV105: 27.27 | AW105: 3.808 | AX105: 107.79 | AY105: 8.415 | AZ105: 109.64 | BA105: 1e+20 | BB105: 27.57 | BC105: 19.89 | BD105: 28.3 | BE105: 28.32 | BF105: 28.29 | BG105: 28.49 | BH105: 28.25 | BI105: 28.66 | BJ105: 40.44 | BK105: 12.81 | BL105: 21.9 | BM105: 0 | BN105: 2.492 | BO105: 26.08 | BP105: 9.339 | BQ105: -9.17 | BR105: 0.928 | BS105: 38 | BT105: 24.96 | BU105: 0 | BV105: 0 | BW105: 113.7 | BX105: 8.303 | BY105: 8.908 | BZ105: 117.7 | CA105: 174.73 | CB105: 115.62 | CC105: 25.51 | CD105: 1e+20 | CE105: 0 | CF105: 0 | CG105: 1e+20 | CH105: 1e+20 | CI105: 39.9807 | CJ105: 691.7 | CK105: 133.7 | CL105: -0.612 | CM105: 0 | CN105: 0 | CO105: 0 | CP105: 0 | CQ105: 0
A106: Log | B106: 96 | D106: 14.51 | E106: 14.48 | F106: 14.445 | G106: 0.43645 | H106: 3.0477 | I106: 0.74 | J106: 79.98 | K106: 4.147 | L106: 1.2685 | M106: 11.604 | N106: 30 | O106: 39.9814 | P106: 40 | Q106: 5.272 | R106: 349.781 | S106: 365.916 | T106: 0.0497 | U106: 8.267 | V106: 100.705 | W106: 0.183 | X106: 10 | Y106: 106.9 | Z106: 6.443 | AA106: 9.224 | AB106: 104.04 | AC106: 405.14 | AD106: 1.522 | AE106: 109.93 | AF106: 1.409 | AG106: 40.848 | AH106: 124.03 | AI106: 255.23 | AJ106: 2.916 | AK106: 17.81 | AL106: 9.5 | AM106: 696.4 | AN106: 694.7 | AO106: 695 | AP106: 0 | AQ106: 692.4 | AR106: 0.3 | AS106: 72 | AT106: 29 | AU106: 3.224 | AV106: 27.28 | AW106: 3.804 | AX106: 107.8 | AY106: 8.408 | AZ106: 109.64 | BA106: 1e+20 | BB106: 27.54 | BC106: 19.89 | BD106: 28.3 | BE106: 28.33 | BF106: 28.29 | BG106: 28.49 | BH106: 28.26 | BI106: 28.66 | BJ106: 40.44 | BK106: 12.81 | BL106: 21.9 | BM106: 0 | BN106: 2.494 | BO106: 26.09 | BP106: 9.336 | BQ106: -9.17 | BR106: 0.928 | BS106: 38 | BT106: 24.96 | BU106: 0 | BV106: 0 | BW106: 113.7 | BX106: 8.297 | BY106: 8.909 | BZ106: 117.7 | CA106: 174.83 | CB106: 115.64 | CC106: 25.51 | CD106: 1e+20 | CE106: 0 | CF106: 0 | CG106: 1e+20 | CH106: 1e+20 | CI106: 39.9573 | CJ106: 694.6 | CK106: 133.6 | CL106: -0.612 | CM106: 0 | CN106: 0 | CO106: 0 | CP106: 0 | CQ106: 0
A107: Log | B107: 97 | D107: 14.5 | E107: 14.469 | F107: 14.486 | G107: 0.43717 | H107: 3.0479 | I107: 0.74 | J107: 79.98 | K107: 4.147 | L107: 1.2684 | M107: 11.579 | N107: 30 | O107: 39.9376 | P107: 40 | Q107: 5.269 | R107: 354.718 | S107: 355.521 | T107: 0.0498 | U107: 8.267 | V107: 100.705 | W107: 0.187 | X107: 10 | Y107: 106.95 | Z107: 6.438 | AA107: 9.224 | AB107: 104.01 | AC107: 405.08 | AD107: 1.511 | AE107: 110.03 | AF107: 1.409 | AG107: 40.778 | AH107: 124.18 | AI107: 255.2 | AJ107: 2.874 | AK107: 17.78 | AL107: 9.5 | AM107: 687.3 | AN107: 693.4 | AO107: 695 | AP107: 0 | AQ107: 695 | AR107: 0.3 | AS107: 72 | AT107: 29 | AU107: 3.221 | AV107: 27.28 | AW107: 3.804 | AX107: 107.81 | AY107: 8.401 | AZ107: 109.64 | BA107: 1e+20 | BB107: 27.55 | BC107: 19.89 | BD107: 28.31 | BE107: 28.33 | BF107: 28.29 | BG107: 28.48 | BH107: 28.26 | BI107: 28.65 | BJ107: 40.44 | BK107: 12.81 | BL107: 21.91 | BM107: 0 | BN107: 2.495 | BO107: 26.09 | BP107: 9.336 | BQ107: -9.16 | BR107: 0.928 | BS107: 38 | BT107: 24.96 | BU107: 0 | BV107: 0 | BW107: 113.7 | BX107: 8.275 | BY107: 8.914 | BZ107: 117.7 | CA107: 175.19 | CB107: 115.68 | CC107: 25.52 | CD107: 1e+20 | CE107: 0 | CF107: 0 | CG107: 1e+20 | CH107: 1e+20 | CI107: 39.971 | CJ107: 693.3 | CK107: 133.7 | CL107: -0.612 | CM107: 0 | CN107: 0 | CO107: 0 | CP107: 0 | CQ107: 0
A108: Log | B108: 98 | D108: 14.51 | E108: 14.607 | F108: 14.487 | G108: 0.43719 | H108: 3.0479 | I108: 0.74 | J108: 79.98 | K108: 4.147 | L108: 1.2685 | M108: 11.566 | N108: 30 | O108: 39.9623 | P108: 40 | Q108: 5.257 | R108: 349.369 | S108: 367.013 | T108: 0.05 | U108: 8.267 | V108: 100.704 | W108: 0.16 | X108: 10 | Y108: 107.01 | Z108: 6.432 | AA108: 9.224 | AB108: 104.03 | AC108: 405.05 | AD108: 1.507 | AE108: 109.94 | AF108: 1.409 | AG108: 40.894 | AH108: 123.92 | AI108: 254.8 | AJ108: 2.914 | AK108: 17.75 | AL108: 9.5 | AM108: 696.3 | AN108: 693.5 | AO108: 695 | AP108: 0 | AQ108: 692.2 | AR108: 0.2 | AS108: 72 | AT108: 29 | AU108: 3.221 | AV108: 27.27 | AW108: 3.81 | AX108: 107.81 | AY108: 8.403 | AZ108: 109.64 | BA108: 1e+20 | BB108: 27.56 | BC108: 19.88 | BD108: 28.32 | BE108: 28.33 | BF108: 28.3 | BG108: 28.49 | BH108: 28.26 | BI108: 28.65 | BJ108: 40.44 | BK108: 12.81 | BL108: 21.91 | BM108: 0 | BN108: 2.494 | BO108: 26.08 | BP108: 9.339 | BQ108: -9.17 | BR108: 0.928 | BS108: 38 | BT108: 24.95 | BU108: 0 | BV108: 0 | BW108: 113.69 | BX108: 8.264 | BY108: 8.919 | BZ108: 117.7 | CA108: 175.37 | CB108: 115.62 | CC108: 25.51 | CD108: 1e+20 | CE108: 0 | CF108: 0 | CG108: 1e+20 | CH108: 1e+20 | CI108: 39.9505 | CJ108: 693.5 | CK108: 133.7 | CL108: -0.612 | CM108: 0 | CN108: 0 | CO108: 0 | CP108: 0 | CQ108: 0
A109: Log | B109: 99 | D109: 14.55 | E109: 14.485 | F109: 14.353 | G109: 0.43305 | H109: 3.0474 | I109: 0.74 | J109: 79.97 | K109: 4.147 | L109: 1.2685 | M109: 11.563 | N109: 30 | O109: 40.0954 | P109: 40 | Q109: 5.332 | R109: 369.447 | S109: 372.395 | T109: 0.0502 | U109: 8.268 | V109: 100.705 | W109: 0.16 | X109: 10 | Y109: 107.06 | Z109: 6.427 | AA109: 9.224 | AB109: 104.07 | AC109: 405.01 | AD109: 1.502 | AE109: 109.88 | AF109: 1.411 | AG109: 40.727 | AH109: 124.32 | AI109: 255.11 | AJ109: 2.942 | AK109: 17.87 | AL109: 9.5 | AM109: 700.8 | AN109: 698.5 | AO109: 695 | AP109: 0 | AQ109: 696.8 | AR109: 0.6 | AS109: 72 | AT109: 29 | AU109: 3.221 | AV109: 27.27 | AW109: 3.8 | AX109: 107.8 | AY109: 8.405 | AZ109: 109.65 | BA109: 1e+20 | BB109: 27.56 | BC109: 19.89 | BD109: 28.32 | BE109: 28.33 | BF109: 28.3 | BG109: 28.49 | BH109: 28.26 | BI109: 28.65 | BJ109: 40.44 | BK109: 12.81 | BL109: 21.91 | BM109: 0 | BN109: 2.495 | BO109: 26.07 | BP109: 9.339 | BQ109: -9.17 | BR109: 0.928 | BS109: 38.01 | BT109: 24.95 | BU109: 0 | BV109: 0 | BW109: 113.69 | BX109: 8.295 | BY109: 8.922 | BZ109: 117.7 | CA109: 174.85 | CB109: 115.43 | CC109: 25.51 | CD109: 1e+20 | CE109: 0 | CF109: 0 | CG109: 1e+20 | CH109: 1e+20 | CI109: 40.023 | CJ109: 698.5 | CK109: 133.6 | CL109: -0.612 | CM109: 0 | CN109: 0 | CO109: 0 | CP109: 0 | CQ109: 0
A110: Log | B110: 100 | D110: 14.48 | E110: 14.417 | F110: 14.425 | G110: 0.43636 | H110: 3.0477 | I110: 0.74 | J110: 79.96 | K110: 4.147 | L110: 1.2685 | M110: 11.54 | N110: 30 | O110: 39.9584 | P110: 40 | Q110: 5.277 | R110: 349.643 | S110: 351.008 | T110: 0.0502 | U110: 8.269 | V110: 100.705 | W110: 0.178 | X110: 10 | Y110: 107.09 | Z110: 6.424 | AA110: 9.224 | AB110: 104.01 | AC110: 404.87 | AD110: 1.51 | AE110: 110.03 | AF110: 1.411 | AG110: 40.705 | AH110: 124.51 | AI110: 255.62 | AJ110: 2.867 | AK110: 17.77 | AL110: 9.5 | AM110: 685.2 | AN110: 693.8 | AO110: 695 | AP110: 0 | AQ110: 695.3 | AR110: 0.5 | AS110: 72 | AT110: 29 | AU110: 3.221 | AV110: 27.27 | AW110: 3.807 | AX110: 107.81 | AY110: 8.396 | AZ110: 109.65 | BA110: 1e+20 | BB110: 27.56 | BC110: 19.89 | BD110: 28.31 | BE110: 28.33 | BF110: 28.3 | BG110: 28.49 | BH110: 28.25 | BI110: 28.65 | BJ110: 40.43 | BK110: 12.81 | BL110: 21.91 | BM110: 0 | BN110: 2.496 | BO110: 26.08 | BP110: 9.338 | BQ110: -9.17 | BR110: 0.928 | BS110: 38 | BT110: 24.94 | BU110: 0 | BV110: 0 | BW110: 113.69 | BX110: 8.343 | BY110: 8.925 | BZ110: 117.69 | CA110: 174.07 | CB110: 115.33 | CC110: 25.51 | CD110: 1e+20 | CE110: 0 | CF110: 0 | CG110: 1e+20 | CH110: 1e+20 | CI110: 40.0257 | CJ110: 693.8 | CK110: 133.7 | CL110: -0.612 | CM110: 0 | CN110: 0 | CO110: 0 | CP110: 0 | CQ110: 0
A111: Log | B111: 101 | D111: 14.46 | E111: 14.535 | F111: 14.501 | G111: 0.43812 | H111: 3.0479 | I111: 0.74 | J111: 79.96 | K111: 4.147 | L111: 1.2685 | M111: 11.539 | N111: 30 | O111: 39.9351 | P111: 40 | Q111: 5.321 | R111: 330.559 | S111: 356.355 | T111: 0.0504 | U111: 8.271 | V111: 100.705 | W111: 0.193 | X111: 10 | Y111: 107.07 | Z111: 6.426 | AA111: 9.224 | AB111: 104.03 | AC111: 404.86 | AD111: 1.52 | AE111: 109.94 | AF111: 1.411 | AG111: 40.918 | AH111: 123.93 | AI111: 255.2 | AJ111: 2.909 | AK111: 17.73 | AL111: 9.5 | AM111: 695.7 | AN111: 692.2 | AO111: 695 | AP111: 0 | AQ111: 690.8 | AR111: 0.3 | AS111: 72 | AT111: 29 | AU111: 3.219 | AV111: 27.27 | AW111: 3.812 | AX111: 107.82 | AY111: 8.39 | AZ111: 109.65 | BA111: 1e+20 | BB111: 27.51 | BC111: 19.89 | BD111: 28.31 | BE111: 28.34 | BF111: 28.3 | BG111: 28.49 | BH111: 28.25 | BI111: 28.65 | BJ111: 40.43 | BK111: 12.81 | BL111: 21.91 | BM111: 0 | BN111: 2.495 | BO111: 26.08 | BP111: 9.337 | BQ111: -9.16 | BR111: 0.928 | BS111: 37.99 | BT111: 24.95 | BU111: 0 | BV111: 0 | BW111: 113.69 | BX111: 8.334 | BY111: 8.929 | BZ111: 117.68 | CA111: 174.24 | CB111: 115.4 | CC111: 25.51 | CD111: 1e+20 | CE111: 0 | CF111: 0 | CG111: 1e+20 | CH111: 1e+20 | CI111: 39.9577 | CJ111: 692.1 | CK111: 133.7 | CL111: -0.612 | CM111: 0 | CN111: 0 | CO111: 0 | CP111: 0 | CQ111: 0
A112: Log | B112: 102 | D112: 14.52 | E112: 14.437 | F112: 14.411 | G112: 0.43411 | H112: 3.0476 | I112: 0.74 | J112: 79.96 | K112: 4.148 | L112: 1.2685 | M112: 11.522 | N112: 30 | O112: 40.0558 | P112: 40 | Q112: 5.327 | R112: 358.339 | S112: 367.257 | T112: 0.0501 | U112: 8.272 | V112: 100.705 | W112: 0.163 | X112: 10 | Y112: 107.03 | Z112: 6.43 | AA112: 9.223 | AB112: 104.07 | AC112: 405 | AD112: 1.524 | AE112: 109.97 | AF112: 1.412 | AG112: 40.754 | AH112: 124.28 | AI112: 255.61 | AJ112: 2.918 | AK112: 17.86 | AL112: 9.5 | AM112: 695.6 | AN112: 697.2 | AO112: 695 | AP112: 0 | AQ112: 697.2 | AR112: 0.6 | AS112: 72 | AT112: 29.01 | AU112: 3.214 | AV112: 27.26 | AW112: 3.811 | AX112: 107.81 | AY112: 8.4 | AZ112: 109.66 | BA112: 1e+20 | BB112: 27.52 | BC112: 19.89 | BD112: 28.31 | BE112: 28.34 | BF112: 28.3 | BG112: 28.49 | BH112: 28.26 | BI112: 28.66 | BJ112: 40.43 | BK112: 12.81 | BL112: 21.91 | BM112: 0 | BN112: 2.494 | BO112: 26.08 | BP112: 9.337 | BQ112: -9.17 | BR112: 0.928 | BS112: 37.99 | BT112: 24.95 | BU112: 0 | BV112: 0 | BW112: 113.69 | BX112: 8.299 | BY112: 8.932 | BZ112: 117.67 | CA112: 174.83 | CB112: 115.35 | CC112: 25.51 | CD112: 1e+20 | CE112: 0 | CF112: 0 | CG112: 1e+20 | CH112: 1e+20 | CI112: 40.009 | CJ112: 697.2 | CK112: 133.6 | CL112: -0.612 | CM112: 0 | CN112: 0 | CO112: 0 | CP112: 0 | CQ112: 0
A113: Log | B113: 103 | D113: 14.47 | E113: 14.538 | F113: 14.54 | G113: 0.43724 | H113: 3.0479 | I113: 0.74 | J113: 79.96 | K113: 4.148 | L113: 1.2685 | M113: 11.505 | N113: 30 | O113: 39.9404 | P113: 40 | Q113: 5.332 | R113: 346.772 | S113: 358.087 | T113: 0.0501 | U113: 8.272 | V113: 100.705 | W113: 0.152 | X113: 10 | Y113: 107.01 | Z113: 6.432 | AA113: 9.223 | AB113: 104.01 | AC113: 404.98 | AD113: 1.523 | AE113: 110.09 | AF113: 1.411 | AG113: 40.788 | AH113: 124.27 | AI113: 255.58 | AJ113: 2.902 | AK113: 17.75 | AL113: 9.5 | AM113: 693.8 | AN113: 693.1 | AO113: 695 | AP113: 0 | AQ113: 693.7 | AR113: 0.2 | AS113: 72 | AT113: 29.01 | AU113: 3.214 | AV113: 27.26 | AW113: 3.811 | AX113: 107.81 | AY113: 8.405 | AZ113: 109.66 | BA113: 1e+20 | BB113: 27.55 | BC113: 19.89 | BD113: 28.31 | BE113: 28.34 | BF113: 28.31 | BG113: 28.49 | BH113: 28.27 | BI113: 28.66 | BJ113: 40.44 | BK113: 12.81 | BL113: 21.91 | BM113: 0 | BN113: 2.497 | BO113: 26.09 | BP113: 9.336 | BQ113: -9.18 | BR113: 0.928 | BS113: 37.99 | BT113: 24.95 | BU113: 0 | BV113: 0 | BW113: 113.7 | BX113: 8.285 | BY113: 8.933 | BZ113: 117.67 | CA113: 175.05 | CB113: 115.17 | CC113: 25.52 | CD113: 1e+20 | CE113: 0 | CF113: 0 | CG113: 1e+20 | CH113: 1e+20 | CI113: 39.9832 | CJ113: 693.1 | CK113: 133.7 | CL113: -0.612 | CM113: 0 | CN113: 0 | CO113: 0 | CP113: 0 | CQ113: 0
A114: Log | B114: 104 | D114: 14.52 | E114: 14.439 | F114: 14.38 | G114: 0.43383 | H114: 3.0475 | I114: 0.74 | J114: 79.96 | K114: 4.148 | L114: 1.2685 | M114: 11.492 | N114: 30 | O114: 40.0759 | P114: 40 | Q114: 5.319 | R114: 354.955 | S114: 379.627 | T114: 0.05 | U114: 8.272 | V114: 100.704 | W114: 0.168 | X114: 10 | Y114: 106.99 | Z114: 6.434 | AA114: 9.223 | AB114: 104.06 | AC114: 404.94 | AD114: 1.526 | AE114: 109.93 | AF114: 1.412 | AG114: 40.757 | AH114: 124.35 | AI114: 255.52 | AJ114: 2.945 | AK114: 17.84 | AL114: 9.5 | AM114: 701.7 | AN114: 697.8 | AO114: 695 | AP114: 0 | AQ114: 696.9 | AR114: 0.3 | AS114: 72 | AT114: 29 | AU114: 3.216 | AV114: 27.26 | AW114: 3.809 | AX114: 107.81 | AY114: 8.404 | AZ114: 109.66 | BA114: 1e+20 | BB114: 27.55 | BC114: 19.89 | BD114: 28.31 | BE114: 28.35 | BF114: 28.31 | BG114: 28.49 | BH114: 28.27 | BI114: 28.66 | BJ114: 40.43 | BK114: 12.8 | BL114: 21.92 | BM114: 0 | BN114: 2.498 | BO114: 26.09 | BP114: 9.337 | BQ114: -9.18 | BR114: 0.928 | BS114: 38 | BT114: 24.95 | BU114: 0 | BV114: 0 | BW114: 113.71 | BX114: 8.28 | BY114: 8.934 | BZ114: 117.67 | CA114: 175.13 | CB114: 115.11 | CC114: 25.52 | CD114: 1e+20 | CE114: 0 | CF114: 0 | CG114: 1e+20 | CH114: 1e+20 | CI114: 40.0084 | CJ114: 697.6 | CK114: 133.6 | CL114: -0.612 | CM114: 0 | CN114: 0 | CO114: 0 | CP114: 0 | CQ114: 0
A115: Log | B115: 105 | D115: 14.47 | E115: 14.46 | F115: 14.426 | G115: 0.43497 | H115: 3.0476 | I115: 0.74 | J115: 79.97 | K115: 4.148 | L115: 1.2685 | M115: 11.474 | N115: 30 | O115: 40.0063 | P115: 40 | Q115: 5.332 | R115: 344.517 | S115: 355.869 | T115: 0.0498 | U115: 8.272 | V115: 100.705 | W115: 0.184 | X115: 10 | Y115: 106.98 | Z115: 6.434 | AA115: 9.223 | AB115: 104.02 | AC115: 405.01 | AD115: 1.529 | AE115: 110.03 | AF115: 1.412 | AG115: 40.656 | AH115: 124.7 | AI115: 255.27 | AJ115: 2.878 | AK115: 17.8 | AL115: 9.5 | AM115: 686.9 | AN115: 695.7 | AO115: 695 | AP115: 0 | AQ115: 697 | AR115: 0.2 | AS115: 72 | AT115: 29.01 | AU115: 3.214 | AV115: 27.26 | AW115: 3.804 | AX115: 107.82 | AY115: 8.393 | AZ115: 109.66 | BA115: 1e+20 | BB115: 27.55 | BC115: 19.89 | BD115: 28.31 | BE115: 28.35 | BF115: 28.32 | BG115: 28.5 | BH115: 28.27 | BI115: 28.67 | BJ115: 40.43 | BK115: 12.81 | BL115: 21.92 | BM115: 0 | BN115: 2.497 | BO115: 26.09 | BP115: 9.336 | BQ115: -9.17 | BR115: 0.928 | BS115: 38 | BT115: 24.95 | BU115: 0 | BV115: 0 | BW115: 113.72 | BX115: 8.279 | BY115: 8.932 | BZ115: 117.67 | CA115: 175.16 | CB115: 115.33 | CC115: 25.52 | CD115: 1e+20 | CE115: 0 | CF115: 0 | CG115: 1e+20 | CH115: 1e+20 | CI115: 40.0445 | CJ115: 695.6 | CK115: 133.6 | CL115: -0.612 | CM115: 0 | CN115: 0 | CO115: 0 | CP115: 0 | CQ115: 0
A116: Log | B116: 106 | D116: 14.46 | E116: 14.53 | F116: 14.489 | G116: 0.43679 | H116: 3.0478 | I116: 0.74 | J116: 79.97 | K116: 4.148 | L116: 1.2685 | M116: 11.465 | N116: 30 | O116: 39.9707 | P116: 40 | Q116: 5.334 | R116: 344.637 | S116: 349.393 | T116: 0.0501 | U116: 8.272 | V116: 100.705 | W116: 0.179 | X116: 10 | Y116: 106.96 | Z116: 6.437 | AA116: 9.223 | AB116: 104.02 | AC116: 405.01 | AD116: 1.528 | AE116: 109.98 | AF116: 1.411 | AG116: 40.84 | AH116: 124.33 | AI116: 255.14 | AJ116: 2.929 | AK116: 17.76 | AL116: 9.5 | AM116: 699.7 | AN116: 693.8 | AO116: 695 | AP116: 0 | AQ116: 692.4 | AR116: 0 | AS116: 72 | AT116: 29 | AU116: 3.216 | AV116: 27.24 | AW116: 3.81 | AX116: 107.82 | AY116: 8.393 | AZ116: 109.66 | BA116: 1e+20 | BB116: 27.51 | BC116: 19.88 | BD116: 28.31 | BE116: 28.35 | BF116: 28.32 | BG116: 28.49 | BH116: 28.27 | BI116: 28.68 | BJ116: 40.43 | BK116: 12.81 | BL116: 21.91 | BM116: 0 | BN116: 2.494 | BO116: 26.09 | BP116: 9.335 | BQ116: -9.17 | BR116: 0.928 | BS116: 38 | BT116: 24.95 | BU116: 0 | BV116: 0 | BW116: 113.72 | BX116: 8.28 | BY116: 8.935 | BZ116: 117.67 | CA116: 175.14 | CB116: 115.55 | CC116: 25.51 | CD116: 1e+20 | CE116: 0 | CF116: 0 | CG116: 1e+20 | CH116: 1e+20 | CI116: 39.9841 | CJ116: 693.7 | CK116: 133.6 | CL116: -0.612 | CM116: 0 | CN116: 0 | CO116: 0 | CP116: 0 | CQ116: 0
A117: Log | B117: 107 | D117: 14.52 | E117: 14.388 | F117: 14.403 | G117: 0.4336 | H117: 3.0474 | I117: 0.74 | J117: 79.98 | K117: 4.148 | L117: 1.2685 | M117: 11.46 | N117: 30 | O117: 40.0722 | P117: 40 | Q117: 5.306 | R117: 357.801 | S117: 359.31 | T117: 0.0498 | U117: 8.271 | V117: 100.705 | W117: 0.191 | X117: 10 | Y117: 106.94 | Z117: 6.439 | AA117: 9.222 | AB117: 104.06 | AC117: 404.91 | AD117: 1.532 | AE117: 109.99 | AF117: 1.412 | AG117: 40.703 | AH117: 124.62 | AI117: 255.52 | AJ117: 2.915 | AK117: 17.86 | AL117: 9.5 | AM117: 694.8 | AN117: 697.7 | AO117: 695 | AP117: 0 | AQ117: 696.9 | AR117: 0.4 | AS117: 72 | AT117: 29 | AU117: 3.216 | AV117: 27.23 | AW117: 3.808 | AX117: 107.82 | AY117: 8.395 | AZ117: 109.66 | BA117: 1e+20 | BB117: 27.51 | BC117: 19.89 | BD117: 28.31 | BE117: 28.35 | BF117: 28.31 | BG117: 28.49 | BH117: 28.27 | BI117: 28.67 | BJ117: 40.43 | BK117: 12.82 | BL117: 21.91 | BM117: 0 | BN117: 2.493 | BO117: 26.09 | BP117: 9.336 | BQ117: -9.17 | BR117: 0.928 | BS117: 38 | BT117: 24.95 | BU117: 0 | BV117: 0 | BW117: 113.73 | BX117: 8.316 | BY117: 8.935 | BZ117: 117.69 | CA117: 174.53 | CB117: 115.53 | CC117: 25.51 | CD117: 1e+20 | CE117: 0 | CF117: 0 | CG117: 1e+20 | CH117: 1e+20 | CI117: 40.0329 | CJ117: 697.7 | CK117: 133.6 | CL117: 0.393 | CM117: 0 | CN117: 0 | CO117: 0 | CP117: 0 | CQ117: 0
A118: Log | B118: 108 | D118: 14.46 | E118: 14.459 | F118: 14.527 | G118: 0.43746 | H118: 3.0478 | I118: 0.74 | J118: 79.98 | K118: 4.148 | L118: 1.2685 | M118: 11.45 | N118: 30 | O118: 39.9405 | P118: 40 | Q118: 5.31 | R118: 336.133 | S118: 346.585 | T118: 0.0498 | U118: 8.27 | V118: 100.705 | W118: 0.196 | X118: 10 | Y118: 106.92 | Z118: 6.441 | AA118: 9.222 | AB118: 104.01 | AC118: 404.93 | AD118: 1.538 | AE118: 110 | AF118: 1.412 | AG118: 40.807 | AH118: 124.43 | AI118: 255.87 | AJ118: 2.896 | AK118: 17.73 | AL118: 9.5 | AM118: 692.4 | AN118: 692.7 | AO118: 695 | AP118: 0 | AQ118: 693.8 | AR118: 0 | AS118: 72 | AT118: 29 | AU118: 3.218 | AV118: 27.24 | AW118: 3.806 | AX118: 107.83 | AY118: 8.386 | AZ118: 109.67 | BA118: 1e+20 | BB118: 27.52 | BC118: 19.89 | BD118: 28.3 | BE118: 28.35 | BF118: 28.31 | BG118: 28.49 | BH118: 28.27 | BI118: 28.67 | BJ118: 40.44 | BK118: 12.81 | BL118: 21.91 | BM118: 0 | BN118: 2.495 | BO118: 26.08 | BP118: 9.338 | BQ118: -9.19 | BR118: 0.928 | BS118: 38 | BT118: 24.94 | BU118: 0 | BV118: 0 | BW118: 113.74 | BX118: 8.39 | BY118: 8.936 | BZ118: 117.69 | CA118: 173.33 | CB118: 115.3 | CC118: 25.52 | CD118: 1e+20 | CE118: 0 | CF118: 0 | CG118: 1e+20 | CH118: 1e+20 | CI118: 39.9942 | CJ118: 692.6 | CK118: 133.7 | CL118: 0.393 | CM118: 0 | CN118: 0 | CO118: 0 | CP118: 0 | CQ118: 0
A119: Log | B119: 109 | D119: 14.51 | E119: 14.537 | F119: 14.471 | G119: 0.43606 | H119: 3.0477 | I119: 0.74 | J119: 79.98 | K119: 4.148 | L119: 1.2685 | M119: 11.447 | N119: 30 | O119: 39.9932 | P119: 40 | Q119: 5.297 | R119: 346.248 | S119: 370.74 | T119: 0.0497 | U119: 8.268 | V119: 100.705 | W119: 0.184 | X119: 10 | Y119: 106.95 | Z119: 6.439 | AA119: 9.222 | AB119: 104.03 | AC119: 404.97 | AD119: 1.54 | AE119: 109.93 | AF119: 1.412 | AG119: 40.838 | AH119: 124.25 | AI119: 254.98 | AJ119: 2.909 | AK119: 17.81 | AL119: 9.5 | AM119: 694.5 | AN119: 694.8 | AO119: 695 | AP119: 0 | AQ119: 693.9 | AR119: 0.2 | AS119: 72 | AT119: 29 | AU119: 3.219 | AV119: 27.24 | AW119: 3.808 | AX119: 107.84 | AY119: 8.382 | AZ119: 109.67 | BA119: 1e+20 | BB119: 27.51 | BC119: 19.89 | BD119: 28.3 | BE119: 28.34 | BF119: 28.31 | BG119: 28.49 | BH119: 28.27 | BI119: 28.67 | BJ119: 40.43 | BK119: 12.8 | BL119: 21.91 | BM119: 0 | BN119: 2.494 | BO119: 26.07 | BP119: 9.339 | BQ119: -9.19 | BR119: 0.928 | BS119: 38 | BT119: 24.94 | BU119: 0 | BV119: 0 | BW119: 113.74 | BX119: 8.388 | BY119: 8.939 | BZ119: 117.67 | CA119: 173.39 | CB119: 115.33 | CC119: 25.52 | CD119: 1e+20 | CE119: 0 | CF119: 0 | CG119: 1e+20 | CH119: 1e+20 | CI119: 39.983 | CJ119: 694.7 | CK119: 133.6 | CL119: 0.393 | CM119: 0 | CN119: 0 | CO119: 0 | CP119: 0 | CQ119: 0
A120: Log | B120: 110 | D120: 14.53 | E120: 14.398 | F120: 14.478 | G120: 0.43508 | H120: 3.0476 | I120: 0.74 | J120: 79.98 | K120: 4.148 | L120: 1.2685 | M120: 11.456 | N120: 30 | O120: 40.0251 | P120: 40 | Q120: 5.306 | R120: 358.574 | S120: 365.133 | T120: 0.05 | U120: 8.269 | V120: 100.705 | W120: 0.188 | X120: 10 | Y120: 107.01 | Z120: 6.432 | AA120: 9.222 | AB120: 104.02 | AC120: 404.94 | AD120: 1.543 | AE120: 109.94 | AF120: 1.413 | AG120: 40.786 | AH120: 124.41 | AI120: 255.34 | AJ120: 2.926 | AK120: 17.81 | AL120: 9.5 | AM120: 698.2 | AN120: 695.9 | AO120: 695 | AP120: 0 | AQ120: 694.6 | AR120: 0.4 | AS120: 72 | AT120: 29 | AU120: 3.222 | AV120: 27.23 | AW120: 3.808 | AX120: 107.84 | AY120: 8.383 | AZ120: 109.67 | BA120: 1e+20 | BB120: 27.51 | BC120: 19.89 | BD120: 28.29 | BE120: 28.34 | BF120: 28.31 | BG120: 28.48 | BH120: 28.26 | BI120: 28.66 | BJ120: 40.43 | BK120: 12.8 | BL120: 21.91 | BM120: 0 | BN120: 2.494 | BO120: 26.08 | BP120: 9.339 | BQ120: -9.18 | BR120: 0.928 | BS120: 38 | BT120: 24.94 | BU120: 0 | BV120: 0 | BW120: 113.74 | BX120: 8.357 | BY120: 8.942 | BZ120: 117.66 | CA120: 173.93 | CB120: 115.44 | CC120: 25.51 | CD120: 1e+20 | CE120: 0 | CF120: 0 | CG120: 1e+20 | CH120: 1e+20 | CI120: 39.999 | CJ120: 695.9 | CK120: 133.6 | CL120: 0.393 | CM120: 0 | CN120: 0 | CO120: 0 | CP120: 0 | CQ120: 0
A121: Log | B121: 111 | D121: 14.48 | E121: 14.454 | F121: 14.398 | G121: 0.4361 | H121: 3.0477 | I121: 0.74 | J121: 79.98 | K121: 4.148 | L121: 1.2685 | M121: 11.461 | N121: 30 | O121: 39.9639 | P121: 40 | Q121: 5.279 | R121: 340.936 | S121: 356.097 | T121: 0.0502 | U121: 8.27 | V121: 100.706 | W121: 0.162 | X121: 9.999 | Y121: 107.04 | Z121: 6.429 | AA121: 9.222 | AB121: 104.01 | AC121: 405.03 | AD121: 1.541 | AE121: 110.07 | AF121: 1.413 | AG121: 40.739 | AH121: 124.54 | AI121: 255.38 | AJ121: 2.876 | AK121: 17.79 | AL121: 9.5 | AM121: 687.2 | AN121: 694.3 | AO121: 695 | AP121: 0 | AQ121: 695.8 | AR121: 0.3 | AS121: 72 | AT121: 29 | AU121: 3.223 | AV121: 27.22 | AW121: 3.815 | AX121: 107.83 | AY121: 8.388 | AZ121: 109.68 | BA121: 1e+20 | BB121: 27.49 | BC121: 19.89 | BD121: 28.29 | BE121: 28.34 | BF121: 28.3 | BG121: 28.48 | BH121: 28.25 | BI121: 28.66 | BJ121: 40.43 | BK121: 12.81 | BL121: 21.91 | BM121: 0 | BN121: 2.496 | BO121: 26.07 | BP121: 9.339 | BQ121: -9.17 | BR121: 0.928 | BS121: 37.99 | BT121: 24.94 | BU121: 0 | BV121: 0 | BW121: 113.73 | BX121: 8.324 | BY121: 8.946 | BZ121: 117.67 | CA121: 174.49 | CB121: 115.42 | CC121: 25.51 | CD121: 1e+20 | CE121: 0 | CF121: 0 | CG121: 1e+20 | CH121: 1e+20 | CI121: 40.0112 | CJ121: 694.4 | CK121: 133.7 | CL121: 0.393 | CM121: 0 | CN121: 0 | CO121: 0 | CP121: 0 | CQ121: 0
A122: Log | B122: 112 | D122: 14.47 | E122: 14.581 | F122: 14.518 | G122: 0.43726 | H122: 3.0479 | I122: 0.74 | J122: 79.98 | K122: 4.148 | L122: 1.2685 | M122: 11.445 | N122: 30 | O122: 39.9622 | P122: 40 | Q122: 5.26 | R122: 343.194 | S122: 348.12 | T122: 0.0505 | U122: 8.272 | V122: 100.704 | W122: 0.205 | X122: 10 | Y122: 107.06 | Z122: 6.427 | AA122: 9.222 | AB122: 104.02 | AC122: 405.02 | AD122: 1.539 | AE122: 110.04 | AF122: 1.412 | AG122: 40.887 | AH122: 124.14 | AI122: 255.05 | AJ122: 2.928 | AK122: 17.76 | AL122: 9.5 | AM122: 699.7 | AN122: 693.4 | AO122: 695 | AP122: 0 | AQ122: 691.5 | AR122: 0.1 | AS122: 72 | AT122: 29 | AU122: 3.219 | AV122: 27.22 | AW122: 3.809 | AX122: 107.83 | AY122: 8.39 | AZ122: 109.67 | BA122: 1e+20 | BB122: 27.5 | BC122: 19.89 | BD122: 28.27 | BE122: 28.33 | BF122: 28.3 | BG122: 28.48 | BH122: 28.25 | BI122: 28.66 | BJ122: 40.44 | BK122: 12.81 | BL122: 21.91 | BM122: 0 | BN122: 2.496 | BO122: 26.07 | BP122: 9.341 | BQ122: -9.17 | BR122: 0.928 | BS122: 38 | BT122: 24.95 | BU122: 0 | BV122: 0 | BW122: 113.73 | BX122: 8.302 | BY122: 8.949 | BZ122: 117.69 | CA122: 174.86 | CB122: 115.45 | CC122: 25.52 | CD122: 1e+20 | CE122: 0 | CF122: 0 | CG122: 1e+20 | CH122: 1e+20 | CI122: 39.9514 | CJ122: 693.5 | CK122: 133.7 | CL122: 0.393 | CM122: 0 | CN122: 0 | CO122: 0 | CP122: 0 | CQ122: 0
A123: Log | B123: 113 | D123: 14.53 | E123: 14.48 | F123: 14.426 | G123: 0.43271 | H123: 3.0474 | I123: 0.74 | J123: 79.98 | K123: 4.148 | L123: 1.2685 | M123: 11.457 | N123: 30 | O123: 40.0945 | P123: 40 | Q123: 5.273 | R123: 373.164 | S123: 403.253 | T123: 0.0502 | U123: 8.273 | V123: 100.705 | W123: 0.151 | X123: 9.997 | Y123: 107.08 | Z123: 6.425 | AA123: 9.222 | AB123: 104.06 | AC123: 405.01 | AD123: 1.538 | AE123: 109.95 | AF123: 1.413 | AG123: 40.713 | AH123: 124.62 | AI123: 255.61 | AJ123: 2.952 | AK123: 17.88 | AL123: 9.5 | AM123: 703.2 | AN123: 699.1 | AO123: 695 | AP123: 0 | AQ123: 698.1 | AR123: 0.5 | AS123: 72 | AT123: 29 | AU123: 3.223 | AV123: 27.21 | AW123: 3.797 | AX123: 107.84 | AY123: 8.382 | AZ123: 109.68 | BA123: 1e+20 | BB123: 27.53 | BC123: 19.9 | BD123: 28.27 | BE123: 28.33 | BF123: 28.3 | BG123: 28.48 | BH123: 28.25 | BI123: 28.65 | BJ123: 40.43 | BK123: 12.8 | BL123: 21.91 | BM123: 0 | BN123: 2.496 | BO123: 26.07 | BP123: 9.34 | BQ123: -9.18 | BR123: 0.928 | BS123: 38.01 | BT123: 24.95 | BU123: 0 | BV123: 0 | BW123: 113.72 | BX123: 8.31 | BY123: 8.955 | BZ123: 117.69 | CA123: 174.73 | CB123: 115.5 | CC123: 25.52 | CD123: 1e+20 | CE123: 0 | CF123: 0 | CG123: 1e+20 | CH123: 1e+20 | CI123: 40.0144 | CJ123: 699.2 | CK123: 133.6 | CL123: 0.393 | CM123: 0 | CN123: 0 | CO123: 0 | CP123: 0 | CQ123: 0
A124: Log | B124: 114 | D124: 14.49 | E124: 14.456 | F124: 14.443 | G124: 0.43403 | H124: 3.0475 | I124: 0.74 | J124: 79.98 | K124: 4.148 | L124: 1.2685 | M124: 11.457 | N124: 30 | O124: 40.0304 | P124: 40 | Q124: 5.29 | R124: 362.993 | S124: 381.377 | T124: 0.05 | U124: 8.274 | V124: 100.705 | W124: 0.152 | X124: 10 | Y124: 107.11 | Z124: 6.421 | AA124: 9.222 | AB124: 104.02 | AC124: 405.02 | AD124: 1.537 | AE124: 110.02 | AF124: 1.413 | AG124: 40.585 | AH124: 125.11 | AI124: 255.54 | AJ124: 2.889 | AK124: 17.84 | AL124: 9.5 | AM124: 689.3 | AN124: 696.8 | AO124: 695 | AP124: 0 | AQ124: 699 | AR124: 0.3 | AS124: 72 | AT124: 29 | AU124: 3.222 | AV124: 27.2 | AW124: 3.811 | AX124: 107.84 | AY124: 8.381 | AZ124: 109.68 | BA124: 1e+20 | BB124: 27.53 | BC124: 19.9 | BD124: 28.26 | BE124: 28.33 | BF124: 28.3 | BG124: 28.47 | BH124: 28.24 | BI124: 28.65 | BJ124: 40.43 | BK124: 12.79 | BL124: 21.92 | BM124: 0 | BN124: 2.497 | BO124: 26.08 | BP124: 9.339 | BQ124: -9.18 | BR124: 0.928 | BS124: 37.99 | BT124: 24.95 | BU124: 0 | BV124: 0 | BW124: 113.72 | BX124: 8.298 | BY124: 8.958 | BZ124: 117.67 | CA124: 174.94 | CB124: 115.53 | CC124: 25.51 | CD124: 1e+20 | CE124: 0 | CF124: 0 | CG124: 1e+20 | CH124: 1e+20 | CI124: 40.0612 | CJ124: 696.8 | CK124: 133.6 | CL124: 0.393 | CM124: 0 | CN124: 0 | CO124: 0 | CP124: 0 | CQ124: 0
A125: Log | B125: 115 | D125: 14.49 | E125: 14.491 | F125: 14.418 | G125: 0.43663 | H125: 3.0477 | I125: 0.74 | J125: 79.98 | K125: 4.149 | L125: 1.2708 | M125: 11.456 | N125: 30 | O125: 39.9696 | P125: 40 | Q125: 5.335 | R125: 367.617 | S125: 352.812 | T125: 0.05 | U125: 8.274 | V125: 100.705 | W125: 0.177 | X125: 10 | Y125: 107.09 | Z125: 6.423 | AA125: 9.221 | AB125: 104.02 | AC125: 405.04 | AD125: 1.533 | AE125: 109.96 | AF125: 1.413 | AG125: 40.775 | AH125: 124.76 | AI125: 255.23 | AJ125: 2.915 | AK125: 17.77 | AL125: 9.5 | AM125: 696.4 | AN125: 694.3 | AO125: 695 | AP125: 0 | AQ125: 692.8 | AR125: 0.1 | AS125: 72 | AT125: 29 | AU125: 3.217 | AV125: 27.2 | AW125: 3.815 | AX125: 107.84 | AY125: 8.379 | AZ125: 109.68 | BA125: 1e+20 | BB125: 27.52 | BC125: 19.89 | BD125: 28.27 | BE125: 28.33 | BF125: 28.3 | BG125: 28.47 | BH125: 28.25 | BI125: 28.65 | BJ125: 40.43 | BK125: 12.79 | BL125: 21.92 | BM125: 0 | BN125: 2.497 | BO125: 26.07 | BP125: 9.339 | BQ125: -9.18 | BR125: 0.928 | BS125: 37.99 | BT125: 24.94 | BU125: 0 | BV125: 0 | BW125: 113.71 | BX125: 8.302 | BY125: 8.964 | BZ125: 117.67 | CA125: 174.87 | CB125: 115.45 | CC125: 25.52 | CD125: 1e+20 | CE125: 0 | CF125: 0 | CG125: 1e+20 | CH125: 1e+20 | CI125: 39.9991 | CJ125: 694.4 | CK125: 133.6 | CL125: 0.393 | CM125: 0 | CN125: 0 | CO125: 0 | CP125: 0 | CQ125: 0
A126: Log | B126: 116 | D126: 14.5 | E126: 14.348 | F126: 14.435 | G126: 0.43375 | H126: 3.0473 | I126: 0.74 | J126: 79.98 | K126: 4.149 | L126: 1.2708 | M126: 11.451 | N126: 30 | O126: 40.0811 | P126: 40 | Q126: 5.302 | R126: 371.762 | S126: 343.442 | T126: 0.0498 | U126: 8.273 | V126: 100.704 | W126: 0.182 | X126: 10 | Y126: 107.04 | Z126: 6.428 | AA126: 9.221 | AB126: 104.07 | AC126: 405 | AD126: 1.532 | AE126: 109.98 | AF126: 1.414 | AG126: 40.693 | AH126: 124.82 | AI126: 255.97 | AJ126: 2.932 | AK126: 17.87 | AL126: 9.5 | AM126: 698.7 | AN126: 698.4 | AO126: 695 | AP126: 0 | AQ126: 698.1 | AR126: 0.4 | AS126: 72 | AT126: 29 | AU126: 3.224 | AV126: 27.19 | AW126: 3.812 | AX126: 107.84 | AY126: 8.38 | AZ126: 109.68 | BA126: 1e+20 | BB126: 27.51 | BC126: 19.89 | BD126: 28.28 | BE126: 28.34 | BF126: 28.31 | BG126: 28.48 | BH126: 28.25 | BI126: 28.66 | BJ126: 40.43 | BK126: 12.81 | BL126: 21.91 | BM126: 0 | BN126: 2.496 | BO126: 26.07 | BP126: 9.341 | BQ126: -9.17 | BR126: 0.928 | BS126: 37.99 | BT126: 24.94 | BU126: 0 | BV126: 0 | BW126: 113.71 | BX126: 8.297 | BY126: 8.968 | BZ126: 117.68 | CA126: 174.95 | CB126: 115.52 | CC126: 25.52 | CD126: 1e+20 | CE126: 0 | CF126: 0 | CG126: 1e+20 | CH126: 1e+20 | CI126: 40.0341 | CJ126: 698.4 | CK126: 133.6 | CL126: 0.393 | CM126: 0 | CN126: 0 | CO126: 0 | CP126: 0 | CQ126: 0
A127: Log | B127: 117 | D127: 14.45 | E127: 14.485 | F127: 14.541 | G127: 0.43847 | H127: 3.0478 | I127: 0.74 | J127: 79.98 | K127: 4.149 | L127: 1.2708 | M127: 11.449 | N127: 30 | O127: 39.9123 | P127: 40 | Q127: 5.306 | R127: 344.505 | S127: 354.463 | T127: 0.0496 | U127: 8.271 | V127: 100.705 | W127: 0.171 | X127: 10 | Y127: 106.99 | Z127: 6.433 | AA127: 9.221 | AB127: 104.01 | AC127: 405.02 | AD127: 1.529 | AE127: 110.06 | AF127: 1.413 | AG127: 40.758 | AH127: 124.66 | AI127: 255.49 | AJ127: 2.875 | AK127: 17.73 | AL127: 9.5 | AM127: 687.9 | AN127: 692.4 | AO127: 695 | AP127: 0 | AQ127: 692.9 | AR127: 0.1 | AS127: 72 | AT127: 28.99 | AU127: 3.225 | AV127: 27.19 | AW127: 3.8 | AX127: 107.85 | AY127: 8.377 | AZ127: 109.68 | BA127: 1e+20 | BB127: 27.5 | BC127: 19.89 | BD127: 28.29 | BE127: 28.35 | BF127: 28.32 | BG127: 28.48 | BH127: 28.26 | BI127: 28.67 | BJ127: 40.43 | BK127: 12.81 | BL127: 21.91 | BM127: 0 | BN127: 2.494 | BO127: 26.07 | BP127: 9.341 | BQ127: -9.17 | BR127: 0.928 | BS127: 38.01 | BT127: 24.94 | BU127: 0 | BV127: 0 | BW127: 113.7 | BX127: 8.296 | BY127: 8.974 | BZ127: 117.68 | CA127: 174.97 | CB127: 115.53 | CC127: 25.51 | CD127: 1e+20 | CE127: 0 | CF127: 0 | CG127: 1e+20 | CH127: 1e+20 | CI127: 39.9962 | CJ127: 692.3 | CK127: 133.6 | CL127: 0.393 | CM127: 0 | CN127: 0 | CO127: 0 | CP127: 0 | CQ127: 0
A128: Log | B128: 118 | D128: 14.52 | E128: 14.492 | F128: 14.433 | G128: 0.43669 | H128: 3.0476 | I128: 0.74 | J128: 79.98 | K128: 4.149 | L128: 1.2708 | M128: 11.459 | N128: 30 | O128: 40.0028 | P128: 40 | Q128: 5.268 | R128: 359.061 | S128: 370.892 | T128: 0.0494 | U128: 8.268 | V128: 100.704 | W128: 0.194 | X128: 10 | Y128: 106.98 | Z128: 6.435 | AA128: 9.221 | AB128: 104.05 | AC128: 404.95 | AD128: 1.53 | AE128: 109.93 | AF128: 1.414 | AG128: 40.854 | AH128: 124.36 | AI128: 255.6 | AJ128: 2.928 | AK128: 17.8 | AL128: 9.5 | AM128: 699.1 | AN128: 695.3 | AO128: 695 | AP128: 0 | AQ128: 693.6 | AR128: 0.3 | AS128: 72 | AT128: 28.99 | AU128: 3.228 | AV128: 27.18 | AW128: 3.802 | AX128: 107.86 | AY128: 8.366 | AZ128: 109.68 | BA128: 1e+20 | BB128: 27.53 | BC128: 19.89 | BD128: 28.3 | BE128: 28.36 | BF128: 28.32 | BG128: 28.49 | BH128: 28.27 | BI128: 28.68 | BJ128: 40.42 | BK128: 12.8 | BL128: 21.91 | BM128: 0 | BN128: 2.495 | BO128: 26.07 | BP128: 9.34 | BQ128: -9.17 | BR128: 0.928 | BS128: 38.01 | BT128: 24.94 | BU128: 0 | BV128: 0 | BW128: 113.7 | BX128: 8.3 | BY128: 8.976 | BZ128: 117.68 | CA128: 174.91 | CB128: 115.56 | CC128: 25.51 | CD128: 1e+20 | CE128: 0 | CF128: 0 | CG128: 1e+20 | CH128: 1e+20 | CI128: 39.9682 | CJ128: 695.2 | CK128: 133.6 | CL128: 0.393 | CM128: 0 | CN128: 0 | CO128: 0 | CP128: 0 | CQ128: 0
A129: Log | B129: 119 | D129: 14.5 | E129: 14.371 | F129: 14.426 | G129: 0.43551 | H129: 3.0475 | I129: 0.74 | J129: 79.97 | K129: 4.149 | L129: 1.2708 | M129: 11.468 | N129: 30 | O129: 40.0241 | P129: 40 | Q129: 5.341 | R129: 358.064 | S129: 354.259 | T129: 0.0493 | U129: 8.265 | V129: 100.704 | W129: 0.18 | X129: 10 | Y129: 106.99 | Z129: 6.434 | AA129: 9.221 | AB129: 104.04 | AC129: 404.91 | AD129: 1.535 | AE129: 109.97 | AF129: 1.414 | AG129: 40.723 | AH129: 124.64 | AI129: 255.53 | AJ129: 2.907 | AK129: 17.84 | AL129: 9.5 | AM129: 693.5 | AN129: 696.4 | AO129: 695 | AP129: 0 | AQ129: 695.9 | AR129: 0.5 | AS129: 72 | AT129: 28.99 | AU129: 3.235 | AV129: 27.18 | AW129: 3.81 | AX129: 107.85 | AY129: 8.372 | AZ129: 109.69 | BA129: 1e+20 | BB129: 27.54 | BC129: 19.89 | BD129: 28.31 | BE129: 28.37 | BF129: 28.33 | BG129: 28.49 | BH129: 28.27 | BI129: 28.68 | BJ129: 40.42 | BK129: 12.8 | BL129: 21.91 | BM129: 0 | BN129: 2.493 | BO129: 26.07 | BP129: 9.341 | BQ129: -9.17 | BR129: 0.928 | BS129: 38 | BT129: 24.94 | BU129: 0 | BV129: 0 | BW129: 113.7 | BX129: 8.307 | BY129: 8.982 | BZ129: 117.68 | CA129: 174.79 | CB129: 115.56 | CC129: 25.51 | CD129: 1e+20 | CE129: 0 | CF129: 0 | CG129: 1e+20 | CH129: 1e+20 | CI129: 40.0085 | CJ129: 696.4 | CK129: 133.6 | CL129: 0.393 | CM129: 0 | CN129: 0 | CO129: 0 | CP129: 0 | CQ129: 0
A130: Log | B130: 120 | D130: 14.45 | E130: 14.47 | F130: 14.487 | G130: 0.43617 | H130: 3.0476 | I130: 0.74 | J130: 79.96 | K130: 4.149 | L130: 1.2708 | M130: 11.471 | N130: 30 | O130: 39.9992 | P130: 40 | Q130: 5.364 | R130: 344.138 | S130: 349.852 | T130: 0.0497 | U130: 8.264 | V130: 100.705 | W130: 0.189 | X130: 10 | Y130: 106.97 | Z130: 6.435 | AA130: 9.221 | AB130: 104.02 | AC130: 404.96 | AD130: 1.541 | AE130: 109.98 | AF130: 1.414 | AG130: 40.758 | AH130: 124.64 | AI130: 255.31 | AJ130: 2.917 | AK130: 17.81 | AL130: 9.5 | AM130: 696.5 | AN130: 695.5 | AO130: 695 | AP130: 0 | AQ130: 694.5 | AR130: 0.5 | AS130: 72 | AT130: 29 | AU130: 3.225 | AV130: 27.2 | AW130: 3.812 | AX130: 107.85 | AY130: 8.377 | AZ130: 109.7 | BA130: 1e+20 | BB130: 27.54 | BC130: 19.89 | BD130: 28.32 | BE130: 28.37 | BF130: 28.34 | BG130: 28.49 | BH130: 28.27 | BI130: 28.69 | BJ130: 40.43 | BK130: 12.8 | BL130: 21.91 | BM130: 0 | BN130: 2.496 | BO130: 26.06 | BP130: 9.343 | BQ130: -9.18 | BR130: 0.928 | BS130: 37.99 | BT130: 24.94 | BU130: 0 | BV130: 0 | BW130: 113.7 | BX130: 8.3 | BY130: 8.984 | BZ130: 117.69 | CA130: 174.91 | CB130: 115.55 | CC130: 25.51 | CD130: 1e+20 | CE130: 0 | CF130: 0 | CG130: 1e+20 | CH130: 1e+20 | CI130: 39.9987 | CJ130: 695.6 | CK130: 133.6 | CL130: 0.393 | CM130: 0 | CN130: 0 | CO130: 0 | CP130: 0 | CQ130: 0
A131: Log | B131: 121 | D131: 14.5 | E131: 14.489 | F131: 14.5 | G131: 0.43739 | H131: 3.0477 | I131: 0.74 | J131: 79.96 | K131: 4.149 | L131: 1.2708 | M131: 11.468 | N131: 30 | O131: 39.9642 | P131: 40 | Q131: 5.254 | R131: 356.963 | S131: 360.021 | T131: 0.05 | U131: 8.264 | V131: 100.705 | W131: 0.195 | X131: 10 | Y131: 106.96 | Z131: 6.437 | AA131: 9.221 | AB131: 104.02 | AC131: 404.97 | AD131: 1.543 | AE131: 110 | AF131: 1.414 | AG131: 40.804 | AH131: 124.53 | AI131: 255.73 | AJ131: 2.911 | AK131: 17.77 | AL131: 9.5 | AM131: 695.6 | AN131: 694.1 | AO131: 695 | AP131: 0 | AQ131: 693 | AR131: 0.4 | AS131: 72 | AT131: 28.99 | AU131: 3.227 | AV131: 27.21 | AW131: 3.809 | AX131: 107.86 | AY131: 8.371 | AZ131: 109.7 | BA131: 1e+20 | BB131: 27.52 | BC131: 19.89 | BD131: 28.33 | BE131: 28.37 | BF131: 28.35 | BG131: 28.5 | BH131: 28.28 | BI131: 28.69 | BJ131: 40.43 | BK131: 12.81 | BL131: 21.92 | BM131: 0 | BN131: 2.496 | BO131: 26.06 | BP131: 9.342 | BQ131: -9.18 | BR131: 0.928 | BS131: 38 | BT131: 24.94 | BU131: 0 | BV131: 0 | BW131: 113.7 | BX131: 8.299 | BY131: 8.988 | BZ131: 117.7 | CA131: 174.93 | CB131: 115.51 | CC131: 25.52 | CD131: 1e+20 | CE131: 0 | CF131: 0 | CG131: 1e+20 | CH131: 1e+20 | CI131: 39.9789 | CJ131: 694.1 | CK131: 133.6 | CL131: 0.393 | CM131: 0 | CN131: 0 | CO131: 0 | CP131: 0 | CQ131: 0
A132: Log | B132: 122 | D132: 14.52 | E132: 14.364 | F132: 14.505 | G132: 0.43565 | H132: 3.0476 | I132: 0.74 | J132: 79.95 | K132: 4.149 | L132: 1.2708 | M132: 11.472 | N132: 30 | O132: 40.0248 | P132: 40 | Q132: 5.308 | R132: 364.893 | S132: 363.886 | T132: 0.0504 | U132: 8.266 | V132: 100.705 | W132: 0.194 | X132: 10 | Y132: 106.95 | Z132: 6.437 | AA132: 9.22 | AB132: 104.04 | AC132: 405.04 | AD132: 1.539 | AE132: 109.94 | AF132: 1.415 | AG132: 40.799 | AH132: 124.51 | AI132: 255.44 | AJ132: 2.938 | AK132: 17.81 | AL132: 9.5 | AM132: 701 | AN132: 696.3 | AO132: 695 | AP132: 0 | AQ132: 694.2 | AR132: 0.7 | AS132: 72 | AT132: 29 | AU132: 3.225 | AV132: 27.23 | AW132: 3.806 | AX132: 107.87 | AY132: 8.363 | AZ132: 109.69 | BA132: 1e+20 | BB132: 27.51 | BC132: 19.89 | BD132: 28.33 | BE132: 28.38 | BF132: 28.34 | BG132: 28.49 | BH132: 28.28 | BI132: 28.69 | BJ132: 40.42 | BK132: 12.81 | BL132: 21.91 | BM132: 0 | BN132: 2.495 | BO132: 26.06 | BP132: 9.342 | BQ132: -9.18 | BR132: 0.928 | BS132: 38 | BT132: 24.94 | BU132: 0 | BV132: 0 | BW132: 113.69 | BX132: 8.298 | BY132: 8.993 | BZ132: 117.71 | CA132: 174.95 | CB132: 115.56 | CC132: 25.52 | CD132: 1e+20 | CE132: 0 | CF132: 0 | CG132: 1e+20 | CH132: 1e+20 | CI132: 39.9888 | CJ132: 696.4 | CK132: 133.6 | CL132: 0.558 | CM132: 0 | CN132: 0 | CO132: 0 | CP132: 0 | CQ132: 0
A133: Log | B133: 123 | D133: 14.48 | E133: 14.411 | F133: 14.433 | G133: 0.43617 | H133: 3.0476 | I133: 0.74 | J133: 79.95 | K133: 4.15 | L133: 1.2708 | M133: 11.477 | N133: 30 | O133: 39.9833 | P133: 40 | Q133: 5.301 | R133: 349.27 | S133: 364.519 | T133: 0.0504 | U133: 8.268 | V133: 100.705 | W133: 0.203 | X133: 10 | Y133: 106.95 | Z133: 6.438 | AA133: 9.22 | AB133: 104.02 | AC133: 405.04 | AD133: 1.536 | AE133: 110.03 | AF133: 1.415 | AG133: 40.696 | AH133: 124.83 | AI133: 255.84 | AJ133: 2.873 | AK133: 17.82 | AL133: 9.5 | AM133: 686.2 | AN133: 695.4 | AO133: 695 | AP133: 0 | AQ133: 695.5 | AR133: 0.8 | AS133: 72 | AT133: 29 | AU133: 3.225 | AV133: 27.24 | AW133: 3.808 | AX133: 107.87 | AY133: 8.365 | AZ133: 109.7 | BA133: 1e+20 | BB133: 27.56 | BC133: 19.89 | BD133: 28.33 | BE133: 28.37 | BF133: 28.34 | BG133: 28.51 | BH133: 28.28 | BI133: 28.69 | BJ133: 40.43 | BK133: 12.8 | BL133: 21.91 | BM133: 0 | BN133: 2.495 | BO133: 26.07 | BP133: 9.341 | BQ133: -9.18 | BR133: 0.928 | BS133: 38 | BT133: 24.95 | BU133: 0 | BV133: 0 | BW133: 113.69 | BX133: 8.289 | BY133: 8.997 | BZ133: 117.7 | CA133: 175.1 | CB133: 115.58 | CC133: 25.52 | CD133: 1e+20 | CE133: 0 | CF133: 0 | CG133: 1e+20 | CH133: 1e+20 | CI133: 40.0153 | CJ133: 695.4 | CK133: 133.6 | CL133: 0.558 | CM133: 0 | CN133: 0 | CO133: 0 | CP133: 0 | CQ133: 0
A134: Log | B134: 124 | D134: 14.48 | E134: 14.486 | F134: 14.561 | G134: 0.43846 | H134: 3.0479 | I134: 0.74 | J134: 79.95 | K134: 4.15 | L134: 1.2708 | M134: 11.465 | N134: 30 | O134: 39.9409 | P134: 40 | Q134: 5.331 | R134: 338.348 | S134: 355.1 | T134: 0.0505 | U134: 8.27 | V134: 100.705 | W134: 0.217 | X134: 10 | Y134: 106.95 | Z134: 6.438 | AA134: 9.22 | AB134: 104.02 | AC134: 405.08 | AD134: 1.529 | AE134: 110.03 | AF134: 1.414 | AG134: 40.872 | AH134: 124.39 | AI134: 255.82 | AJ134: 2.93 | AK134: 17.74 | AL134: 9.5 | AM134: 700.5 | AN134: 693 | AO134: 695 | AP134: 0 | AQ134: 691.9 | AR134: 0.6 | AS134: 72 | AT134: 28.99 | AU134: 3.226 | AV134: 27.24 | AW134: 3.807 | AX134: 107.87 | AY134: 8.363 | AZ134: 109.7 | BA134: 1e+20 | BB134: 27.56 | BC134: 19.89 | BD134: 28.33 | BE134: 28.37 | BF134: 28.35 | BG134: 28.51 | BH134: 28.29 | BI134: 28.69 | BJ134: 40.43 | BK134: 12.8 | BL134: 21.9 | BM134: 0 | BN134: 2.491 | BO134: 26.07 | BP134: 9.34 | BQ134: -9.18 | BR134: 0.928 | BS134: 38 | BT134: 24.95 | BU134: 0 | BV134: 0 | BW134: 113.68 | BX134: 8.264 | BY134: 9.003 | BZ134: 117.67 | CA134: 175.51 | CB134: 115.61 | CC134: 25.52 | CD134: 1e+20 | CE134: 0 | CF134: 0 | CG134: 1e+20 | CH134: 1e+20 | CI134: 39.9467 | CJ134: 693 | CK134: 133.6 | CL134: 0.558 | CM134: 0 | CN134: 0 | CO134: 0 | CP134: 0 | CQ134: 0
A135: Log | B135: 125 | D135: 14.53 | E135: 14.372 | F135: 14.425 | G135: 0.43543 | H135: 3.0476 | I135: 0.74 | J135: 79.95 | K135: 4.15 | L135: 1.2708 | M135: 11.456 | N135: 30 | O135: 40.0336 | P135: 40 | Q135: 5.312 | R135: 359.619 | S135: 372.769 | T135: 0.0503 | U135: 8.271 | V135: 100.705 | W135: 0.163 | X135: 9.995 | Y135: 106.98 | Z135: 6.435 | AA135: 9.22 | AB135: 104.06 | AC135: 405.05 | AD135: 1.523 | AE135: 109.95 | AF135: 1.415 | AG135: 40.74 | AH135: 124.69 | AI135: 255.26 | AJ135: 2.906 | AK135: 17.85 | AL135: 9.5 | AM135: 693.1 | AN135: 696.7 | AO135: 695 | AP135: 0 | AQ135: 698.1 | AR135: 0.6 | AS135: 72 | AT135: 28.99 | AU135: 3.226 | AV135: 27.25 | AW135: 3.807 | AX135: 107.87 | AY135: 8.362 | AZ135: 109.7 | BA135: 1e+20 | BB135: 27.55 | BC135: 19.89 | BD135: 28.33 | BE135: 28.36 | BF135: 28.34 | BG135: 28.5 | BH135: 28.29 | BI135: 28.68 | BJ135: 40.43 | BK135: 12.79 | BL135: 21.91 | BM135: 0 | BN135: 2.492 | BO135: 26.07 | BP135: 9.34 | BQ135: -9.19 | BR135: 0.928 | BS135: 38 | BT135: 24.94 | BU135: 0 | BV135: 0 | BW135: 113.68 | BX135: 8.256 | BY135: 9.006 | BZ135: 117.66 | CA135: 175.63 | CB135: 115.58 | CC135: 25.52 | CD135: 1e+20 | CE135: 0 | CF135: 0 | CG135: 1e+20 | CH135: 1e+20 | CI135: 39.9981 | CJ135: 696.6 | CK135: 133.6 | CL135: 0.558 | CM135: 0 | CN135: 0 | CO135: 0 | CP135: 0 | CQ135: 0
A136: Log | B136: 126 | D136: 14.46 | E136: 14.498 | F136: 14.533 | G136: 0.44006 | H136: 3.0481 | I136: 0.74 | J136: 79.96 | K136: 4.15 | L136: 1.2708 | M136: 11.464 | N136: 30 | O136: 39.8775 | P136: 40 | Q136: 5.327 | R136: 332.134 | S136: 349.331 | T136: 0.0499 | U136: 8.271 | V136: 100.705 | W136: 0.163 | X136: 10 | Y136: 107.03 | Z136: 6.43 | AA136: 9.22 | AB136: 104.02 | AC136: 405.04 | AD136: 1.52 | AE136: 110.06 | AF136: 1.414 | AG136: 40.863 | AH136: 124.39 | AI136: 255.64 | AJ136: 2.879 | AK136: 17.7 | AL136: 9.5 | AM136: 689.3 | AN136: 690.6 | AO136: 695 | AP136: 0 | AQ136: 692.7 | AR136: -0.1 | AS136: 72 | AT136: 28.99 | AU136: 3.234 | AV136: 27.27 | AW136: 3.812 | AX136: 107.88 | AY136: 8.359 | AZ136: 109.71 | BA136: 1e+20 | BB136: 27.54 | BC136: 19.89 | BD136: 28.33 | BE136: 28.35 | BF136: 28.32 | BG136: 28.5 | BH136: 28.28 | BI136: 28.68 | BJ136: 40.42 | BK136: 12.8 | BL136: 21.91 | BM136: 0 | BN136: 2.494 | BO136: 26.06 | BP136: 9.341 | BQ136: -9.18 | BR136: 0.928 | BS136: 37.99 | BT136: 24.94 | BU136: 0 | BV136: 0 | BW136: 113.69 | BX136: 8.255 | BY136: 9.008 | BZ136: 117.66 | CA136: 175.64 | CB136: 115.65 | CC136: 25.51 | CD136: 1e+20 | CE136: 0 | CF136: 0 | CG136: 1e+20 | CH136: 1e+20 | CI136: 39.9508 | CJ136: 690.6 | CK136: 133.7 | CL136: 0.558 | CM136: 0 | CN136: 0 | CO136: 0 | CP136: 0 | CQ136: 0
A137: Log | B137: 127 | D137: 14.52 | E137: 14.498 | F137: 14.477 | G137: 0.43581 | H137: 3.0478 | I137: 0.74 | J137: 79.97 | K137: 4.15 | L137: 1.2708 | M137: 11.46 | N137: 30 | O137: 40.0359 | P137: 40 | Q137: 5.291 | R137: 351.696 | S137: 363.302 | T137: 0.0498 | U137: 8.27 | V137: 100.704 | W137: 0.174 | X137: 10 | Y137: 107.09 | Z137: 6.424 | AA137: 9.22 | AB137: 104.05 | AC137: 405.03 | AD137: 1.516 | AE137: 109.97 | AF137: 1.414 | AG137: 40.857 | AH137: 124.28 | AI137: 255.44 | AJ137: 2.941 | AK137: 17.84 | AL137: 9.5 | AM137: 701.6 | AN137: 696.6 | AO137: 695 | AP137: 0 | AQ137: 695.9 | AR137: 0 | AS137: 72 | AT137: 28.99 | AU137: 3.23 | AV137: 27.29 | AW137: 3.81 | AX137: 107.87 | AY137: 8.36 | AZ137: 109.71 | BA137: 1e+20 | BB137: 27.53 | BC137: 19.89 | BD137: 28.32 | BE137: 28.35 | BF137: 28.32 | BG137: 28.49 | BH137: 28.27 | BI137: 28.68 | BJ137: 40.42 | BK137: 12.81 | BL137: 21.9 | BM137: 0 | BN137: 2.491 | BO137: 26.07 | BP137: 9.341 | BQ137: -9.18 | BR137: 0.928 | BS137: 38 | BT137: 24.94 | BU137: 0 | BV137: 0 | BW137: 113.69 | BX137: 8.259 | BY137: 9.01 | BZ137: 117.67 | CA137: 175.55 | CB137: 115.68 | CC137: 25.52 | CD137: 1e+20 | CE137: 0 | CF137: 0 | CG137: 1e+20 | CH137: 1e+20 | CI137: 39.9619 | CJ137: 696.5 | CK137: 133.6 | CL137: 0.558 | CM137: 0 | CN137: 0 | CO137: 0 | CP137: 0 | CQ137: 0
A138: Log | B138: 128 | D138: 14.52 | E138: 14.428 | F138: 14.498 | G138: 0.43552 | H138: 3.0478 | I138: 0.74 | J138: 79.97 | K138: 4.15 | L138: 1.2708 | M138: 11.45 | N138: 30 | O138: 40.007 | P138: 40 | Q138: 5.296 | R138: 367.295 | S138: 355.161 | T138: 0.0497 | U138: 8.269 | V138: 100.704 | W138: 0.181 | X138: 10 | Y138: 107.12 | Z138: 6.421 | AA138: 9.22 | AB138: 104.02 | AC138: 404.97 | AD138: 1.52 | AE138: 110.06 | AF138: 1.414 | AG138: 40.674 | AH138: 124.75 | AI138: 255.19 | AJ138: 2.889 | AK138: 17.84 | AL138: 9.5 | AM138: 689.7 | AN138: 696.3 | AO138: 695 | AP138: 0 | AQ138: 696.6 | AR138: 0.1 | AS138: 72 | AT138: 28.99 | AU138: 3.231 | AV138: 27.31 | AW138: 3.81 | AX138: 107.87 | AY138: 8.361 | AZ138: 109.71 | BA138: 1e+20 | BB138: 27.55 | BC138: 19.88 | BD138: 28.32 | BE138: 28.34 | BF138: 28.31 | BG138: 28.49 | BH138: 28.27 | BI138: 28.67 | BJ138: 40.43 | BK138: 12.81 | BL138: 21.91 | BM138: 0 | BN138: 2.494 | BO138: 26.06 | BP138: 9.343 | BQ138: -9.19 | BR138: 0.928 | BS138: 38 | BT138: 24.94 | BU138: 0 | BV138: 0 | BW138: 113.7 | BX138: 8.259 | BY138: 9.012 | BZ138: 117.69 | CA138: 175.54 | CB138: 115.61 | CC138: 25.52 | CD138: 1e+20 | CE138: 0 | CF138: 0 | CG138: 1e+20 | CH138: 1e+20 | CI138: 40.0149 | CJ138: 696.3 | CK138: 133.6 | CL138: 0.558 | CM138: 0 | CN138: 0 | CO138: 0 | CP138: 0 | CQ138: 0
A139: Log | B139: 129 | D139: 14.51 | E139: 14.518 | F139: 14.508 | G139: 0.43815 | H139: 3.0481 | I139: 0.74 | J139: 79.98 | K139: 4.15 | L139: 1.2708 | M139: 11.455 | N139: 30 | O139: 39.9404 | P139: 40 | Q139: 5.281 | R139: 342.367 | S139: 363.923 | T139: 0.0496 | U139: 8.267 | V139: 100.705 | W139: 0.168 | X139: 10 | Y139: 107.15 | Z139: 6.417 | AA139: 9.22 | AB139: 104.02 | AC139: 404.96 | AD139: 1.524 | AE139: 110 | AF139: 1.413 | AG139: 40.84 | AH139: 124.41 | AI139: 255.78 | AJ139: 2.921 | AK139: 17.75 | AL139: 9.5 | AM139: 698.4 | AN139: 693.3 | AO139: 695 | AP139: 0 | AQ139: 692.9 | AR139: -0.1 | AS139: 72 | AT139: 28.99 | AU139: 3.229 | AV139: 27.33 | AW139: 3.812 | AX139: 107.88 | AY139: 8.355 | AZ139: 109.72 | BA139: 1e+20 | BB139: 27.55 | BC139: 19.89 | BD139: 28.31 | BE139: 28.34 | BF139: 28.3 | BG139: 28.49 | BH139: 28.26 | BI139: 28.67 | BJ139: 40.42 | BK139: 12.8 | BL139: 21.92 | BM139: 0 | BN139: 2.496 | BO139: 26.07 | BP139: 9.341 | BQ139: -9.19 | BR139: 0.928 | BS139: 37.99 | BT139: 24.94 | BU139: 0 | BV139: 0 | BW139: 113.7 | BX139: 8.251 | BY139: 9.014 | BZ139: 117.7 | CA139: 175.67 | CB139: 115.63 | CC139: 25.52 | CD139: 1e+20 | CE139: 0 | CF139: 0 | CG139: 1e+20 | CH139: 1e+20 | CI139: 39.9589 | CJ139: 693.3 | CK139: 133.6 | CL139: 0.558 | CM139: 0 | CN139: 0 | CO139: 0 | CP139: 0 | CQ139: 0
A140: Log | B140: 130 | D140: 14.54 | E140: 14.418 | F140: 14.413 | G140: 0.4341 | H140: 3.0476 | I140: 0.74 | J140: 79.98 | K140: 4.15 | L140: 1.2708 | M140: 11.451 | N140: 30 | O140: 40.0716 | P140: 40 | Q140: 5.248 | R140: 360.334 | S140: 374.178 | T140: 0.05 | U140: 8.268 | V140: 100.704 | W140: 0.175 | X140: 9.998 | Y140: 107.13 | Z140: 6.418 | AA140: 9.219 | AB140: 104.06 | AC140: 404.95 | AD140: 1.528 | AE140: 109.94 | AF140: 1.414 | AG140: 40.721 | AH140: 124.65 | AI140: 255.96 | AJ140: 2.924 | AK140: 17.86 | AL140: 9.5 | AM140: 696.9 | AN140: 698.2 | AO140: 695 | AP140: 0 | AQ140: 697.7 | AR140: 0.3 | AS140: 72 | AT140: 28.99 | AU140: 3.231 | AV140: 27.34 | AW140: 3.81 | AX140: 107.89 | AY140: 8.352 | AZ140: 109.72 | BA140: 1e+20 | BB140: 27.55 | BC140: 19.89 | BD140: 28.32 | BE140: 28.33 | BF140: 28.3 | BG140: 28.49 | BH140: 28.26 | BI140: 28.66 | BJ140: 40.42 | BK140: 12.79 | BL140: 21.91 | BM140: 0 | BN140: 2.495 | BO140: 26.07 | BP140: 9.34 | BQ140: -9.19 | BR140: 0.928 | BS140: 38 | BT140: 24.95 | BU140: 0 | BV140: 0 | BW140: 113.68 | BX140: 8.248 | BY140: 9.022 | BZ140: 117.69 | CA140: 175.72 | CB140: 115.68 | CC140: 25.52 | CD140: 1e+20 | CE140: 0 | CF140: 0 | CG140: 1e+20 | CH140: 1e+20 | CI140: 40.02 | CJ140: 698.3 | CK140: 133.6 | CL140: 0.558 | CM140: 0 | CN140: 0 | CO140: 0 | CP140: 0 | CQ140: 0
A141: Log | B141: 131 | D141: 14.47 | E141: 14.492 | F141: 14.564 | G141: 0.43795 | H141: 3.048 | I141: 0.74 | J141: 79.98 | K141: 4.15 | L141: 1.2708 | M141: 11.444 | N141: 30 | O141: 39.9371 | P141: 40 | Q141: 5.322 | R141: 352.711 | S141: 356.285 | T141: 0.0502 | U141: 8.268 | V141: 100.705 | W141: 0.146 | X141: 10 | Y141: 107.07 | Z141: 6.424 | AA141: 9.219 | AB141: 104 | AC141: 404.94 | AD141: 1.53 | AE141: 110.07 | AF141: 1.414 | AG141: 40.765 | AH141: 124.6 | AI141: 255.55 | AJ141: 2.879 | AK141: 17.76 | AL141: 9.5 | AM141: 688.4 | AN141: 693.2 | AO141: 695 | AP141: 0 | AQ141: 694.3 | AR141: 0 | AS141: 72 | AT141: 28.99 | AU141: 3.234 | AV141: 27.35 | AW141: 3.81 | AX141: 107.89 | AY141: 8.349 | AZ141: 109.72 | BA141: 1e+20 | BB141: 27.56 | BC141: 19.89 | BD141: 28.33 | BE141: 28.33 | BF141: 28.3 | BG141: 28.49 | BH141: 28.25 | BI141: 28.66 | BJ141: 40.43 | BK141: 12.8 | BL141: 21.91 | BM141: 0 | BN141: 2.494 | BO141: 26.07 | BP141: 9.341 | BQ141: -9.19 | BR141: 0.928 | BS141: 38 | BT141: 24.95 | BU141: 0 | BV141: 0 | BW141: 113.68 | BX141: 8.24 | BY141: 9.028 | BZ141: 117.68 | CA141: 175.83 | CB141: 115.75 | CC141: 25.52 | CD141: 1e+20 | CE141: 0 | CF141: 0 | CG141: 1e+20 | CH141: 1e+20 | CI141: 39.9963 | CJ141: 693.1 | CK141: 133.6 | CL141: 0.558 | CM141: 0 | CN141: 0 | CO141: 0 | CP141: 0 | CQ141: 0
A142: Log | B142: 132 | D142: 14.52 | E142: 14.503 | F142: 14.409 | G142: 0.43493 | H142: 3.0477 | I142: 0.74 | J142: 79.98 | K142: 4.15 | L142: 1.2708 | M142: 11.454 | N142: 30 | O142: 40.0512 | P142: 40 | Q142: 5.342 | R142: 369.786 | S142: 377.884 | T142: 0.0504 | U142: 8.27 | V142: 100.705 | W142: 0.169 | X142: 10 | Y142: 107.02 | Z142: 6.43 | AA142: 9.219 | AB142: 104.06 | AC142: 405 | AD142: 1.53 | AE142: 109.94 | AF142: 1.414 | AG142: 40.763 | AH142: 124.53 | AI142: 255.93 | AJ142: 2.938 | AK142: 17.86 | AL142: 9.5 | AM142: 700.4 | AN142: 697.4 | AO142: 695 | AP142: 0 | AQ142: 696.2 | AR142: 0.2 | AS142: 72 | AT142: 28.99 | AU142: 3.235 | AV142: 27.35 | AW142: 3.798 | AX142: 107.9 | AY142: 8.344 | AZ142: 109.72 | BA142: 1e+20 | BB142: 27.53 | BC142: 19.9 | BD142: 28.31 | BE142: 28.32 | BF142: 28.29 | BG142: 28.48 | BH142: 28.25 | BI142: 28.64 | BJ142: 40.43 | BK142: 12.8 | BL142: 21.91 | BM142: 0 | BN142: 2.493 | BO142: 26.06 | BP142: 9.342 | BQ142: -9.19 | BR142: 0.928 | BS142: 38.01 | BT142: 24.95 | BU142: 0 | BV142: 0 | BW142: 113.68 | BX142: 8.266 | BY142: 9.029 | BZ142: 117.68 | CA142: 175.38 | CB142: 115.67 | CC142: 25.52 | CD142: 1e+20 | CE142: 0 | CF142: 0 | CG142: 1e+20 | CH142: 1e+20 | CI142: 40.0019 | CJ142: 697.3 | CK142: 133.6 | CL142: 0.558 | CM142: 0 | CN142: 0 | CO142: 0 | CP142: 0 | CQ142: 0
A143: Log | B143: 133 | D143: 14.5 | E143: 14.472 | F143: 14.456 | G143: 0.43553 | H143: 3.0477 | I143: 0.74 | J143: 79.99 | K143: 4.15 | L143: 1.2708 | M143: 11.45 | N143: 30 | O143: 40.013 | P143: 40 | Q143: 5.263 | R143: 373.341 | S143: 359.889 | T143: 0.0502 | U143: 8.271 | V143: 100.705 | W143: 0.162 | X143: 10 | Y143: 106.97 | Z143: 6.434 | AA143: 9.219 | AB143: 104.02 | AC143: 405.01 | AD143: 1.53 | AE143: 110.06 | AF143: 1.414 | AG143: 40.666 | AH143: 124.8 | AI143: 255.86 | AJ143: 2.899 | AK143: 17.82 | AL143: 9.5 | AM143: 691.8 | AN143: 696 | AO143: 695 | AP143: 0 | AQ143: 696.6 | AR143: 0.2 | AS143: 72 | AT143: 28.98 | AU143: 3.237 | AV143: 27.35 | AW143: 3.798 | AX143: 107.9 | AY143: 8.341 | AZ143: 109.72 | BA143: 1e+20 | BB143: 27.58 | BC143: 19.89 | BD143: 28.31 | BE143: 28.33 | BF143: 28.3 | BG143: 28.49 | BH143: 28.24 | BI143: 28.64 | BJ143: 40.43 | BK143: 12.8 | BL143: 21.92 | BM143: 0 | BN143: 2.495 | BO143: 26.06 | BP143: 9.342 | BQ143: -9.19 | BR143: 0.928 | BS143: 38.01 | BT143: 24.94 | BU143: 0 | BV143: 0 | BW143: 113.7 | BX143: 8.307 | BY143: 9.027 | BZ143: 117.68 | CA143: 174.7 | CB143: 115.34 | CC143: 25.52 | CD143: 1e+20 | CE143: 0 | CF143: 0 | CG143: 1e+20 | CH143: 1e+20 | CI143: 40.0336 | CJ143: 696.1 | CK143: 133.6 | CL143: 0.558 | CM143: 0 | CN143: 0 | CO143: 0 | CP143: 0 | CQ143: 0
A144: Log | B144: 134 | D144: 14.49 | E144: 14.537 | F144: 14.54 | G144: 0.43688 | H144: 3.0479 | I144: 0.74 | J144: 80 | K144: 4.15 | L144: 1.2708 | M144: 11.456 | N144: 30 | O144: 39.9667 | P144: 40 | Q144: 5.274 | R144: 355.582 | S144: 372.213 | T144: 0.0505 | U144: 8.273 | V144: 100.704 | W144: 0.187 | X144: 10 | Y144: 106.97 | Z144: 6.434 | AA144: 9.219 | AB144: 104.02 | AC144: 405 | AD144: 1.532 | AE144: 110.02 | AF144: 1.413 | AG144: 40.788 | AH144: 124.54 | AI144: 256.38 | AJ144: 2.918 | AK144: 17.77 | AL144: 9.5 | AM144: 697.3 | AN144: 694.6 | AO144: 695 | AP144: 0 | AQ144: 693.4 | AR144: 0.2 | AS144: 72 | AT144: 28.98 | AU144: 3.238 | AV144: 27.34 | AW144: 3.808 | AX144: 107.9 | AY144: 8.34 | AZ144: 109.73 | BA144: 1e+20 | BB144: 27.57 | BC144: 19.89 | BD144: 28.31 | BE144: 28.32 | BF144: 28.3 | BG144: 28.48 | BH144: 28.24 | BI144: 28.64 | BJ144: 40.42 | BK144: 12.8 | BL144: 21.92 | BM144: 0 | BN144: 2.495 | BO144: 26.06 | BP144: 9.343 | BQ144: -9.19 | BR144: 0.928 | BS144: 38 | BT144: 24.95 | BU144: 0 | BV144: 0 | BW144: 113.72 | BX144: 8.33 | BY144: 9.025 | BZ144: 117.68 | CA144: 174.32 | CB144: 115.1 | CC144: 25.51 | CD144: 1e+20 | CE144: 0 | CF144: 0 | CG144: 1e+20 | CH144: 1e+20 | CI144: 39.9927 | CJ144: 694.7 | CK144: 133.6 | CL144: 0.558 | CM144: 0 | CN144: 0 | CO144: 0 | CP144: 0 | CQ144: 0
A145: Log | B145: 135 | D145: 14.54 | E145: 14.439 | F145: 14.434 | G145: 0.43256 | H145: 3.0474 | I145: 0.74 | J145: 79.99 | K145: 4.15 | L145: 1.2708 | M145: 11.46 | N145: 30 | O145: 40.1221 | P145: 40 | Q145: 5.321 | R145: 369.146 | S145: 394.722 | T145: 0.0503 | U145: 8.274 | V145: 100.705 | W145: 0.193 | X145: 10 | Y145: 106.98 | Z145: 6.434 | AA145: 9.218 | AB145: 104.07 | AC145: 404.95 | AD145: 1.536 | AE145: 110.01 | AF145: 1.413 | AG145: 40.654 | AH145: 124.88 | AI145: 256.33 | AJ145: 2.944 | AK145: 17.89 | AL145: 9.5 | AM145: 700.7 | AN145: 700.1 | AO145: 695 | AP145: 0 | AQ145: 699.1 | AR145: 0.6 | AS145: 72 | AT145: 28.99 | AU145: 3.235 | AV145: 27.33 | AW145: 3.811 | AX145: 107.9 | AY145: 8.34 | AZ145: 109.73 | BA145: 1e+20 | BB145: 27.57 | BC145: 19.9 | BD145: 28.3 | BE145: 28.33 | BF145: 28.29 | BG145: 28.48 | BH145: 28.25 | BI145: 28.63 | BJ145: 40.43 | BK145: 12.79 | BL145: 21.91 | BM145: 0 | BN145: 2.493 | BO145: 26.06 | BP145: 9.342 | BQ145: -9.2 | BR145: 0.927 | BS145: 37.99 | BT145: 24.95 | BU145: 0 | BV145: 0 | BW145: 113.73 | BX145: 8.317 | BY145: 9.026 | BZ145: 117.66 | CA145: 174.55 | CB145: 115.22 | CC145: 25.52 | CD145: 1e+20 | CE145: 0 | CF145: 0 | CG145: 1e+20 | CH145: 1e+20 | CI145: 40.0499 | CJ145: 700.2 | CK145: 133.5 | CL145: 0.558 | CM145: 0 | CN145: 0 | CO145: 0 | CP145: 0 | CQ145: 0
A146: Log | B146: 136 | D146: 14.47 | E146: 14.416 | F146: 14.488 | G146: 0.43797 | H146: 3.0479 | I146: 0.74 | J146: 79.99 | K146: 4.15 | L146: 1.2708 | M146: 11.456 | N146: 30 | O146: 39.9135 | P146: 40 | Q146: 5.345 | R146: 353.695 | S146: 360.712 | T146: 0.0499 | U146: 8.274 | V146: 100.705 | W146: 0.192 | X146: 10 | Y146: 107 | Z146: 6.432 | AA146: 9.218 | AB146: 104 | AC146: 405.01 | AD146: 1.534 | AE146: 110.14 | AF146: 1.412 | AG146: 40.669 | AH146: 124.97 | AI146: 255.61 | AJ146: 2.85 | AK146: 17.75 | AL146: 9.5 | AM146: 682 | AN146: 692.9 | AO146: 695 | AP146: 0 | AQ146: 694.9 | AR146: 0.2 | AS146: 72 | AT146: 28.99 | AU146: 3.232 | AV146: 27.33 | AW146: 3.808 | AX146: 107.89 | AY146: 8.349 | AZ146: 109.73 | BA146: 1e+20 | BB146: 27.57 | BC146: 19.9 | BD146: 28.3 | BE146: 28.32 | BF146: 28.29 | BG146: 28.48 | BH146: 28.24 | BI146: 28.63 | BJ146: 40.42 | BK146: 12.8 | BL146: 21.91 | BM146: 0 | BN146: 2.493 | BO146: 26.07 | BP146: 9.34 | BQ146: -9.2 | BR146: 0.928 | BS146: 38 | BT146: 24.95 | BU146: 0 | BV146: 0 | BW146: 113.73 | BX146: 8.301 | BY146: 9.027 | BZ146: 117.67 | CA146: 174.83 | CB146: 115.44 | CC146: 25.52 | CD146: 1e+20 | CE146: 0 | CF146: 0 | CG146: 1e+20 | CH146: 1e+20 | CI146: 40.0253 | CJ146: 692.8 | CK146: 133.6 | CL146: 0.558 | CM146: 0 | CN146: 0 | CO146: 0 | CP146: 0 | CQ146: 0
A147: Log | B147: 137 | D147: 14.48 | E147: 14.579 | F147: 14.527 | G147: 0.43962 | H147: 3.0481 | I147: 0.74 | J147: 80 | K147: 4.15 | L147: 1.2708 | M147: 11.457 | N147: 30 | O147: 39.908 | P147: 40 | Q147: 5.317 | R147: 329.561 | S147: 356.897 | T147: 0.0499 | U147: 8.273 | V147: 100.705 | W147: 0.16 | X147: 9.996 | Y147: 107 | Z147: 6.431 | AA147: 9.218 | AB147: 104.03 | AC147: 405 | AD147: 1.534 | AE147: 110.07 | AF147: 1.411 | AG147: 40.953 | AH147: 124.11 | AI147: 256.12 | AJ147: 2.916 | AK147: 17.72 | AL147: 9.5 | AM147: 697.7 | AN147: 691.7 | AO147: 695 | AP147: 0 | AQ147: 689.2 | AR147: 0.2 | AS147: 72 | AT147: 28.99 | AU147: 3.235 | AV147: 27.33 | AW147: 3.808 | AX147: 107.89 | AY147: 8.35 | AZ147: 109.74 | BA147: 1e+20 | BB147: 27.53 | BC147: 19.89 | BD147: 28.29 | BE147: 28.32 | BF147: 28.28 | BG147: 28.47 | BH147: 28.23 | BI147: 28.64 | BJ147: 40.42 | BK147: 12.8 | BL147: 21.91 | BM147: 0 | BN147: 2.493 | BO147: 26.07 | BP147: 9.341 | BQ147: -9.19 | BR147: 0.928 | BS147: 38 | BT147: 24.95 | BU147: 0 | BV147: 0 | BW147: 113.73 | BX147: 8.293 | BY147: 9.031 | BZ147: 117.69 | CA147: 174.95 | CB147: 115.54 | CC147: 25.52 | CD147: 1e+20 | CE147: 0 | CF147: 0 | CG147: 1e+20 | CH147: 1e+20 | CI147: 39.9289 | CJ147: 691.6 | CK147: 133.6 | CL147: -0.059 | CM147: 0 | CN147: 0 | CO147: 0 | CP147: 0 | CQ147: 0
A148: Log | B148: 138 | D148: 14.54 | E148: 14.49 | F148: 14.4 | G148: 0.43445 | H148: 3.0476 | I148: 0.74 | J148: 80 | K148: 4.15 | L148: 1.2707 | M148: 11.459 | N148: 30 | O148: 40.0667 | P148: 40 | Q148: 5.349 | R148: 366.396 | S148: 385.343 | T148: 0.05 | U148: 8.273 | V148: 100.704 | W148: 0.15 | X148: 10 | Y148: 107 | Z148: 6.431 | AA148: 9.218 | AB148: 104.07 | AC148: 405.03 | AD148: 1.533 | AE148: 109.95 | AF148: 1.411 | AG148: 40.756 | AH148: 124.58 | AI148: 256.05 | AJ148: 2.929 | AK148: 17.87 | AL148: 9.5 | AM148: 698.1 | AN148: 698.1 | AO148: 695 | AP148: 0 | AQ148: 697.5 | AR148: 0.6 | AS148: 72 | AT148: 28.99 | AU148: 3.231 | AV148: 27.34 | AW148: 3.808 | AX148: 107.9 | AY148: 8.339 | AZ148: 109.73 | BA148: 1e+20 | BB148: 27.58 | BC148: 19.9 | BD148: 28.29 | BE148: 28.32 | BF148: 28.3 | BG148: 28.48 | BH148: 28.24 | BI148: 28.64 | BJ148: 40.43 | BK148: 12.8 | BL148: 21.92 | BM148: 0 | BN148: 2.495 | BO148: 26.07 | BP148: 9.341 | BQ148: -9.18 | BR148: 0.927 | BS148: 38 | BT148: 24.95 | BU148: 0 | BV148: 0 | BW148: 113.72 | BX148: 8.295 | BY148: 9.036 | BZ148: 117.7 | CA148: 174.93 | CB148: 115.52 | CC148: 25.52 | CD148: 1e+20 | CE148: 0 | CF148: 0 | CG148: 1e+20 | CH148: 1e+20 | CI148: 39.9969 | CJ148: 698.1 | CK148: 133.6 | CL148: -0.059 | CM148: 0 | CN148: 0 | CO148: 0 | CP148: 0 | CQ148: 0
A149: Log | B149: 139 | D149: 14.48 | E149: 14.421 | F149: 14.537 | G149: 0.43804 | H149: 3.048 | I149: 0.74 | J149: 80.02 | K149: 4.15 | L149: 1.2708 | M149: 11.453 | N149: 30 | O149: 39.9323 | P149: 40 | Q149: 5.328 | R149: 356.281 | S149: 355.718 | T149: 0.0496 | U149: 8.272 | V149: 100.705 | W149: 0.173 | X149: 10 | Y149: 107 | Z149: 6.431 | AA149: 9.218 | AB149: 104.01 | AC149: 405.06 | AD149: 1.53 | AE149: 110.07 | AF149: 1.411 | AG149: 40.754 | AH149: 124.79 | AI149: 255.65 | AJ149: 2.875 | AK149: 17.76 | AL149: 9.5 | AM149: 687.6 | AN149: 693.1 | AO149: 695 | AP149: 0 | AQ149: 694.3 | AR149: 0.3 | AS149: 72 | AT149: 28.99 | AU149: 3.232 | AV149: 27.33 | AW149: 3.809 | AX149: 107.91 | AY149: 8.332 | AZ149: 109.74 | BA149: 1e+20 | BB149: 27.57 | BC149: 19.9 | BD149: 28.28 | BE149: 28.32 | BF149: 28.3 | BG149: 28.47 | BH149: 28.24 | BI149: 28.64 | BJ149: 40.43 | BK149: 12.8 | BL149: 21.92 | BM149: 0 | BN149: 2.497 | BO149: 26.07 | BP149: 9.34 | BQ149: -9.19 | BR149: 0.928 | BS149: 38 | BT149: 24.95 | BU149: 0 | BV149: 0 | BW149: 113.71 | BX149: 8.299 | BY149: 9.043 | BZ149: 117.71 | CA149: 174.86 | CB149: 115.4 | CC149: 25.52 | CD149: 1e+20 | CE149: 0 | CF149: 0 | CG149: 1e+20 | CH149: 1e+20 | CI149: 39.9917 | CJ149: 693 | CK149: 133.6 | CL149: -0.059 | CM149: 0 | CN149: 0 | CO149: 0 | CP149: 0 | CQ149: 0
A150: Log | B150: 140 | D150: 14.49 | E150: 14.583 | F150: 14.472 | G150: 0.43898 | H150: 3.0481 | I150: 0.74 | J150: 80.03 | K150: 4.15 | L150: 1.2708 | M150: 11.451 | N150: 30 | O150: 39.9301 | P150: 40 | Q150: 5.341 | R150: 334.138 | S150: 378.04 | T150: 0.0493 | U150: 8.269 | V150: 100.705 | W150: 0.184 | X150: 10 | Y150: 107 | Z150: 6.431 | AA150: 9.218 | AB150: 104.03 | AC150: 405.06 | AD150: 1.525 | AE150: 110.06 | AF150: 1.41 | AG150: 40.912 | AH150: 124.35 | AI150: 256.15 | AJ150: 2.909 | AK150: 17.74 | AL150: 9.5 | AM150: 695.6 | AN150: 692.3 | AO150: 695 | AP150: 0 | AQ150: 692.3 | AR150: 0.1 | AS150: 72 | AT150: 28.99 | AU150: 3.235 | AV150: 27.33 | AW150: 3.803 | AX150: 107.92 | AY150: 8.328 | AZ150: 109.75 | BA150: 1e+20 | BB150: 27.56 | BC150: 19.9 | BD150: 28.27 | BE150: 28.32 | BF150: 28.29 | BG150: 28.48 | BH150: 28.24 | BI150: 28.64 | BJ150: 40.43 | BK150: 12.79 | BL150: 21.92 | BM150: 0 | BN150: 2.497 | BO150: 26.08 | BP150: 9.338 | BQ150: -9.19 | BR150: 0.928 | BS150: 38 | BT150: 24.95 | BU150: 0 | BV150: 0 | BW150: 113.69 | BX150: 8.29 | BY150: 9.051 | BZ150: 117.7 | CA150: 175.01 | CB150: 115.42 | CC150: 25.52 | CD150: 1e+20 | CE150: 0 | CF150: 0 | CG150: 1e+20 | CH150: 1e+20 | CI150: 39.9392 | CJ150: 692.3 | CK150: 133.6 | CL150: -0.059 | CM150: 0 | CN150: 0 | CO150: 0 | CP150: 0 | CQ150: 0
A151: Log | B151: 141 | D151: 14.54 | E151: 14.499 | F151: 14.459 | G151: 0.4357 | H151: 3.0479 | I151: 0.74 | J151: 80.03 | K151: 4.15 | L151: 1.2685 | M151: 11.45 | N151: 30 | O151: 40.0249 | P151: 40 | Q151: 5.272 | R151: 358.822 | S151: 372.411 | T151: 0.0496 | U151: 8.267 | V151: 100.705 | W151: 0.172 | X151: 10 | Y151: 106.99 | Z151: 6.432 | AA151: 9.218 | AB151: 104.05 | AC151: 405.02 | AD151: 1.521 | AE151: 110.05 | AF151: 1.409 | AG151: 40.807 | AH151: 124.56 | AI151: 255.53 | AJ151: 2.919 | AK151: 17.84 | AL151: 9.5 | AM151: 696.4 | AN151: 696.1 | AO151: 695 | AP151: 0 | AQ151: 695.7 | AR151: 0.2 | AS151: 72 | AT151: 28.98 | AU151: 3.238 | AV151: 27.32 | AW151: 3.808 | AX151: 107.91 | AY151: 8.335 | AZ151: 109.75 | BA151: 1e+20 | BB151: 27.56 | BC151: 19.9 | BD151: 28.27 | BE151: 28.32 | BF151: 28.29 | BG151: 28.47 | BH151: 28.23 | BI151: 28.63 | BJ151: 40.42 | BK151: 12.8 | BL151: 21.92 | BM151: 0 | BN151: 2.497 | BO151: 26.08 | BP151: 9.338 | BQ151: -9.18 | BR151: 0.928 | BS151: 38 | BT151: 24.95 | BU151: 0 | BV151: 0 | BW151: 113.68 | BX151: 8.266 | BY151: 9.058 | BZ151: 117.69 | CA151: 175.41 | CB151: 115.51 | CC151: 25.52 | CD151: 1e+20 | CE151: 0 | CF151: 0 | CG151: 1e+20 | CH151: 1e+20 | CI151: 39.9745 | CJ151: 696 | CK151: 133.6 | CL151: -0.059 | CM151: 0 | CN151: 0 | CO151: 0 | CP151: 0 | CQ151: 0
A152: Log | B152: 142 | D152: 14.52 | E152: 14.522 | F152: 14.53 | G152: 0.43475 | H152: 3.0478 | I152: 0.74 | J152: 80.04 | K152: 4.15 | L152: 1.2685 | M152: 11.447 | N152: 30 | O152: 40.0428 | P152: 40 | Q152: 5.298 | R152: 367.004 | S152: 368.33 | T152: 0.0499 | U152: 8.267 | V152: 100.705 | W152: 0.174 | X152: 10 | Y152: 106.96 | Z152: 6.435 | AA152: 9.218 | AB152: 104.02 | AC152: 404.93 | AD152: 1.525 | AE152: 110.04 | AF152: 1.408 | AG152: 40.73 | AH152: 124.84 | AI152: 255.41 | AJ152: 2.931 | AK152: 17.82 | AL152: 9.5 | AM152: 698.9 | AN152: 696.4 | AO152: 695 | AP152: 0 | AQ152: 695.4 | AR152: 0.2 | AS152: 72 | AT152: 28.98 | AU152: 3.239 | AV152: 27.32 | AW152: 3.814 | AX152: 107.91 | AY152: 8.337 | AZ152: 109.75 | BA152: 1e+20 | BB152: 27.53 | BC152: 19.9 | BD152: 28.27 | BE152: 28.31 | BF152: 28.29 | BG152: 28.46 | BH152: 28.22 | BI152: 28.61 | BJ152: 40.42 | BK152: 12.8 | BL152: 21.92 | BM152: 0 | BN152: 2.495 | BO152: 26.07 | BP152: 9.34 | BQ152: -9.18 | BR152: 0.928 | BS152: 37.99 | BT152: 24.95 | BU152: 0 | BV152: 0 | BW152: 113.68 | BX152: 8.251 | BY152: 9.061 | BZ152: 117.68 | CA152: 175.66 | CB152: 115.45 | CC152: 25.52 | CD152: 1e+20 | CE152: 0 | CF152: 0 | CG152: 1e+20 | CH152: 1e+20 | CI152: 40.0099 | CJ152: 696.5 | CK152: 133.6 | CL152: -0.059 | CM152: 0 | CN152: 0 | CO152: 0 | CP152: 0 | CQ152: 0
A153: Log | B153: 143 | D153: 14.54 | E153: 14.453 | F153: 14.433 | G153: 0.43184 | H153: 3.0475 | I153: 0.74 | J153: 80.03 | K153: 4.15 | L153: 1.2685 | M153: 11.452 | N153: 30 | O153: 40.1207 | P153: 40 | Q153: 5.273 | R153: 387.174 | S153: 378.414 | T153: 0.0499 | U153: 8.267 | V153: 100.705 | W153: 0.18 | X153: 10 | Y153: 106.93 | Z153: 6.439 | AA153: 9.217 | AB153: 104.06 | AC153: 404.95 | AD153: 1.529 | AE153: 110.02 | AF153: 1.408 | AG153: 40.616 | AH153: 125.25 | AI153: 255.55 | AJ153: 2.932 | AK153: 17.89 | AL153: 9.5 | AM153: 697.9 | AN153: 699.9 | AO153: 695 | AP153: 0 | AQ153: 697.8 | AR153: 0.5 | AS153: 72 | AT153: 28.99 | AU153: 3.237 | AV153: 27.31 | AW153: 3.803 | AX153: 107.91 | AY153: 8.332 | AZ153: 109.74 | BA153: 1e+20 | BB153: 27.57 | BC153: 19.9 | BD153: 28.27 | BE153: 28.3 | BF153: 28.29 | BG153: 28.47 | BH153: 28.22 | BI153: 28.61 | BJ153: 40.42 | BK153: 12.8 | BL153: 21.92 | BM153: 0 | BN153: 2.496 | BO153: 26.07 | BP153: 9.34 | BQ153: -9.18 | BR153: 0.927 | BS153: 38 | BT153: 24.95 | BU153: 0 | BV153: 0 | BW153: 113.69 | BX153: 8.243 | BY153: 9.06 | BZ153: 117.68 | CA153: 175.77 | CB153: 115.4 | CC153: 25.52 | CD153: 1e+20 | CE153: 0 | CF153: 0 | CG153: 1e+20 | CH153: 1e+20 | CI153: 40.0689 | CJ153: 699.8 | CK153: 133.5 | CL153: -0.059 | CM153: 0 | CN153: 0 | CO153: 0 | CP153: 0 | CQ153: 0
A154: Log | B154: 144 | D154: 14.51 | E154: 14.497 | F154: 14.537 | G154: 0.43597 | H154: 3.0478 | I154: 0.74 | J154: 80.02 | K154: 4.15 | L154: 1.2685 | M154: 11.442 | N154: 30 | O154: 39.9717 | P154: 40 | Q154: 5.29 | R154: 366.148 | S154: 369.282 | T154: 0.0497 | U154: 8.266 | V154: 100.705 | W154: 0.194 | X154: 10 | Y154: 106.88 | Z154: 6.444 | AA154: 9.217 | AB154: 104.01 | AC154: 404.95 | AD154: 1.533 | AE154: 110.09 | AF154: 1.407 | AG154: 40.707 | AH154: 125.13 | AI154: 255.82 | AJ154: 2.898 | AK154: 17.76 | AL154: 9.5 | AM154: 692.4 | AN154: 694.4 | AO154: 695 | AP154: 0 | AQ154: 694.4 | AR154: 0.4 | AS154: 72 | AT154: 28.98 | AU154: 3.239 | AV154: 27.31 | AW154: 3.804 | AX154: 107.92 | AY154: 8.328 | AZ154: 109.75 | BA154: 1e+20 | BB154: 27.57 | BC154: 19.9 | BD154: 28.28 | BE154: 28.31 | BF154: 28.29 | BG154: 28.47 | BH154: 28.22 | BI154: 28.62 | BJ154: 40.42 | BK154: 12.8 | BL154: 21.92 | BM154: 0 | BN154: 2.496 | BO154: 26.07 | BP154: 9.34 | BQ154: -9.18 | BR154: 0.928 | BS154: 38 | BT154: 24.95 | BU154: 0 | BV154: 0 | BW154: 113.71 | BX154: 8.232 | BY154: 9.059 | BZ154: 117.67 | CA154: 175.94 | CB154: 115.42 | CC154: 25.52 | CD154: 1e+20 | CE154: 0 | CF154: 0 | CG154: 1e+20 | CH154: 1e+20 | CI154: 40.0347 | CJ154: 694.3 | CK154: 133.6 | CL154: -0.059 | CM154: 0 | CN154: 0 | CO154: 0 | CP154: 0 | CQ154: 0
A155: Log | B155: 145 | D155: 14.54 | E155: 14.405 | F155: 14.415 | G155: 0.43308 | H155: 3.0475 | I155: 0.74 | J155: 80.02 | K155: 4.15 | L155: 1.2685 | M155: 11.435 | N155: 30 | O155: 40.0797 | P155: 40 | Q155: 5.298 | R155: 364.64 | S155: 388.403 | T155: 0.0498 | U155: 8.265 | V155: 100.706 | W155: 0.196 | X155: 10 | Y155: 106.86 | Z155: 6.446 | AA155: 9.217 | AB155: 104.06 | AC155: 405.02 | AD155: 1.532 | AE155: 109.99 | AF155: 1.407 | AG155: 40.718 | AH155: 125.09 | AI155: 256.19 | AJ155: 2.938 | AK155: 17.86 | AL155: 9.5 | AM155: 700.1 | AN155: 698.4 | AO155: 695 | AP155: 0 | AQ155: 697.7 | AR155: 0.6 | AS155: 72 | AT155: 28.99 | AU155: 3.236 | AV155: 27.31 | AW155: 3.811 | AX155: 107.93 | AY155: 8.323 | AZ155: 109.75 | BA155: 1e+20 | BB155: 27.57 | BC155: 19.9 | BD155: 28.27 | BE155: 28.31 | BF155: 28.29 | BG155: 28.47 | BH155: 28.22 | BI155: 28.62 | BJ155: 40.43 | BK155: 12.79 | BL155: 21.92 | BM155: 0 | BN155: 2.495 | BO155: 26.06 | BP155: 9.341 | BQ155: -9.18 | BR155: 0.927 | BS155: 37.99 | BT155: 24.95 | BU155: 0 | BV155: 0 | BW155: 113.72 | BX155: 8.222 | BY155: 9.06 | BZ155: 117.67 | CA155: 176.1 | CB155: 115.48 | CC155: 25.52 | CD155: 1e+20 | CE155: 0 | CF155: 0 | CG155: 1e+20 | CH155: 1e+20 | CI155: 40.0392 | CJ155: 698.4 | CK155: 133.5 | CL155: -0.059 | CM155: 0 | CN155: 0 | CO155: 0 | CP155: 0 | CQ155: 0
A156: Log | B156: 146 | D156: 14.47 | E156: 14.481 | F156: 14.435 | G156: 0.4369 | H156: 3.0479 | I156: 0.74 | J156: 80.01 | K156: 4.15 | L156: 1.2685 | M156: 11.438 | N156: 30 | O156: 39.9353 | P156: 40 | Q156: 5.318 | R156: 342.385 | S156: 360.655 | T156: 0.0501 | U156: 8.265 | V156: 100.705 | W156: 0.187 | X156: 10 | Y156: 106.88 | Z156: 6.444 | AA156: 9.217 | AB156: 104 | AC156: 405.07 | AD156: 1.526 | AE156: 110.15 | AF156: 1.405 | AG156: 40.722 | AH156: 125.06 | AI156: 255.83 | AJ156: 2.87 | AK156: 17.77 | AL156: 9.5 | AM156: 686.3 | AN156: 693.4 | AO156: 695 | AP156: 0 | AQ156: 693.9 | AR156: 0.4 | AS156: 72 | AT156: 28.99 | AU156: 3.234 | AV156: 27.31 | AW156: 3.811 | AX156: 107.93 | AY156: 8.321 | AZ156: 109.75 | BA156: 1e+20 | BB156: 27.57 | BC156: 19.9 | BD156: 28.28 | BE156: 28.31 | BF156: 28.29 | BG156: 28.47 | BH156: 28.22 | BI156: 28.62 | BJ156: 40.43 | BK156: 12.79 | BL156: 21.91 | BM156: 0 | BN156: 2.493 | BO156: 26.06 | BP156: 9.342 | BQ156: -9.18 | BR156: 0.928 | BS156: 37.99 | BT156: 24.95 | BU156: 0 | BV156: 0 | BW156: 113.72 | BX156: 8.223 | BY156: 9.063 | BZ156: 117.66 | CA156: 176.04 | CB156: 115.57 | CC156: 25.52 | CD156: 1e+20 | CE156: 0 | CF156: 0 | CG156: 1e+20 | CH156: 1e+20 | CI156: 40.014 | CJ156: 693.3 | CK156: 133.6 | CL156: -0.059 | CM156: 0 | CN156: 0 | CO156: 0 | CP156: 0 | CQ156: 0
A157: Log | B157: 147 | D157: 14.48 | E157: 14.53 | F157: 14.473 | G157: 0.43499 | H157: 3.0477 | I157: 0.74 | J157: 80.01 | K157: 4.15 | L157: 1.2685 | M157: 11.426 | N157: 30 | O157: 40.0353 | P157: 40 | Q157: 5.32 | R157: 342.936 | S157: 372.939 | T157: 0.0498 | U157: 8.265 | V157: 100.705 | W157: 0.201 | X157: 10 | Y157: 106.94 | Z157: 6.439 | AA157: 9.217 | AB157: 104.03 | AC157: 404.98 | AD157: 1.525 | AE157: 110.08 | AF157: 1.404 | AG157: 40.812 | AH157: 124.74 | AI157: 255.44 | AJ157: 2.955 | AK157: 17.81 | AL157: 9.5 | AM157: 704.8 | AN157: 696.3 | AO157: 695 | AP157: 0 | AQ157: 693.4 | AR157: 0.6 | AS157: 72 | AT157: 28.99 | AU157: 3.236 | AV157: 27.31 | AW157: 3.803 | AX157: 107.93 | AY157: 8.323 | AZ157: 109.76 | BA157: 1e+20 | BB157: 27.56 | BC157: 19.9 | BD157: 28.29 | BE157: 28.32 | BF157: 28.29 | BG157: 28.47 | BH157: 28.23 | BI157: 28.63 | BJ157: 40.43 | BK157: 12.8 | BL157: 21.91 | BM157: 0 | BN157: 2.491 | BO157: 26.05 | BP157: 9.343 | BQ157: -9.18 | BR157: 0.927 | BS157: 38 | BT157: 24.95 | BU157: 0 | BV157: 0 | BW157: 113.72 | BX157: 8.236 | BY157: 9.066 | BZ157: 117.67 | CA157: 175.83 | CB157: 115.63 | CC157: 25.52 | CD157: 1e+20 | CE157: 0 | CF157: 0 | CG157: 1e+20 | CH157: 1e+20 | CI157: 39.9836 | CJ157: 696.3 | CK157: 133.5 | CL157: -0.059 | CM157: 0 | CN157: 0 | CO157: 0 | CP157: 0 | CQ157: 0
A158: Log | B158: 148 | D158: 14.52 | E158: 14.424 | F158: 14.418 | G158: 0.43273 | H158: 3.0473 | I158: 0.74 | J158: 80.01 | K158: 4.15 | L158: 1.2684 | M158: 11.416 | N158: 30 | O158: 40.0982 | P158: 40 | Q158: 5.288 | R158: 386.227 | S158: 365.2 | T158: 0.0499 | U158: 8.264 | V158: 100.706 | W158: 0.193 | X158: 10 | Y158: 106.99 | Z158: 6.434 | AA158: 9.217 | AB158: 104.04 | AC158: 404.96 | AD158: 1.527 | AE158: 110.13 | AF158: 1.403 | AG158: 40.649 | AH158: 125.15 | AI158: 255.82 | AJ158: 2.93 | AK158: 17.86 | AL158: 9.5 | AM158: 697.8 | AN158: 698.6 | AO158: 695 | AP158: 0 | AQ158: 697.9 | AR158: 0.9 | AS158: 72 | AT158: 28.99 | AU158: 3.238 | AV158: 27.32 | AW158: 3.797 | AX158: 107.93 | AY158: 8.32 | AZ158: 109.76 | BA158: 1e+20 | BB158: 27.59 | BC158: 19.9 | BD158: 28.29 | BE158: 28.32 | BF158: 28.29 | BG158: 28.48 | BH158: 28.22 | BI158: 28.63 | BJ158: 40.43 | BK158: 12.8 | BL158: 21.91 | BM158: 0 | BN158: 2.492 | BO158: 26.06 | BP158: 9.343 | BQ158: -9.17 | BR158: 0.927 | BS158: 38.01 | BT158: 24.95 | BU158: 0 | BV158: 0 | BW158: 113.72 | BX158: 8.251 | BY158: 9.069 | BZ158: 117.69 | CA158: 175.56 | CB158: 115.65 | CC158: 25.52 | CD158: 1e+20 | CE158: 0 | CF158: 0 | CG158: 1e+20 | CH158: 1e+20 | CI158: 40.0547 | CJ158: 698.7 | CK158: 133.5 | CL158: -0.059 | CM158: 0 | CN158: 0 | CO158: 0 | CP158: 0 | CQ158: 0
A159: Log | B159: 149 | D159: 14.48 | E159: 14.525 | F159: 14.508 | G159: 0.43554 | H159: 3.0476 | I159: 0.74 | J159: 80.01 | K159: 4.15 | L159: 1.2685 | M159: 11.408 | N159: 30 | O159: 39.9898 | P159: 40 | Q159: 5.295 | R159: 369.34 | S159: 351.349 | T159: 0.0501 | U159: 8.265 | V159: 100.705 | W159: 0.178 | X159: 10 | Y159: 107.01 | Z159: 6.432 | AA159: 9.217 | AB159: 104.01 | AC159: 405.01 | AD159: 1.528 | AE159: 110.17 | AF159: 1.4 | AG159: 40.735 | AH159: 124.97 | AI159: 255.35 | AJ159: 2.909 | AK159: 17.77 | AL159: 9.5 | AM159: 694.7 | AN159: 695 | AO159: 695 | AP159: 0 | AQ159: 695 | AR159: 0.7 | AS159: 72 | AT159: 28.99 | AU159: 3.238 | AV159: 27.32 | AW159: 3.805 | AX159: 107.94 | AY159: 8.315 | AZ159: 109.77 | BA159: 1e+20 | BB159: 27.58 | BC159: 19.9 | BD159: 28.29 | BE159: 28.32 | BF159: 28.28 | BG159: 28.47 | BH159: 28.22 | BI159: 28.62 | BJ159: 40.43 | BK159: 12.8 | BL159: 21.91 | BM159: 0 | BN159: 2.493 | BO159: 26.06 | BP159: 9.342 | BQ159: -9.17 | BR159: 0.927 | BS159: 38 | BT159: 24.95 | BU159: 0 | BV159: 0 | BW159: 113.72 | BX159: 8.26 | BY159: 9.071 | BZ159: 117.69 | CA159: 175.4 | CB159: 115.69 | CC159: 25.52 | CD159: 1e+20 | CE159: 0 | CF159: 0 | CG159: 1e+20 | CH159: 1e+20 | CI159: 40.0288 | CJ159: 695 | CK159: 133.5 | CL159: -0.059 | CM159: 0 | CN159: 0 | CO159: 0 | CP159: 0 | CQ159: 0
A160: Log | B160: 150 | D160: 14.52 | E160: 14.442 | F160: 14.379 | G160: 0.43332 | H160: 3.0473 | I160: 0.74 | J160: 80.02 | K160: 4.149 | L160: 1.2685 | M160: 11.409 | N160: 30 | O160: 40.0636 | P160: 40 | Q160: 5.347 | R160: 375.294 | S160: 358.584 | T160: 0.05 | U160: 8.265 | V160: 100.706 | W160: 0.192 | X160: 10 | Y160: 106.99 | Z160: 6.434 | AA160: 9.216 | AB160: 104.05 | AC160: 405.02 | AD160: 1.525 | AE160: 110.08 | AF160: 1.399 | AG160: 40.702 | AH160: 124.93 | AI160: 255.85 | AJ160: 2.928 | AK160: 17.86 | AL160: 9.5 | AM160: 697.9 | AN160: 698 | AO160: 695 | AP160: 0 | AQ160: 696.3 | AR160: 0.9 | AS160: 72 | AT160: 28.99 | AU160: 3.232 | AV160: 27.32 | AW160: 3.812 | AX160: 107.95 | AY160: 8.308 | AZ160: 109.77 | BA160: 1e+20 | BB160: 27.56 | BC160: 19.9 | BD160: 28.29 | BE160: 28.31 | BF160: 28.29 | BG160: 28.47 | BH160: 28.22 | BI160: 28.63 | BJ160: 40.43 | BK160: 12.78 | BL160: 21.91 | BM160: 0 | BN160: 2.493 | BO160: 26.06 | BP160: 9.342 | BQ160: -9.17 | BR160: 0.927 | BS160: 37.99 | BT160: 24.95 | BU160: 0 | BV160: 0 | BW160: 113.72 | BX160: 8.269 | BY160: 9.074 | BZ160: 117.69 | CA160: 175.25 | CB160: 115.74 | CC160: 25.52 | CD160: 1e+20 | CE160: 0 | CF160: 0 | CG160: 1e+20 | CH160: 1e+20 | CI160: 40.0387 | CJ160: 698 | CK160: 133.5 | CL160: -0.059 | CM160: 0 | CN160: 0 | CO160: 0 | CP160: 0 | CQ160: 0
A161: Log | B161: 151 | D161: 14.46 | E161: 14.47 | F161: 14.469 | G161: 0.43644 | H161: 3.0476 | I161: 0.74 | J161: 80.03 | K161: 4.149 | L161: 1.2685 | M161: 11.413 | N161: 30 | O161: 39.9519 | P161: 40 | Q161: 5.347 | R161: 357.578 | S161: 341.775 | T161: 0.0496 | U161: 8.263 | V161: 100.705 | W161: 0.173 | X161: 10 | Y161: 106.97 | Z161: 6.436 | AA161: 9.216 | AB161: 104 | AC161: 404.98 | AD161: 1.527 | AE161: 110.19 | AF161: 1.397 | AG161: 40.703 | AH161: 124.76 | AI161: 256.25 | AJ161: 2.882 | AK161: 17.78 | AL161: 9.5 | AM161: 688.9 | AN161: 693.9 | AO161: 695 | AP161: 0 | AQ161: 695.1 | AR161: 0.6 | AS161: 72 | AT161: 28.99 | AU161: 3.231 | AV161: 27.32 | AW161: 3.803 | AX161: 107.95 | AY161: 8.307 | AZ161: 109.77 | BA161: 1e+20 | BB161: 27.57 | BC161: 19.9 | BD161: 28.3 | BE161: 28.32 | BF161: 28.3 | BG161: 28.48 | BH161: 28.23 | BI161: 28.64 | BJ161: 40.43 | BK161: 12.79 | BL161: 21.91 | BM161: 0 | BN161: 2.493 | BO161: 26.06 | BP161: 9.342 | BQ161: -9.17 | BR161: 0.927 | BS161: 38 | BT161: 24.94 | BU161: 0 | BV161: 0 | BW161: 113.71 | BX161: 8.273 | BY161: 9.079 | BZ161: 117.69 | CA161: 175.16 | CB161: 115.66 | CC161: 25.52 | CD161: 1e+20 | CE161: 0 | CF161: 0 | CG161: 1e+20 | CH161: 1e+20 | CI161: 40.0182 | CJ161: 693.8 | CK161: 133.5 | CL161: -0.059 | CM161: 0 | CN161: 0 | CO161: 0 | CP161: 0 | CQ161: 0
A162: Log | B162: 152 | D162: 14.49 | E162: 14.518 | F162: 14.497 | G162: 0.43669 | H162: 3.0477 | I162: 0.74 | J162: 80.03 | K162: 4.149 | L162: 1.2685 | M162: 11.425 | N162: 30 | O162: 39.9666 | P162: 40 | Q162: 5.288 | R162: 362.613 | S162: 361.104 | T162: 0.05 | U162: 8.264 | V162: 100.705 | W162: 0.185 | X162: 10 | Y162: 106.97 | Z162: 6.436 | AA162: 9.216 | AB162: 104.01 | AC162: 405.02 | AD162: 1.528 | AE162: 110.1 | AF162: 1.396 | AG162: 40.826 | AH162: 124.28 | AI162: 255.67 | AJ162: 2.924 | AK162: 17.78 | AL162: 9.5 | AM162: 698.6 | AN162: 694.1 | AO162: 695 | AP162: 0 | AQ162: 693.4 | AR162: 0.4 | AS162: 72 | AT162: 28.99 | AU162: 3.235 | AV162: 27.32 | AW162: 3.807 | AX162: 107.95 | AY162: 8.309 | AZ162: 109.77 | BA162: 1e+20 | BB162: 27.56 | BC162: 19.89 | BD162: 28.3 | BE162: 28.33 | BF162: 28.3 | BG162: 28.48 | BH162: 28.23 | BI162: 28.64 | BJ162: 40.43 | BK162: 12.8 | BL162: 21.91 | BM162: 0 | BN162: 2.491 | BO162: 26.06 | BP162: 9.343 | BQ162: -9.16 | BR162: 0.927 | BS162: 38 | BT162: 24.94 | BU162: 0 | BV162: 0 | BW162: 113.7 | BX162: 8.268 | BY162: 9.085 | BZ162: 117.69 | CA162: 175.24 | CB162: 115.4 | CC162: 25.52 | CD162: 1e+20 | CE162: 0 | CF162: 0 | CG162: 1e+20 | CH162: 1e+20 | CI162: 39.9715 | CJ162: 694 | CK162: 133.5 | CL162: -0.059 | CM162: 0 | CN162: 0 | CO162: 0 | CP162: 0 | CQ162: 0
A163: Log | B163: 153 | D163: 14.53 | E163: 14.43 | F163: 14.471 | G163: 0.43501 | H163: 3.0475 | I163: 0.74 | J163: 80.05 | K163: 4.149 | L163: 1.2685 | M163: 11.418 | N163: 30 | O163: 40.018 | P163: 40 | Q163: 5.286 | R163: 380.315 | S163: 371.899 | T163: 0.0501 | U163: 8.264 | V163: 100.705 | W163: 0.199 | X163: 10 | Y163: 107 | Z163: 6.433 | AA163: 9.216 | AB163: 104.02 | AC163: 404.98 | AD163: 1.529 | AE163: 110.07 | AF163: 1.395 | AG163: 40.723 | AH163: 124.4 | AI163: 255.5 | AJ163: 2.91 | AK163: 17.84 | AL163: 9.5 | AM163: 694.3 | AN163: 696.1 | AO163: 695 | AP163: 0 | AQ163: 695 | AR163: 0.6 | AS163: 72 | AT163: 28.99 | AU163: 3.234 | AV163: 27.31 | AW163: 3.796 | AX163: 107.94 | AY163: 8.309 | AZ163: 109.77 | BA163: 1e+20 | BB163: 27.59 | BC163: 19.89 | BD163: 28.31 | BE163: 28.33 | BF163: 28.3 | BG163: 28.49 | BH163: 28.23 | BI163: 28.65 | BJ163: 40.43 | BK163: 12.81 | BL163: 21.91 | BM163: 0 | BN163: 2.489 | BO163: 26.06 | BP163: 9.342 | BQ163: -9.15 | BR163: 0.927 | BS163: 38.01 | BT163: 24.95 | BU163: 0 | BV163: 0 | BW163: 113.69 | BX163: 8.253 | BY163: 9.092 | BZ163: 117.69 | CA163: 175.49 | CB163: 115.19 | CC163: 25.52 | CD163: 1e+20 | CE163: 0 | CF163: 0 | CG163: 1e+20 | CH163: 1e+20 | CI163: 39.9972 | CJ163: 696.1 | CK163: 133.5 | CL163: -0.139 | CM163: 0 | CN163: 0 | CO163: 0 | CP163: 0 | CQ163: 0
A164: Log | B164: 154 | D164: 14.5 | E164: 14.433 | F164: 14.48 | G164: 0.43649 | H164: 3.0477 | I164: 0.74 | J164: 80.06 | K164: 4.149 | L164: 1.2684 | M164: 11.416 | N164: 30 | O164: 39.9661 | P164: 40 | Q164: 5.273 | R164: 357.503 | S164: 369 | T164: 0.0499 | U164: 8.263 | V164: 100.705 | W164: 0.178 | X164: 10 | Y164: 107.04 | Z164: 6.429 | AA164: 9.216 | AB164: 104 | AC164: 404.96 | AD164: 1.533 | AE164: 110.08 | AF164: 1.394 | AG164: 40.729 | AH164: 124.38 | AI164: 255.46 | AJ164: 2.904 | AK164: 17.79 | AL164: 9.5 | AM164: 694 | AN164: 694.2 | AO164: 695 | AP164: 0 | AQ164: 693.5 | AR164: 0.6 | AS164: 72 | AT164: 28.99 | AU164: 3.232 | AV164: 27.3 | AW164: 3.807 | AX164: 107.94 | AY164: 8.311 | AZ164: 109.77 | BA164: 1e+20 | BB164: 27.59 | BC164: 19.89 | BD164: 28.29 | BE164: 28.33 | BF164: 28.3 | BG164: 28.48 | BH164: 28.23 | BI164: 28.64 | BJ164: 40.43 | BK164: 12.8 | BL164: 21.91 | BM164: 0 | BN164: 2.49 | BO164: 26.06 | BP164: 9.341 | BQ164: -9.16 | BR164: 0.927 | BS164: 38 | BT164: 24.95 | BU164: 0 | BV164: 0 | BW164: 113.69 | BX164: 8.239 | BY164: 9.095 | BZ164: 117.68 | CA164: 175.72 | CB164: 115.25 | CC164: 25.52 | CD164: 1e+20 | CE164: 0 | CF164: 0 | CG164: 1e+20 | CH164: 1e+20 | CI164: 39.9867 | CJ164: 694.1 | CK164: 133.5 | CL164: -0.139 | CM164: 0 | CN164: 0 | CO164: 0 | CP164: 0 | CQ164: 0
A165: Log | B165: 155 | D165: 14.51 | E165: 14.44 | F165: 14.406 | G165: 0.43548 | H165: 3.0476 | I165: 0.74 | J165: 80.05 | K165: 4.149 | L165: 1.2684 | M165: 11.426 | N165: 30 | O165: 39.9912 | P165: 40 | Q165: 5.297 | R165: 349.876 | S165: 370.522 | T165: 0.05 | U165: 8.263 | V165: 100.705 | W165: 0.197 | X165: 10 | Y165: 107.07 | Z165: 6.426 | AA165: 9.216 | AB165: 104.01 | AC165: 404.97 | AD165: 1.536 | AE165: 110.07 | AF165: 1.393 | AG165: 40.723 | AH165: 124.37 | AI165: 255.52 | AJ165: 2.912 | AK165: 17.83 | AL165: 9.5 | AM165: 695.4 | AN165: 695.6 | AO165: 695 | AP165: 0 | AQ165: 695.3 | AR165: 0.6 | AS165: 72 | AT165: 28.99 | AU165: 3.232 | AV165: 27.3 | AW165: 3.804 | AX165: 107.94 | AY165: 8.312 | AZ165: 109.77 | BA165: 1e+20 | BB165: 27.58 | BC165: 19.89 | BD165: 28.29 | BE165: 28.32 | BF165: 28.29 | BG165: 28.47 | BH165: 28.23 | BI165: 28.63 | BJ165: 40.43 | BK165: 12.79 | BL165: 21.91 | BM165: 0 | BN165: 2.491 | BO165: 26.07 | BP165: 9.338 | BQ165: -9.17 | BR165: 0.927 | BS165: 38 | BT165: 24.94 | BU165: 0 | BV165: 0 | BW165: 113.69 | BX165: 8.238 | BY165: 9.099 | BZ165: 117.69 | CA165: 175.73 | CB165: 115.3 | CC165: 25.52 | CD165: 1e+20 | CE165: 0 | CF165: 0 | CG165: 1e+20 | CH165: 1e+20 | CI165: 39.9881 | CJ165: 695.5 | CK165: 133.5 | CL165: -0.139 | CM165: 0 | CN165: 0 | CO165: 0 | CP165: 0 | CQ165: 0
A166: Log | B166: 156 | D166: 14.47 | E166: 14.449 | F166: 14.539 | G166: 0.43836 | H166: 3.048 | I166: 0.74 | J166: 80.05 | K166: 4.148 | L166: 1.2684 | M166: 11.426 | N166: 30 | O166: 39.8981 | P166: 40 | Q166: 5.327 | R166: 353.577 | S166: 346.966 | T166: 0.0499 | U166: 8.263 | V166: 100.705 | W166: 0.19 | X166: 10 | Y166: 107.06 | Z166: 6.427 | AA166: 9.216 | AB166: 104 | AC166: 404.95 | AD166: 1.539 | AE166: 110.18 | AF166: 1.391 | AG166: 40.788 | AH166: 124.24 | AI166: 255.84 | AJ166: 2.884 | AK166: 17.74 | AL166: 9.5 | AM166: 690.2 | AN166: 691.9 | AO166: 695 | AP166: 0 | AQ166: 692.8 | AR166: 0.3 | AS166: 72 | AT166: 28.99 | AU166: 3.231 | AV166: 27.29 | AW166: 3.814 | AX166: 107.95 | AY166: 8.304 | AZ166: 109.78 | BA166: 1e+20 | BB166: 27.58 | BC166: 19.9 | BD166: 28.29 | BE166: 28.32 | BF166: 28.28 | BG166: 28.48 | BH166: 28.22 | BI166: 28.62 | BJ166: 40.42 | BK166: 12.78 | BL166: 21.91 | BM166: 0 | BN166: 2.491 | BO166: 26.07 | BP166: 9.339 | BQ166: -9.17 | BR166: 0.927 | BS166: 37.99 | BT166: 24.94 | BU166: 0 | BV166: 0 | BW166: 113.7 | BX166: 8.256 | BY166: 9.099 | BZ166: 117.7 | CA166: 175.42 | CB166: 115.2 | CC166: 25.52 | CD166: 1e+20 | CE166: 0 | CF166: 0 | CG166: 1e+20 | CH166: 1e+20 | CI166: 39.9532 | CJ166: 691.9 | CK166: 133.5 | CL166: -0.139 | CM166: 0 | CN166: 0 | CO166: 0 | CP166: 0 | CQ166: 0
A167: Log | B167: 157 | D167: 14.51 | E167: 14.507 | F167: 14.458 | G167: 0.43543 | H167: 3.0477 | I167: 0.74 | J167: 80.04 | K167: 4.148 | L167: 1.2685 | M167: 11.438 | N167: 30 | O167: 40.0173 | P167: 40 | Q167: 5.288 | R167: 363.323 | S167: 361.845 | T167: 0.0499 | U167: 8.262 | V167: 100.705 | W167: 0.173 | X167: 10 | Y167: 107.04 | Z167: 6.429 | AA167: 9.216 | AB167: 104.03 | AC167: 404.95 | AD167: 1.542 | AE167: 110.11 | AF167: 1.39 | AG167: 40.798 | AH167: 124.14 | AI167: 255.82 | AJ167: 2.937 | AK167: 17.84 | AL167: 9.5 | AM167: 700.7 | AN167: 696 | AO167: 695 | AP167: 0 | AQ167: 693.9 | AR167: 0.5 | AS167: 72 | AT167: 28.99 | AU167: 3.23 | AV167: 27.29 | AW167: 3.816 | AX167: 107.97 | AY167: 8.291 | AZ167: 109.78 | BA167: 1e+20 | BB167: 27.57 | BC167: 19.9 | BD167: 28.29 | BE167: 28.31 | BF167: 28.28 | BG167: 28.48 | BH167: 28.21 | BI167: 28.62 | BJ167: 40.43 | BK167: 12.79 | BL167: 21.91 | BM167: 0 | BN167: 2.49 | BO167: 26.07 | BP167: 9.339 | BQ167: -9.17 | BR167: 0.927 | BS167: 37.99 | BT167: 24.95 | BU167: 0 | BV167: 0 | BW167: 113.71 | BX167: 8.281 | BY167: 9.099 | BZ167: 117.71 | CA167: 174.99 | CB167: 115.13 | CC167: 25.53 | CD167: 1e+20 | CE167: 0 | CF167: 0 | CG167: 1e+20 | CH167: 1e+20 | CI167: 39.9578 | CJ167: 696 | CK167: 133.5 | CL167: -0.139 | CM167: 0 | CN167: 0 | CO167: 0 | CP167: 0 | CQ167: 0
A168: Log | B168: 158 | D168: 14.52 | E168: 14.441 | F168: 14.468 | G168: 0.43448 | H168: 3.0477 | I168: 0.74 | J168: 80.04 | K168: 4.148 | L168: 1.2685 | M168: 11.442 | N168: 30 | O168: 40.0155 | P168: 40 | Q168: 5.295 | R168: 382.716 | S168: 361.642 | T168: 0.0502 | U168: 8.263 | V168: 100.704 | W168: 0.212 | X168: 10 | Y168: 107.01 | Z168: 6.432 | AA168: 9.216 | AB168: 104.02 | AC168: 405.01 | AD168: 1.542 | AE168: 110.17 | AF168: 1.388 | AG168: 40.636 | AH168: 124.62 | AI168: 255.58 | AJ168: 2.908 | AK168: 17.86 | AL168: 9.5 | AM168: 694 | AN168: 696.7 | AO168: 695 | AP168: 0 | AQ168: 697.1 | AR168: 0.6 | AS168: 72 | AT168: 28.99 | AU168: 3.235 | AV168: 27.29 | AW168: 3.803 | AX168: 107.97 | AY168: 8.292 | AZ168: 109.79 | BA168: 1e+20 | BB168: 27.59 | BC168: 19.9 | BD168: 28.29 | BE168: 28.3 | BF168: 28.28 | BG168: 28.48 | BH168: 28.22 | BI168: 28.62 | BJ168: 40.43 | BK168: 12.79 | BL168: 21.91 | BM168: 0 | BN168: 2.491 | BO168: 26.07 | BP168: 9.34 | BQ168: -9.16 | BR168: 0.927 | BS168: 38 | BT168: 24.95 | BU168: 0 | BV168: 0 | BW168: 113.71 | BX168: 8.282 | BY168: 9.102 | BZ168: 117.71 | CA168: 174.97 | CB168: 115.19 | CC168: 25.53 | CD168: 1e+20 | CE168: 0 | CF168: 0 | CG168: 1e+20 | CH168: 1e+20 | CI168: 40.0115 | CJ168: 696.7 | CK168: 133.5 | CL168: -0.139 | CM168: 0 | CN168: 0 | CO168: 0 | CP168: 0 | CQ168: 0
A169: Log | B169: 159 | D169: 14.5 | E169: 14.523 | F169: 14.491 | G169: 0.43562 | H169: 3.0478 | I169: 0.74 | J169: 80.04 | K169: 4.148 | L169: 1.2661 | M169: 11.456 | N169: 30 | O169: 39.9737 | P169: 40 | Q169: 5.298 | R169: 363.101 | S169: 369.441 | T169: 0.05 | U169: 8.263 | V169: 100.705 | W169: 0.152 | X169: 9.995 | Y169: 106.99 | Z169: 6.433 | AA169: 9.216 | AB169: 104.01 | AC169: 405.02 | AD169: 1.542 | AE169: 110.15 | AF169: 1.385 | AG169: 40.74 | AH169: 124.49 | AI169: 256.09 | AJ169: 2.931 | AK169: 17.79 | AL169: 9.5 | AM169: 700.1 | AN169: 694.9 | AO169: 695 | AP169: 0 | AQ169: 694.3 | AR169: 0.4 | AS169: 72 | AT169: 28.99 | AU169: 3.239 | AV169: 27.29 | AW169: 3.802 | AX169: 107.96 | AY169: 8.3 | AZ169: 109.79 | BA169: 1e+20 | BB169: 27.57 | BC169: 19.89 | BD169: 28.28 | BE169: 28.3 | BF169: 28.27 | BG169: 28.47 | BH169: 28.22 | BI169: 28.62 | BJ169: 40.43 | BK169: 12.79 | BL169: 21.92 | BM169: 0 | BN169: 2.493 | BO169: 26.06 | BP169: 9.342 | BQ169: -9.16 | BR169: 0.927 | BS169: 38.01 | BT169: 24.94 | BU169: 0 | BV169: 0 | BW169: 113.69 | BX169: 8.287 | BY169: 9.11 | BZ169: 117.7 | CA169: 174.89 | CB169: 115.39 | CC169: 25.53 | CD169: 1e+20 | CE169: 0 | CF169: 0 | CG169: 1e+20 | CH169: 1e+20 | CI169: 39.9804 | CJ169: 694.9 | CK169: 133.5 | CL169: -0.139 | CM169: 0 | CN169: 0 | CO169: 0 | CP169: 0 | CQ169: 0
A170: Log | B170: 160 | D170: 14.53 | E170: 14.394 | F170: 14.381 | G170: 0.43254 | H170: 3.0475 | I170: 0.74 | J170: 80.04 | K170: 4.148 | L170: 1.2661 | M170: 11.463 | N170: 30 | O170: 40.0669 | P170: 40 | Q170: 5.289 | R170: 363.683 | S170: 377.671 | T170: 0.0506 | U170: 8.265 | V170: 100.705 | W170: 0.17 | X170: 10 | Y170: 106.98 | Z170: 6.435 | AA170: 9.216 | AB170: 104.04 | AC170: 405.03 | AD170: 1.54 | AE170: 110.13 | AF170: 1.384 | AG170: 40.644 | AH170: 124.75 | AI170: 255.89 | AJ170: 2.933 | AK170: 17.87 | AL170: 9.5 | AM170: 699 | AN170: 698.3 | AO170: 695 | AP170: 0 | AQ170: 696.9 | AR170: 0.7 | AS170: 72 | AT170: 28.98 | AU170: 3.243 | AV170: 27.3 | AW170: 3.804 | AX170: 107.96 | AY170: 8.298 | AZ170: 109.79 | BA170: 1e+20 | BB170: 27.56 | BC170: 19.89 | BD170: 28.27 | BE170: 28.29 | BF170: 28.27 | BG170: 28.46 | BH170: 28.21 | BI170: 28.61 | BJ170: 40.42 | BK170: 12.78 | BL170: 21.92 | BM170: 0 | BN170: 2.493 | BO170: 26.06 | BP170: 9.341 | BQ170: -9.16 | BR170: 0.927 | BS170: 38 | BT170: 24.93 | BU170: 0 | BV170: 0 | BW170: 113.68 | BX170: 8.289 | BY170: 9.119 | BZ170: 117.69 | CA170: 174.86 | CB170: 115.54 | CC170: 25.53 | CD170: 1e+20 | CE170: 0 | CF170: 0 | CG170: 1e+20 | CH170: 1e+20 | CI170: 40.0262 | CJ170: 698.3 | CK170: 133.5 | CL170: -0.139 | CM170: 0 | CN170: 0 | CO170: 0 | CP170: 0 | CQ170: 0
A171: Log | B171: 161 | D171: 14.45 | E171: 14.47 | F171: 14.493 | G171: 0.4376 | H171: 3.0481 | I171: 0.74 | J171: 80.04 | K171: 4.148 | L171: 1.2661 | M171: 11.462 | N171: 30 | O171: 39.8782 | P171: 40 | Q171: 5.296 | R171: 345.939 | S171: 353.308 | T171: 0.0503 | U171: 8.267 | V171: 100.704 | W171: 0.17 | X171: 10 | Y171: 106.97 | Z171: 6.435 | AA171: 9.216 | AB171: 103.99 | AC171: 405.06 | AD171: 1.535 | AE171: 110.24 | AF171: 1.382 | AG171: 40.686 | AH171: 124.71 | AI171: 255.65 | AJ171: 2.853 | AK171: 17.76 | AL171: 9.5 | AM171: 683.2 | AN171: 691.7 | AO171: 695 | AP171: 0 | AQ171: 694.7 | AR171: 0.2 | AS171: 72 | AT171: 28.98 | AU171: 3.241 | AV171: 27.31 | AW171: 3.815 | AX171: 107.96 | AY171: 8.297 | AZ171: 109.79 | BA171: 1e+20 | BB171: 27.56 | BC171: 19.89 | BD171: 28.27 | BE171: 28.29 | BF171: 28.26 | BG171: 28.47 | BH171: 28.21 | BI171: 28.6 | BJ171: 40.42 | BK171: 12.79 | BL171: 21.92 | BM171: 0 | BN171: 2.494 | BO171: 26.06 | BP171: 9.341 | BQ171: -9.16 | BR171: 0.927 | BS171: 37.99 | BT171: 24.93 | BU171: 0 | BV171: 0 | BW171: 113.67 | BX171: 8.286 | BY171: 9.125 | BZ171: 117.7 | CA171: 174.92 | CB171: 115.56 | CC171: 25.53 | CD171: 1e+20 | CE171: 0 | CF171: 0 | CG171: 1e+20 | CH171: 1e+20 | CI171: 39.9877 | CJ171: 691.6 | CK171: 133.5 | CL171: -0.139 | CM171: 0 | CN171: 0 | CO171: 0 | CP171: 0 | CQ171: 0
A172: Log | B172: 162 | D172: 14.49 | E172: 14.537 | F172: 14.491 | G172: 0.43584 | H172: 3.0479 | I172: 0.74 | J172: 80.04 | K172: 4.148 | L172: 1.2662 | M172: 11.458 | N172: 30 | O172: 39.9826 | P172: 40 | Q172: 5.266 | R172: 351.701 | S172: 368.04 | T172: 0.0503 | U172: 8.267 | V172: 100.704 | W172: 0.194 | X172: 10 | Y172: 106.95 | Z172: 6.438 | AA172: 9.216 | AB172: 104.02 | AC172: 405.05 | AD172: 1.531 | AE172: 110.14 | AF172: 1.379 | AG172: 40.826 | AH172: 124.21 | AI172: 256.04 | AJ172: 2.934 | AK172: 17.83 | AL172: 9.5 | AM172: 700.8 | AN172: 694.5 | AO172: 695 | AP172: 0 | AQ172: 692.6 | AR172: 0.3 | AS172: 72 | AT172: 28.99 | AU172: 3.237 | AV172: 27.32 | AW172: 3.805 | AX172: 107.96 | AY172: 8.302 | AZ172: 109.79 | BA172: 1e+20 | BB172: 27.55 | BC172: 19.89 | BD172: 28.27 | BE172: 28.29 | BF172: 28.26 | BG172: 28.47 | BH172: 28.22 | BI172: 28.6 | BJ172: 40.42 | BK172: 12.8 | BL172: 21.91 | BM172: 0 | BN172: 2.49 | BO172: 26.06 | BP172: 9.342 | BQ172: -9.16 | BR172: 0.927 | BS172: 38 | BT172: 24.95 | BU172: 0 | BV172: 0 | BW172: 113.66 | BX172: 8.288 | BY172: 9.13 | BZ172: 117.71 | CA172: 174.89 | CB172: 115.44 | CC172: 25.52 | CD172: 1e+20 | CE172: 0 | CF172: 0 | CG172: 1e+20 | CH172: 1e+20 | CI172: 39.9397 | CJ172: 694.6 | CK172: 133.5 | CL172: -0.139 | CM172: 0 | CN172: 0 | CO172: 0 | CP172: 0 | CQ172: 0
A173: Log | B173: 163 | D173: 14.53 | E173: 14.426 | F173: 14.484 | G173: 0.43344 | H173: 3.0477 | I173: 0.74 | J173: 80.04 | K173: 4.147 | L173: 1.2661 | M173: 11.461 | N173: 30 | O173: 40.0486 | P173: 40 | Q173: 5.299 | R173: 383.678 | S173: 380.724 | T173: 0.0502 | U173: 8.268 | V173: 100.705 | W173: 0.19 | X173: 10 | Y173: 106.94 | Z173: 6.439 | AA173: 9.215 | AB173: 104.03 | AC173: 404.98 | AD173: 1.531 | AE173: 110.13 | AF173: 1.378 | AG173: 40.66 | AH173: 124.61 | AI173: 255.77 | AJ173: 2.925 | AK173: 17.85 | AL173: 9.5 | AM173: 697.5 | AN173: 697 | AO173: 695 | AP173: 0 | AQ173: 696.9 | AR173: 0.3 | AS173: 72 | AT173: 28.99 | AU173: 3.235 | AV173: 27.32 | AW173: 3.807 | AX173: 107.96 | AY173: 8.301 | AZ173: 109.79 | BA173: 1e+20 | BB173: 27.56 | BC173: 19.9 | BD173: 28.28 | BE173: 28.3 | BF173: 28.27 | BG173: 28.47 | BH173: 28.21 | BI173: 28.61 | BJ173: 40.43 | BK173: 12.8 | BL173: 21.91 | BM173: 0 | BN173: 2.491 | BO173: 26.05 | BP173: 9.343 | BQ173: -9.16 | BR173: 0.927 | BS173: 38 | BT173: 24.95 | BU173: 0 | BV173: 0 | BW173: 113.67 | BX173: 8.29 | BY173: 9.133 | BZ173: 117.72 | CA173: 174.85 | CB173: 115.23 | CC173: 25.53 | CD173: 1e+20 | CE173: 0 | CF173: 0 | CG173: 1e+20 | CH173: 1e+20 | CI173: 40.0078 | CJ173: 697.1 | CK173: 133.5 | CL173: -0.139 | CM173: 0 | CN173: 0 | CO173: 0 | CP173: 0 | CQ173: 0
A174: Log | B174: 164 | D174: 14.51 | E174: 14.48 | F174: 14.49 | G174: 0.4359 | H174: 3.0479 | I174: 0.74 | J174: 80.04 | K174: 4.147 | L174: 1.2662 | M174: 11.469 | N174: 30 | O174: 39.9606 | P174: 40 | Q174: 5.288 | R174: 363.187 | S174: 376.517 | T174: 0.0501 | U174: 8.268 | V174: 100.705 | W174: 0.178 | X174: 10 | Y174: 106.95 | Z174: 6.438 | AA174: 9.215 | AB174: 103.99 | AC174: 404.88 | AD174: 1.539 | AE174: 110.14 | AF174: 1.376 | AG174: 40.694 | AH174: 124.63 | AI174: 256.02 | AJ174: 2.896 | AK174: 17.79 | AL174: 9.5 | AM174: 691.9 | AN174: 693.8 | AO174: 695 | AP174: 0 | AQ174: 695 | AR174: 0.2 | AS174: 72 | AT174: 28.99 | AU174: 3.232 | AV174: 27.31 | AW174: 3.813 | AX174: 107.96 | AY174: 8.295 | AZ174: 109.79 | BA174: 1e+20 | BB174: 27.56 | BC174: 19.9 | BD174: 28.27 | BE174: 28.3 | BF174: 28.26 | BG174: 28.46 | BH174: 28.21 | BI174: 28.61 | BJ174: 40.43 | BK174: 12.8 | BL174: 21.92 | BM174: 0 | BN174: 2.496 | BO174: 26.06 | BP174: 9.341 | BQ174: -9.16 | BR174: 0.927 | BS174: 37.99 | BT174: 24.96 | BU174: 0 | BV174: 0 | BW174: 113.66 | BX174: 8.274 | BY174: 9.137 | BZ174: 117.72 | CA174: 175.12 | CB174: 115.32 | CC174: 25.53 | CD174: 1e+20 | CE174: 0 | CF174: 0 | CG174: 1e+20 | CH174: 1e+20 | CI174: 39.9978 | CJ174: 693.7 | CK174: 133.5 | CL174: -0.139 | CM174: 0 | CN174: 0 | CO174: 0 | CP174: 0 | CQ174: 0
A175: Log | B175: 165 | D175: 14.52 | E175: 14.498 | F175: 14.438 | G175: 0.43578 | H175: 3.0479 | I175: 0.74 | J175: 80.04 | K175: 4.147 | L175: 1.2661 | M175: 11.473 | N175: 30 | O175: 39.976 | P175: 40 | Q175: 5.252 | R175: 366.601 | S175: 369.916 | T175: 0.0495 | U175: 8.266 | V175: 100.705 | W175: 0.185 | X175: 10 | Y175: 106.98 | Z175: 6.435 | AA175: 9.215 | AB175: 104 | AC175: 404.98 | AD175: 1.543 | AE175: 110.1 | AF175: 1.375 | AG175: 40.75 | AH175: 124.45 | AI175: 255.97 | AJ175: 2.904 | AK175: 17.81 | AL175: 9.5 | AM175: 693.8 | AN175: 694.1 | AO175: 695 | AP175: 0 | AQ175: 693.3 | AR175: 0.1 | AS175: 72 | AT175: 29 | AU175: 3.23 | AV175: 27.32 | AW175: 3.81 | AX175: 107.97 | AY175: 8.291 | AZ175: 109.8 | BA175: 1e+20 | BB175: 27.55 | BC175: 19.9 | BD175: 28.27 | BE175: 28.29 | BF175: 28.26 | BG175: 28.45 | BH175: 28.2 | BI175: 28.6 | BJ175: 40.42 | BK175: 12.79 | BL175: 21.93 | BM175: 0 | BN175: 2.496 | BO175: 26.07 | BP175: 9.339 | BQ175: -9.16 | BR175: 0.927 | BS175: 38 | BT175: 24.95 | BU175: 0 | BV175: 0 | BW175: 113.66 | BX175: 8.26 | BY175: 9.143 | BZ175: 117.71 | CA175: 175.34 | CB175: 115.39 | CC175: 25.53 | CD175: 1e+20 | CE175: 0 | CF175: 0 | CG175: 1e+20 | CH175: 1e+20 | CI175: 39.9802 | CJ175: 694 | CK175: 133.5 | CL175: -0.139 | CM175: 0 | CN175: 0 | CO175: 0 | CP175: 0 | CQ175: 0
A176: Log | B176: 166 | D176: 14.51 | E176: 14.474 | F176: 14.543 | G176: 0.43811 | H176: 3.0482 | I176: 0.74 | J176: 80.04 | K176: 4.147 | L176: 1.2661 | M176: 11.474 | N176: 30 | O176: 39.9017 | P176: 40 | Q176: 5.28 | R176: 359.174 | S176: 345.019 | T176: 0.0498 | U176: 8.265 | V176: 100.705 | W176: 0.195 | X176: 10 | Y176: 107 | Z176: 6.433 | AA176: 9.215 | AB176: 104 | AC176: 405.04 | AD176: 1.542 | AE176: 110.17 | AF176: 1.373 | AG176: 40.832 | AH176: 124.16 | AI176: 255.65 | AJ176: 2.882 | AK176: 17.74 | AL176: 9.5 | AM176: 689.6 | AN176: 691.2 | AO176: 695 | AP176: 0 | AQ176: 691.4 | AR176: 0.1 | AS176: 72 | AT176: 29 | AU176: 3.224 | AV176: 27.32 | AW176: 3.819 | AX176: 107.97 | AY176: 8.294 | AZ176: 109.79 | BA176: 1e+20 | BB176: 27.57 | BC176: 19.89 | BD176: 28.29 | BE176: 28.29 | BF176: 28.26 | BG176: 28.46 | BH176: 28.21 | BI176: 28.6 | BJ176: 40.43 | BK176: 12.79 | BL176: 21.93 | BM176: 0 | BN176: 2.498 | BO176: 26.07 | BP176: 9.34 | BQ176: -9.16 | BR176: 0.928 | BS176: 37.98 | BT176: 24.95 | BU176: 0 | BV176: 0 | BW176: 113.66 | BX176: 8.25 | BY176: 9.146 | BZ176: 117.71 | CA176: 175.51 | CB176: 115.42 | CC176: 25.53 | CD176: 1e+20 | CE176: 0 | CF176: 0 | CG176: 1e+20 | CH176: 1e+20 | CI176: 39.9431 | CJ176: 691.2 | CK176: 133.6 | CL176: -0.139 | CM176: 0 | CN176: 0 | CO176: 0 | CP176: 0 | CQ176: 0
A177: Log | B177: 167 | D177: 14.53 | E177: 14.527 | F177: 14.501 | G177: 0.43718 | H177: 3.0482 | I177: 0.74 | J177: 80.03 | K177: 4.147 | L177: 1.2661 | M177: 11.471 | N177: 30 | O177: 39.9456 | P177: 40 | Q177: 5.239 | R177: 352.862 | S177: 368.207 | T177: 0.0497 | U177: 8.264 | V177: 100.704 | W177: 0.199 | X177: 10 | Y177: 107 | Z177: 6.433 | AA177: 9.215 | AB177: 104.01 | AC177: 405.09 | AD177: 1.537 | AE177: 110.11 | AF177: 1.371 | AG177: 40.871 | AH177: 124.01 | AI177: 255.88 | AJ177: 2.905 | AK177: 17.77 | AL177: 9.5 | AM177: 694.5 | AN177: 692.6 | AO177: 695 | AP177: 0 | AQ177: 690.6 | AR177: 0.3 | AS177: 72 | AT177: 29 | AU177: 3.227 | AV177: 27.3 | AW177: 3.8 | AX177: 107.96 | AY177: 8.297 | AZ177: 109.79 | BA177: 1e+20 | BB177: 27.58 | BC177: 19.9 | BD177: 28.3 | BE177: 28.3 | BF177: 28.26 | BG177: 28.47 | BH177: 28.21 | BI177: 28.61 | BJ177: 40.43 | BK177: 12.8 | BL177: 21.93 | BM177: 0 | BN177: 2.498 | BO177: 26.05 | BP177: 9.343 | BQ177: -9.16 | BR177: 0.928 | BS177: 38.01 | BT177: 24.95 | BU177: 0 | BV177: 0 | BW177: 113.67 | BX177: 8.243 | BY177: 9.147 | BZ177: 117.69 | CA177: 175.61 | CB177: 115.32 | CC177: 25.53 | CD177: 1e+20 | CE177: 0 | CF177: 0 | CG177: 1e+20 | CH177: 1e+20 | CI177: 39.9305 | CJ177: 692.6 | CK177: 133.6 | CL177: -0.139 | CM177: 0 | CN177: 0 | CO177: 0 | CP177: 0 | CQ177: 0
A178: Log | B178: 168 | D178: 14.54 | E178: 14.454 | F178: 14.501 | G178: 0.4351 | H178: 3.0481 | I178: 0.74 | J178: 80.02 | K178: 4.147 | L178: 1.2661 | M178: 11.482 | N178: 30 | O178: 40.011 | P178: 40 | Q178: 5.249 | R178: 371.127 | S178: 363.008 | T178: 0.05 | U178: 8.264 | V178: 100.704 | W178: 0.186 | X178: 10 | Y178: 107.01 | Z178: 6.432 | AA178: 9.215 | AB178: 104.01 | AC178: 405.03 | AD178: 1.533 | AE178: 110.11 | AF178: 1.37 | AG178: 40.745 | AH178: 124.22 | AI178: 255.92 | AJ178: 2.907 | AK178: 17.83 | AL178: 9.5 | AM178: 693.9 | AN178: 695 | AO178: 695 | AP178: 0 | AQ178: 694.2 | AR178: 0.6 | AS178: 72 | AT178: 29 | AU178: 3.225 | AV178: 27.3 | AW178: 3.807 | AX178: 107.98 | AY178: 8.283 | AZ178: 109.79 | BA178: 1e+20 | BB178: 27.6 | BC178: 19.9 | BD178: 28.3 | BE178: 28.3 | BF178: 28.27 | BG178: 28.47 | BH178: 28.21 | BI178: 28.61 | BJ178: 40.43 | BK178: 12.8 | BL178: 21.94 | BM178: 0 | BN178: 2.502 | BO178: 26.06 | BP178: 9.342 | BQ178: -9.16 | BR178: 0.927 | BS178: 38 | BT178: 24.95 | BU178: 0 | BV178: 0 | BW178: 113.68 | BX178: 8.27 | BY178: 9.147 | BZ178: 117.68 | CA178: 175.16 | CB178: 115.31 | CC178: 25.53 | CD178: 1e+20 | CE178: 0 | CF178: 0 | CG178: 1e+20 | CH178: 1e+20 | CI178: 39.9789 | CJ178: 694.9 | CK178: 133.6 | CL178: 1.582 | CM178: 0 | CN178: 0 | CO178: 0 | CP178: 0 | CQ178: 0
A179: Log | B179: 169 | D179: 14.52 | E179: 14.483 | F179: 14.452 | G179: 0.43585 | H179: 3.0482 | I179: 0.74 | J179: 80.01 | K179: 4.147 | L179: 1.2661 | M179: 11.473 | N179: 30 | O179: 39.9748 | P179: 40 | Q179: 5.272 | R179: 347.263 | S179: 371.296 | T179: 0.0502 | U179: 8.265 | V179: 100.705 | W179: 0.185 | X179: 9.999 | Y179: 107.04 | Z179: 6.429 | AA179: 9.215 | AB179: 103.99 | AC179: 405.02 | AD179: 1.53 | AE179: 110.12 | AF179: 1.368 | AG179: 40.749 | AH179: 124.31 | AI179: 255.69 | AJ179: 2.898 | AK179: 17.79 | AL179: 9.5 | AM179: 692.3 | AN179: 693.7 | AO179: 695 | AP179: 0 | AQ179: 694.3 | AR179: 0.4 | AS179: 72 | AT179: 29 | AU179: 3.229 | AV179: 27.3 | AW179: 3.803 | AX179: 107.98 | AY179: 8.285 | AZ179: 109.8 | BA179: 1e+20 | BB179: 27.59 | BC179: 19.9 | BD179: 28.3 | BE179: 28.3 | BF179: 28.27 | BG179: 28.47 | BH179: 28.21 | BI179: 28.62 | BJ179: 40.42 | BK179: 12.8 | BL179: 21.94 | BM179: 0 | BN179: 2.503 | BO179: 26.06 | BP179: 9.342 | BQ179: -9.16 | BR179: 0.928 | BS179: 38 | BT179: 24.95 | BU179: 0 | BV179: 0 | BW179: 113.69 | BX179: 8.288 | BY179: 9.148 | BZ179: 117.69 | CA179: 174.85 | CB179: 115.49 | CC179: 25.53 | CD179: 1e+20 | CE179: 0 | CF179: 0 | CG179: 1e+20 | CH179: 1e+20 | CI179: 39.9894 | CJ179: 693.7 | CK179: 133.6 | CL179: 1.582 | CM179: 0 | CN179: 0 | CO179: 0 | CP179: 0 | CQ179: 0
A180: Log | B180: 170 | D180: 14.51 | E180: 14.468 | F180: 14.423 | G180: 0.4346 | H180: 3.048 | I180: 0.74 | J180: 80.01 | K180: 4.147 | L180: 1.2661 | M180: 11.484 | N180: 30 | O180: 40.0237 | P180: 40 | Q180: 5.236 | R180: 351.791 | S180: 359.001 | T180: 0.0503 | U180: 8.266 | V180: 100.704 | W180: 0.174 | X180: 10 | Y180: 107.04 | Z180: 6.429 | AA180: 9.215 | AB180: 104.02 | AC180: 405 | AD180: 1.529 | AE180: 110.13 | AF180: 1.366 | AG180: 40.747 | AH180: 124.34 | AI180: 256.07 | AJ180: 2.908 | AK180: 17.83 | AL180: 9.5 | AM180: 693.8 | AN180: 695.5 | AO180: 695 | AP180: 0 | AQ180: 693.3 | AR180: 0.6 | AS180: 72 | AT180: 28.99 | AU180: 3.232 | AV180: 27.3 | AW180: 3.819 | AX180: 107.98 | AY180: 8.282 | AZ180: 109.8 | BA180: 1e+20 | BB180: 27.57 | BC180: 19.89 | BD180: 28.32 | BE180: 28.3 | BF180: 28.26 | BG180: 28.46 | BH180: 28.21 | BI180: 28.62 | BJ180: 40.41 | BK180: 12.79 | BL180: 21.94 | BM180: 0 | BN180: 2.501 | BO180: 26.06 | BP180: 9.341 | BQ180: -9.17 | BR180: 0.928 | BS180: 37.98 | BT180: 24.95 | BU180: 0 | BV180: 0 | BW180: 113.69 | BX180: 8.276 | BY180: 9.149 | BZ180: 117.68 | CA180: 175.06 | CB180: 115.54 | CC180: 25.52 | CD180: 1e+20 | CE180: 0 | CF180: 0 | CG180: 1e+20 | CH180: 1e+20 | CI180: 40.0007 | CJ180: 695.4 | CK180: 133.6 | CL180: 1.582 | CM180: 0 | CN180: 0 | CO180: 0 | CP180: 0 | CQ180: 0
A181: Log | B181: 171 | D181: 14.5 | E181: 14.534 | F181: 14.553 | G181: 0.43715 | H181: 3.0483 | I181: 0.74 | J181: 80.01 | K181: 4.147 | L181: 1.2662 | M181: 11.474 | N181: 30 | O181: 39.936 | P181: 40 | Q181: 5.265 | R181: 353.051 | S181: 356.645 | T181: 0.0504 | U181: 8.268 | V181: 100.704 | W181: 0.184 | X181: 10 | Y181: 107.02 | Z181: 6.431 | AA181: 9.215 | AB181: 104 | AC181: 405 | AD181: 1.529 | AE181: 110.11 | AF181: 1.365 | AG181: 40.797 | AH181: 124.14 | AI181: 255.74 | AJ181: 2.893 | AK181: 17.76 | AL181: 9.5 | AM181: 691.7 | AN181: 692.1 | AO181: 695 | AP181: 0 | AQ181: 691.8 | AR181: 0.5 | AS181: 72 | AT181: 29 | AU181: 3.228 | AV181: 27.3 | AW181: 3.807 | AX181: 107.98 | AY181: 8.28 | AZ181: 109.81 | BA181: 1e+20 | BB181: 27.57 | BC181: 19.89 | BD181: 28.33 | BE181: 28.31 | BF181: 28.27 | BG181: 28.47 | BH181: 28.22 | BI181: 28.63 | BJ181: 40.42 | BK181: 12.78 | BL181: 21.94 | BM181: 0 | BN181: 2.5 | BO181: 26.06 | BP181: 9.34 | BQ181: -9.17 | BR181: 0.928 | BS181: 38 | BT181: 24.95 | BU181: 0 | BV181: 0 | BW181: 113.71 | BX181: 8.276 | BY181: 9.146 | BZ181: 117.69 | CA181: 175.06 | CB181: 115.4 | CC181: 25.52 | CD181: 1e+20 | CE181: 0 | CF181: 0 | CG181: 1e+20 | CH181: 1e+20 | CI181: 39.9732 | CJ181: 692.1 | CK181: 133.6 | CL181: 1.582 | CM181: 0 | CN181: 0 | CO181: 0 | CP181: 0 | CQ181: 0
A182: Log | B182: 172 | D182: 14.56 | E182: 14.512 | F182: 14.468 | G182: 0.43364 | H182: 3.048 | I182: 0.74 | J182: 80.01 | K182: 4.147 | L182: 1.2658 | M182: 11.473 | N182: 30 | O182: 40.066 | P182: 40 | Q182: 5.274 | R182: 370.584 | S182: 394.75 | T182: 0.0507 | U182: 8.271 | V182: 100.704 | W182: 0.188 | X182: 10 | Y182: 106.98 | Z182: 6.434 | AA182: 9.215 | AB182: 104.03 | AC182: 405.13 | AD182: 1.52 | AE182: 109.98 | AF182: 1.365 | AG182: 40.779 | AH182: 124.14 | AI182: 255.92 | AJ182: 2.949 | AK182: 17.85 | AL182: 9.5 | AM182: 702.9 | AN182: 696.9 | AO182: 695 | AP182: 0 | AQ182: 693.6 | AR182: 0.9 | AS182: 72 | AT182: 29 | AU182: 3.229 | AV182: 27.31 | AW182: 3.805 | AX182: 108 | AY182: 8.271 | AZ182: 109.81 | BA182: 1e+20 | BB182: 27.57 | BC182: 19.89 | BD182: 28.33 | BE182: 28.32 | BF182: 28.28 | BG182: 28.47 | BH182: 28.23 | BI182: 28.64 | BJ182: 40.42 | BK182: 12.79 | BL182: 21.95 | BM182: 0 | BN182: 2.504 | BO182: 26.07 | BP182: 9.34 | BQ182: -9.17 | BR182: 0.927 | BS182: 38 | BT182: 24.94 | BU182: 0 | BV182: 0 | BW182: 113.72 | BX182: 8.283 | BY182: 9.147 | BZ182: 117.7 | CA182: 174.94 | CB182: 115.49 | CC182: 25.52 | CD182: 1e+20 | CE182: 0 | CF182: 0 | CG182: 1e+20 | CH182: 1e+20 | CI182: 39.994 | CJ182: 696.9 | CK182: 133.5 | CL182: 1.582 | CM182: 0 | CN182: 0 | CO182: 0 | CP182: 0 | CQ182: 0
A183: Log | B183: 173 | D183: 14.54 | E183: 14.453 | F183: 14.379 | G183: 0.43331 | H183: 3.048 | I183: 0.74 | J183: 80.01 | K183: 4.147 | L183: 1.2638 | M183: 11.475 | N183: 30 | O183: 40.0308 | P183: 40 | Q183: 5.327 | R183: 372.273 | S183: 378.367 | T183: 0.0504 | U183: 8.273 | V183: 100.705 | W183: 0.183 | X183: 10 | Y183: 106.96 | Z183: 6.437 | AA183: 9.215 | AB183: 104.01 | AC183: 405.12 | AD183: 1.508 | AE183: 110.07 | AF183: 1.364 | AG183: 40.633 | AH183: 124.56 | AI183: 255.97 | AJ183: 2.901 | AK183: 17.86 | AL183: 9.5 | AM183: 692 | AN183: 696.1 | AO183: 695 | AP183: 0 | AQ183: 696.2 | AR183: 1 | AS183: 72 | AT183: 28.99 | AU183: 3.239 | AV183: 27.3 | AW183: 3.807 | AX183: 107.99 | AY183: 8.272 | AZ183: 109.81 | BA183: 1e+20 | BB183: 27.57 | BC183: 19.89 | BD183: 28.33 | BE183: 28.31 | BF183: 28.28 | BG183: 28.47 | BH183: 28.22 | BI183: 28.64 | BJ183: 40.42 | BK183: 12.79 | BL183: 21.95 | BM183: 0 | BN183: 2.504 | BO183: 26.06 | BP183: 9.342 | BQ183: -9.17 | BR183: 0.928 | BS183: 38 | BT183: 24.94 | BU183: 0 | BV183: 0 | BW183: 113.71 | BX183: 8.277 | BY183: 9.152 | BZ183: 117.69 | CA183: 175.04 | CB183: 115.55 | CC183: 25.53 | CD183: 1e+20 | CE183: 0 | CF183: 0 | CG183: 1e+20 | CH183: 1e+20 | CI183: 40.0356 | CJ183: 696.1 | CK183: 133.6 | CL183: 1.582 | CM183: 0 | CN183: 0 | CO183: 0 | CP183: 0 | CQ183: 0
A184: Log | B184: 174 | D184: 14.48 | E184: 14.54 | F184: 14.495 | G184: 0.4376 | H184: 3.0485 | I184: 0.74 | J184: 80.01 | K184: 4.147 | L184: 1.2638 | M184: 11.473 | N184: 30 | O184: 39.9024 | P184: 40 | Q184: 5.304 | R184: 342.815 | S184: 356.705 | T184: 0.0502 | U184: 8.274 | V184: 100.704 | W184: 0.182 | X184: 10 | Y184: 106.96 | Z184: 6.437 | AA184: 9.215 | AB184: 104 | AC184: 405.08 | AD184: 1.499 | AE184: 110.13 | AF184: 1.362 | AG184: 40.86 | AH184: 124.03 | AI184: 255.6 | AJ184: 2.909 | AK184: 17.72 | AL184: 9.5 | AM184: 696.2 | AN184: 690.9 | AO184: 695 | AP184: 0 | AQ184: 691 | AR184: 0.4 | AS184: 72 | AT184: 28.99 | AU184: 3.233 | AV184: 27.3 | AW184: 3.799 | AX184: 108 | AY184: 8.27 | AZ184: 109.82 | BA184: 1e+20 | BB184: 27.56 | BC184: 19.89 | BD184: 28.32 | BE184: 28.31 | BF184: 28.27 | BG184: 28.47 | BH184: 28.21 | BI184: 28.63 | BJ184: 40.42 | BK184: 12.79 | BL184: 21.95 | BM184: 0 | BN184: 2.506 | BO184: 26.07 | BP184: 9.34 | BQ184: -9.16 | BR184: 0.928 | BS184: 38.01 | BT184: 24.94 | BU184: 0 | BV184: 0 | BW184: 113.7 | BX184: 8.279 | BY184: 9.158 | BZ184: 117.69 | CA184: 175.01 | CB184: 115.63 | CC184: 25.52 | CD184: 1e+20 | CE184: 0 | CF184: 0 | CG184: 1e+20 | CH184: 1e+20 | CI184: 39.9516 | CJ184: 690.8 | CK184: 133.6 | CL184: 1.582 | CM184: 0 | CN184: 0 | CO184: 0 | CP184: 0 | CQ184: 0
A185: Log | B185: 175 | D185: 14.53 | E185: 14.453 | F185: 14.424 | G185: 0.43196 | H185: 3.0479 | I185: 0.74 | J185: 79.99 | K185: 4.147 | L185: 1.2638 | M185: 11.47 | N185: 30 | O185: 40.0959 | P185: 40 | Q185: 5.261 | R185: 376.895 | S185: 371.24 | T185: 0.0498 | U185: 8.273 | V185: 100.704 | W185: 0.189 | X185: 10 | Y185: 106.98 | Z185: 6.435 | AA185: 9.215 | AB185: 104.06 | AC185: 404.98 | AD185: 1.498 | AE185: 110.01 | AF185: 1.362 | AG185: 40.741 | AH185: 124.26 | AI185: 255.9 | AJ185: 2.939 | AK185: 17.88 | AL185: 9.5 | AM185: 700 | AN185: 698.1 | AO185: 695 | AP185: 0 | AQ185: 694.9 | AR185: 1 | AS185: 72 | AT185: 28.99 | AU185: 3.232 | AV185: 27.3 | AW185: 3.802 | AX185: 107.99 | AY185: 8.274 | AZ185: 109.82 | BA185: 1e+20 | BB185: 27.53 | BC185: 19.89 | BD185: 28.32 | BE185: 28.31 | BF185: 28.28 | BG185: 28.47 | BH185: 28.21 | BI185: 28.63 | BJ185: 40.41 | BK185: 12.79 | BL185: 21.94 | BM185: 0 | BN185: 2.502 | BO185: 26.06 | BP185: 9.34 | BQ185: -9.15 | BR185: 0.927 | BS185: 38.01 | BT185: 24.94 | BU185: 0 | BV185: 0 | BW185: 113.71 | BX185: 8.277 | BY185: 9.161 | BZ185: 117.68 | CA185: 175.03 | CB185: 115.44 | CC185: 25.51 | CD185: 1e+20 | CE185: 0 | CF185: 0 | CG185: 1e+20 | CH185: 1e+20 | CI185: 40.0082 | CJ185: 698.1 | CK185: 133.6 | CL185: 1.582 | CM185: 0 | CN185: 0 | CO185: 0 | CP185: 0 | CQ185: 0
A186: Log | B186: 176 | D186: 14.48 | E186: 14.485 | F186: 14.488 | G186: 0.43577 | H186: 3.0483 | I186: 0.74 | J186: 79.98 | K186: 4.147 | L186: 1.2638 | M186: 11.469 | N186: 30 | O186: 39.9354 | P186: 40 | Q186: 5.277 | R186: 367.174 | S186: 356.746 | T186: 0.0496 | U186: 8.271 | V186: 100.704 | W186: 0.174 | X186: 10 | Y186: 106.98 | Z186: 6.435 | AA186: 9.215 | AB186: 103.98 | AC186: 404.94 | AD186: 1.499 | AE186: 110.15 | AF186: 1.361 | AG186: 40.688 | AH186: 124.49 | AI186: 255.76 | AJ186: 2.862 | AK186: 17.78 | AL186: 9.5 | AM186: 684.3 | AN186: 692.6 | AO186: 695 | AP186: 0 | AQ186: 693.4 | AR186: 0.9 | AS186: 72 | AT186: 29 | AU186: 3.229 | AV186: 27.29 | AW186: 3.815 | AX186: 107.99 | AY186: 8.275 | AZ186: 109.82 | BA186: 1e+20 | BB186: 27.53 | BC186: 19.89 | BD186: 28.33 | BE186: 28.31 | BF186: 28.28 | BG186: 28.47 | BH186: 28.22 | BI186: 28.63 | BJ186: 40.41 | BK186: 12.79 | BL186: 21.95 | BM186: 0 | BN186: 2.506 | BO186: 26.07 | BP186: 9.339 | BQ186: -9.16 | BR186: 0.928 | BS186: 37.99 | BT186: 24.95 | BU186: 0 | BV186: 0 | BW186: 113.71 | BX186: 8.319 | BY186: 9.161 | BZ186: 117.69 | CA186: 174.34 | CB186: 115.53 | CC186: 25.52 | CD186: 1e+20 | CE186: 0 | CF186: 0 | CG186: 1e+20 | CH186: 1e+20 | CI186: 40.0132 | CJ186: 692.6 | CK186: 133.6 | CL186: 1.582 | CM186: 0 | CN186: 0 | CO186: 0 | CP186: 0 | CQ186: 0
A187: Log | B187: 177 | D187: 14.51 | E187: 14.552 | F187: 14.58 | G187: 0.43764 | H187: 3.0486 | I187: 0.74 | J187: 79.96 | K187: 4.147 | L187: 1.2639 | M187: 11.463 | N187: 30 | O187: 39.9065 | P187: 40 | Q187: 5.293 | R187: 346.904 | S187: 366.774 | T187: 0.0495 | U187: 8.268 | V187: 100.704 | W187: 0.184 | X187: 10 | Y187: 106.98 | Z187: 6.435 | AA187: 9.215 | AB187: 104.01 | AC187: 404.94 | AD187: 1.503 | AE187: 110.06 | AF187: 1.359 | AG187: 40.94 | AH187: 123.78 | AI187: 255.58 | AJ187: 2.916 | AK187: 17.74 | AL187: 9.5 | AM187: 697.7 | AN187: 691.2 | AO187: 695 | AP187: 0 | AQ187: 688.5 | AR187: 0.8 | AS187: 72 | AT187: 29 | AU187: 3.228 | AV187: 27.29 | AW187: 3.806 | AX187: 107.99 | AY187: 8.277 | AZ187: 109.83 | BA187: 1e+20 | BB187: 27.52 | BC187: 19.9 | BD187: 28.32 | BE187: 28.31 | BF187: 28.27 | BG187: 28.48 | BH187: 28.22 | BI187: 28.62 | BJ187: 40.41 | BK187: 12.79 | BL187: 21.96 | BM187: 0 | BN187: 2.508 | BO187: 26.06 | BP187: 9.341 | BQ187: -9.17 | BR187: 0.928 | BS187: 38 | BT187: 24.94 | BU187: 0 | BV187: 0 | BW187: 113.71 | BX187: 8.317 | BY187: 9.166 | BZ187: 117.7 | CA187: 174.39 | CB187: 115.65 | CC187: 25.53 | CD187: 1e+20 | CE187: 0 | CF187: 0 | CG187: 1e+20 | CH187: 1e+20 | CI187: 39.9179 | CJ187: 691.1 | CK187: 133.6 | CL187: 1.582 | CM187: 0 | CN187: 0 | CO187: 0 | CP187: 0 | CQ187: 0
A188: Log | B188: 178 | D188: 14.57 | E188: 14.424 | F188: 14.409 | G188: 0.43315 | H188: 3.0481 | I188: 0.74 | J188: 79.96 | K188: 4.147 | L188: 1.2639 | M188: 11.472 | N188: 30 | O188: 40.0506 | P188: 40 | Q188: 5.279 | R188: 354.384 | S188: 389.115 | T188: 0.0496 | U188: 8.266 | V188: 100.704 | W188: 0.195 | X188: 10 | Y188: 107 | Z188: 6.434 | AA188: 9.215 | AB188: 104.06 | AC188: 404.87 | AD188: 1.513 | AE188: 110.01 | AF188: 1.359 | AG188: 40.754 | AH188: 124.08 | AI188: 255.75 | AJ188: 2.916 | AK188: 17.87 | AL188: 9.5 | AM188: 695.3 | AN188: 696.6 | AO188: 695 | AP188: 0 | AQ188: 696 | AR188: 1.1 | AS188: 72 | AT188: 29 | AU188: 3.224 | AV188: 27.3 | AW188: 3.803 | AX188: 107.98 | AY188: 8.282 | AZ188: 109.83 | BA188: 1e+20 | BB188: 27.52 | BC188: 19.9 | BD188: 28.32 | BE188: 28.31 | BF188: 28.27 | BG188: 28.47 | BH188: 28.21 | BI188: 28.62 | BJ188: 40.42 | BK188: 12.8 | BL188: 21.97 | BM188: 0 | BN188: 2.511 | BO188: 26.07 | BP188: 9.338 | BQ188: -9.16 | BR188: 0.928 | BS188: 38.01 | BT188: 24.95 | BU188: 0 | BV188: 0 | BW188: 113.72 | BX188: 8.294 | BY188: 9.166 | BZ188: 117.71 | CA188: 174.78 | CB188: 115.72 | CC188: 25.53 | CD188: 1e+20 | CE188: 0 | CF188: 0 | CG188: 1e+20 | CH188: 1e+20 | CI188: 39.987 | CJ188: 696.6 | CK188: 133.6 | CL188: 1.582 | CM188: 0 | CN188: 0 | CO188: 0 | CP188: 0 | CQ188: 0
A189: Log | B189: 179 | D189: 14.48 | E189: 14.506 | F189: 14.509 | G189: 0.43539 | H189: 3.0484 | I189: 0.74 | J189: 79.96 | K189: 4.148 | L189: 1.2639 | M189: 11.467 | N189: 30 | O189: 39.9627 | P189: 40 | Q189: 5.299 | R189: 343.611 | S189: 361.721 | T189: 0.0499 | U189: 8.265 | V189: 100.704 | W189: 0.153 | X189: 10 | Y189: 107.02 | Z189: 6.431 | AA189: 9.215 | AB189: 104.01 | AC189: 404.86 | AD189: 1.523 | AE189: 110.12 | AF189: 1.357 | AG189: 40.753 | AH189: 124.17 | AI189: 255.6 | AJ189: 2.903 | AK189: 17.78 | AL189: 9.5 | AM189: 693.6 | AN189: 693.4 | AO189: 695 | AP189: 0 | AQ189: 693.1 | AR189: 0.9 | AS189: 72 | AT189: 29 | AU189: 3.222 | AV189: 27.31 | AW189: 3.814 | AX189: 107.98 | AY189: 8.282 | AZ189: 109.82 | BA189: 1e+20 | BB189: 27.52 | BC189: 19.9 | BD189: 28.31 | BE189: 28.3 | BF189: 28.26 | BG189: 28.47 | BH189: 28.2 | BI189: 28.61 | BJ189: 40.42 | BK189: 12.79 | BL189: 21.97 | BM189: 0 | BN189: 2.511 | BO189: 26.07 | BP189: 9.339 | BQ189: -9.16 | BR189: 0.928 | BS189: 37.99 | BT189: 24.95 | BU189: 0 | BV189: 0 | BW189: 113.72 | BX189: 8.281 | BY189: 9.168 | BZ189: 117.7 | CA189: 175 | CB189: 115.55 | CC189: 25.52 | CD189: 1e+20 | CE189: 0 | CF189: 0 | CG189: 1e+20 | CH189: 1e+20 | CI189: 39.9849 | CJ189: 693.4 | CK189: 133.6 | CL189: 1.582 | CM189: 0 | CN189: 0 | CO189: 0 | CP189: 0 | CQ189: 0
A190: Log | B190: 180 | D190: 14.52 | E190: 14.441 | F190: 14.421 | G190: 0.43239 | H190: 3.0481 | I190: 0.74 | J190: 79.95 | K190: 4.148 | L190: 1.2639 | M190: 11.469 | N190: 30 | O190: 40.0622 | P190: 40 | Q190: 5.311 | R190: 359.394 | S190: 377.397 | T190: 0.0501 | U190: 8.266 | V190: 100.703 | W190: 0.179 | X190: 10 | Y190: 107.02 | Z190: 6.431 | AA190: 9.214 | AB190: 104.03 | AC190: 404.97 | AD190: 1.528 | AE190: 110.08 | AF190: 1.357 | AG190: 40.685 | AH190: 124.43 | AI190: 255.81 | AJ190: 2.926 | AK190: 17.86 | AL190: 9.5 | AM190: 697.6 | AN190: 697.2 | AO190: 695 | AP190: 0 | AQ190: 695.5 | AR190: 1.1 | AS190: 72 | AT190: 29 | AU190: 3.222 | AV190: 27.32 | AW190: 3.81 | AX190: 107.98 | AY190: 8.28 | AZ190: 109.82 | BA190: 1e+20 | BB190: 27.48 | BC190: 19.89 | BD190: 28.3 | BE190: 28.3 | BF190: 28.26 | BG190: 28.46 | BH190: 28.21 | BI190: 28.61 | BJ190: 40.4 | BK190: 12.78 | BL190: 21.96 | BM190: 0 | BN190: 2.507 | BO190: 26.07 | BP190: 9.34 | BQ190: -9.16 | BR190: 0.928 | BS190: 38 | BT190: 24.95 | BU190: 0 | BV190: 0 | BW190: 113.72 | BX190: 8.263 | BY190: 9.173 | BZ190: 117.71 | CA190: 175.3 | CB190: 115.44 | CC190: 25.52 | CD190: 1e+20 | CE190: 0 | CF190: 0 | CG190: 1e+20 | CH190: 1e+20 | CI190: 40.0197 | CJ190: 697.3 | CK190: 133.6 | CL190: 1.582 | CM190: 0 | CN190: 0 | CO190: 0 | CP190: 0 | CQ190: 0
A191: Log | B191: 181 | D191: 14.48 | E191: 14.511 | F191: 14.511 | G191: 0.43715 | H191: 3.0486 | I191: 0.74 | J191: 79.95 | K191: 4.148 | L191: 1.2639 | M191: 11.47 | N191: 30 | O191: 39.8979 | P191: 40 | Q191: 5.293 | R191: 340.041 | S191: 357.771 | T191: 0.0499 | U191: 8.267 | V191: 100.704 | W191: 0.184 | X191: 10 | Y191: 107.02 | Z191: 6.431 | AA191: 9.214 | AB191: 103.99 | AC191: 405.01 | AD191: 1.527 | AE191: 110.17 | AF191: 1.354 | AG191: 40.758 | AH191: 124.35 | AI191: 255.82 | AJ191: 2.869 | AK191: 17.73 | AL191: 9.5 | AM191: 686.6 | AN191: 691 | AO191: 695 | AP191: 0 | AQ191: 692.1 | AR191: 0.7 | AS191: 72 | AT191: 29 | AU191: 3.224 | AV191: 27.32 | AW191: 3.815 | AX191: 107.99 | AY191: 8.276 | AZ191: 109.82 | BA191: 1e+20 | BB191: 27.48 | BC191: 19.89 | BD191: 28.3 | BE191: 28.3 | BF191: 28.26 | BG191: 28.46 | BH191: 28.2 | BI191: 28.61 | BJ191: 40.41 | BK191: 12.78 | BL191: 21.96 | BM191: 0 | BN191: 2.507 | BO191: 26.06 | BP191: 9.341 | BQ191: -9.17 | BR191: 0.928 | BS191: 37.99 | BT191: 24.94 | BU191: 0 | BV191: 0 | BW191: 113.7 | BX191: 8.253 | BY191: 9.18 | BZ191: 117.71 | CA191: 175.46 | CB191: 115.45 | CC191: 25.52 | CD191: 1e+20 | CE191: 0 | CF191: 0 | CG191: 1e+20 | CH191: 1e+20 | CI191: 39.9829 | CJ191: 691 | CK191: 133.7 | CL191: 1.582 | CM191: 0 | CN191: 0 | CO191: 0 | CP191: 0 | CQ191: 0
A192: Log | B192: 182 | D192: 14.52 | E192: 14.471 | F192: 14.47 | G192: 0.43497 | H192: 3.0484 | I192: 0.74 | J192: 79.95 | K192: 4.148 | L192: 1.2639 | M192: 11.476 | N192: 30 | O192: 39.9983 | P192: 40 | Q192: 5.316 | R192: 347.252 | S192: 374.078 | T192: 0.0497 | U192: 8.266 | V192: 100.704 | W192: 0.191 | X192: 10 | Y192: 107.02 | Z192: 6.431 | AA192: 9.214 | AB192: 104.02 | AC192: 404.97 | AD192: 1.53 | AE192: 110.01 | AF192: 1.353 | AG192: 40.858 | AH192: 124.02 | AI192: 255.47 | AJ192: 2.929 | AK192: 17.79 | AL192: 9.5 | AM192: 699.2 | AN192: 694.2 | AO192: 695 | AP192: 0 | AQ192: 691.5 | AR192: 0.8 | AS192: 72 | AT192: 29 | AU192: 3.226 | AV192: 27.31 | AW192: 3.817 | AX192: 107.99 | AY192: 8.273 | AZ192: 109.82 | BA192: 1e+20 | BB192: 27.48 | BC192: 19.89 | BD192: 28.3 | BE192: 28.29 | BF192: 28.26 | BG192: 28.47 | BH192: 28.2 | BI192: 28.6 | BJ192: 40.41 | BK192: 12.78 | BL192: 21.95 | BM192: 0 | BN192: 2.505 | BO192: 26.05 | BP192: 9.343 | BQ192: -9.18 | BR192: 0.928 | BS192: 37.99 | BT192: 24.94 | BU192: 0 | BV192: 0 | BW192: 113.69 | BX192: 8.25 | BY192: 9.186 | BZ192: 117.69 | CA192: 175.49 | CB192: 115.55 | CC192: 25.52 | CD192: 1e+20 | CE192: 0 | CF192: 0 | CG192: 1e+20 | CH192: 1e+20 | CI192: 39.9588 | CJ192: 694.3 | CK192: 133.6 | CL192: 1.582 | CM192: 0 | CN192: 0 | CO192: 0 | CP192: 0 | CQ192: 0
A193: Log | B193: 183 | D193: 14.51 | E193: 14.46 | F193: 14.477 | G193: 0.436 | H193: 3.0486 | I193: 0.74 | J193: 79.96 | K193: 4.148 | L193: 1.2639 | M193: 11.476 | N193: 30 | O193: 39.9417 | P193: 40 | Q193: 5.283 | R193: 343.596 | S193: 361.947 | T193: 0.0498 | U193: 8.265 | V193: 100.704 | W193: 0.182 | X193: 10 | Y193: 107.01 | Z193: 6.432 | AA193: 9.214 | AB193: 104 | AC193: 405 | AD193: 1.532 | AE193: 110.1 | AF193: 1.353 | AG193: 40.784 | AH193: 124.17 | AI193: 255.88 | AJ193: 2.866 | AK193: 17.78 | AL193: 9.5 | AM193: 685.3 | AN193: 692.5 | AO193: 695 | AP193: 0 | AQ193: 693.1 | AR193: 0.8 | AS193: 72 | AT193: 29 | AU193: 3.225 | AV193: 27.32 | AW193: 3.803 | AX193: 108.01 | AY193: 8.258 | AZ193: 109.83 | BA193: 1e+20 | BB193: 27.48 | BC193: 19.9 | BD193: 28.28 | BE193: 28.28 | BF193: 28.25 | BG193: 28.46 | BH193: 28.19 | BI193: 28.6 | BJ193: 40.41 | BK193: 12.78 | BL193: 21.95 | BM193: 0 | BN193: 2.506 | BO193: 26.06 | BP193: 9.342 | BQ193: -9.17 | BR193: 0.928 | BS193: 38.01 | BT193: 24.95 | BU193: 0 | BV193: 0 | BW193: 113.7 | BX193: 8.263 | BY193: 9.187 | BZ193: 117.69 | CA193: 175.28 | CB193: 115.6 | CC193: 25.53 | CD193: 1e+20 | CE193: 0 | CF193: 0 | CG193: 1e+20 | CH193: 1e+20 | CI193: 39.9782 | CJ193: 692.6 | CK193: 133.7 | CL193: 1.151 | CM193: 0 | CN193: 0 | CO193: 0 | CP193: 0 | CQ193: 0
A194: Log | B194: 184 | D194: 14.5 | E194: 14.558 | F194: 14.534 | G194: 0.43792 | H194: 3.0488 | I194: 0.74 | J194: 79.97 | K194: 4.148 | L194: 1.2639 | M194: 11.49 | N194: 30 | O194: 39.9019 | P194: 40 | Q194: 5.292 | R194: 330.249 | S194: 373.394 | T194: 0.0503 | U194: 8.266 | V194: 100.704 | W194: 0.193 | X194: 10 | Y194: 107.02 | Z194: 6.431 | AA194: 9.214 | AB194: 104.01 | AC194: 404.98 | AD194: 1.533 | AE194: 109.96 | AF194: 1.352 | AG194: 40.947 | AH194: 123.76 | AI194: 255.84 | AJ194: 2.907 | AK194: 17.73 | AL194: 9.5 | AM194: 695.6 | AN194: 690.6 | AO194: 695 | AP194: 0 | AQ194: 688.9 | AR194: 0.6 | AS194: 72 | AT194: 29 | AU194: 3.223 | AV194: 27.32 | AW194: 3.807 | AX194: 108.02 | AY194: 8.252 | AZ194: 109.83 | BA194: 1e+20 | BB194: 27.48 | BC194: 19.9 | BD194: 28.28 | BE194: 28.28 | BF194: 28.25 | BG194: 28.46 | BH194: 28.2 | BI194: 28.6 | BJ194: 40.41 | BK194: 12.79 | BL194: 21.96 | BM194: 0 | BN194: 2.509 | BO194: 26.06 | BP194: 9.34 | BQ194: -9.15 | BR194: 0.928 | BS194: 38 | BT194: 24.95 | BU194: 0 | BV194: 0 | BW194: 113.71 | BX194: 8.277 | BY194: 9.187 | BZ194: 117.71 | CA194: 175.04 | CB194: 115.53 | CC194: 25.53 | CD194: 1e+20 | CE194: 0 | CF194: 0 | CG194: 1e+20 | CH194: 1e+20 | CI194: 39.9168 | CJ194: 690.6 | CK194: 133.7 | CL194: 1.151 | CM194: 0 | CN194: 0 | CO194: 0 | CP194: 0 | CQ194: 0
A195: Log | B195: 185 | D195: 14.54 | E195: 14.457 | F195: 14.398 | G195: 0.43349 | H195: 3.0485 | I195: 0.74 | J195: 79.97 | K195: 4.148 | L195: 1.2639 | M195: 11.485 | N195: 30 | O195: 40.0407 | P195: 40 | Q195: 5.315 | R195: 358.849 | S195: 381.111 | T195: 0.0508 | U195: 8.27 | V195: 100.703 | W195: 0.195 | X195: 10 | Y195: 107.01 | Z195: 6.432 | AA195: 9.214 | AB195: 104.06 | AC195: 405.06 | AD195: 1.53 | AE195: 109.92 | AF195: 1.354 | AG195: 40.789 | AH195: 124.07 | AI195: 255.28 | AJ195: 2.921 | AK195: 17.86 | AL195: 9.5 | AM195: 696.6 | AN195: 696.2 | AO195: 695 | AP195: 0 | AQ195: 694.5 | AR195: 1 | AS195: 72 | AT195: 29.01 | AU195: 3.22 | AV195: 27.31 | AW195: 3.807 | AX195: 108.01 | AY195: 8.256 | AZ195: 109.84 | BA195: 1e+20 | BB195: 27.43 | BC195: 19.9 | BD195: 28.28 | BE195: 28.29 | BF195: 28.26 | BG195: 28.44 | BH195: 28.19 | BI195: 28.6 | BJ195: 40.41 | BK195: 12.79 | BL195: 21.97 | BM195: 0 | BN195: 2.511 | BO195: 26.06 | BP195: 9.34 | BQ195: -9.14 | BR195: 0.928 | BS195: 38 | BT195: 24.94 | BU195: 0 | BV195: 0 | BW195: 113.71 | BX195: 8.278 | BY195: 9.189 | BZ195: 117.72 | CA195: 175.02 | CB195: 115.56 | CC195: 25.53 | CD195: 1e+20 | CE195: 0 | CF195: 0 | CG195: 1e+20 | CH195: 1e+20 | CI195: 39.9765 | CJ195: 696.2 | CK195: 133.7 | CL195: 1.151 | CM195: 0 | CN195: 0 | CO195: 0 | CP195: 0 | CQ195: 0
A196: Log | B196: 186 | D196: 14.48 | E196: 14.53 | F196: 14.495 | G196: 0.4391 | H196: 3.0491 | I196: 0.74 | J196: 79.97 | K196: 4.148 | L196: 1.2639 | M196: 11.478 | N196: 30 | O196: 39.8438 | P196: 40 | Q196: 5.278 | R196: 351.037 | S196: 348.403 | T196: 0.0504 | U196: 8.271 | V196: 100.704 | W196: 0.185 | X196: 10 | Y196: 107 | Z196: 6.433 | AA196: 9.214 | AB196: 103.98 | AC196: 404.98 | AD196: 1.529 | AE196: 110.08 | AF196: 1.353 | AG196: 40.837 | AH196: 123.98 | AI196: 255.55 | AJ196: 2.843 | AK196: 17.69 | AL196: 9.5 | AM196: 681.3 | AN196: 688.7 | AO196: 695 | AP196: 0 | AQ196: 689.8 | AR196: 0.7 | AS196: 72 | AT196: 29.01 | AU196: 3.216 | AV196: 27.31 | AW196: 3.803 | AX196: 108.02 | AY196: 8.251 | AZ196: 109.84 | BA196: 1e+20 | BB196: 27.45 | BC196: 19.9 | BD196: 28.28 | BE196: 28.29 | BF196: 28.26 | BG196: 28.46 | BH196: 28.21 | BI196: 28.61 | BJ196: 40.42 | BK196: 12.78 | BL196: 21.97 | BM196: 0 | BN196: 2.511 | BO196: 26.07 | BP196: 9.338 | BQ196: -9.16 | BR196: 0.929 | BS196: 38.01 | BT196: 24.95 | BU196: 0 | BV196: 0 | BW196: 113.72 | BX196: 8.291 | BY196: 9.19 | BZ196: 117.72 | CA196: 174.81 | CB196: 115.66 | CC196: 25.53 | CD196: 1e+20 | CE196: 0 | CF196: 0 | CG196: 1e+20 | CH196: 1e+20 | CI196: 39.9456 | CJ196: 688.7 | CK196: 133.7 | CL196: 1.151 | CM196: 0 | CN196: 0 | CO196: 0 | CP196: 0 | CQ196: 0
